Workbook

Sheet NOTES
A1: An aggregate function is a function that returns a single value from a collection of input values.
A2: AGGREGATE function - two types
A3: =AGGREGATE(function_num,option,array,[k]) functions 14 - 19 can handle arrays
A4: =AGGREGATE(function_num,option,ref1,ref2,[ref3]) not for arrays
A5: If the formula requires a second argument and you don't provide it, you get an #VALUE! Error (like SMALL without the k argument.
A6: The AGGREGATE function is designed for columns of data, or vertical ranges. It is not designed for rows of data, or horizontal ranges. For example, when you subtotal a horizontal range using option 1, such as AGGREGATE(1, 1, ref1), hiding a column does not affect the aggregate sum value. But, hiding a row in vertical range does affect the aggregate.
A7: If you use 3-D cell references, you get an #VALUE!
A8: http://en.wikipedia.org/wiki/Aggregate_function
A9: http://office.microsoft.com/en-us/excel-help/aggregate-function-HA010338704.aspx
A11: SUBTOTAL function only has 11 functions
A12: 1st argument | D12: 2nd argument
A13: function_num | B13: Function | D13: option | E13: what it does
A14: 1 | B14: AVERAGE | D14: 0 | E14: Ignore nested SUBTOTAL and AGGREGATE functions
A15: 2 | B15: COUNT | D15: 1 | E15: Ignore hidden rows, nested SUBTOTAL and AGGREGATE functions
A16: 3 | B16: COUNTA | D16: 2 | E16: Ignore error values, nested SUBTOTAL and AGGREGATE functions
A17: 4 | B17: MAX | D17: 3 | E17: Ignore hidden rows, error values, nested SUBTOTAL and AGGREGATE functions
A18: 5 | B18: MIN | D18: 4 | E18: Ignore nothing
A19: 6 | B19: PRODUCT | D19: 5 | E19: Ignore hidden rows
A20: 7 | B20: STDDEV.S | D20: 6 | E20: Ignore error values
A21: 8 | B21: STDDEV.P | D21: 7 | E21: Ignore hidden rows and error values
A22: 9 | B22: SUM
A23: 10 | B23: VAR.S
A24: 11 | B24: VAR.P
A25: 12 | B25: MEDIAN
A26: 13 | B26: MODE.SNGL
A27: 14 | B27: LARGE
A28: 15 | B28: SMALL
A29: 16 | B29: PERCENTILE.INC
A30: 17 | B30: QUARTILE.INC
A31: 18 | B31: PERCENTILE.EXC
A32: 19 | B32: QUARTILE.EXC

Sheet 661
A1: Date | B1: SalesRep | C1: Sales | E1: =VLOOKUP(F1,{1,"AVERAGE";2,"COUNT";3,"COUNTA";4,"MAX";5,"MIN";6,"PRODUCT";7,"STDEV.S";8,"STDEV.P";9,"SUM";10,"VAR.S";11,"VAR.P";12,"MEDIAN";13,"MODE.SNGL";14,"LARGE";15,"SMALL";16,"PERCENTILE.INC";17,"QUARTILE.INC";18,"PERCENTILE.EXC";19,"QUARTILE.EXC"},2,0) -> AVERAGE | F1: 1 | I1: =AVERAGE($C$2:$C$102) -> 114.1316832 | J1: =ShowFormulaToLeft -> =AVERAGE($C$2:$C$102) | M1: No | N1: =C1 -> Sales
A2: 2009-12-25 | B2: Gault | C2: 94.69 | E2: =VLOOKUP(F2,{1,"AVERAGE";2,"COUNT";3,"COUNTA";4,"MAX";5,"MIN";6,"PRODUCT";7,"STDEV.S";8,"STDEV.P";9,"SUM";10,"VAR.S";11,"VAR.P";12,"MEDIAN";13,"MODE.SNGL";14,"LARGE";15,"SMALL";16,"PERCENTILE.INC";17,"QUARTILE.INC";18,"PERCENTILE.EXC";19,"QUARTILE.EXC"},2,0) -> COUNT | F2: 2 | I2: =COUNT($C$2:$C$102) -> 101 | J2: =ShowFormulaToLeft -> =COUNT($C$2:$C$102) | M2: =ROWS(M$2:M2) -> 1 | N2: =SMALL($C$2:$C$102,ROWS(N$2:N2)) -> 75.04
A3: 2009-12-15 | B3: Smith | C3: 130.2 | E3: =VLOOKUP(F3,{1,"AVERAGE";2,"COUNT";3,"COUNTA";4,"MAX";5,"MIN";6,"PRODUCT";7,"STDEV.S";8,"STDEV.P";9,"SUM";10,"VAR.S";11,"VAR.P";12,"MEDIAN";13,"MODE.SNGL";14,"LARGE";15,"SMALL";16,"PERCENTILE.INC";17,"QUARTILE.INC";18,"PERCENTILE.EXC";19,"QUARTILE.EXC"},2,0) -> COUNTA | F3: 3 | I3: =COUNTA($C$2:$C$102) -> 101 | J3: =ShowFormulaToLeft -> =COUNTA($C$2:$C$102) | M3: =ROWS(M$2:M3) -> 2 | N3: =SMALL($C$2:$C$102,ROWS(N$2:N3)) -> 75.17
A4: 2009-12-11 | B4: Franks | C4: 149.95 | E4: =VLOOKUP(F4,{1,"AVERAGE";2,"COUNT";3,"COUNTA";4,"MAX";5,"MIN";6,"PRODUCT";7,"STDEV.S";8,"STDEV.P";9,"SUM";10,"VAR.S";11,"VAR.P";12,"MEDIAN";13,"MODE.SNGL";14,"LARGE";15,"SMALL";16,"PERCENTILE.INC";17,"QUARTILE.INC";18,"PERCENTILE.EXC";19,"QUARTILE.EXC"},2,0) -> MAX | F4: 4 | I4: =MAX($C$2:$C$102) -> 154.31 | J4: =ShowFormulaToLeft -> =MAX($C$2:$C$102) | M4: =ROWS(M$2:M4) -> 3 | N4: =SMALL($C$2:$C$102,ROWS(N$2:N4)) -> 75.35
A5: 2009-12-01 | B5: Gault | C5: 94.11 | E5: =VLOOKUP(F5,{1,"AVERAGE";2,"COUNT";3,"COUNTA";4,"MAX";5,"MIN";6,"PRODUCT";7,"STDEV.S";8,"STDEV.P";9,"SUM";10,"VAR.S";11,"VAR.P";12,"MEDIAN";13,"MODE.SNGL";14,"LARGE";15,"SMALL";16,"PERCENTILE.INC";17,"QUARTILE.INC";18,"PERCENTILE.EXC";19,"QUARTILE.EXC"},2,0) -> MIN | F5: 5 | I5: =MIN($C$2:$C$102) -> 75.04 | J5: =ShowFormulaToLeft -> =MIN($C$2:$C$102) | M5: =ROWS(M$2:M5) -> 4 | N5: =SMALL($C$2:$C$102,ROWS(N$2:N5)) -> 76.26
A6: 2009-12-11 | B6: Franks | C6: 136.14 | E6: =VLOOKUP(F6,{1,"AVERAGE";2,"COUNT";3,"COUNTA";4,"MAX";5,"MIN";6,"PRODUCT";7,"STDEV.S";8,"STDEV.P";9,"SUM";10,"VAR.S";11,"VAR.P";12,"MEDIAN";13,"MODE.SNGL";14,"LARGE";15,"SMALL";16,"PERCENTILE.INC";17,"QUARTILE.INC";18,"PERCENTILE.EXC";19,"QUARTILE.EXC"},2,0) -> PRODUCT | F6: 6 | I6: =PRODUCT($C$2:$C$102) -> 8.445682373e+206 | J6: =ShowFormulaToLeft -> =PRODUCT($C$2:$C$102) | M6: =ROWS(M$2:M6) -> 5 | N6: =SMALL($C$2:$C$102,ROWS(N$2:N6)) -> 76.59
A7: 2010-02-12 | B7: Pham | C7: 133.17 | E7: =VLOOKUP(F7,{1,"AVERAGE";2,"COUNT";3,"COUNTA";4,"MAX";5,"MIN";6,"PRODUCT";7,"STDEV.S";8,"STDEV.P";9,"SUM";10,"VAR.S";11,"VAR.P";12,"MEDIAN";13,"MODE.SNGL";14,"LARGE";15,"SMALL";16,"PERCENTILE.INC";17,"QUARTILE.INC";18,"PERCENTILE.EXC";19,"QUARTILE.EXC"},2,0) -> STDEV.S | F7: 7 | I7: =_xlfn.STDEV.S($C$2:$C$102) -> 22.12172778 | J7: =ShowFormulaToLeft -> =STDEV.S($C$2:$C$102) | M7: =ROWS(M$2:M7) -> 6 | N7: =SMALL($C$2:$C$102,ROWS(N$2:N7)) -> 76.65
A8: 2009-12-07 | B8: Smith | C8: 80.81 | E8: =VLOOKUP(F8,{1,"AVERAGE";2,"COUNT";3,"COUNTA";4,"MAX";5,"MIN";6,"PRODUCT";7,"STDEV.S";8,"STDEV.P";9,"SUM";10,"VAR.S";11,"VAR.P";12,"MEDIAN";13,"MODE.SNGL";14,"LARGE";15,"SMALL";16,"PERCENTILE.INC";17,"QUARTILE.INC";18,"PERCENTILE.EXC";19,"QUARTILE.EXC"},2,0) -> STDEV.P | F8: 8 | I8: =_xlfn.STDEV.P($C$2:$C$102) -> 22.01194186 | J8: =ShowFormulaToLeft -> =STDEV.P($C$2:$C$102) | M8: =ROWS(M$2:M8) -> 7 | N8: =SMALL($C$2:$C$102,ROWS(N$2:N8)) -> 78.46
A9: 2009-11-23 | B9: Smith | C9: 125.38 | E9: =VLOOKUP(F9,{1,"AVERAGE";2,"COUNT";3,"COUNTA";4,"MAX";5,"MIN";6,"PRODUCT";7,"STDEV.S";8,"STDEV.P";9,"SUM";10,"VAR.S";11,"VAR.P";12,"MEDIAN";13,"MODE.SNGL";14,"LARGE";15,"SMALL";16,"PERCENTILE.INC";17,"QUARTILE.INC";18,"PERCENTILE.EXC";19,"QUARTILE.EXC"},2,0) -> SUM | F9: 9 | I9: =SUM($C$2:$C$102) -> 11527.3 | J9: =ShowFormulaToLeft -> =SUM($C$2:$C$102) | M9: =ROWS(M$2:M9) -> 8 | N9: =SMALL($C$2:$C$102,ROWS(N$2:N9)) -> 78.89
A10: 2009-11-23 | B10: Gault | C10: 78.95 | E10: =VLOOKUP(F10,{1,"AVERAGE";2,"COUNT";3,"COUNTA";4,"MAX";5,"MIN";6,"PRODUCT";7,"STDEV.S";8,"STDEV.P";9,"SUM";10,"VAR.S";11,"VAR.P";12,"MEDIAN";13,"MODE.SNGL";14,"LARGE";15,"SMALL";16,"PERCENTILE.INC";17,"QUARTILE.INC";18,"PERCENTILE.EXC";19,"QUARTILE.EXC"},2,0) -> VAR.S | F10: 10 | I10: =_xlfn.VAR.S($C$2:$C$102) -> 489.3708401 | J10: =ShowFormulaToLeft -> =VAR.S($C$2:$C$102) | M10: =ROWS(M$2:M10) -> 9 | N10: =SMALL($C$2:$C$102,ROWS(N$2:N10)) -> 78.95
A11: 2010-01-23 | B11: Smith | C11: 113.86 | E11: =VLOOKUP(F11,{1,"AVERAGE";2,"COUNT";3,"COUNTA";4,"MAX";5,"MIN";6,"PRODUCT";7,"STDEV.S";8,"STDEV.P";9,"SUM";10,"VAR.S";11,"VAR.P";12,"MEDIAN";13,"MODE.SNGL";14,"LARGE";15,"SMALL";16,"PERCENTILE.INC";17,"QUARTILE.INC";18,"PERCENTILE.EXC";19,"QUARTILE.EXC"},2,0) -> VAR.P | F11: 11 | I11: =_xlfn.VAR.P($C$2:$C$102) -> 484.5255843 | J11: =ShowFormulaToLeft -> =VAR.P($C$2:$C$102) | M11: =ROWS(M$2:M11) -> 10 | N11: =SMALL($C$2:$C$102,ROWS(N$2:N11)) -> 79.11
A12: 2010-01-21 | B12: Pham | C12: 139.38 | E12: =VLOOKUP(F12,{1,"AVERAGE";2,"COUNT";3,"COUNTA";4,"MAX";5,"MIN";6,"PRODUCT";7,"STDEV.S";8,"STDEV.P";9,"SUM";10,"VAR.S";11,"VAR.P";12,"MEDIAN";13,"MODE.SNGL";14,"LARGE";15,"SMALL";16,"PERCENTILE.INC";17,"QUARTILE.INC";18,"PERCENTILE.EXC";19,"QUARTILE.EXC"},2,0) -> MEDIAN | F12: 12 | I12: =MEDIAN($C$2:$C$102) -> 114.93 | J12: =ShowFormulaToLeft -> =MEDIAN($C$2:$C$102) | M12: =ROWS(M$2:M12) -> 11 | N12: =SMALL($C$2:$C$102,ROWS(N$2:N12)) -> 79.42
A13: 2009-12-20 | B13: Gault | C13: 98.71 | E13: =VLOOKUP(F13,{1,"AVERAGE";2,"COUNT";3,"COUNTA";4,"MAX";5,"MIN";6,"PRODUCT";7,"STDEV.S";8,"STDEV.P";9,"SUM";10,"VAR.S";11,"VAR.P";12,"MEDIAN";13,"MODE.SNGL";14,"LARGE";15,"SMALL";16,"PERCENTILE.INC";17,"QUARTILE.INC";18,"PERCENTILE.EXC";19,"QUARTILE.EXC"},2,0) -> MODE.SNGL | F13: 13 | I13: =_xlfn.MODE.SNGL($C$2:$C$102) ->  | J13: =ShowFormulaToLeft -> =MODE.SNGL($C$2:$C$102) | M13: =ROWS(M$2:M13) -> 12 | N13: =SMALL($C$2:$C$102,ROWS(N$2:N13)) -> 80.81
A14: 2009-12-07 | B14: Pham | C14: 76.65 | M14: =ROWS(M$2:M14) -> 13 | N14: =SMALL($C$2:$C$102,ROWS(N$2:N14)) -> 83.26
A15: 2010-02-11 | B15: Gault | C15: 126.62 | E15: =VLOOKUP(F15,{1,"AVERAGE";2,"COUNT";3,"COUNTA";4,"MAX";5,"MIN";6,"PRODUCT";7,"STDEV.S";8,"STDEV.P";9,"SUM";10,"VAR.S";11,"VAR.P";12,"MEDIAN";13,"MODE.SNGL";14,"LARGE";15,"SMALL";16,"PERCENTILE.INC";17,"QUARTILE.INC";18,"PERCENTILE.EXC";19,"QUARTILE.EXC"},2,0) -> LARGE | F15: 14 | H15: 2 | M15: =ROWS(M$2:M15) -> 14 | N15: =SMALL($C$2:$C$102,ROWS(N$2:N15)) -> 83.37
A16: 2010-01-13 | B16: Franks | C16: 107.9 | E16: =VLOOKUP(F16,{1,"AVERAGE";2,"COUNT";3,"COUNTA";4,"MAX";5,"MIN";6,"PRODUCT";7,"STDEV.S";8,"STDEV.P";9,"SUM";10,"VAR.S";11,"VAR.P";12,"MEDIAN";13,"MODE.SNGL";14,"LARGE";15,"SMALL";16,"PERCENTILE.INC";17,"QUARTILE.INC";18,"PERCENTILE.EXC";19,"QUARTILE.EXC"},2,0) -> SMALL | F16: 15 | H16: =H15 -> 2 | M16: =ROWS(M$2:M16) -> 15 | N16: =SMALL($C$2:$C$102,ROWS(N$2:N16)) -> 85.14
A17: 2010-01-28 | B17: Gault | C17: 130.54 | E17: =VLOOKUP(F17,{1,"AVERAGE";2,"COUNT";3,"COUNTA";4,"MAX";5,"MIN";6,"PRODUCT";7,"STDEV.S";8,"STDEV.P";9,"SUM";10,"VAR.S";11,"VAR.P";12,"MEDIAN";13,"MODE.SNGL";14,"LARGE";15,"SMALL";16,"PERCENTILE.INC";17,"QUARTILE.INC";18,"PERCENTILE.EXC";19,"QUARTILE.EXC"},2,0) -> PERCENTILE.INC | F17: 16 | H17: 0.9 | I17: old method | M17: =ROWS(M$2:M17) -> 16 | N17: =SMALL($C$2:$C$102,ROWS(N$2:N17)) -> 86.1
A18: 2010-01-25 | B18: Gault | C18: 140.71 | E18: =VLOOKUP(F18,{1,"AVERAGE";2,"COUNT";3,"COUNTA";4,"MAX";5,"MIN";6,"PRODUCT";7,"STDEV.S";8,"STDEV.P";9,"SUM";10,"VAR.S";11,"VAR.P";12,"MEDIAN";13,"MODE.SNGL";14,"LARGE";15,"SMALL";16,"PERCENTILE.INC";17,"QUARTILE.INC";18,"PERCENTILE.EXC";19,"QUARTILE.EXC"},2,0) -> QUARTILE.INC | F18: 17 | H18: 1 | I18: old method | M18: =ROWS(M$2:M18) -> 17 | N18: =SMALL($C$2:$C$102,ROWS(N$2:N18)) -> 87.06
A19: 2010-02-10 | B19: Sioux | C19: 108.72 | E19: =VLOOKUP(F19,{1,"AVERAGE";2,"COUNT";3,"COUNTA";4,"MAX";5,"MIN";6,"PRODUCT";7,"STDEV.S";8,"STDEV.P";9,"SUM";10,"VAR.S";11,"VAR.P";12,"MEDIAN";13,"MODE.SNGL";14,"LARGE";15,"SMALL";16,"PERCENTILE.INC";17,"QUARTILE.INC";18,"PERCENTILE.EXC";19,"QUARTILE.EXC"},2,0) -> PERCENTILE.EXC | F19: 18 | H19: =H17 -> 0.9 | I19: new method | J19: =VLOOKUP((COUNT($C$2:$C$102)+1)*$H$17,$M$2:$N$102,2)+(VLOOKUP((COUNT($C$2:$C$102)+1)*$H$17+1,$M$2:$N$102,2)-VLOOKUP((COUNT($C$2:$C$102)+1)*$H$17,$M$2:$N$102,2))*MOD((COUNT($C$2:$C$102)+1)*$H$17,1) -> 140.676 | M19: =ROWS(M$2:M19) -> 18 | N19: =SMALL($C$2:$C$102,ROWS(N$2:N19)) -> 88.51
A20: 2009-12-26 | B20: Smith | C20: 135.18 | E20: =VLOOKUP(F20,{1,"AVERAGE";2,"COUNT";3,"COUNTA";4,"MAX";5,"MIN";6,"PRODUCT";7,"STDEV.S";8,"STDEV.P";9,"SUM";10,"VAR.S";11,"VAR.P";12,"MEDIAN";13,"MODE.SNGL";14,"LARGE";15,"SMALL";16,"PERCENTILE.INC";17,"QUARTILE.INC";18,"PERCENTILE.EXC";19,"QUARTILE.EXC"},2,0) -> QUARTILE.EXC | F20: 19 | H20: =H18 -> 1 | I20: new method | M20: =ROWS(M$2:M20) -> 19 | N20: =SMALL($C$2:$C$102,ROWS(N$2:N20)) -> 88.69
A21: 2009-12-14 | B21: Gault | C21: 142.55 | M21: =ROWS(M$2:M21) -> 20 | N21: =SMALL($C$2:$C$102,ROWS(N$2:N21)) -> 89.11
A22: 2010-02-12 | B22: Smith | C22: 140.54 | M22: =ROWS(M$2:M22) -> 21 | N22: =SMALL($C$2:$C$102,ROWS(N$2:N22)) -> 93.15
A23: 2010-01-19 | B23: Franks | C23: 75.04 | E23: 2nd argument | M23: =ROWS(M$2:M23) -> 22 | N23: =SMALL($C$2:$C$102,ROWS(N$2:N23)) -> 93.33
A24: 2010-02-16 | B24: Pham | C24: 93.15 | E24: option | F24: what it does | M24: =ROWS(M$2:M24) -> 23 | N24: =SMALL($C$2:$C$102,ROWS(N$2:N24)) -> 93.37
A25: 2010-01-07 | B25: Sioux | C25: 132.51 | E25: 0 | F25: Ignore nested SUBTOTAL and AGGREGATE functions | M25: =ROWS(M$2:M25) -> 24 | N25: =SMALL($C$2:$C$102,ROWS(N$2:N25)) -> 94.11
A26: 2010-01-16 | B26: Chin | C26: 85.14 | E26: 1 | F26: Ignore hidden rows, nested SUBTOTAL and AGGREGATE functions | M26: =ROWS(M$2:M26) -> 25 | N26: =SMALL($C$2:$C$102,ROWS(N$2:N26)) -> 94.69
A27: 2010-02-15 | B27: Franks | C27: 108.85 | E27: 2 | F27: Ignore error values, nested SUBTOTAL and AGGREGATE functions | M27: =ROWS(M$2:M27) -> 26 | N27: =SMALL($C$2:$C$102,ROWS(N$2:N27)) -> 96.17
A28: 2009-12-13 | B28: Sioux | C28: 139.92 | E28: 3 | F28: Ignore hidden rows, error values, nested SUBTOTAL and AGGREGATE functions | M28: =ROWS(M$2:M28) -> 27 | N28: =SMALL($C$2:$C$102,ROWS(N$2:N28)) -> 98.71
A29: 2010-01-04 | B29: Franks | C29: 104.35 | E29: 4 | F29: Ignore nothing | M29: =ROWS(M$2:M29) -> 28 | N29: =SMALL($C$2:$C$102,ROWS(N$2:N29)) -> 100.09
A30: 2009-12-14 | B30: Gault | C30: 88.51 | E30: 5 | F30: Ignore hidden rows | M30: =ROWS(M$2:M30) -> 29 | N30: =SMALL($C$2:$C$102,ROWS(N$2:N30)) -> 100.76
A31: 2010-02-01 | B31: Gault | C31: 136.76 | E31: 6 | F31: Ignore error values | M31: =ROWS(M$2:M31) -> 30 | N31: =SMALL($C$2:$C$102,ROWS(N$2:N31)) -> 100.83
A32: 2009-11-25 | B32: Pham | C32: 109.57 | E32: 7 | F32: Ignore hidden rows and error values | M32: =ROWS(M$2:M32) -> 31 | N32: =SMALL($C$2:$C$102,ROWS(N$2:N32)) -> 102.17
A33: 2010-02-07 | B33: Franks | C33: 125.81 | M33: =ROWS(M$2:M33) -> 32 | N33: =SMALL($C$2:$C$102,ROWS(N$2:N33)) -> 102.24
A34: 2009-12-22 | B34: Pham | C34: 150.09 | M34: =ROWS(M$2:M34) -> 33 | N34: =SMALL($C$2:$C$102,ROWS(N$2:N34)) -> 102.64
A35: 2009-12-07 | B35: Sioux | C35: 147.53 | M35: =ROWS(M$2:M35) -> 34 | N35: =SMALL($C$2:$C$102,ROWS(N$2:N35)) -> 104.35
A36: 2009-12-12 | B36: Chin | C36: 102.17 | M36: =ROWS(M$2:M36) -> 35 | N36: =SMALL($C$2:$C$102,ROWS(N$2:N36)) -> 104.36
A37: 2009-12-30 | B37: Smith | C37: 114.4 | M37: =ROWS(M$2:M37) -> 36 | N37: =SMALL($C$2:$C$102,ROWS(N$2:N37)) -> 104.5
A38: 2009-12-27 | B38: Chin | C38: 129.65 | M38: =ROWS(M$2:M38) -> 37 | N38: =SMALL($C$2:$C$102,ROWS(N$2:N38)) -> 104.57
A39: 2009-12-29 | B39: Chin | C39: 128.95 | M39: =ROWS(M$2:M39) -> 38 | N39: =SMALL($C$2:$C$102,ROWS(N$2:N39)) -> 106.94
A40: 2010-01-05 | B40: Gault | C40: 121.33 | M40: =ROWS(M$2:M40) -> 39 | N40: =SMALL($C$2:$C$102,ROWS(N$2:N40)) -> 107.9
A41: 2009-12-15 | B41: Pham | C41: 102.64 | M41: =ROWS(M$2:M41) -> 40 | N41: =SMALL($C$2:$C$102,ROWS(N$2:N41)) -> 108.54
A42: 2009-12-01 | B42: Pham | C42: 132.12 | M42: =ROWS(M$2:M42) -> 41 | N42: =SMALL($C$2:$C$102,ROWS(N$2:N42)) -> 108.72
A43: 2010-02-07 | B43: Franks | C43: 100.83 | M43: =ROWS(M$2:M43) -> 42 | N43: =SMALL($C$2:$C$102,ROWS(N$2:N43)) -> 108.85
A44: 2009-11-26 | B44: Sioux | C44: 79.42 | M44: =ROWS(M$2:M44) -> 43 | N44: =SMALL($C$2:$C$102,ROWS(N$2:N44)) -> 109.57
A45: 2010-01-04 | B45: Pham | C45: 100.09 | M45: =ROWS(M$2:M45) -> 44 | N45: =SMALL($C$2:$C$102,ROWS(N$2:N45)) -> 109.7
A46: 2010-01-29 | B46: Franks | C46: 83.37 | M46: =ROWS(M$2:M46) -> 45 | N46: =SMALL($C$2:$C$102,ROWS(N$2:N46)) -> 112.03
A47: 2010-01-19 | B47: Franks | C47: 89.11 | M47: =ROWS(M$2:M47) -> 46 | N47: =SMALL($C$2:$C$102,ROWS(N$2:N47)) -> 112.5
A48: 2010-02-14 | B48: Smith | C48: 126.97 | M48: =ROWS(M$2:M48) -> 47 | N48: =SMALL($C$2:$C$102,ROWS(N$2:N48)) -> 113.86
A49: 2009-12-03 | B49: Smith | C49: 154.31 | M49: =ROWS(M$2:M49) -> 48 | N49: =SMALL($C$2:$C$102,ROWS(N$2:N49)) -> 114.4
A50: 2010-01-02 | B50: Sioux | C50: 76.59 | M50: =ROWS(M$2:M50) -> 49 | N50: =SMALL($C$2:$C$102,ROWS(N$2:N50)) -> 114.53
A51: 2009-12-29 | B51: Gault | C51: 106.94 | M51: =ROWS(M$2:M51) -> 50 | N51: =SMALL($C$2:$C$102,ROWS(N$2:N51)) -> 114.54
A52: 2009-11-26 | B52: Chin | C52: 129.86 | M52: =ROWS(M$2:M52) -> 51 | N52: =SMALL($C$2:$C$102,ROWS(N$2:N52)) -> 114.93
A53: 2009-12-24 | B53: Pham | C53: 100.76 | M53: =ROWS(M$2:M53) -> 52 | N53: =SMALL($C$2:$C$102,ROWS(N$2:N53)) -> 115.67
A54: 2009-12-10 | B54: Gault | C54: 124.59 | M54: =ROWS(M$2:M54) -> 53 | N54: =SMALL($C$2:$C$102,ROWS(N$2:N54)) -> 117.63
A55: 2009-12-31 | B55: Smith | C55: 150.31 | M55: =ROWS(M$2:M55) -> 54 | N55: =SMALL($C$2:$C$102,ROWS(N$2:N55)) -> 119.09
A56: 2009-12-16 | B56: Franks | C56: 119.78 | M56: =ROWS(M$2:M56) -> 55 | N56: =SMALL($C$2:$C$102,ROWS(N$2:N56)) -> 119.53
A57: 2010-01-03 | B57: Pham | C57: 93.37 | M57: =ROWS(M$2:M57) -> 56 | N57: =SMALL($C$2:$C$102,ROWS(N$2:N57)) -> 119.78
A58: 2009-12-26 | B58: Chin | C58: 87.06 | M58: =ROWS(M$2:M58) -> 57 | N58: =SMALL($C$2:$C$102,ROWS(N$2:N58)) -> 121.33
A59: 2010-01-05 | B59: Smith | C59: 147.49 | M59: =ROWS(M$2:M59) -> 58 | N59: =SMALL($C$2:$C$102,ROWS(N$2:N59)) -> 122.21
A60: 2009-12-19 | B60: Smith | C60: 136.94 | M60: =ROWS(M$2:M60) -> 59 | N60: =SMALL($C$2:$C$102,ROWS(N$2:N60)) -> 123.13
A61: 2009-11-20 | B61: Gault | C61: 93.33 | M61: =ROWS(M$2:M61) -> 60 | N61: =SMALL($C$2:$C$102,ROWS(N$2:N61)) -> 124.59
A62: 2010-01-03 | B62: Smith | C62: 128.97 | M62: =ROWS(M$2:M62) -> 61 | N62: =SMALL($C$2:$C$102,ROWS(N$2:N62)) -> 125.38
A63: 2009-12-14 | B63: Smith | C63: 114.93 | M63: =ROWS(M$2:M63) -> 62 | N63: =SMALL($C$2:$C$102,ROWS(N$2:N63)) -> 125.81
A64: 2010-01-01 | B64: Sioux | C64: 104.57 | M64: =ROWS(M$2:M64) -> 63 | N64: =SMALL($C$2:$C$102,ROWS(N$2:N64)) -> 126.33
A65: 2009-11-27 | B65: Sioux | C65: 119.53 | M65: =ROWS(M$2:M65) -> 64 | N65: =SMALL($C$2:$C$102,ROWS(N$2:N65)) -> 126.62
A66: 2010-01-01 | B66: Pham | C66: 127.99 | M66: =ROWS(M$2:M66) -> 65 | N66: =SMALL($C$2:$C$102,ROWS(N$2:N66)) -> 126.97
A67: 2009-12-03 | B67: Smith | C67: 88.69 | M67: =ROWS(M$2:M67) -> 66 | N67: =SMALL($C$2:$C$102,ROWS(N$2:N67)) -> 127.99
A68: 2009-11-25 | B68: Smith | C68: 115.67 | M68: =ROWS(M$2:M68) -> 67 | N68: =SMALL($C$2:$C$102,ROWS(N$2:N68)) -> 128.15
A69: 2010-01-07 | B69: Pham | C69: 114.54 | M69: =ROWS(M$2:M69) -> 68 | N69: =SMALL($C$2:$C$102,ROWS(N$2:N69)) -> 128.95
A70: 2010-02-02 | B70: Smith | C70: 128.15 | M70: =ROWS(M$2:M70) -> 69 | N70: =SMALL($C$2:$C$102,ROWS(N$2:N70)) -> 128.97
A71: 2010-02-08 | B71: Gault | C71: 126.33 | M71: =ROWS(M$2:M71) -> 70 | N71: =SMALL($C$2:$C$102,ROWS(N$2:N71)) -> 129.65
A72: 2010-01-13 | B72: Smith | C72: 112.03 | M72: =ROWS(M$2:M72) -> 71 | N72: =SMALL($C$2:$C$102,ROWS(N$2:N72)) -> 129.86
A73: 2009-11-20 | B73: Smith | C73: 145.33 | M73: =ROWS(M$2:M73) -> 72 | N73: =SMALL($C$2:$C$102,ROWS(N$2:N73)) -> 130.2
A74: 2009-12-23 | B74: Gault | C74: 109.7 | M74: =ROWS(M$2:M74) -> 73 | N74: =SMALL($C$2:$C$102,ROWS(N$2:N74)) -> 130.37
A75: 2009-11-26 | B75: Sioux | C75: 139.13 | M75: =ROWS(M$2:M75) -> 74 | N75: =SMALL($C$2:$C$102,ROWS(N$2:N75)) -> 130.5
A76: 2009-12-01 | B76: Sioux | C76: 112.5 | M76: =ROWS(M$2:M76) -> 75 | N76: =SMALL($C$2:$C$102,ROWS(N$2:N76)) -> 130.54
A77: 2009-11-29 | B77: Pham | C77: 122.21 | M77: =ROWS(M$2:M77) -> 76 | N77: =SMALL($C$2:$C$102,ROWS(N$2:N77)) -> 131.04
A78: 2010-01-13 | B78: Smith | C78: 135.77 | M78: =ROWS(M$2:M78) -> 77 | N78: =SMALL($C$2:$C$102,ROWS(N$2:N78)) -> 132.12
A79: 2010-01-09 | B79: Pham | C79: 75.17 | M79: =ROWS(M$2:M79) -> 78 | N79: =SMALL($C$2:$C$102,ROWS(N$2:N79)) -> 132.51
A80: 2010-01-30 | B80: Sioux | C80: 104.5 | M80: =ROWS(M$2:M80) -> 79 | N80: =SMALL($C$2:$C$102,ROWS(N$2:N80)) -> 133.17
A81: 2010-02-04 | B81: Gault | C81: 86.1 | M81: =ROWS(M$2:M81) -> 80 | N81: =SMALL($C$2:$C$102,ROWS(N$2:N81)) -> 134.11
A82: 2010-01-02 | B82: Sioux | C82: 143.85 | M82: =ROWS(M$2:M82) -> 81 | N82: =SMALL($C$2:$C$102,ROWS(N$2:N82)) -> 135.02
A83: 2010-01-16 | B83: Gault | C83: 104.36 | M83: =ROWS(M$2:M83) -> 82 | N83: =SMALL($C$2:$C$102,ROWS(N$2:N83)) -> 135.18
A84: 2009-12-28 | B84: Smith | C84: 135.02 | M84: =ROWS(M$2:M84) -> 83 | N84: =SMALL($C$2:$C$102,ROWS(N$2:N84)) -> 135.77
A85: 2009-12-26 | B85: Pham | C85: 83.26 | M85: =ROWS(M$2:M85) -> 84 | N85: =SMALL($C$2:$C$102,ROWS(N$2:N85)) -> 136.14
A86: 2009-11-28 | B86: Sioux | C86: 114.53 | M86: =ROWS(M$2:M86) -> 85 | N86: =SMALL($C$2:$C$102,ROWS(N$2:N86)) -> 136.76
A87: 2010-02-02 | B87: Smith | C87: 117.63 | M87: =ROWS(M$2:M87) -> 86 | N87: =SMALL($C$2:$C$102,ROWS(N$2:N87)) -> 136.94
A88: 2009-12-27 | B88: Gault | C88: 102.24 | M88: =ROWS(M$2:M88) -> 87 | N88: =SMALL($C$2:$C$102,ROWS(N$2:N88)) -> 139.13
A89: 2010-02-01 | B89: Chin | C89: 139.21 | M89: =ROWS(M$2:M89) -> 88 | N89: =SMALL($C$2:$C$102,ROWS(N$2:N89)) -> 139.21
A90: 2009-12-25 | B90: Smith | C90: 119.09 | M90: =ROWS(M$2:M90) -> 89 | N90: =SMALL($C$2:$C$102,ROWS(N$2:N90)) -> 139.38
A91: 2010-01-17 | B91: Pham | C91: 134.11 | M91: =ROWS(M$2:M91) -> 90 | N91: =SMALL($C$2:$C$102,ROWS(N$2:N91)) -> 139.92
A92: 2010-01-15 | B92: Sioux | C92: 96.17 | M92: =ROWS(M$2:M92) -> 91 | N92: =SMALL($C$2:$C$102,ROWS(N$2:N92)) -> 140.54 | P92: =N93-N92 -> 0.17
A93: 2010-01-10 | B93: Smith | C93: 108.54 | M93: =ROWS(M$2:M93) -> 92 | N93: =SMALL($C$2:$C$102,ROWS(N$2:N93)) -> 140.71 | P93: =P92*0.8 -> 0.136
A94: 2010-01-05 | B94: Gault | C94: 78.89 | M94: =ROWS(M$2:M94) -> 93 | N94: =SMALL($C$2:$C$102,ROWS(N$2:N94)) -> 142.55
A95: 2010-01-20 | B95: Pham | C95: 130.37 | M95: =ROWS(M$2:M95) -> 94 | N95: =SMALL($C$2:$C$102,ROWS(N$2:N95)) -> 143.85
A96: 2009-12-08 | B96: Chin | C96: 130.5 | M96: =ROWS(M$2:M96) -> 95 | N96: =SMALL($C$2:$C$102,ROWS(N$2:N96)) -> 145.33
A97: 2010-01-16 | B97: Franks | C97: 123.13 | M97: =ROWS(M$2:M97) -> 96 | N97: =SMALL($C$2:$C$102,ROWS(N$2:N97)) -> 147.49
A98: 2009-12-19 | B98: Gault | C98: 131.04 | M98: =ROWS(M$2:M98) -> 97 | N98: =SMALL($C$2:$C$102,ROWS(N$2:N98)) -> 147.53
A99: 2009-12-17 | B99: Pham | C99: 76.26 | M99: =ROWS(M$2:M99) -> 98 | N99: =SMALL($C$2:$C$102,ROWS(N$2:N99)) -> 149.95
A100: 2010-01-19 | B100: Pham | C100: 78.46 | M100: =ROWS(M$2:M100) -> 99 | N100: =SMALL($C$2:$C$102,ROWS(N$2:N100)) -> 150.09
A101: 2009-11-21 | B101: Gault | C101: 79.11 | M101: =ROWS(M$2:M101) -> 100 | N101: =SMALL($C$2:$C$102,ROWS(N$2:N101)) -> 150.31
A102: 2010-02-18 | B102: Gault | C102: 75.35 | M102: =ROWS(M$2:M102) -> 101 | N102: =SMALL($C$2:$C$102,ROWS(N$2:N102)) -> 154.31

Sheet 661an
A1: Date | B1: SalesRep | C1: Sales | E1: =VLOOKUP(F1,{1,"AVERAGE";2,"COUNT";3,"COUNTA";4,"MAX";5,"MIN";6,"PRODUCT";7,"STDEV.S";8,"STDEV.P";9,"SUM";10,"VAR.S";11,"VAR.P";12,"MEDIAN";13,"MODE.SNGL";14,"LARGE";15,"SMALL";16,"PERCENTILE.INC";17,"QUARTILE.INC";18,"PERCENTILE.EXC";19,"QUARTILE.EXC"},2,0) -> AVERAGE | F1: 1 | G1: =_xlfn.AGGREGATE(F1,4,$C$2:$C$102) -> 114.1316832 | I1: =AVERAGE($C$2:$C$102) -> 114.1316832 | J1: =ShowFormulaToLeft -> =AVERAGE($C$2:$C$102) | M1: No | N1: =C1 -> Sales
A2: 2009-12-25 | B2: Gault | C2: 94.69 | E2: =VLOOKUP(F2,{1,"AVERAGE";2,"COUNT";3,"COUNTA";4,"MAX";5,"MIN";6,"PRODUCT";7,"STDEV.S";8,"STDEV.P";9,"SUM";10,"VAR.S";11,"VAR.P";12,"MEDIAN";13,"MODE.SNGL";14,"LARGE";15,"SMALL";16,"PERCENTILE.INC";17,"QUARTILE.INC";18,"PERCENTILE.EXC";19,"QUARTILE.EXC"},2,0) -> COUNT | F2: 2 | G2: =_xlfn.AGGREGATE(F2,4,$C$2:$C$102) -> 101 | I2: =COUNT($C$2:$C$102) -> 101 | J2: =ShowFormulaToLeft -> =COUNT($C$2:$C$102) | M2: =ROWS(M$2:M2) -> 1 | N2: =SMALL($C$2:$C$102,ROWS(N$2:N2)) -> 75.04
A3: 2009-12-15 | B3: Smith | C3: 130.2 | E3: =VLOOKUP(F3,{1,"AVERAGE";2,"COUNT";3,"COUNTA";4,"MAX";5,"MIN";6,"PRODUCT";7,"STDEV.S";8,"STDEV.P";9,"SUM";10,"VAR.S";11,"VAR.P";12,"MEDIAN";13,"MODE.SNGL";14,"LARGE";15,"SMALL";16,"PERCENTILE.INC";17,"QUARTILE.INC";18,"PERCENTILE.EXC";19,"QUARTILE.EXC"},2,0) -> COUNTA | F3: 3 | G3: 101 | I3: =COUNTA($C$2:$C$102) -> 101 | J3: =ShowFormulaToLeft -> =COUNTA($C$2:$C$102) | M3: =ROWS(M$2:M3) -> 2 | N3: =SMALL($C$2:$C$102,ROWS(N$2:N3)) -> 75.17
A4: 2009-12-11 | B4: Franks | C4: 149.95 | E4: =VLOOKUP(F4,{1,"AVERAGE";2,"COUNT";3,"COUNTA";4,"MAX";5,"MIN";6,"PRODUCT";7,"STDEV.S";8,"STDEV.P";9,"SUM";10,"VAR.S";11,"VAR.P";12,"MEDIAN";13,"MODE.SNGL";14,"LARGE";15,"SMALL";16,"PERCENTILE.INC";17,"QUARTILE.INC";18,"PERCENTILE.EXC";19,"QUARTILE.EXC"},2,0) -> MAX | F4: 4 | G4: 154.31 | I4: =MAX($C$2:$C$102) -> 154.31 | J4: =ShowFormulaToLeft -> =MAX($C$2:$C$102) | M4: =ROWS(M$2:M4) -> 3 | N4: =SMALL($C$2:$C$102,ROWS(N$2:N4)) -> 75.35
A5: 2009-12-01 | B5: Gault | C5: 94.11 | E5: =VLOOKUP(F5,{1,"AVERAGE";2,"COUNT";3,"COUNTA";4,"MAX";5,"MIN";6,"PRODUCT";7,"STDEV.S";8,"STDEV.P";9,"SUM";10,"VAR.S";11,"VAR.P";12,"MEDIAN";13,"MODE.SNGL";14,"LARGE";15,"SMALL";16,"PERCENTILE.INC";17,"QUARTILE.INC";18,"PERCENTILE.EXC";19,"QUARTILE.EXC"},2,0) -> MIN | F5: 5 | G5: 75.04 | I5: =MIN($C$2:$C$102) -> 75.04 | J5: =ShowFormulaToLeft -> =MIN($C$2:$C$102) | M5: =ROWS(M$2:M5) -> 4 | N5: =SMALL($C$2:$C$102,ROWS(N$2:N5)) -> 76.26
A6: 2009-12-11 | B6: Franks | C6: 136.14 | E6: =VLOOKUP(F6,{1,"AVERAGE";2,"COUNT";3,"COUNTA";4,"MAX";5,"MIN";6,"PRODUCT";7,"STDEV.S";8,"STDEV.P";9,"SUM";10,"VAR.S";11,"VAR.P";12,"MEDIAN";13,"MODE.SNGL";14,"LARGE";15,"SMALL";16,"PERCENTILE.INC";17,"QUARTILE.INC";18,"PERCENTILE.EXC";19,"QUARTILE.EXC"},2,0) -> PRODUCT | F6: 6 | G6: 8.445682373e+206 | I6: =PRODUCT($C$2:$C$102) -> 8.445682373e+206 | J6: =ShowFormulaToLeft -> =PRODUCT($C$2:$C$102) | M6: =ROWS(M$2:M6) -> 5 | N6: =SMALL($C$2:$C$102,ROWS(N$2:N6)) -> 76.59
A7: 2010-02-12 | B7: Pham | C7: 133.17 | E7: =VLOOKUP(F7,{1,"AVERAGE";2,"COUNT";3,"COUNTA";4,"MAX";5,"MIN";6,"PRODUCT";7,"STDEV.S";8,"STDEV.P";9,"SUM";10,"VAR.S";11,"VAR.P";12,"MEDIAN";13,"MODE.SNGL";14,"LARGE";15,"SMALL";16,"PERCENTILE.INC";17,"QUARTILE.INC";18,"PERCENTILE.EXC";19,"QUARTILE.EXC"},2,0) -> STDEV.S | F7: 7 | G7: 22.12172778 | I7: =_xlfn.STDEV.S($C$2:$C$102) -> 22.12172778 | J7: =ShowFormulaToLeft -> =STDEV.S($C$2:$C$102) | M7: =ROWS(M$2:M7) -> 6 | N7: =SMALL($C$2:$C$102,ROWS(N$2:N7)) -> 76.65
A8: 2009-12-07 | B8: Smith | C8: 80.81 | E8: =VLOOKUP(F8,{1,"AVERAGE";2,"COUNT";3,"COUNTA";4,"MAX";5,"MIN";6,"PRODUCT";7,"STDEV.S";8,"STDEV.P";9,"SUM";10,"VAR.S";11,"VAR.P";12,"MEDIAN";13,"MODE.SNGL";14,"LARGE";15,"SMALL";16,"PERCENTILE.INC";17,"QUARTILE.INC";18,"PERCENTILE.EXC";19,"QUARTILE.EXC"},2,0) -> STDEV.P | F8: 8 | G8: 22.01194186 | I8: =_xlfn.STDEV.P($C$2:$C$102) -> 22.01194186 | J8: =ShowFormulaToLeft -> =STDEV.P($C$2:$C$102) | M8: =ROWS(M$2:M8) -> 7 | N8: =SMALL($C$2:$C$102,ROWS(N$2:N8)) -> 78.46
A9: 2009-11-23 | B9: Smith | C9: 125.38 | E9: =VLOOKUP(F9,{1,"AVERAGE";2,"COUNT";3,"COUNTA";4,"MAX";5,"MIN";6,"PRODUCT";7,"STDEV.S";8,"STDEV.P";9,"SUM";10,"VAR.S";11,"VAR.P";12,"MEDIAN";13,"MODE.SNGL";14,"LARGE";15,"SMALL";16,"PERCENTILE.INC";17,"QUARTILE.INC";18,"PERCENTILE.EXC";19,"QUARTILE.EXC"},2,0) -> SUM | F9: 9 | G9: 11527.3 | I9: =SUM($C$2:$C$102) -> 11527.3 | J9: =ShowFormulaToLeft -> =SUM($C$2:$C$102) | M9: =ROWS(M$2:M9) -> 8 | N9: =SMALL($C$2:$C$102,ROWS(N$2:N9)) -> 78.89
A10: 2009-11-23 | B10: Gault | C10: 78.95 | E10: =VLOOKUP(F10,{1,"AVERAGE";2,"COUNT";3,"COUNTA";4,"MAX";5,"MIN";6,"PRODUCT";7,"STDEV.S";8,"STDEV.P";9,"SUM";10,"VAR.S";11,"VAR.P";12,"MEDIAN";13,"MODE.SNGL";14,"LARGE";15,"SMALL";16,"PERCENTILE.INC";17,"QUARTILE.INC";18,"PERCENTILE.EXC";19,"QUARTILE.EXC"},2,0) -> VAR.S | F10: 10 | G10: 489.3708401 | I10: =_xlfn.VAR.S($C$2:$C$102) -> 489.3708401 | J10: =ShowFormulaToLeft -> =VAR.S($C$2:$C$102) | M10: =ROWS(M$2:M10) -> 9 | N10: =SMALL($C$2:$C$102,ROWS(N$2:N10)) -> 78.95
A11: 2010-01-23 | B11: Smith | C11: 113.86 | E11: =VLOOKUP(F11,{1,"AVERAGE";2,"COUNT";3,"COUNTA";4,"MAX";5,"MIN";6,"PRODUCT";7,"STDEV.S";8,"STDEV.P";9,"SUM";10,"VAR.S";11,"VAR.P";12,"MEDIAN";13,"MODE.SNGL";14,"LARGE";15,"SMALL";16,"PERCENTILE.INC";17,"QUARTILE.INC";18,"PERCENTILE.EXC";19,"QUARTILE.EXC"},2,0) -> VAR.P | F11: 11 | G11: 484.5255843 | I11: =_xlfn.VAR.P($C$2:$C$102) -> 484.5255843 | J11: =ShowFormulaToLeft -> =VAR.P($C$2:$C$102) | M11: =ROWS(M$2:M11) -> 10 | N11: =SMALL($C$2:$C$102,ROWS(N$2:N11)) -> 79.11
A12: 2010-01-21 | B12: Pham | C12: 139.38 | E12: =VLOOKUP(F12,{1,"AVERAGE";2,"COUNT";3,"COUNTA";4,"MAX";5,"MIN";6,"PRODUCT";7,"STDEV.S";8,"STDEV.P";9,"SUM";10,"VAR.S";11,"VAR.P";12,"MEDIAN";13,"MODE.SNGL";14,"LARGE";15,"SMALL";16,"PERCENTILE.INC";17,"QUARTILE.INC";18,"PERCENTILE.EXC";19,"QUARTILE.EXC"},2,0) -> MEDIAN | F12: 12 | G12: 114.93 | I12: =MEDIAN($C$2:$C$102) -> 114.93 | J12: =ShowFormulaToLeft -> =MEDIAN($C$2:$C$102) | M12: =ROWS(M$2:M12) -> 11 | N12: =SMALL($C$2:$C$102,ROWS(N$2:N12)) -> 79.42
A13: 2009-12-20 | B13: Gault | C13: 98.71 | E13: =VLOOKUP(F13,{1,"AVERAGE";2,"COUNT";3,"COUNTA";4,"MAX";5,"MIN";6,"PRODUCT";7,"STDEV.S";8,"STDEV.P";9,"SUM";10,"VAR.S";11,"VAR.P";12,"MEDIAN";13,"MODE.SNGL";14,"LARGE";15,"SMALL";16,"PERCENTILE.INC";17,"QUARTILE.INC";18,"PERCENTILE.EXC";19,"QUARTILE.EXC"},2,0) -> MODE.SNGL | F13: 13 | I13: =_xlfn.MODE.SNGL($C$2:$C$102) ->  | J13: =ShowFormulaToLeft -> =MODE.SNGL($C$2:$C$102) | M13: =ROWS(M$2:M13) -> 12 | N13: =SMALL($C$2:$C$102,ROWS(N$2:N13)) -> 80.81
A14: 2009-12-07 | B14: Pham | C14: 76.65 | M14: =ROWS(M$2:M14) -> 13 | N14: =SMALL($C$2:$C$102,ROWS(N$2:N14)) -> 83.26
A15: 2010-02-11 | B15: Gault | C15: 126.62 | E15: =VLOOKUP(F15,{1,"AVERAGE";2,"COUNT";3,"COUNTA";4,"MAX";5,"MIN";6,"PRODUCT";7,"STDEV.S";8,"STDEV.P";9,"SUM";10,"VAR.S";11,"VAR.P";12,"MEDIAN";13,"MODE.SNGL";14,"LARGE";15,"SMALL";16,"PERCENTILE.INC";17,"QUARTILE.INC";18,"PERCENTILE.EXC";19,"QUARTILE.EXC"},2,0) -> LARGE | F15: 14 | G15: =_xlfn.AGGREGATE(F15,4,$C$2:$C$102,H15) -> 147.53 | H15: 5 | M15: =ROWS(M$2:M15) -> 14 | N15: =SMALL($C$2:$C$102,ROWS(N$2:N15)) -> 83.37
A16: 2010-01-13 | B16: Franks | C16: 107.9 | E16: =VLOOKUP(F16,{1,"AVERAGE";2,"COUNT";3,"COUNTA";4,"MAX";5,"MIN";6,"PRODUCT";7,"STDEV.S";8,"STDEV.P";9,"SUM";10,"VAR.S";11,"VAR.P";12,"MEDIAN";13,"MODE.SNGL";14,"LARGE";15,"SMALL";16,"PERCENTILE.INC";17,"QUARTILE.INC";18,"PERCENTILE.EXC";19,"QUARTILE.EXC"},2,0) -> SMALL | F16: 15 | G16: =_xlfn.AGGREGATE(F16,4,$C$2:$C$102,H16) -> 76.59 | H16: =H15 -> 5 | M16: =ROWS(M$2:M16) -> 15 | N16: =SMALL($C$2:$C$102,ROWS(N$2:N16)) -> 85.14
A17: 2010-01-28 | B17: Gault | C17: 130.54 | E17: =VLOOKUP(F17,{1,"AVERAGE";2,"COUNT";3,"COUNTA";4,"MAX";5,"MIN";6,"PRODUCT";7,"STDEV.S";8,"STDEV.P";9,"SUM";10,"VAR.S";11,"VAR.P";12,"MEDIAN";13,"MODE.SNGL";14,"LARGE";15,"SMALL";16,"PERCENTILE.INC";17,"QUARTILE.INC";18,"PERCENTILE.EXC";19,"QUARTILE.EXC"},2,0) -> PERCENTILE.INC | F17: 16 | G17: 140.54 | H17: 0.9 | I17: old method | M17: =ROWS(M$2:M17) -> 16 | N17: =SMALL($C$2:$C$102,ROWS(N$2:N17)) -> 86.1
A18: 2010-01-25 | B18: Gault | C18: 140.71 | E18: =VLOOKUP(F18,{1,"AVERAGE";2,"COUNT";3,"COUNTA";4,"MAX";5,"MIN";6,"PRODUCT";7,"STDEV.S";8,"STDEV.P";9,"SUM";10,"VAR.S";11,"VAR.P";12,"MEDIAN";13,"MODE.SNGL";14,"LARGE";15,"SMALL";16,"PERCENTILE.INC";17,"QUARTILE.INC";18,"PERCENTILE.EXC";19,"QUARTILE.EXC"},2,0) -> QUARTILE.INC | F18: 17 | G18: 96.17 | H18: 1 | I18: old method | M18: =ROWS(M$2:M18) -> 17 | N18: =SMALL($C$2:$C$102,ROWS(N$2:N18)) -> 87.06
A19: 2010-02-10 | B19: Sioux | C19: 108.72 | E19: =VLOOKUP(F19,{1,"AVERAGE";2,"COUNT";3,"COUNTA";4,"MAX";5,"MIN";6,"PRODUCT";7,"STDEV.S";8,"STDEV.P";9,"SUM";10,"VAR.S";11,"VAR.P";12,"MEDIAN";13,"MODE.SNGL";14,"LARGE";15,"SMALL";16,"PERCENTILE.INC";17,"QUARTILE.INC";18,"PERCENTILE.EXC";19,"QUARTILE.EXC"},2,0) -> PERCENTILE.EXC | F19: 18 | G19: 140.676 | H19: =H17 -> 0.9 | I19: new method | J19: =VLOOKUP((COUNT($C$2:$C$102)+1)*$H$17,$M$2:$N$102,2)+(VLOOKUP((COUNT($C$2:$C$102)+1)*$H$17+1,$M$2:$N$102,2)-VLOOKUP((COUNT($C$2:$C$102)+1)*$H$17,$M$2:$N$102,2))*MOD((COUNT($C$2:$C$102)+1)*$H$17,1) -> 140.676 | M19: =ROWS(M$2:M19) -> 18 | N19: =SMALL($C$2:$C$102,ROWS(N$2:N19)) -> 88.51
A20: 2009-12-26 | B20: Smith | C20: 135.18 | E20: =VLOOKUP(F20,{1,"AVERAGE";2,"COUNT";3,"COUNTA";4,"MAX";5,"MIN";6,"PRODUCT";7,"STDEV.S";8,"STDEV.P";9,"SUM";10,"VAR.S";11,"VAR.P";12,"MEDIAN";13,"MODE.SNGL";14,"LARGE";15,"SMALL";16,"PERCENTILE.INC";17,"QUARTILE.INC";18,"PERCENTILE.EXC";19,"QUARTILE.EXC"},2,0) -> QUARTILE.EXC | F20: 19 | G20: 95.43 | H20: =H18 -> 1 | I20: new method | M20: =ROWS(M$2:M20) -> 19 | N20: =SMALL($C$2:$C$102,ROWS(N$2:N20)) -> 88.69
A21: 2009-12-14 | B21: Gault | C21: 142.55 | M21: =ROWS(M$2:M21) -> 20 | N21: =SMALL($C$2:$C$102,ROWS(N$2:N21)) -> 89.11
A22: 2010-02-12 | B22: Smith | C22: 140.54 | M22: =ROWS(M$2:M22) -> 21 | N22: =SMALL($C$2:$C$102,ROWS(N$2:N22)) -> 93.15
A23: 2010-01-19 | B23: Franks | C23: 75.04 | E23: 2nd argument | M23: =ROWS(M$2:M23) -> 22 | N23: =SMALL($C$2:$C$102,ROWS(N$2:N23)) -> 93.33
A24: 2010-02-16 | B24: Pham | C24: 93.15 | E24: option | F24: what it does | M24: =ROWS(M$2:M24) -> 23 | N24: =SMALL($C$2:$C$102,ROWS(N$2:N24)) -> 93.37
A25: 2010-01-07 | B25: Sioux | C25: 132.51 | E25: 0 | F25: Ignore nested SUBTOTAL and AGGREGATE functions | M25: =ROWS(M$2:M25) -> 24 | N25: =SMALL($C$2:$C$102,ROWS(N$2:N25)) -> 94.11
A26: 2010-01-16 | B26: Chin | C26: 85.14 | E26: 1 | F26: Ignore hidden rows, nested SUBTOTAL and AGGREGATE functions | M26: =ROWS(M$2:M26) -> 25 | N26: =SMALL($C$2:$C$102,ROWS(N$2:N26)) -> 94.69
A27: 2010-02-15 | B27: Franks | C27: 108.85 | E27: 2 | F27: Ignore error values, nested SUBTOTAL and AGGREGATE functions | M27: =ROWS(M$2:M27) -> 26 | N27: =SMALL($C$2:$C$102,ROWS(N$2:N27)) -> 96.17
A28: 2009-12-13 | B28: Sioux | C28: 139.92 | E28: 3 | F28: Ignore hidden rows, error values, nested SUBTOTAL and AGGREGATE functions | M28: =ROWS(M$2:M28) -> 27 | N28: =SMALL($C$2:$C$102,ROWS(N$2:N28)) -> 98.71
A29: 2010-01-04 | B29: Franks | C29: 104.35 | E29: 4 | F29: Ignore nothing | M29: =ROWS(M$2:M29) -> 28 | N29: =SMALL($C$2:$C$102,ROWS(N$2:N29)) -> 100.09
A30: 2009-12-14 | B30: Gault | C30: 88.51 | E30: 5 | F30: Ignore hidden rows | M30: =ROWS(M$2:M30) -> 29 | N30: =SMALL($C$2:$C$102,ROWS(N$2:N30)) -> 100.76
A31: 2010-02-01 | B31: Gault | C31: 136.76 | E31: 6 | F31: Ignore error values | M31: =ROWS(M$2:M31) -> 30 | N31: =SMALL($C$2:$C$102,ROWS(N$2:N31)) -> 100.83
A32: 2009-11-25 | B32: Pham | C32: 109.57 | E32: 7 | F32: Ignore hidden rows and error values | M32: =ROWS(M$2:M32) -> 31 | N32: =SMALL($C$2:$C$102,ROWS(N$2:N32)) -> 102.17
A33: 2010-02-07 | B33: Franks | C33: 125.81 | M33: =ROWS(M$2:M33) -> 32 | N33: =SMALL($C$2:$C$102,ROWS(N$2:N33)) -> 102.24
A34: 2009-12-22 | B34: Pham | C34: 150.09 | M34: =ROWS(M$2:M34) -> 33 | N34: =SMALL($C$2:$C$102,ROWS(N$2:N34)) -> 102.64
A35: 2009-12-07 | B35: Sioux | C35: 147.53 | M35: =ROWS(M$2:M35) -> 34 | N35: =SMALL($C$2:$C$102,ROWS(N$2:N35)) -> 104.35
A36: 2009-12-12 | B36: Chin | C36: 102.17 | M36: =ROWS(M$2:M36) -> 35 | N36: =SMALL($C$2:$C$102,ROWS(N$2:N36)) -> 104.36
A37: 2009-12-30 | B37: Smith | C37: 114.4 | M37: =ROWS(M$2:M37) -> 36 | N37: =SMALL($C$2:$C$102,ROWS(N$2:N37)) -> 104.5
A38: 2009-12-27 | B38: Chin | C38: 129.65 | M38: =ROWS(M$2:M38) -> 37 | N38: =SMALL($C$2:$C$102,ROWS(N$2:N38)) -> 104.57
A39: 2009-12-29 | B39: Chin | C39: 128.95 | M39: =ROWS(M$2:M39) -> 38 | N39: =SMALL($C$2:$C$102,ROWS(N$2:N39)) -> 106.94
A40: 2010-01-05 | B40: Gault | C40: 121.33 | M40: =ROWS(M$2:M40) -> 39 | N40: =SMALL($C$2:$C$102,ROWS(N$2:N40)) -> 107.9
A41: 2009-12-15 | B41: Pham | C41: 102.64 | M41: =ROWS(M$2:M41) -> 40 | N41: =SMALL($C$2:$C$102,ROWS(N$2:N41)) -> 108.54
A42: 2009-12-01 | B42: Pham | C42: 132.12 | M42: =ROWS(M$2:M42) -> 41 | N42: =SMALL($C$2:$C$102,ROWS(N$2:N42)) -> 108.72
A43: 2010-02-07 | B43: Franks | C43: 100.83 | M43: =ROWS(M$2:M43) -> 42 | N43: =SMALL($C$2:$C$102,ROWS(N$2:N43)) -> 108.85
A44: 2009-11-26 | B44: Sioux | C44: 79.42 | M44: =ROWS(M$2:M44) -> 43 | N44: =SMALL($C$2:$C$102,ROWS(N$2:N44)) -> 109.57
A45: 2010-01-04 | B45: Pham | C45: 100.09 | M45: =ROWS(M$2:M45) -> 44 | N45: =SMALL($C$2:$C$102,ROWS(N$2:N45)) -> 109.7
A46: 2010-01-29 | B46: Franks | C46: 83.37 | M46: =ROWS(M$2:M46) -> 45 | N46: =SMALL($C$2:$C$102,ROWS(N$2:N46)) -> 112.03
A47: 2010-01-19 | B47: Franks | C47: 89.11 | M47: =ROWS(M$2:M47) -> 46 | N47: =SMALL($C$2:$C$102,ROWS(N$2:N47)) -> 112.5
A48: 2010-02-14 | B48: Smith | C48: 126.97 | M48: =ROWS(M$2:M48) -> 47 | N48: =SMALL($C$2:$C$102,ROWS(N$2:N48)) -> 113.86
A49: 2009-12-03 | B49: Smith | C49: 154.31 | M49: =ROWS(M$2:M49) -> 48 | N49: =SMALL($C$2:$C$102,ROWS(N$2:N49)) -> 114.4
A50: 2010-01-02 | B50: Sioux | C50: 76.59 | M50: =ROWS(M$2:M50) -> 49 | N50: =SMALL($C$2:$C$102,ROWS(N$2:N50)) -> 114.53
A51: 2009-12-29 | B51: Gault | C51: 106.94 | M51: =ROWS(M$2:M51) -> 50 | N51: =SMALL($C$2:$C$102,ROWS(N$2:N51)) -> 114.54
A52: 2009-11-26 | B52: Chin | C52: 129.86 | M52: =ROWS(M$2:M52) -> 51 | N52: =SMALL($C$2:$C$102,ROWS(N$2:N52)) -> 114.93
A53: 2009-12-24 | B53: Pham | C53: 100.76 | M53: =ROWS(M$2:M53) -> 52 | N53: =SMALL($C$2:$C$102,ROWS(N$2:N53)) -> 115.67
A54: 2009-12-10 | B54: Gault | C54: 124.59 | M54: =ROWS(M$2:M54) -> 53 | N54: =SMALL($C$2:$C$102,ROWS(N$2:N54)) -> 117.63
A55: 2009-12-31 | B55: Smith | C55: 150.31 | M55: =ROWS(M$2:M55) -> 54 | N55: =SMALL($C$2:$C$102,ROWS(N$2:N55)) -> 119.09
A56: 2009-12-16 | B56: Franks | C56: 119.78 | M56: =ROWS(M$2:M56) -> 55 | N56: =SMALL($C$2:$C$102,ROWS(N$2:N56)) -> 119.53
A57: 2010-01-03 | B57: Pham | C57: 93.37 | M57: =ROWS(M$2:M57) -> 56 | N57: =SMALL($C$2:$C$102,ROWS(N$2:N57)) -> 119.78
A58: 2009-12-26 | B58: Chin | C58: 87.06 | M58: =ROWS(M$2:M58) -> 57 | N58: =SMALL($C$2:$C$102,ROWS(N$2:N58)) -> 121.33
A59: 2010-01-05 | B59: Smith | C59: 147.49 | M59: =ROWS(M$2:M59) -> 58 | N59: =SMALL($C$2:$C$102,ROWS(N$2:N59)) -> 122.21
A60: 2009-12-19 | B60: Smith | C60: 136.94 | M60: =ROWS(M$2:M60) -> 59 | N60: =SMALL($C$2:$C$102,ROWS(N$2:N60)) -> 123.13
A61: 2009-11-20 | B61: Gault | C61: 93.33 | M61: =ROWS(M$2:M61) -> 60 | N61: =SMALL($C$2:$C$102,ROWS(N$2:N61)) -> 124.59
A62: 2010-01-03 | B62: Smith | C62: 128.97 | M62: =ROWS(M$2:M62) -> 61 | N62: =SMALL($C$2:$C$102,ROWS(N$2:N62)) -> 125.38
A63: 2009-12-14 | B63: Smith | C63: 114.93 | M63: =ROWS(M$2:M63) -> 62 | N63: =SMALL($C$2:$C$102,ROWS(N$2:N63)) -> 125.81
A64: 2010-01-01 | B64: Sioux | C64: 104.57 | M64: =ROWS(M$2:M64) -> 63 | N64: =SMALL($C$2:$C$102,ROWS(N$2:N64)) -> 126.33
A65: 2009-11-27 | B65: Sioux | C65: 119.53 | M65: =ROWS(M$2:M65) -> 64 | N65: =SMALL($C$2:$C$102,ROWS(N$2:N65)) -> 126.62
A66: 2010-01-01 | B66: Pham | C66: 127.99 | M66: =ROWS(M$2:M66) -> 65 | N66: =SMALL($C$2:$C$102,ROWS(N$2:N66)) -> 126.97
A67: 2009-12-03 | B67: Smith | C67: 88.69 | M67: =ROWS(M$2:M67) -> 66 | N67: =SMALL($C$2:$C$102,ROWS(N$2:N67)) -> 127.99
A68: 2009-11-25 | B68: Smith | C68: 115.67 | M68: =ROWS(M$2:M68) -> 67 | N68: =SMALL($C$2:$C$102,ROWS(N$2:N68)) -> 128.15
A69: 2010-01-07 | B69: Pham | C69: 114.54 | M69: =ROWS(M$2:M69) -> 68 | N69: =SMALL($C$2:$C$102,ROWS(N$2:N69)) -> 128.95
A70: 2010-02-02 | B70: Smith | C70: 128.15 | M70: =ROWS(M$2:M70) -> 69 | N70: =SMALL($C$2:$C$102,ROWS(N$2:N70)) -> 128.97
A71: 2010-02-08 | B71: Gault | C71: 126.33 | M71: =ROWS(M$2:M71) -> 70 | N71: =SMALL($C$2:$C$102,ROWS(N$2:N71)) -> 129.65
A72: 2010-01-13 | B72: Smith | C72: 112.03 | M72: =ROWS(M$2:M72) -> 71 | N72: =SMALL($C$2:$C$102,ROWS(N$2:N72)) -> 129.86
A73: 2009-11-20 | B73: Smith | C73: 145.33 | M73: =ROWS(M$2:M73) -> 72 | N73: =SMALL($C$2:$C$102,ROWS(N$2:N73)) -> 130.2
A74: 2009-12-23 | B74: Gault | C74: 109.7 | M74: =ROWS(M$2:M74) -> 73 | N74: =SMALL($C$2:$C$102,ROWS(N$2:N74)) -> 130.37
A75: 2009-11-26 | B75: Sioux | C75: 139.13 | M75: =ROWS(M$2:M75) -> 74 | N75: =SMALL($C$2:$C$102,ROWS(N$2:N75)) -> 130.5
A76: 2009-12-01 | B76: Sioux | C76: 112.5 | M76: =ROWS(M$2:M76) -> 75 | N76: =SMALL($C$2:$C$102,ROWS(N$2:N76)) -> 130.54
A77: 2009-11-29 | B77: Pham | C77: 122.21 | M77: =ROWS(M$2:M77) -> 76 | N77: =SMALL($C$2:$C$102,ROWS(N$2:N77)) -> 131.04
A78: 2010-01-13 | B78: Smith | C78: 135.77 | M78: =ROWS(M$2:M78) -> 77 | N78: =SMALL($C$2:$C$102,ROWS(N$2:N78)) -> 132.12
A79: 2010-01-09 | B79: Pham | C79: 75.17 | M79: =ROWS(M$2:M79) -> 78 | N79: =SMALL($C$2:$C$102,ROWS(N$2:N79)) -> 132.51
A80: 2010-01-30 | B80: Sioux | C80: 104.5 | M80: =ROWS(M$2:M80) -> 79 | N80: =SMALL($C$2:$C$102,ROWS(N$2:N80)) -> 133.17
A81: 2010-02-04 | B81: Gault | C81: 86.1 | M81: =ROWS(M$2:M81) -> 80 | N81: =SMALL($C$2:$C$102,ROWS(N$2:N81)) -> 134.11
A82: 2010-01-02 | B82: Sioux | C82: 143.85 | M82: =ROWS(M$2:M82) -> 81 | N82: =SMALL($C$2:$C$102,ROWS(N$2:N82)) -> 135.02
A83: 2010-01-16 | B83: Gault | C83: 104.36 | M83: =ROWS(M$2:M83) -> 82 | N83: =SMALL($C$2:$C$102,ROWS(N$2:N83)) -> 135.18
A84: 2009-12-28 | B84: Smith | C84: 135.02 | M84: =ROWS(M$2:M84) -> 83 | N84: =SMALL($C$2:$C$102,ROWS(N$2:N84)) -> 135.77
A85: 2009-12-26 | B85: Pham | C85: 83.26 | M85: =ROWS(M$2:M85) -> 84 | N85: =SMALL($C$2:$C$102,ROWS(N$2:N85)) -> 136.14
A86: 2009-11-28 | B86: Sioux | C86: 114.53 | M86: =ROWS(M$2:M86) -> 85 | N86: =SMALL($C$2:$C$102,ROWS(N$2:N86)) -> 136.76
A87: 2010-02-02 | B87: Smith | C87: 117.63 | M87: =ROWS(M$2:M87) -> 86 | N87: =SMALL($C$2:$C$102,ROWS(N$2:N87)) -> 136.94
A88: 2009-12-27 | B88: Gault | C88: 102.24 | M88: =ROWS(M$2:M88) -> 87 | N88: =SMALL($C$2:$C$102,ROWS(N$2:N88)) -> 139.13
A89: 2010-02-01 | B89: Chin | C89: 139.21 | M89: =ROWS(M$2:M89) -> 88 | N89: =SMALL($C$2:$C$102,ROWS(N$2:N89)) -> 139.21
A90: 2009-12-25 | B90: Smith | C90: 119.09 | M90: =ROWS(M$2:M90) -> 89 | N90: =SMALL($C$2:$C$102,ROWS(N$2:N90)) -> 139.38
A91: 2010-01-17 | B91: Pham | C91: 134.11 | M91: =ROWS(M$2:M91) -> 90 | N91: =SMALL($C$2:$C$102,ROWS(N$2:N91)) -> 139.92
A92: 2010-01-15 | B92: Sioux | C92: 96.17 | M92: =ROWS(M$2:M92) -> 91 | N92: =SMALL($C$2:$C$102,ROWS(N$2:N92)) -> 140.54 | P92: =N93-N92 -> 0.17
A93: 2010-01-10 | B93: Smith | C93: 108.54 | M93: =ROWS(M$2:M93) -> 92 | N93: =SMALL($C$2:$C$102,ROWS(N$2:N93)) -> 140.71 | P93: =P92*0.8 -> 0.136
A94: 2010-01-05 | B94: Gault | C94: 78.89 | M94: =ROWS(M$2:M94) -> 93 | N94: =SMALL($C$2:$C$102,ROWS(N$2:N94)) -> 142.55
A95: 2010-01-20 | B95: Pham | C95: 130.37 | M95: =ROWS(M$2:M95) -> 94 | N95: =SMALL($C$2:$C$102,ROWS(N$2:N95)) -> 143.85
A96: 2009-12-08 | B96: Chin | C96: 130.5 | M96: =ROWS(M$2:M96) -> 95 | N96: =SMALL($C$2:$C$102,ROWS(N$2:N96)) -> 145.33
A97: 2010-01-16 | B97: Franks | C97: 123.13 | M97: =ROWS(M$2:M97) -> 96 | N97: =SMALL($C$2:$C$102,ROWS(N$2:N97)) -> 147.49
A98: 2009-12-19 | B98: Gault | C98: 131.04 | M98: =ROWS(M$2:M98) -> 97 | N98: =SMALL($C$2:$C$102,ROWS(N$2:N98)) -> 147.53
A99: 2009-12-17 | B99: Pham | C99: 76.26 | M99: =ROWS(M$2:M99) -> 98 | N99: =SMALL($C$2:$C$102,ROWS(N$2:N99)) -> 149.95
A100: 2010-01-19 | B100: Pham | C100: 78.46 | M100: =ROWS(M$2:M100) -> 99 | N100: =SMALL($C$2:$C$102,ROWS(N$2:N100)) -> 150.09
A101: 2009-11-21 | B101: Gault | C101: 79.11 | M101: =ROWS(M$2:M101) -> 100 | N101: =SMALL($C$2:$C$102,ROWS(N$2:N101)) -> 150.31
A102: 2010-02-18 | B102: Gault | C102: 75.35 | M102: =ROWS(M$2:M102) -> 101 | N102: =SMALL($C$2:$C$102,ROWS(N$2:N102)) -> 154.31

Sheet 662
A1: The AGGREGATE function is designed for columns of data, or vertical ranges. It is not designed for rows of data, or horizontal ranges. For example, when you subtotal a horizontal range using option 1, such as AGGREGATE(1, 1, ref1), hiding a column does not affect the aggregate sum value. But, hiding a row in vertical range does affect the aggregate.
A3: Date | B3: 2010-07-19 | C3: 2010-07-20 | D3: 2010-07-21 | E3: 2010-07-22 | F3: 2010-07-23 | G3: 2010-07-24 | H3: 2010-07-25 | I3: 2010-07-26
A4: Sales | B4: 1 | C4: 1 | D4: 1 | E4: 1 | F4: 1 | G4: 1 | H4: 1 | I4: 1
A6: Date | B6: Sales
A7: 2010-07-19 | B7: 1
A8: 2010-07-20 | B8: 1
A9: 2010-07-21 | B9: 1
A10: 2010-07-22 | B10: 1
A11: 2010-07-23 | B11: 1
A12: 2010-07-24 | B12: 1
A13: 2010-07-25 | B13: 1
A14: 2010-07-26 | B14: 1
A16: rows | C16: Total
A17: columns ignored | C17: Total
A18: rows | C18: SUBTOTAL function
A19: rows | C19: AGGREGATE options argument = 7
A21: 2nd argument
A22: option | B22: what it does
A23: 0 | B23: Ignore nested SUBTOTAL and AGGREGATE functions
A24: 1 | B24: Ignore hidden rows, nested SUBTOTAL and AGGREGATE functions
A25: 2 | B25: Ignore error values, nested SUBTOTAL and AGGREGATE functions
A26: 3 | B26: Ignore hidden rows, error values, nested SUBTOTAL and AGGREGATE functions
A27: 4 | B27: Ignore nothing
A28: 5 | B28: Ignore hidden rows
A29: 6 | B29: Ignore error values
A30: 7 | B30: Ignore hidden rows and error values

Sheet 662an
A1: The AGGREGATE function is designed for columns of data, or vertical ranges. It is not designed for rows of data, or horizontal ranges. For example, when you subtotal a horizontal range using option 1, such as AGGREGATE(1, 1, ref1), hiding a column does not affect the aggregate sum value. But, hiding a row in vertical range does affect the aggregate.
A3: Date | B3: 2010-07-19 | C3: 2010-07-20 | D3: 2010-07-21 | E3: 2010-07-22 | F3: 2010-07-23 | G3: 2010-07-24 | H3: 2010-07-25 | I3: 2010-07-26
A4: Sales | B4: 1 | C4: 1 | D4: 1 | E4: 1 | F4: 1 | G4: 1 | H4: 1 | I4: 1
A6: Date | B6: Sales
A7: 2010-07-19 | B7: 1
A8: 2010-07-20 | B8: 1
A9: 2010-07-21 | B9: =1/0 -> 
A10: 2010-07-22 | B10: 1
A11: 2010-07-23 | B11: 1
A12: 2010-07-24 | B12: 1
A13: 2010-07-25 | B13: 1
A14: 2010-07-26 | B14: 1
A16: rows | B16: =_xlfn.AGGREGATE(9,5,B7:B14) ->  | C16: Total
A17: columns ignored | B17: =_xlfn.AGGREGATE(9,5,B4:I4) -> 8 | C17: Total
A18: rows | B18: =SUBTOTAL(109,B7:B14) ->  | C18: SUBTOTAL function
A19: rows | B19: =_xlfn.AGGREGATE(9,7,B7:B13) -> 4 | C19: AGGREGATE options argument = 7
A21: 2nd argument
A22: option | B22: what it does
A23: 0 | B23: Ignore nested SUBTOTAL and AGGREGATE functions
A24: 1 | B24: Ignore hidden rows, nested SUBTOTAL and AGGREGATE functions
A25: 2 | B25: Ignore error values, nested SUBTOTAL and AGGREGATE functions
A26: 3 | B26: Ignore hidden rows, error values, nested SUBTOTAL and AGGREGATE functions
A27: 4 | B27: Ignore nothing
A28: 5 | B28: Ignore hidden rows
A29: 6 | B29: Ignore error values
A30: 7 | B30: Ignore hidden rows and error values

Sheet 663
A1: Date | B1: Product | C1: Lookup Price | H1: Pro 1 | I1: 10
A2: 2010-07-19 | B2: Pro 1 | C2: =VLOOKUP(B2,$H$1:$I$3,2,0) -> 10 | H2: Pro 2 | I2: 205
A3: 2010-07-20 | B3: Pro 2 | C3: 205 | H3: Pro 3 | I3: 98
A4: 2010-07-21 | B4: Pro 3 | C4: 98
A5: 2010-07-22 | B5: Pro 1 | C5: 10
A6: 2010-07-23 | B6: Pro 2 | C6: 205
A7: 2010-07-24 | B7: Pro 3 | C7: 98
A8: 2010-07-25 | B8: Pro 4
A9: 2010-07-26 | B9: Pro 2 | C9: 205
A10: 2010-07-27 | B10: Pro 3 | C10: 98
A11: 2010-07-28 | B11: Pro 5
A12: 2010-07-29 | B12: Pro 2 | C12: 205
A13: 2010-07-30 | B13: Pro 3 | C13: 98
B14: Total | D14: SUM does not like errors
B15: Total | D15: old method requires Ctrl + Shift = Enter
B16: Total | D16: just errors
B17: Total | D17: errors and hidden
A19: 2nd argument
A20: option | B20: what it does
A21: 0 | B21: Ignore nested SUBTOTAL and AGGREGATE functions
A22: 1 | B22: Ignore hidden rows, nested SUBTOTAL and AGGREGATE functions
A23: 2 | B23: Ignore error values, nested SUBTOTAL and AGGREGATE functions
A24: 3 | B24: Ignore hidden rows, error values, nested SUBTOTAL and AGGREGATE functions
A25: 4 | B25: Ignore nothing
A26: 5 | B26: Ignore hidden rows
A27: 6 | B27: Ignore error values
A28: 7 | B28: Ignore hidden rows and error values

Sheet 663an
A1: Date | B1: Product | C1: Lookup Price | H1: Pro 1 | I1: 10
A2: 2010-07-19 | B2: Pro 1 | C2: =VLOOKUP(B2,$H$1:$I$3,2,0) -> 10 | H2: Pro 2 | I2: 205
A3: 2010-07-20 | B3: Pro 2 | C3: 205 | H3: Pro 3 | I3: 98
A4: 2010-07-21 | B4: Pro 3 | C4: 98
A5: 2010-07-22 | B5: Pro 1 | C5: 10
A6: 2010-07-23 | B6: Pro 2 | C6: 205
A7: 2010-07-24 | B7: Pro 3 | C7: 98
A8: 2010-07-25 | B8: Pro 4
A9: 2010-07-26 | B9: Pro 2 | C9: 205
A10: 2010-07-27 | B10: Pro 3 | C10: 98
A11: 2010-07-28 | B11: Pro 5
A12: 2010-07-29 | B12: Pro 2 | C12: 205
A13: 2010-07-30 | B13: Pro 3 | C13: 98
B14: Total | C14: =SUM(C2:C13) ->  | D14: SUM does not like errors
B15: Total | C15: =SUM(IF(ISNUMBER(C2:C13),C2:C13)) -> 1232 | D15: old method requires Ctrl + Shift = Enter
B16: Total | C16: =_xlfn.AGGREGATE(9,6,C2:C13) -> 1232 | D16: just errors
B17: Total | C17: =_xlfn.AGGREGATE(9,7,C2:C13) -> 1027 | D17: errors and hidden
A19: 2nd argument
A20: option | B20: what it does
A21: 0 | B21: Ignore nested SUBTOTAL and AGGREGATE functions
A22: 1 | B22: Ignore hidden rows, nested SUBTOTAL and AGGREGATE functions
A23: 2 | B23: Ignore error values, nested SUBTOTAL and AGGREGATE functions
A24: 3 | B24: Ignore hidden rows, error values, nested SUBTOTAL and AGGREGATE functions
A25: 4 | B25: Ignore nothing
A26: 5 | B26: Ignore hidden rows
A27: 6 | B27: Ignore error values
A28: 7 | B28: Ignore hidden rows and error values

Sheet 664
A1: Date | B1: Product | C1: SalesRep | D1: Sales | G1: Avoid Nested SUBTOTALS
A2: 2012-11-29 | B2: Bellen | C2: Chin | D2: 988 | G2: =AVERAGE(D2:D16) -> 1235.6 | H2: =ShowFormulaToLeft -> =AVERAGE(D2:D16)
A3: 2011-02-09 | B3: Sunset | C3: Chin | D3: 315 | G3: =AVERAGE(D2:D3,D5:D6,D8,D10:D12,D14) -> 686.4444444 | H3: =ShowFormulaToLeft -> =AVERAGE(D2:D3,D5:D6,D8,D10:D12,D14)
C4: Chin Total | D4: =SUBTOTAL(9,D2:D3) -> 1303 | F4: Mean - Average | H4: =ShowFormulaToLeft -> 
A5: 2012-09-24 | B5: Sunset | C5: Gault | D5: 315 | F5: Mean - Average | H5: =ShowFormulaToLeft -> 
A6: 2011-08-30 | B6: Sunset | C6: Gault | D6: 682 | F6: Median | H6: =ShowFormulaToLeft -> 
C7: Gault Total | D7: =SUBTOTAL(9,D5:D6) -> 997 | F7: Mode | H7: =ShowFormulaToLeft -> 
A8: 2012-08-19 | B8: Bellen | C8: Pham | D8: 682
C9: Pham Total | D9: =SUBTOTAL(9,D8:D8) -> 682
A10: 2012-05-17 | B10: Quad | C10: Sioux | D10: 621
A11: 2012-07-16 | B11: Sunshine | C11: Sioux | D11: 988
A12: 2011-09-21 | B12: Quad | C12: Sioux | D12: 621
C13: Sioux Total | D13: =SUBTOTAL(9,D10:D12) -> 2230
A14: 2012-03-31 | B14: Carlota | C14: Smith | D14: 966
C15: Smith Total | D15: =SUBTOTAL(9,D14:D14) -> 966
C16: Grand Total | D16: =SUBTOTAL(9,D2:D14) -> 6178
A19: 2nd argument
A20: option | B20: what it does
A21: 0 | B21: Ignore nested SUBTOTAL and AGGREGATE functions
A22: 1 | B22: Ignore hidden rows, nested SUBTOTAL and AGGREGATE functions
A23: 2 | B23: Ignore error values, nested SUBTOTAL and AGGREGATE functions
A24: 3 | B24: Ignore hidden rows, error values, nested SUBTOTAL and AGGREGATE functions
A25: 4 | B25: Ignore nothing
A26: 5 | B26: Ignore hidden rows
A27: 6 | B27: Ignore error values
A28: 7 | B28: Ignore hidden rows and error values

Sheet 664an
A1: Date | B1: Product | C1: SalesRep | D1: Sales | G1: Avoid Nested SUBTOTALS
A2: 2012-11-29 | B2: Bellen | C2: Chin | D2: 988 | G2: =AVERAGE(D2:D16) -> 1235.6 | H2: =ShowFormulaToLeft -> =AVERAGE(D2:D16)
A3: 2011-02-09 | B3: Sunset | C3: Chin | D3: 315 | G3: =AVERAGE(D2:D3,D5:D6,D8,D10:D12,D14) -> 686.4444444 | H3: =ShowFormulaToLeft -> =AVERAGE(D2:D3,D5:D6,D8,D10:D12,D14)
C4: Chin Total | D4: =SUBTOTAL(9,D2:D3) -> 1303 | F4: Mean - Average | G4: =_xlfn.AGGREGATE(1,0,D2:D16) -> 686.4444444 | H4: =ShowFormulaToLeft -> =AGGREGATE(1,0,D2:D16)
A5: 2012-09-24 | B5: Sunset | C5: Gault | D5: 315 | F5: Mean - Average | G5: =SUBTOTAL(1,D2:D16) -> 686.4444444 | H5: =ShowFormulaToLeft -> =SUBTOTAL(1,D2:D16)
A6: 2011-08-30 | B6: Sunset | C6: Gault | D6: 682 | F6: Median | G6: =_xlfn.AGGREGATE(12,0,D2:D16) -> 682 | H6: =ShowFormulaToLeft -> =AGGREGATE(12,0,D2:D16)
C7: Gault Total | D7: =SUBTOTAL(9,D5:D6) -> 997 | F7: Mode | G7: =_xlfn.AGGREGATE(13,0,D2:D16) -> 988 | H7: =ShowFormulaToLeft -> =AGGREGATE(13,0,D2:D16)
A8: 2012-08-19 | B8: Bellen | C8: Pham | D8: 682
C9: Pham Total | D9: =SUBTOTAL(9,D8:D8) -> 682
A10: 2012-05-17 | B10: Quad | C10: Sioux | D10: 621
A11: 2012-07-16 | B11: Sunshine | C11: Sioux | D11: 988
A12: 2011-09-21 | B12: Quad | C12: Sioux | D12: 621
C13: Sioux Total | D13: =SUBTOTAL(9,D10:D12) -> 2230
A14: 2012-03-31 | B14: Carlota | C14: Smith | D14: 966
C15: Smith Total | D15: =SUBTOTAL(9,D14:D14) -> 966
C16: Grand Total | D16: =SUBTOTAL(9,D2:D14) -> 6178
A19: 2nd argument
A20: option | B20: what it does
A21: 0 | B21: Ignore nested SUBTOTAL and AGGREGATE functions
A22: 1 | B22: Ignore hidden rows, nested SUBTOTAL and AGGREGATE functions
A23: 2 | B23: Ignore error values, nested SUBTOTAL and AGGREGATE functions
A24: 3 | B24: Ignore hidden rows, error values, nested SUBTOTAL and AGGREGATE functions
A25: 4 | B25: Ignore nothing
A26: 5 | B26: Ignore hidden rows
A27: 6 | B27: Ignore error values
A28: 7 | B28: Ignore hidden rows and error values

Sheet 665
A1: Median for only filtered | C1: =ShowFormulaToLeft -> 
A2: add only filtered | C2: =ShowFormulaToLeft -> 
A3: add only filtered | C3: =ShowFormulaToLeft -> 
A5: Date | B5: SalesRep | C5: Sales
A6: 2009-12-25 | B6: Gault | C6: 94.69
A7: 2009-12-15 | B7: Smith | C7: 130.2
A8: 2009-12-11 | B8: Franks | C8: 149.95
A9: 2009-12-01 | B9: Gault | C9: 94.11
A10: 2009-12-11 | B10: Franks | C10: 136.14
A11: 2010-02-12 | B11: Pham | C11: 133.17
A12: 2009-12-07 | B12: Smith | C12: 80.81
A13: 2009-11-23 | B13: Smith | C13: 125.38
A14: 2009-11-23 | B14: Gault | C14: 78.95
A15: 2010-01-23 | B15: Smith | C15: 113.86
A16: 2010-01-21 | B16: Pham | C16: 139.38
A17: 2009-12-20 | B17: Gault | C17: 98.71
A18: 2009-12-07 | B18: Pham | C18: 76.65
A19: 2010-02-11 | B19: Gault | C19: 126.62
A20: 2010-01-13 | B20: Franks | C20: 107.9
A21: 2010-01-28 | B21: Gault | C21: 130.54
A22: 2010-01-25 | B22: Gault | C22: 140.71
A23: 2010-02-10 | B23: Sioux | C23: 108.72
A24: 2009-12-26 | B24: Smith | C24: 135.18
A25: 2009-12-14 | B25: Gault | C25: 142.55
A26: 2010-02-12 | B26: Smith | C26: 140.54
A27: 2010-01-19 | B27: Franks | C27: 75.04
A28: 2010-02-16 | B28: Pham | C28: 93.15
A29: 2010-01-07 | B29: Sioux | C29: 132.51
A30: 2010-01-16 | B30: Chin | C30: 85.14
A31: 2010-02-15 | B31: Franks | C31: 108.85
A32: 2009-12-13 | B32: Sioux | C32: 139.92
A33: 2010-01-04 | B33: Franks | C33: 104.35
A34: 2009-12-14 | B34: Gault | C34: 88.51
A35: 2010-02-01 | B35: Gault | C35: 136.76
A36: 2009-11-25 | B36: Pham | C36: 109.57
A37: 2010-02-07 | B37: Franks | C37: 125.81
A38: 2009-12-22 | B38: Pham | C38: 150.09
A39: 2009-12-07 | B39: Sioux | C39: 147.53
A40: 2009-12-12 | B40: Chin | C40: 102.17
A41: 2009-12-30 | B41: Smith | C41: 114.4
A42: 2009-12-27 | B42: Chin | C42: 129.65
A43: 2009-12-29 | B43: Chin | C43: 128.95
A44: 2010-01-05 | B44: Gault | C44: 121.33
A45: 2009-12-15 | B45: Pham | C45: 102.64
A46: 2009-12-01 | B46: Pham | C46: 132.12
A47: 2010-02-07 | B47: Franks | C47: 100.83
A48: 2009-11-26 | B48: Sioux | C48: 79.42
A49: 2010-01-04 | B49: Pham | C49: 100.09
A50: 2010-01-29 | B50: Franks | C50: 83.37
A51: 2010-01-19 | B51: Franks | C51: 89.11
A52: 2010-02-14 | B52: Smith | C52: 126.97
A53: 2009-12-03 | B53: Smith | C53: 154.31
A54: 2010-01-02 | B54: Sioux | C54: 76.59
A55: 2009-12-29 | B55: Gault | C55: 106.94
A56: 2009-11-26 | B56: Chin | C56: 129.86
A57: 2009-12-24 | B57: Pham | C57: 100.76
A58: 2009-12-10 | B58: Gault | C58: 124.59
A59: 2009-12-31 | B59: Smith | C59: 150.31
A60: 2009-12-16 | B60: Franks | C60: 119.78
A61: 2010-01-03 | B61: Pham | C61: 93.37
A62: 2009-12-26 | B62: Chin | C62: 87.06
A63: 2010-01-05 | B63: Smith | C63: 147.49
A64: 2009-12-19 | B64: Smith | C64: 136.94
A65: 2009-11-20 | B65: Gault | C65: 93.33
A66: 2010-01-03 | B66: Smith | C66: 128.97
A67: 2009-12-14 | B67: Smith | C67: 114.93
A68: 2010-01-01 | B68: Sioux | C68: 104.57
A69: 2009-11-27 | B69: Sioux | C69: 119.53
A70: 2010-01-01 | B70: Pham | C70: 127.99
A71: 2009-12-03 | B71: Smith | C71: 88.69
A72: 2009-11-25 | B72: Smith | C72: 115.67
A73: 2010-01-07 | B73: Pham | C73: 114.54
A74: 2010-02-02 | B74: Smith | C74: 128.15
A75: 2010-02-08 | B75: Gault | C75: 126.33
A76: 2010-01-13 | B76: Smith | C76: 112.03
A77: 2009-11-20 | B77: Smith | C77: 145.33
A78: 2009-12-23 | B78: Gault | C78: 109.7
A79: 2009-11-26 | B79: Sioux | C79: 139.13
A80: 2009-12-01 | B80: Sioux | C80: 112.5
A81: 2009-11-29 | B81: Pham | C81: 122.21
A82: 2010-01-13 | B82: Smith | C82: 135.77
A83: 2010-01-09 | B83: Pham | C83: 75.17
A84: 2010-01-30 | B84: Sioux | C84: 104.5
A85: 2010-02-04 | B85: Gault | C85: 86.1
A86: 2010-01-02 | B86: Sioux | C86: 143.85
A87: 2010-01-16 | B87: Gault | C87: 104.36
A88: 2009-12-28 | B88: Smith | C88: 135.02
A89: 2009-12-26 | B89: Pham | C89: 83.26
A90: 2009-11-28 | B90: Sioux | C90: 114.53
A91: 2010-02-02 | B91: Smith | C91: 117.63
A92: 2009-12-27 | B92: Gault | C92: 102.24
A93: 2010-02-01 | B93: Chin | C93: 139.21
A94: 2009-12-25 | B94: Smith | C94: 119.09
A95: 2010-01-17 | B95: Pham | C95: 134.11
A96: 2010-01-15 | B96: Sioux | C96: 96.17
A97: 2010-01-10 | B97: Smith | C97: 108.54
A98: 2010-01-05 | B98: Gault | C98: 78.89
A99: 2010-01-20 | B99: Pham | C99: 130.37
A100: 2009-12-08 | B100: Chin | C100: 130.5
A101: 2010-01-16 | B101: Franks | C101: 123.13
A102: 2009-12-19 | B102: Gault | C102: 131.04
A103: 2009-12-17 | B103: Pham | C103: 76.26
A104: 2010-01-19 | B104: Pham | C104: 78.46
A105: 2009-11-21 | B105: Gault | C105: 79.11
A106: 2010-02-18 | B106: Gault | C106: 75.35
C107: =SUBTOTAL(9,C6:C106) -> 6010.91

Sheet 665an
A1: Median for only filtered | B1: =_xlfn.AGGREGATE(12,5,C6:C107) -> 119.09 | C1: =ShowFormulaToLeft -> =AGGREGATE(12,5,C6:C107)
A2: add only filtered | B2: =_xlfn.AGGREGATE(9,5,C6:C106) -> 6010.91 | C2: =ShowFormulaToLeft -> =AGGREGATE(9,5,C6:C106)
A3: add only filtered | B3: =SUBTOTAL(9,C6:C106) -> 6010.91 | C3: =ShowFormulaToLeft -> =SUBTOTAL(9,C6:C106)
A5: Date | B5: SalesRep | C5: Sales
A6: 2009-12-25 | B6: Gault | C6: 94.69
A7: 2009-12-15 | B7: Smith | C7: 130.2
A8: 2009-12-11 | B8: Franks | C8: 149.95
A9: 2009-12-01 | B9: Gault | C9: 94.11
A10: 2009-12-11 | B10: Franks | C10: 136.14
A11: 2010-02-12 | B11: Pham | C11: 133.17
A12: 2009-12-07 | B12: Smith | C12: 80.81
A13: 2009-11-23 | B13: Smith | C13: 125.38
A14: 2009-11-23 | B14: Gault | C14: 78.95
A15: 2010-01-23 | B15: Smith | C15: 113.86
A16: 2010-01-21 | B16: Pham | C16: 139.38
A17: 2009-12-20 | B17: Gault | C17: 98.71
A18: 2009-12-07 | B18: Pham | C18: 76.65
A19: 2010-02-11 | B19: Gault | C19: 126.62
A20: 2010-01-13 | B20: Franks | C20: 107.9
A21: 2010-01-28 | B21: Gault | C21: 130.54
A22: 2010-01-25 | B22: Gault | C22: 140.71
A23: 2010-02-10 | B23: Sioux | C23: 108.72
A24: 2009-12-26 | B24: Smith | C24: 135.18
A25: 2009-12-14 | B25: Gault | C25: 142.55
A26: 2010-02-12 | B26: Smith | C26: 140.54
A27: 2010-01-19 | B27: Franks | C27: 75.04
A28: 2010-02-16 | B28: Pham | C28: 93.15
A29: 2010-01-07 | B29: Sioux | C29: 132.51
A30: 2010-01-16 | B30: Chin | C30: 85.14
A31: 2010-02-15 | B31: Franks | C31: 108.85
A32: 2009-12-13 | B32: Sioux | C32: 139.92
A33: 2010-01-04 | B33: Franks | C33: 104.35
A34: 2009-12-14 | B34: Gault | C34: 88.51
A35: 2010-02-01 | B35: Gault | C35: 136.76
A36: 2009-11-25 | B36: Pham | C36: 109.57
A37: 2010-02-07 | B37: Franks | C37: 125.81
A38: 2009-12-22 | B38: Pham | C38: 150.09
A39: 2009-12-07 | B39: Sioux | C39: 147.53
A40: 2009-12-12 | B40: Chin | C40: 102.17
A41: 2009-12-30 | B41: Smith | C41: 114.4
A42: 2009-12-27 | B42: Chin | C42: 129.65
A43: 2009-12-29 | B43: Chin | C43: 128.95
A44: 2010-01-05 | B44: Gault | C44: 121.33
A45: 2009-12-15 | B45: Pham | C45: 102.64
A46: 2009-12-01 | B46: Pham | C46: 132.12
A47: 2010-02-07 | B47: Franks | C47: 100.83
A48: 2009-11-26 | B48: Sioux | C48: 79.42
A49: 2010-01-04 | B49: Pham | C49: 100.09
A50: 2010-01-29 | B50: Franks | C50: 83.37
A51: 2010-01-19 | B51: Franks | C51: 89.11
A52: 2010-02-14 | B52: Smith | C52: 126.97
A53: 2009-12-03 | B53: Smith | C53: 154.31
A54: 2010-01-02 | B54: Sioux | C54: 76.59
A55: 2009-12-29 | B55: Gault | C55: 106.94
A56: 2009-11-26 | B56: Chin | C56: 129.86
A57: 2009-12-24 | B57: Pham | C57: 100.76
A58: 2009-12-10 | B58: Gault | C58: 124.59
A59: 2009-12-31 | B59: Smith | C59: 150.31
A60: 2009-12-16 | B60: Franks | C60: 119.78
A61: 2010-01-03 | B61: Pham | C61: 93.37
A62: 2009-12-26 | B62: Chin | C62: 87.06
A63: 2010-01-05 | B63: Smith | C63: 147.49
A64: 2009-12-19 | B64: Smith | C64: 136.94
A65: 2009-11-20 | B65: Gault | C65: 93.33
A66: 2010-01-03 | B66: Smith | C66: 128.97
A67: 2009-12-14 | B67: Smith | C67: 114.93
A68: 2010-01-01 | B68: Sioux | C68: 104.57
A69: 2009-11-27 | B69: Sioux | C69: 119.53
A70: 2010-01-01 | B70: Pham | C70: 127.99
A71: 2009-12-03 | B71: Smith | C71: 88.69
A72: 2009-11-25 | B72: Smith | C72: 115.67
A73: 2010-01-07 | B73: Pham | C73: 114.54
A74: 2010-02-02 | B74: Smith | C74: 128.15
A75: 2010-02-08 | B75: Gault | C75: 126.33
A76: 2010-01-13 | B76: Smith | C76: 112.03
A77: 2009-11-20 | B77: Smith | C77: 145.33
A78: 2009-12-23 | B78: Gault | C78: 109.7
A79: 2009-11-26 | B79: Sioux | C79: 139.13
A80: 2009-12-01 | B80: Sioux | C80: 112.5
A81: 2009-11-29 | B81: Pham | C81: 122.21
A82: 2010-01-13 | B82: Smith | C82: 135.77
A83: 2010-01-09 | B83: Pham | C83: 75.17
A84: 2010-01-30 | B84: Sioux | C84: 104.5
A85: 2010-02-04 | B85: Gault | C85: 86.1
A86: 2010-01-02 | B86: Sioux | C86: 143.85
A87: 2010-01-16 | B87: Gault | C87: 104.36
A88: 2009-12-28 | B88: Smith | C88: 135.02
A89: 2009-12-26 | B89: Pham | C89: 83.26
A90: 2009-11-28 | B90: Sioux | C90: 114.53
A91: 2010-02-02 | B91: Smith | C91: 117.63
A92: 2009-12-27 | B92: Gault | C92: 102.24
A93: 2010-02-01 | B93: Chin | C93: 139.21
A94: 2009-12-25 | B94: Smith | C94: 119.09
A95: 2010-01-17 | B95: Pham | C95: 134.11
A96: 2010-01-15 | B96: Sioux | C96: 96.17
A97: 2010-01-10 | B97: Smith | C97: 108.54
A98: 2010-01-05 | B98: Gault | C98: 78.89
A99: 2010-01-20 | B99: Pham | C99: 130.37
A100: 2009-12-08 | B100: Chin | C100: 130.5
A101: 2010-01-16 | B101: Franks | C101: 123.13
A102: 2009-12-19 | B102: Gault | C102: 131.04
A103: 2009-12-17 | B103: Pham | C103: 76.26
A104: 2010-01-19 | B104: Pham | C104: 78.46
A105: 2009-11-21 | B105: Gault | C105: 79.11
A106: 2010-02-18 | B106: Gault | C106: 75.35
C107: =SUBTOTAL(9,C6:C106) -> 6010.91

Sheet 666a
D1: Which Large? | E1: Which Employee?
A2: ="Large "&D2 -> Large 3 | D2: 3 | E2: Sioux
A3: Array on non-filtered
A4: Array on non-filtered
A6: Date | B6: Product | C6: SalesRep | D6: Sales
A7: 2012-09-24 | B7: Sunset | C7: Gault | D7: 315
A8: 2012-03-31 | B8: Carlota | C8: Smith | D8: 966
A9: 2012-11-29 | B9: Bellen | C9: Chin | D9: 988
A10: 2011-08-30 | B10: Sunset | C10: Gault | D10: 682
A11: 2012-08-19 | B11: Bellen | C11: Pham | D11: 682
A12: 2011-02-09 | B12: Sunset | C12: Chin | D12: 315
A13: 2012-05-17 | B13: Quad | C13: Sioux | D13: 621
A14: 2012-07-16 | B14: Sunshine | C14: Sioux | D14: 988
A15: 2011-09-21 | B15: Quad | C15: Sioux | D15: 751

Sheet 666an
D1: Which Large? | E1: Which Employee?
A2: ="Large "&D2 -> Large 2 | B2: =_xlfn.AGGREGATE(14,4,D7:D15,D2) -> 988 | D2: 2 | E2: Gault
A3: Array on non-filtered | B3: =_xlfn.AGGREGATE(14,6,D7:D15/(C7:C15=E2),D2) -> 315
A4: Array on non-filtered | B4: =LARGE(IF(C7:C15=E2,D7:D15),D2) -> 315 | D4: =LARGE(D7:D15,D2) -> 988
A6: Date | B6: Product | C6: SalesRep | D6: Sales
A7: 2012-09-24 | B7: Sunset | C7: Gault | D7: 315
A8: 2012-03-31 | B8: Carlota | C8: Smith | D8: 966
A9: 2012-11-29 | B9: Bellen | C9: Chin | D9: 988
A10: 2011-08-30 | B10: Sunset | C10: Gault | D10: 682
A11: 2012-08-19 | B11: Bellen | C11: Pham | D11: 682
A12: 2011-02-09 | B12: Sunset | C12: Chin | D12: 315
A13: 2012-05-17 | B13: Quad | C13: Sioux | D13: 621
A14: 2012-07-16 | B14: Sunshine | C14: Sioux | D14: 988
A15: 2011-09-21 | B15: Quad | C15: Sioux | D15: 751

Sheet 667
A1: Date | B1: SalesRep | C1: Sales | E1: SalesRep/Large | F1: 1 | G1: 2 | H1: 3 | I1: 4 | J1: 5
A2: 2009-12-25 | B2: Gault | C2: 94.69 | E2: Gault | L2: 0.00068 | M2: 0.00068 | N2: 0.00069
A3: 2009-12-15 | B3: Smith | C3: 130.2 | E3: Smith
A4: 2009-12-11 | B4: Franks | C4: 149.95 | E4: Franks
A5: 2009-12-01 | B5: Gault | C5: 94.11 | E5: Pham
A6: 2009-12-11 | B6: Franks | C6: 136.14 | E6: Sioux
A7: 2010-02-12 | B7: Pham | C7: 133.17 | E7: Chin
A8: 2009-12-07 | B8: Smith | C8: 80.81
A9: 2009-11-23 | B9: Smith | C9: 125.38 | E9: SalesRep/Large | F9: 1 | G9: 2 | H9: 3 | I9: 4 | J9: 5
A10: 2009-11-23 | B10: Gault | C10: 78.95 | E10: Gault | F10: =LARGE(IF($B$2:$B$102=$E10,$C$2:$C$102),F$9) -> 142.55 | G10: =LARGE(IF($B$2:$B$102=$E10,$C$2:$C$102),G$9) -> 140.71 | H10: =LARGE(IF($B$2:$B$102=$E10,$C$2:$C$102),H$9) -> 136.76 | I10: =LARGE(IF($B$2:$B$102=$E10,$C$2:$C$102),I$9) -> 131.04 | J10: =LARGE(IF($B$2:$B$102=$E10,$C$2:$C$102),J$9) -> 130.54 | L10: 0.00068 | M10: 0.00068 | N10: 0.00068
A11: 2010-01-23 | B11: Smith | C11: 113.86 | E11: Smith | F11: =LARGE(IF($B$2:$B$102=$E11,$C$2:$C$102),F$9) -> 154.31 | G11: =LARGE(IF($B$2:$B$102=$E11,$C$2:$C$102),G$9) -> 150.31 | H11: =LARGE(IF($B$2:$B$102=$E11,$C$2:$C$102),H$9) -> 147.49 | I11: =LARGE(IF($B$2:$B$102=$E11,$C$2:$C$102),I$9) -> 145.33 | J11: =LARGE(IF($B$2:$B$102=$E11,$C$2:$C$102),J$9) -> 140.54
A12: 2010-01-21 | B12: Pham | C12: 139.38 | E12: Franks | F12: =LARGE(IF($B$2:$B$102=$E12,$C$2:$C$102),F$9) -> 149.95 | G12: =LARGE(IF($B$2:$B$102=$E12,$C$2:$C$102),G$9) -> 136.14 | H12: =LARGE(IF($B$2:$B$102=$E12,$C$2:$C$102),H$9) -> 125.81 | I12: =LARGE(IF($B$2:$B$102=$E12,$C$2:$C$102),I$9) -> 123.13 | J12: =LARGE(IF($B$2:$B$102=$E12,$C$2:$C$102),J$9) -> 119.78
A13: 2009-12-20 | B13: Gault | C13: 98.71 | E13: Pham | F13: =LARGE(IF($B$2:$B$102=$E13,$C$2:$C$102),F$9) -> 150.09 | G13: =LARGE(IF($B$2:$B$102=$E13,$C$2:$C$102),G$9) -> 139.38 | H13: =LARGE(IF($B$2:$B$102=$E13,$C$2:$C$102),H$9) -> 134.11 | I13: =LARGE(IF($B$2:$B$102=$E13,$C$2:$C$102),I$9) -> 133.17 | J13: =LARGE(IF($B$2:$B$102=$E13,$C$2:$C$102),J$9) -> 132.12
A14: 2009-12-07 | B14: Pham | C14: 76.65 | E14: Sioux | F14: =LARGE(IF($B$2:$B$102=$E14,$C$2:$C$102),F$9) -> 147.53 | G14: =LARGE(IF($B$2:$B$102=$E14,$C$2:$C$102),G$9) -> 143.85 | H14: =LARGE(IF($B$2:$B$102=$E14,$C$2:$C$102),H$9) -> 139.92 | I14: =LARGE(IF($B$2:$B$102=$E14,$C$2:$C$102),I$9) -> 139.13 | J14: =LARGE(IF($B$2:$B$102=$E14,$C$2:$C$102),J$9) -> 132.51
A15: 2010-02-11 | B15: Gault | C15: 126.62 | E15: Chin | F15: =LARGE(IF($B$2:$B$102=$E15,$C$2:$C$102),F$9) -> 139.21 | G15: =LARGE(IF($B$2:$B$102=$E15,$C$2:$C$102),G$9) -> 130.5 | H15: =LARGE(IF($B$2:$B$102=$E15,$C$2:$C$102),H$9) -> 129.86 | I15: =LARGE(IF($B$2:$B$102=$E15,$C$2:$C$102),I$9) -> 129.65 | J15: =LARGE(IF($B$2:$B$102=$E15,$C$2:$C$102),J$9) -> 128.95
A16: 2010-01-13 | B16: Franks | C16: 107.9
A17: 2010-01-28 | B17: Gault | C17: 130.54
A18: 2010-01-25 | B18: Gault | C18: 140.71
A19: 2010-02-10 | B19: Sioux | C19: 108.72
A20: 2009-12-26 | B20: Smith | C20: 135.18
A21: 2009-12-14 | B21: Gault | C21: 142.55
A22: 2010-02-12 | B22: Smith | C22: 140.54
A23: 2010-01-19 | B23: Franks | C23: 75.04
A24: 2010-02-16 | B24: Pham | C24: 93.15
A25: 2010-01-07 | B25: Sioux | C25: 132.51
A26: 2010-01-16 | B26: Chin | C26: 85.14
A27: 2010-02-15 | B27: Franks | C27: 108.85
A28: 2009-12-13 | B28: Sioux | C28: 139.92
A29: 2010-01-04 | B29: Franks | C29: 104.35
A30: 2009-12-14 | B30: Gault | C30: 88.51
A31: 2010-02-01 | B31: Gault | C31: 136.76
A32: 2009-11-25 | B32: Pham | C32: 109.57
A33: 2010-02-07 | B33: Franks | C33: 125.81
A34: 2009-12-22 | B34: Pham | C34: 150.09
A35: 2009-12-07 | B35: Sioux | C35: 147.53
A36: 2009-12-12 | B36: Chin | C36: 102.17
A37: 2009-12-30 | B37: Smith | C37: 114.4
A38: 2009-12-27 | B38: Chin | C38: 129.65
A39: 2009-12-29 | B39: Chin | C39: 128.95
A40: 2010-01-05 | B40: Gault | C40: 121.33
A41: 2009-12-15 | B41: Pham | C41: 102.64
A42: 2009-12-01 | B42: Pham | C42: 132.12
A43: 2010-02-07 | B43: Franks | C43: 100.83
A44: 2009-11-26 | B44: Sioux | C44: 79.42
A45: 2010-01-04 | B45: Pham | C45: 100.09
A46: 2010-01-29 | B46: Franks | C46: 83.37
A47: 2010-01-19 | B47: Franks | C47: 89.11
A48: 2010-02-14 | B48: Smith | C48: 126.97
A49: 2009-12-03 | B49: Smith | C49: 154.31
A50: 2010-01-02 | B50: Sioux | C50: 76.59
A51: 2009-12-29 | B51: Gault | C51: 106.94
A52: 2009-11-26 | B52: Chin | C52: 129.86
A53: 2009-12-24 | B53: Pham | C53: 100.76
A54: 2009-12-10 | B54: Gault | C54: 124.59
A55: 2009-12-31 | B55: Smith | C55: 150.31
A56: 2009-12-16 | B56: Franks | C56: 119.78
A57: 2010-01-03 | B57: Pham | C57: 93.37
A58: 2009-12-26 | B58: Chin | C58: 87.06
A59: 2010-01-05 | B59: Smith | C59: 147.49
A60: 2009-12-19 | B60: Smith | C60: 136.94
A61: 2009-11-20 | B61: Gault | C61: 93.33
A62: 2010-01-03 | B62: Smith | C62: 128.97
A63: 2009-12-14 | B63: Smith | C63: 114.93
A64: 2010-01-01 | B64: Sioux | C64: 104.57
A65: 2009-11-27 | B65: Sioux | C65: 119.53
A66: 2010-01-01 | B66: Pham | C66: 127.99
A67: 2009-12-03 | B67: Smith | C67: 88.69
A68: 2009-11-25 | B68: Smith | C68: 115.67
A69: 2010-01-07 | B69: Pham | C69: 114.54
A70: 2010-02-02 | B70: Smith | C70: 128.15
A71: 2010-02-08 | B71: Gault | C71: 126.33
A72: 2010-01-13 | B72: Smith | C72: 112.03
A73: 2009-11-20 | B73: Smith | C73: 145.33
A74: 2009-12-23 | B74: Gault | C74: 109.7
A75: 2009-11-26 | B75: Sioux | C75: 139.13
A76: 2009-12-01 | B76: Sioux | C76: 112.5
A77: 2009-11-29 | B77: Pham | C77: 122.21
A78: 2010-01-13 | B78: Smith | C78: 135.77
A79: 2010-01-09 | B79: Pham | C79: 75.17
A80: 2010-01-30 | B80: Sioux | C80: 104.5
A81: 2010-02-04 | B81: Gault | C81: 86.1
A82: 2010-01-02 | B82: Sioux | C82: 143.85
A83: 2010-01-16 | B83: Gault | C83: 104.36
A84: 2009-12-28 | B84: Smith | C84: 135.02
A85: 2009-12-26 | B85: Pham | C85: 83.26
A86: 2009-11-28 | B86: Sioux | C86: 114.53
A87: 2010-02-02 | B87: Smith | C87: 117.63
A88: 2009-12-27 | B88: Gault | C88: 102.24
A89: 2010-02-01 | B89: Chin | C89: 139.21
A90: 2009-12-25 | B90: Smith | C90: 119.09
A91: 2010-01-17 | B91: Pham | C91: 134.11
A92: 2010-01-15 | B92: Sioux | C92: 96.17
A93: 2010-01-10 | B93: Smith | C93: 108.54
A94: 2010-01-05 | B94: Gault | C94: 78.89
A95: 2010-01-20 | B95: Pham | C95: 130.37
A96: 2009-12-08 | B96: Chin | C96: 130.5
A97: 2010-01-16 | B97: Franks | C97: 123.13
A98: 2009-12-19 | B98: Gault | C98: 131.04
A99: 2009-12-17 | B99: Pham | C99: 76.26
A100: 2010-01-19 | B100: Pham | C100: 78.46
A101: 2009-11-21 | B101: Gault | C101: 79.11
A102: 2010-02-18 | B102: Gault | C102: 75.35

Sheet 667an
A1: Date | B1: SalesRep | C1: Sales | E1: SalesRep/Large | F1: 1 | G1: 2 | H1: 3 | I1: 4 | J1: 5
A2: 2009-12-25 | B2: Gault | C2: 94.69 | E2: Gault | F2: =_xlfn.AGGREGATE(14,6,$C$2:$C$102/($B$2:$B$102=$E2),F$1) -> 142.55 | G2: =_xlfn.AGGREGATE(14,6,$C$2:$C$102/($B$2:$B$102=$E2),G$1) -> 140.71 | H2: 136.76 | I2: 131.04 | J2: 130.54 | L2: 0.00068 | M2: 0.00068 | N2: 0.00069
A3: 2009-12-15 | B3: Smith | C3: 130.2 | E3: Smith | F3: =_xlfn.AGGREGATE(14,6,$C$2:$C$102/($B$2:$B$102=$E3),F$1) -> 154.31 | G3: 150.31 | H3: 147.49 | I3: 145.33 | J3: 140.54
A4: 2009-12-11 | B4: Franks | C4: 149.95 | E4: Franks | F4: 149.95 | G4: 136.14 | H4: 125.81 | I4: 123.13 | J4: 119.78
A5: 2009-12-01 | B5: Gault | C5: 94.11 | E5: Pham | F5: 150.09 | G5: 139.38 | H5: 134.11 | I5: 133.17 | J5: 132.12
A6: 2009-12-11 | B6: Franks | C6: 136.14 | E6: Sioux | F6: 147.53 | G6: 143.85 | H6: 139.92 | I6: 139.13 | J6: 132.51
A7: 2010-02-12 | B7: Pham | C7: 133.17 | E7: Chin | F7: 139.21 | G7: 130.5 | H7: 129.86 | I7: 129.65 | J7: 128.95
A8: 2009-12-07 | B8: Smith | C8: 80.81
A9: 2009-11-23 | B9: Smith | C9: 125.38 | E9: SalesRep/Large | F9: 1 | G9: 2 | H9: 3 | I9: 4 | J9: 5
A10: 2009-11-23 | B10: Gault | C10: 78.95 | E10: Gault | F10: =LARGE(IF($B$2:$B$102=$E10,$C$2:$C$102),F$9) -> 142.55 | G10: =LARGE(IF($B$2:$B$102=$E10,$C$2:$C$102),G$9) -> 140.71 | H10: =LARGE(IF($B$2:$B$102=$E10,$C$2:$C$102),H$9) -> 136.76 | I10: =LARGE(IF($B$2:$B$102=$E10,$C$2:$C$102),I$9) -> 131.04 | J10: =LARGE(IF($B$2:$B$102=$E10,$C$2:$C$102),J$9) -> 130.54 | L10: 0.00068 | M10: 0.00068 | N10: 0.00068
A11: 2010-01-23 | B11: Smith | C11: 113.86 | E11: Smith | F11: =LARGE(IF($B$2:$B$102=$E11,$C$2:$C$102),F$9) -> 154.31 | G11: =LARGE(IF($B$2:$B$102=$E11,$C$2:$C$102),G$9) -> 150.31 | H11: =LARGE(IF($B$2:$B$102=$E11,$C$2:$C$102),H$9) -> 147.49 | I11: =LARGE(IF($B$2:$B$102=$E11,$C$2:$C$102),I$9) -> 145.33 | J11: =LARGE(IF($B$2:$B$102=$E11,$C$2:$C$102),J$9) -> 140.54
A12: 2010-01-21 | B12: Pham | C12: 139.38 | E12: Franks | F12: =LARGE(IF($B$2:$B$102=$E12,$C$2:$C$102),F$9) -> 149.95 | G12: =LARGE(IF($B$2:$B$102=$E12,$C$2:$C$102),G$9) -> 136.14 | H12: =LARGE(IF($B$2:$B$102=$E12,$C$2:$C$102),H$9) -> 125.81 | I12: =LARGE(IF($B$2:$B$102=$E12,$C$2:$C$102),I$9) -> 123.13 | J12: =LARGE(IF($B$2:$B$102=$E12,$C$2:$C$102),J$9) -> 119.78
A13: 2009-12-20 | B13: Gault | C13: 98.71 | E13: Pham | F13: =LARGE(IF($B$2:$B$102=$E13,$C$2:$C$102),F$9) -> 150.09 | G13: =LARGE(IF($B$2:$B$102=$E13,$C$2:$C$102),G$9) -> 139.38 | H13: =LARGE(IF($B$2:$B$102=$E13,$C$2:$C$102),H$9) -> 134.11 | I13: =LARGE(IF($B$2:$B$102=$E13,$C$2:$C$102),I$9) -> 133.17 | J13: =LARGE(IF($B$2:$B$102=$E13,$C$2:$C$102),J$9) -> 132.12
A14: 2009-12-07 | B14: Pham | C14: 76.65 | E14: Sioux | F14: =LARGE(IF($B$2:$B$102=$E14,$C$2:$C$102),F$9) -> 147.53 | G14: =LARGE(IF($B$2:$B$102=$E14,$C$2:$C$102),G$9) -> 143.85 | H14: =LARGE(IF($B$2:$B$102=$E14,$C$2:$C$102),H$9) -> 139.92 | I14: =LARGE(IF($B$2:$B$102=$E14,$C$2:$C$102),I$9) -> 139.13 | J14: =LARGE(IF($B$2:$B$102=$E14,$C$2:$C$102),J$9) -> 132.51
A15: 2010-02-11 | B15: Gault | C15: 126.62 | E15: Chin | F15: =LARGE(IF($B$2:$B$102=$E15,$C$2:$C$102),F$9) -> 139.21 | G15: =LARGE(IF($B$2:$B$102=$E15,$C$2:$C$102),G$9) -> 130.5 | H15: =LARGE(IF($B$2:$B$102=$E15,$C$2:$C$102),H$9) -> 129.86 | I15: =LARGE(IF($B$2:$B$102=$E15,$C$2:$C$102),I$9) -> 129.65 | J15: =LARGE(IF($B$2:$B$102=$E15,$C$2:$C$102),J$9) -> 128.95
A16: 2010-01-13 | B16: Franks | C16: 107.9
A17: 2010-01-28 | B17: Gault | C17: 130.54
A18: 2010-01-25 | B18: Gault | C18: 140.71
A19: 2010-02-10 | B19: Sioux | C19: 108.72
A20: 2009-12-26 | B20: Smith | C20: 135.18
A21: 2009-12-14 | B21: Gault | C21: 142.55
A22: 2010-02-12 | B22: Smith | C22: 140.54
A23: 2010-01-19 | B23: Franks | C23: 75.04
A24: 2010-02-16 | B24: Pham | C24: 93.15
A25: 2010-01-07 | B25: Sioux | C25: 132.51
A26: 2010-01-16 | B26: Chin | C26: 85.14
A27: 2010-02-15 | B27: Franks | C27: 108.85
A28: 2009-12-13 | B28: Sioux | C28: 139.92
A29: 2010-01-04 | B29: Franks | C29: 104.35
A30: 2009-12-14 | B30: Gault | C30: 88.51
A31: 2010-02-01 | B31: Gault | C31: 136.76
A32: 2009-11-25 | B32: Pham | C32: 109.57
A33: 2010-02-07 | B33: Franks | C33: 125.81
A34: 2009-12-22 | B34: Pham | C34: 150.09
A35: 2009-12-07 | B35: Sioux | C35: 147.53
A36: 2009-12-12 | B36: Chin | C36: 102.17
A37: 2009-12-30 | B37: Smith | C37: 114.4
A38: 2009-12-27 | B38: Chin | C38: 129.65
A39: 2009-12-29 | B39: Chin | C39: 128.95
A40: 2010-01-05 | B40: Gault | C40: 121.33
A41: 2009-12-15 | B41: Pham | C41: 102.64
A42: 2009-12-01 | B42: Pham | C42: 132.12
A43: 2010-02-07 | B43: Franks | C43: 100.83
A44: 2009-11-26 | B44: Sioux | C44: 79.42
A45: 2010-01-04 | B45: Pham | C45: 100.09
A46: 2010-01-29 | B46: Franks | C46: 83.37
A47: 2010-01-19 | B47: Franks | C47: 89.11
A48: 2010-02-14 | B48: Smith | C48: 126.97
A49: 2009-12-03 | B49: Smith | C49: 154.31
A50: 2010-01-02 | B50: Sioux | C50: 76.59
A51: 2009-12-29 | B51: Gault | C51: 106.94
A52: 2009-11-26 | B52: Chin | C52: 129.86
A53: 2009-12-24 | B53: Pham | C53: 100.76
A54: 2009-12-10 | B54: Gault | C54: 124.59
A55: 2009-12-31 | B55: Smith | C55: 150.31
A56: 2009-12-16 | B56: Franks | C56: 119.78
A57: 2010-01-03 | B57: Pham | C57: 93.37
A58: 2009-12-26 | B58: Chin | C58: 87.06
A59: 2010-01-05 | B59: Smith | C59: 147.49
A60: 2009-12-19 | B60: Smith | C60: 136.94
A61: 2009-11-20 | B61: Gault | C61: 93.33
A62: 2010-01-03 | B62: Smith | C62: 128.97
A63: 2009-12-14 | B63: Smith | C63: 114.93
A64: 2010-01-01 | B64: Sioux | C64: 104.57
A65: 2009-11-27 | B65: Sioux | C65: 119.53
A66: 2010-01-01 | B66: Pham | C66: 127.99
A67: 2009-12-03 | B67: Smith | C67: 88.69
A68: 2009-11-25 | B68: Smith | C68: 115.67
A69: 2010-01-07 | B69: Pham | C69: 114.54
A70: 2010-02-02 | B70: Smith | C70: 128.15
A71: 2010-02-08 | B71: Gault | C71: 126.33
A72: 2010-01-13 | B72: Smith | C72: 112.03
A73: 2009-11-20 | B73: Smith | C73: 145.33
A74: 2009-12-23 | B74: Gault | C74: 109.7
A75: 2009-11-26 | B75: Sioux | C75: 139.13
A76: 2009-12-01 | B76: Sioux | C76: 112.5
A77: 2009-11-29 | B77: Pham | C77: 122.21
A78: 2010-01-13 | B78: Smith | C78: 135.77
A79: 2010-01-09 | B79: Pham | C79: 75.17
A80: 2010-01-30 | B80: Sioux | C80: 104.5
A81: 2010-02-04 | B81: Gault | C81: 86.1
A82: 2010-01-02 | B82: Sioux | C82: 143.85
A83: 2010-01-16 | B83: Gault | C83: 104.36
A84: 2009-12-28 | B84: Smith | C84: 135.02
A85: 2009-12-26 | B85: Pham | C85: 83.26
A86: 2009-11-28 | B86: Sioux | C86: 114.53
A87: 2010-02-02 | B87: Smith | C87: 117.63
A88: 2009-12-27 | B88: Gault | C88: 102.24
A89: 2010-02-01 | B89: Chin | C89: 139.21
A90: 2009-12-25 | B90: Smith | C90: 119.09
A91: 2010-01-17 | B91: Pham | C91: 134.11
A92: 2010-01-15 | B92: Sioux | C92: 96.17
A93: 2010-01-10 | B93: Smith | C93: 108.54
A94: 2010-01-05 | B94: Gault | C94: 78.89
A95: 2010-01-20 | B95: Pham | C95: 130.37
A96: 2009-12-08 | B96: Chin | C96: 130.5
A97: 2010-01-16 | B97: Franks | C97: 123.13
A98: 2009-12-19 | B98: Gault | C98: 131.04
A99: 2009-12-17 | B99: Pham | C99: 76.26
A100: 2010-01-19 | B100: Pham | C100: 78.46
A101: 2009-11-21 | B101: Gault | C101: 79.11
A102: 2010-02-18 | B102: Gault | C102: 75.35

Sheet 668
A1: School | B1: CPA Score | D1: Top 10% Percentile | G1: School | H1: =TEXT(E2,"0,0%")&" rank" -> 90% rank
A2: s4 | B2: 95 | E2: 0.9 | G2: s1
A3: s2 | B3: 45 | G3: s2
A4: s1 | B4: 64 | G4: s3
A5: s2 | B5: 24 | G5: s4
A6: s4 | B6: 4
A7: s1 | B7: 61 | G7: School | H7: =TEXT(E2,"0,0%")&" rank" -> 90% rank
A8: s2 | B8: 12 | G8: s1 | H8: =_xlfn.PERCENTILE.EXC(IF($A$2:$A$102=G8,$B$2:$B$102),E$2) -> 95
A9: s4 | B9: 84 | G9: s2 | H9: =_xlfn.PERCENTILE.EXC(IF($A$2:$A$102=G9,$B$2:$B$102),E$2) -> 93.9
A10: s3 | B10: 44 | G10: s3 | H10: =_xlfn.PERCENTILE.EXC(IF($A$2:$A$102=G10,$B$2:$B$102),E$2) -> 96.2
A11: s4 | B11: 53 | G11: s4 | H11: =_xlfn.PERCENTILE.EXC(IF($A$2:$A$102=G11,$B$2:$B$102),E$2) -> 85.6
A12: s1 | B12: 29
A13: s2 | B13: 97
A14: s1 | B14: 52
A15: s4 | B15: 30
A16: s1 | B16: 93
A17: s3 | B17: 23
A18: s3 | B18: 89
A19: s1 | B19: 16
A20: s2 | B20: 62
A21: s2 | B21: 42
A22: s4 | B22: 92
A23: s4 | B23: 51
A24: s1 | B24: 22
A25: s3 | B25: 24
A26: s4 | B26: 78
A27: s1 | B27: 93
A28: s3 | B28: 14
A29: s3 | B29: 3
A30: s4 | B30: 61
A31: s3 | B31: 74
A32: s4 | B32: 35
A33: s2 | B33: 93
A34: s1 | B34: 97
A35: s1 | B35: 8
A36: s3 | B36: 88
A37: s4 | B37: 39
A38: s4 | B38: 52
A39: s2 | B39: 61
A40: s4 | B40: 28
A41: s4 | B41: 20
A42: s2 | B42: 24
A43: s3 | B43: 14
A44: s3 | B44: 55
A45: s2 | B45: 94
A46: s1 | B46: 24
A47: s4 | B47: 16
A48: s4 | B48: 42
A49: s3 | B49: 99
A50: s3 | B50: 51
A51: s1 | B51: 8
A52: s3 | B52: 54
A53: s2 | B53: 60
A54: s1 | B54: 34
A55: s4 | B55: 67
A56: s2 | B56: 91
A57: s1 | B57: 20
A58: s1 | B58: 12
A59: s2 | B59: 1
A60: s4 | B60: 8
A61: s2 | B61: 78
A62: s1 | B62: 6
A63: s1 | B63: 29
A64: s1 | B64: 95
A65: s4 | B65: 39
A66: s2 | B66: 35
A67: s1 | B67: 21
A68: s3 | B68: 57
A69: s4 | B69: 59
A70: s4 | B70: 43
A71: s1 | B71: 11
A72: s1 | B72: 46
A73: s1 | B73: 96
A74: s4 | B74: 52
A75: s3 | B75: 42
A76: s4 | B76: 73
A77: s1 | B77: 21
A78: s4 | B78: 83
A79: s3 | B79: 67
A80: s1 | B80: 7
A81: s4 | B81: 60
A82: s2 | B82: 50
A83: s1 | B83: 53
A84: s1 | B84: 45
A85: s2 | B85: 2
A86: s3 | B86: 71
A87: s4 | B87: 75
A88: s3 | B88: 48
A89: s2 | B89: 30
A90: s3 | B90: 67
A91: s3 | B91: 98
A92: s1 | B92: 90
A93: s3 | B93: 63
A94: s3 | B94: 32
A95: s1 | B95: 61
A96: s2 | B96: 71
A97: s4 | B97: 52
A98: s3 | B98: 95
A99: s1 | B99: 29
A100: s2 | B100: 83
A101: s3 | B101: 23
A102: s3 | B102: 24

Sheet 668an
A1: School | B1: CPA Score | D1: Top 10% Percentile | G1: School | H1: =TEXT(E2,"0,0%")&" rank" -> 90% rank
A2: s4 | B2: 95 | D2: =_xlfn.AGGREGATE(18,4,B2:B102,E2) -> 93 | E2: 0.9 | G2: s1 | H2: =_xlfn.AGGREGATE(18,6,$B$2:$B$102/($A$2:$A$102=G2),E$2) -> 95
A3: s2 | B3: 45 | D3: =_xlfn.PERCENTILE.EXC(B2:B102,E2) -> 93 | G3: s2 | H3: =_xlfn.AGGREGATE(18,6,$B$2:$B$102/($A$2:$A$102=G3),E$2) -> 93.9
A4: s1 | B4: 64 | G4: s3 | H4: 96.2
A5: s2 | B5: 24 | G5: s4 | H5: 85.6
A6: s4 | B6: 4
A7: s1 | B7: 61 | G7: School | H7: =TEXT(E2,"0,0%")&" rank" -> 90% rank
A8: s2 | B8: 12 | G8: s1 | H8: =_xlfn.PERCENTILE.EXC(IF($A$2:$A$102=G8,$B$2:$B$102),E$2) -> 95
A9: s4 | B9: 84 | G9: s2 | H9: =_xlfn.PERCENTILE.EXC(IF($A$2:$A$102=G9,$B$2:$B$102),E$2) -> 93.9
A10: s3 | B10: 44 | G10: s3 | H10: =_xlfn.PERCENTILE.EXC(IF($A$2:$A$102=G10,$B$2:$B$102),E$2) -> 96.2
A11: s4 | B11: 53 | G11: s4 | H11: =_xlfn.PERCENTILE.EXC(IF($A$2:$A$102=G11,$B$2:$B$102),E$2) -> 85.6
A12: s1 | B12: 29
A13: s2 | B13: 97
A14: s1 | B14: 52
A15: s4 | B15: 30
A16: s1 | B16: 93
A17: s3 | B17: 23
A18: s3 | B18: 89
A19: s1 | B19: 16
A20: s2 | B20: 62
A21: s2 | B21: 42
A22: s4 | B22: 92
A23: s4 | B23: 51
A24: s1 | B24: 22
A25: s3 | B25: 24
A26: s4 | B26: 78
A27: s1 | B27: 93
A28: s3 | B28: 14
A29: s3 | B29: 3
A30: s4 | B30: 61
A31: s3 | B31: 74
A32: s4 | B32: 35
A33: s2 | B33: 93
A34: s1 | B34: 97
A35: s1 | B35: 8
A36: s3 | B36: 88
A37: s4 | B37: 39
A38: s4 | B38: 52
A39: s2 | B39: 61
A40: s4 | B40: 28
A41: s4 | B41: 20
A42: s2 | B42: 24
A43: s3 | B43: 14
A44: s3 | B44: 55
A45: s2 | B45: 94
A46: s1 | B46: 24
A47: s4 | B47: 16
A48: s4 | B48: 42
A49: s3 | B49: 99
A50: s3 | B50: 51
A51: s1 | B51: 8
A52: s3 | B52: 54
A53: s2 | B53: 60
A54: s1 | B54: 34
A55: s4 | B55: 67
A56: s2 | B56: 91
A57: s1 | B57: 20
A58: s1 | B58: 12
A59: s2 | B59: 1
A60: s4 | B60: 8
A61: s2 | B61: 78
A62: s1 | B62: 6
A63: s1 | B63: 29
A64: s1 | B64: 95
A65: s4 | B65: 39
A66: s2 | B66: 35
A67: s1 | B67: 21
A68: s3 | B68: 57
A69: s4 | B69: 59
A70: s4 | B70: 43
A71: s1 | B71: 11
A72: s1 | B72: 46
A73: s1 | B73: 96
A74: s4 | B74: 52
A75: s3 | B75: 42
A76: s4 | B76: 73
A77: s1 | B77: 21
A78: s4 | B78: 83
A79: s3 | B79: 67
A80: s1 | B80: 7
A81: s4 | B81: 60
A82: s2 | B82: 50
A83: s1 | B83: 53
A84: s1 | B84: 45
A85: s2 | B85: 2
A86: s3 | B86: 71
A87: s4 | B87: 75
A88: s3 | B88: 48
A89: s2 | B89: 30
A90: s3 | B90: 67
A91: s3 | B91: 98
A92: s1 | B92: 90
A93: s3 | B93: 63
A94: s3 | B94: 32
A95: s1 | B95: 61
A96: s2 | B96: 71
A97: s4 | B97: 52
A98: s3 | B98: 95
A99: s1 | B99: 29
A100: s2 | B100: 83
A101: s3 | B101: 23
A102: s3 | B102: 24

Sheet 669
A11: No 3-D cell references

Sheet 669an
A11: No 3-D cell references
A12: =_xlfn.AGGREGATE(9,4,'T(1):T(3)'!B2) -> 

Sheet T(1)
B1: Jan | C1: Feb | D1: Mar
A2: Pro 1 | B2: =INT(RAND()*25) -> 5 | C2: 20 | D2: 6
A3: Pro 2 | B3: 16 | C3: 13 | D3: 20
A4: Pro 3 | B4: 20 | C4: 19 | D4: 9
A5: Pro 4 | B5: 8 | C5: 7 | D5: 10

Sheet T(2)
B1: Jan | C1: Feb | D1: Mar
A2: Pro 1 | B2: =INT(RAND()*25) -> 9 | C2: 6 | D2: 21
A3: Pro 2 | B3: 13 | C3: 11 | D3: 19
A4: Pro 3 | B4: 21 | C4: 15 | D4: 15
A5: Pro 4 | B5: 16 | C5: 6 | D5: 14

Sheet T(3)
B1: Jan | C1: Feb | D1: Mar
A2: Pro 1 | B2: =INT(RAND()*25) -> 12 | C2: 18 | D2: 20
A3: Pro 2 | B3: 8 | C3: 10 | D3: 15
A4: Pro 3 | B4: 20 | C4: 2 | D4: 16
A5: Pro 4 | B5: 3 | C5: 17 | D5: 20

Sheet 670
A1: Date | B1: SalesRep | C1: Sales | E1: Month | F1: SalesRep | G1: Count | I1: SalesRep
A2: 2009-12-25 | B2: Gault | C2: 94.69 | F2: Gault | G2: =COUNTIF($A$2:$C$102,F2) -> 23 | I2: Gault
A3: 2009-12-15 | B3: Smith | C3: 130.2 | I3: Smith
A4: 2009-12-11 | B4: Franks | C4: 149.95 | E4: Date | F4: SalesRep | G4: Sales | I4: Franks | K4: Date | L4: SalesRep | M4: Sales
A5: 2009-12-01 | B5: Gault | C5: 94.11 | I5: Pham | K5: =IF(ROWS(K$5:K5)>$G$2,"",INDEX(A$2:A$102,SMALL(IF($B$2:$B$102=$F$2,ROW($B$2:$B$102)-ROW($B$2)+1),ROWS(K$5:K5)))) -> 2009-12-25 | L5: =IF(ROWS(L$5:L5)>$G$2,"",INDEX(B$2:B$102,SMALL(IF($B$2:$B$102=$F$2,ROW($B$2:$B$102)-ROW($B$2)+1),ROWS(L$5:L5)))) -> Gault | M5: =IF(ROWS(M$5:M5)>$G$2,"",INDEX(C$2:C$102,SMALL(IF($B$2:$B$102=$F$2,ROW($B$2:$B$102)-ROW($B$2)+1),ROWS(M$5:M5)))) -> 94.69
A6: 2009-12-11 | B6: Franks | C6: 136.14 | I6: Sioux | K6: =IF(ROWS(K$5:K6)>$G$2,"",INDEX(A$2:A$102,SMALL(IF($B$2:$B$102=$F$2,ROW($B$2:$B$102)-ROW($B$2)+1),ROWS(K$5:K6)))) -> 2009-12-01 | L6: =IF(ROWS(L$5:L6)>$G$2,"",INDEX(B$2:B$102,SMALL(IF($B$2:$B$102=$F$2,ROW($B$2:$B$102)-ROW($B$2)+1),ROWS(L$5:L6)))) -> Gault | M6: =IF(ROWS(M$5:M6)>$G$2,"",INDEX(C$2:C$102,SMALL(IF($B$2:$B$102=$F$2,ROW($B$2:$B$102)-ROW($B$2)+1),ROWS(M$5:M6)))) -> 94.11
A7: 2010-02-12 | B7: Pham | C7: 133.17 | I7: Chin | K7: =IF(ROWS(K$5:K7)>$G$2,"",INDEX(A$2:A$102,SMALL(IF($B$2:$B$102=$F$2,ROW($B$2:$B$102)-ROW($B$2)+1),ROWS(K$5:K7)))) -> 2009-11-23 | L7: =IF(ROWS(L$5:L7)>$G$2,"",INDEX(B$2:B$102,SMALL(IF($B$2:$B$102=$F$2,ROW($B$2:$B$102)-ROW($B$2)+1),ROWS(L$5:L7)))) -> Gault | M7: =IF(ROWS(M$5:M7)>$G$2,"",INDEX(C$2:C$102,SMALL(IF($B$2:$B$102=$F$2,ROW($B$2:$B$102)-ROW($B$2)+1),ROWS(M$5:M7)))) -> 78.95
A8: 2009-12-07 | B8: Smith | C8: 80.81 | K8: =IF(ROWS(K$5:K8)>$G$2,"",INDEX(A$2:A$102,SMALL(IF($B$2:$B$102=$F$2,ROW($B$2:$B$102)-ROW($B$2)+1),ROWS(K$5:K8)))) -> 2009-12-20 | L8: =IF(ROWS(L$5:L8)>$G$2,"",INDEX(B$2:B$102,SMALL(IF($B$2:$B$102=$F$2,ROW($B$2:$B$102)-ROW($B$2)+1),ROWS(L$5:L8)))) -> Gault | M8: =IF(ROWS(M$5:M8)>$G$2,"",INDEX(C$2:C$102,SMALL(IF($B$2:$B$102=$F$2,ROW($B$2:$B$102)-ROW($B$2)+1),ROWS(M$5:M8)))) -> 98.71
A9: 2009-11-23 | B9: Smith | C9: 125.38 | K9: =IF(ROWS(K$5:K9)>$G$2,"",INDEX(A$2:A$102,SMALL(IF($B$2:$B$102=$F$2,ROW($B$2:$B$102)-ROW($B$2)+1),ROWS(K$5:K9)))) -> 2010-02-11 | L9: =IF(ROWS(L$5:L9)>$G$2,"",INDEX(B$2:B$102,SMALL(IF($B$2:$B$102=$F$2,ROW($B$2:$B$102)-ROW($B$2)+1),ROWS(L$5:L9)))) -> Gault | M9: =IF(ROWS(M$5:M9)>$G$2,"",INDEX(C$2:C$102,SMALL(IF($B$2:$B$102=$F$2,ROW($B$2:$B$102)-ROW($B$2)+1),ROWS(M$5:M9)))) -> 126.62
A10: 2009-11-23 | B10: Gault | C10: 78.95 | K10: =IF(ROWS(K$5:K10)>$G$2,"",INDEX(A$2:A$102,SMALL(IF($B$2:$B$102=$F$2,ROW($B$2:$B$102)-ROW($B$2)+1),ROWS(K$5:K10)))) -> 2010-01-28 | L10: =IF(ROWS(L$5:L10)>$G$2,"",INDEX(B$2:B$102,SMALL(IF($B$2:$B$102=$F$2,ROW($B$2:$B$102)-ROW($B$2)+1),ROWS(L$5:L10)))) -> Gault | M10: =IF(ROWS(M$5:M10)>$G$2,"",INDEX(C$2:C$102,SMALL(IF($B$2:$B$102=$F$2,ROW($B$2:$B$102)-ROW($B$2)+1),ROWS(M$5:M10)))) -> 130.54
A11: 2010-01-23 | B11: Smith | C11: 113.86 | K11: =IF(ROWS(K$5:K11)>$G$2,"",INDEX(A$2:A$102,SMALL(IF($B$2:$B$102=$F$2,ROW($B$2:$B$102)-ROW($B$2)+1),ROWS(K$5:K11)))) -> 2010-01-25 | L11: =IF(ROWS(L$5:L11)>$G$2,"",INDEX(B$2:B$102,SMALL(IF($B$2:$B$102=$F$2,ROW($B$2:$B$102)-ROW($B$2)+1),ROWS(L$5:L11)))) -> Gault | M11: =IF(ROWS(M$5:M11)>$G$2,"",INDEX(C$2:C$102,SMALL(IF($B$2:$B$102=$F$2,ROW($B$2:$B$102)-ROW($B$2)+1),ROWS(M$5:M11)))) -> 140.71
A12: 2010-01-21 | B12: Pham | C12: 139.38 | K12: =IF(ROWS(K$5:K12)>$G$2,"",INDEX(A$2:A$102,SMALL(IF($B$2:$B$102=$F$2,ROW($B$2:$B$102)-ROW($B$2)+1),ROWS(K$5:K12)))) -> 2009-12-14 | L12: =IF(ROWS(L$5:L12)>$G$2,"",INDEX(B$2:B$102,SMALL(IF($B$2:$B$102=$F$2,ROW($B$2:$B$102)-ROW($B$2)+1),ROWS(L$5:L12)))) -> Gault | M12: =IF(ROWS(M$5:M12)>$G$2,"",INDEX(C$2:C$102,SMALL(IF($B$2:$B$102=$F$2,ROW($B$2:$B$102)-ROW($B$2)+1),ROWS(M$5:M12)))) -> 142.55
A13: 2009-12-20 | B13: Gault | C13: 98.71 | K13: =IF(ROWS(K$5:K13)>$G$2,"",INDEX(A$2:A$102,SMALL(IF($B$2:$B$102=$F$2,ROW($B$2:$B$102)-ROW($B$2)+1),ROWS(K$5:K13)))) -> 2009-12-14 | L13: =IF(ROWS(L$5:L13)>$G$2,"",INDEX(B$2:B$102,SMALL(IF($B$2:$B$102=$F$2,ROW($B$2:$B$102)-ROW($B$2)+1),ROWS(L$5:L13)))) -> Gault | M13: =IF(ROWS(M$5:M13)>$G$2,"",INDEX(C$2:C$102,SMALL(IF($B$2:$B$102=$F$2,ROW($B$2:$B$102)-ROW($B$2)+1),ROWS(M$5:M13)))) -> 88.51
A14: 2009-12-07 | B14: Pham | C14: 76.65 | K14: =IF(ROWS(K$5:K14)>$G$2,"",INDEX(A$2:A$102,SMALL(IF($B$2:$B$102=$F$2,ROW($B$2:$B$102)-ROW($B$2)+1),ROWS(K$5:K14)))) -> 2010-02-01 | L14: =IF(ROWS(L$5:L14)>$G$2,"",INDEX(B$2:B$102,SMALL(IF($B$2:$B$102=$F$2,ROW($B$2:$B$102)-ROW($B$2)+1),ROWS(L$5:L14)))) -> Gault | M14: =IF(ROWS(M$5:M14)>$G$2,"",INDEX(C$2:C$102,SMALL(IF($B$2:$B$102=$F$2,ROW($B$2:$B$102)-ROW($B$2)+1),ROWS(M$5:M14)))) -> 136.76
A15: 2010-02-11 | B15: Gault | C15: 126.62 | K15: =IF(ROWS(K$5:K15)>$G$2,"",INDEX(A$2:A$102,SMALL(IF($B$2:$B$102=$F$2,ROW($B$2:$B$102)-ROW($B$2)+1),ROWS(K$5:K15)))) -> 2010-01-05 | L15: =IF(ROWS(L$5:L15)>$G$2,"",INDEX(B$2:B$102,SMALL(IF($B$2:$B$102=$F$2,ROW($B$2:$B$102)-ROW($B$2)+1),ROWS(L$5:L15)))) -> Gault | M15: =IF(ROWS(M$5:M15)>$G$2,"",INDEX(C$2:C$102,SMALL(IF($B$2:$B$102=$F$2,ROW($B$2:$B$102)-ROW($B$2)+1),ROWS(M$5:M15)))) -> 121.33
A16: 2010-01-13 | B16: Franks | C16: 107.9 | K16: =IF(ROWS(K$5:K16)>$G$2,"",INDEX(A$2:A$102,SMALL(IF($B$2:$B$102=$F$2,ROW($B$2:$B$102)-ROW($B$2)+1),ROWS(K$5:K16)))) -> 2009-12-29 | L16: =IF(ROWS(L$5:L16)>$G$2,"",INDEX(B$2:B$102,SMALL(IF($B$2:$B$102=$F$2,ROW($B$2:$B$102)-ROW($B$2)+1),ROWS(L$5:L16)))) -> Gault | M16: =IF(ROWS(M$5:M16)>$G$2,"",INDEX(C$2:C$102,SMALL(IF($B$2:$B$102=$F$2,ROW($B$2:$B$102)-ROW($B$2)+1),ROWS(M$5:M16)))) -> 106.94
A17: 2010-01-28 | B17: Gault | C17: 130.54 | K17: =IF(ROWS(K$5:K17)>$G$2,"",INDEX(A$2:A$102,SMALL(IF($B$2:$B$102=$F$2,ROW($B$2:$B$102)-ROW($B$2)+1),ROWS(K$5:K17)))) -> 2009-12-10 | L17: =IF(ROWS(L$5:L17)>$G$2,"",INDEX(B$2:B$102,SMALL(IF($B$2:$B$102=$F$2,ROW($B$2:$B$102)-ROW($B$2)+1),ROWS(L$5:L17)))) -> Gault | M17: =IF(ROWS(M$5:M17)>$G$2,"",INDEX(C$2:C$102,SMALL(IF($B$2:$B$102=$F$2,ROW($B$2:$B$102)-ROW($B$2)+1),ROWS(M$5:M17)))) -> 124.59
A18: 2010-01-25 | B18: Gault | C18: 140.71 | K18: =IF(ROWS(K$5:K18)>$G$2,"",INDEX(A$2:A$102,SMALL(IF($B$2:$B$102=$F$2,ROW($B$2:$B$102)-ROW($B$2)+1),ROWS(K$5:K18)))) -> 2009-11-20 | L18: =IF(ROWS(L$5:L18)>$G$2,"",INDEX(B$2:B$102,SMALL(IF($B$2:$B$102=$F$2,ROW($B$2:$B$102)-ROW($B$2)+1),ROWS(L$5:L18)))) -> Gault | M18: =IF(ROWS(M$5:M18)>$G$2,"",INDEX(C$2:C$102,SMALL(IF($B$2:$B$102=$F$2,ROW($B$2:$B$102)-ROW($B$2)+1),ROWS(M$5:M18)))) -> 93.33
A19: 2010-02-10 | B19: Sioux | C19: 108.72 | K19: =IF(ROWS(K$5:K19)>$G$2,"",INDEX(A$2:A$102,SMALL(IF($B$2:$B$102=$F$2,ROW($B$2:$B$102)-ROW($B$2)+1),ROWS(K$5:K19)))) -> 2010-02-08 | L19: =IF(ROWS(L$5:L19)>$G$2,"",INDEX(B$2:B$102,SMALL(IF($B$2:$B$102=$F$2,ROW($B$2:$B$102)-ROW($B$2)+1),ROWS(L$5:L19)))) -> Gault | M19: =IF(ROWS(M$5:M19)>$G$2,"",INDEX(C$2:C$102,SMALL(IF($B$2:$B$102=$F$2,ROW($B$2:$B$102)-ROW($B$2)+1),ROWS(M$5:M19)))) -> 126.33
A20: 2009-12-26 | B20: Smith | C20: 135.18 | K20: =IF(ROWS(K$5:K20)>$G$2,"",INDEX(A$2:A$102,SMALL(IF($B$2:$B$102=$F$2,ROW($B$2:$B$102)-ROW($B$2)+1),ROWS(K$5:K20)))) -> 2009-12-23 | L20: =IF(ROWS(L$5:L20)>$G$2,"",INDEX(B$2:B$102,SMALL(IF($B$2:$B$102=$F$2,ROW($B$2:$B$102)-ROW($B$2)+1),ROWS(L$5:L20)))) -> Gault | M20: =IF(ROWS(M$5:M20)>$G$2,"",INDEX(C$2:C$102,SMALL(IF($B$2:$B$102=$F$2,ROW($B$2:$B$102)-ROW($B$2)+1),ROWS(M$5:M20)))) -> 109.7
A21: 2009-12-14 | B21: Gault | C21: 142.55 | K21: =IF(ROWS(K$5:K21)>$G$2,"",INDEX(A$2:A$102,SMALL(IF($B$2:$B$102=$F$2,ROW($B$2:$B$102)-ROW($B$2)+1),ROWS(K$5:K21)))) -> 2010-02-04 | L21: =IF(ROWS(L$5:L21)>$G$2,"",INDEX(B$2:B$102,SMALL(IF($B$2:$B$102=$F$2,ROW($B$2:$B$102)-ROW($B$2)+1),ROWS(L$5:L21)))) -> Gault | M21: =IF(ROWS(M$5:M21)>$G$2,"",INDEX(C$2:C$102,SMALL(IF($B$2:$B$102=$F$2,ROW($B$2:$B$102)-ROW($B$2)+1),ROWS(M$5:M21)))) -> 86.1
A22: 2010-02-12 | B22: Smith | C22: 140.54 | K22: =IF(ROWS(K$5:K22)>$G$2,"",INDEX(A$2:A$102,SMALL(IF($B$2:$B$102=$F$2,ROW($B$2:$B$102)-ROW($B$2)+1),ROWS(K$5:K22)))) -> 2010-01-16 | L22: =IF(ROWS(L$5:L22)>$G$2,"",INDEX(B$2:B$102,SMALL(IF($B$2:$B$102=$F$2,ROW($B$2:$B$102)-ROW($B$2)+1),ROWS(L$5:L22)))) -> Gault | M22: =IF(ROWS(M$5:M22)>$G$2,"",INDEX(C$2:C$102,SMALL(IF($B$2:$B$102=$F$2,ROW($B$2:$B$102)-ROW($B$2)+1),ROWS(M$5:M22)))) -> 104.36
A23: 2010-01-19 | B23: Franks | C23: 75.04 | K23: =IF(ROWS(K$5:K23)>$G$2,"",INDEX(A$2:A$102,SMALL(IF($B$2:$B$102=$F$2,ROW($B$2:$B$102)-ROW($B$2)+1),ROWS(K$5:K23)))) -> 2009-12-27 | L23: =IF(ROWS(L$5:L23)>$G$2,"",INDEX(B$2:B$102,SMALL(IF($B$2:$B$102=$F$2,ROW($B$2:$B$102)-ROW($B$2)+1),ROWS(L$5:L23)))) -> Gault | M23: =IF(ROWS(M$5:M23)>$G$2,"",INDEX(C$2:C$102,SMALL(IF($B$2:$B$102=$F$2,ROW($B$2:$B$102)-ROW($B$2)+1),ROWS(M$5:M23)))) -> 102.24
A24: 2010-02-16 | B24: Pham | C24: 93.15 | K24: =IF(ROWS(K$5:K24)>$G$2,"",INDEX(A$2:A$102,SMALL(IF($B$2:$B$102=$F$2,ROW($B$2:$B$102)-ROW($B$2)+1),ROWS(K$5:K24)))) -> 2010-01-05 | L24: =IF(ROWS(L$5:L24)>$G$2,"",INDEX(B$2:B$102,SMALL(IF($B$2:$B$102=$F$2,ROW($B$2:$B$102)-ROW($B$2)+1),ROWS(L$5:L24)))) -> Gault | M24: =IF(ROWS(M$5:M24)>$G$2,"",INDEX(C$2:C$102,SMALL(IF($B$2:$B$102=$F$2,ROW($B$2:$B$102)-ROW($B$2)+1),ROWS(M$5:M24)))) -> 78.89
A25: 2010-01-07 | B25: Sioux | C25: 132.51 | K25: =IF(ROWS(K$5:K25)>$G$2,"",INDEX(A$2:A$102,SMALL(IF($B$2:$B$102=$F$2,ROW($B$2:$B$102)-ROW($B$2)+1),ROWS(K$5:K25)))) -> 2009-12-19 | L25: =IF(ROWS(L$5:L25)>$G$2,"",INDEX(B$2:B$102,SMALL(IF($B$2:$B$102=$F$2,ROW($B$2:$B$102)-ROW($B$2)+1),ROWS(L$5:L25)))) -> Gault | M25: =IF(ROWS(M$5:M25)>$G$2,"",INDEX(C$2:C$102,SMALL(IF($B$2:$B$102=$F$2,ROW($B$2:$B$102)-ROW($B$2)+1),ROWS(M$5:M25)))) -> 131.04
A26: 2010-01-16 | B26: Chin | C26: 85.14 | K26: =IF(ROWS(K$5:K26)>$G$2,"",INDEX(A$2:A$102,SMALL(IF($B$2:$B$102=$F$2,ROW($B$2:$B$102)-ROW($B$2)+1),ROWS(K$5:K26)))) -> 2009-11-21 | L26: =IF(ROWS(L$5:L26)>$G$2,"",INDEX(B$2:B$102,SMALL(IF($B$2:$B$102=$F$2,ROW($B$2:$B$102)-ROW($B$2)+1),ROWS(L$5:L26)))) -> Gault | M26: =IF(ROWS(M$5:M26)>$G$2,"",INDEX(C$2:C$102,SMALL(IF($B$2:$B$102=$F$2,ROW($B$2:$B$102)-ROW($B$2)+1),ROWS(M$5:M26)))) -> 79.11
A27: 2010-02-15 | B27: Franks | C27: 108.85 | K27: =IF(ROWS(K$5:K27)>$G$2,"",INDEX(A$2:A$102,SMALL(IF($B$2:$B$102=$F$2,ROW($B$2:$B$102)-ROW($B$2)+1),ROWS(K$5:K27)))) -> 2010-02-18 | L27: =IF(ROWS(L$5:L27)>$G$2,"",INDEX(B$2:B$102,SMALL(IF($B$2:$B$102=$F$2,ROW($B$2:$B$102)-ROW($B$2)+1),ROWS(L$5:L27)))) -> Gault | M27: =IF(ROWS(M$5:M27)>$G$2,"",INDEX(C$2:C$102,SMALL(IF($B$2:$B$102=$F$2,ROW($B$2:$B$102)-ROW($B$2)+1),ROWS(M$5:M27)))) -> 75.35
A28: 2009-12-13 | B28: Sioux | C28: 139.92 | K28: =IF(ROWS(K$5:K28)>$G$2,"",INDEX(A$2:A$102,SMALL(IF($B$2:$B$102=$F$2,ROW($B$2:$B$102)-ROW($B$2)+1),ROWS(K$5:K28)))) ->  | L28: =IF(ROWS(L$5:L28)>$G$2,"",INDEX(B$2:B$102,SMALL(IF($B$2:$B$102=$F$2,ROW($B$2:$B$102)-ROW($B$2)+1),ROWS(L$5:L28)))) ->  | M28: =IF(ROWS(M$5:M28)>$G$2,"",INDEX(C$2:C$102,SMALL(IF($B$2:$B$102=$F$2,ROW($B$2:$B$102)-ROW($B$2)+1),ROWS(M$5:M28)))) -> 
A29: 2010-01-04 | B29: Franks | C29: 104.35 | K29: =IF(ROWS(K$5:K29)>$G$2,"",INDEX(A$2:A$102,SMALL(IF($B$2:$B$102=$F$2,ROW($B$2:$B$102)-ROW($B$2)+1),ROWS(K$5:K29)))) ->  | L29: =IF(ROWS(L$5:L29)>$G$2,"",INDEX(B$2:B$102,SMALL(IF($B$2:$B$102=$F$2,ROW($B$2:$B$102)-ROW($B$2)+1),ROWS(L$5:L29)))) ->  | M29: =IF(ROWS(M$5:M29)>$G$2,"",INDEX(C$2:C$102,SMALL(IF($B$2:$B$102=$F$2,ROW($B$2:$B$102)-ROW($B$2)+1),ROWS(M$5:M29)))) -> 
A30: 2009-12-14 | B30: Gault | C30: 88.51 | K30: =IF(ROWS(K$5:K30)>$G$2,"",INDEX(A$2:A$102,SMALL(IF($B$2:$B$102=$F$2,ROW($B$2:$B$102)-ROW($B$2)+1),ROWS(K$5:K30)))) ->  | L30: =IF(ROWS(L$5:L30)>$G$2,"",INDEX(B$2:B$102,SMALL(IF($B$2:$B$102=$F$2,ROW($B$2:$B$102)-ROW($B$2)+1),ROWS(L$5:L30)))) ->  | M30: =IF(ROWS(M$5:M30)>$G$2,"",INDEX(C$2:C$102,SMALL(IF($B$2:$B$102=$F$2,ROW($B$2:$B$102)-ROW($B$2)+1),ROWS(M$5:M30)))) -> 
A31: 2010-02-01 | B31: Gault | C31: 136.76 | K31: =IF(ROWS(K$5:K31)>$G$2,"",INDEX(A$2:A$102,SMALL(IF($B$2:$B$102=$F$2,ROW($B$2:$B$102)-ROW($B$2)+1),ROWS(K$5:K31)))) ->  | L31: =IF(ROWS(L$5:L31)>$G$2,"",INDEX(B$2:B$102,SMALL(IF($B$2:$B$102=$F$2,ROW($B$2:$B$102)-ROW($B$2)+1),ROWS(L$5:L31)))) ->  | M31: =IF(ROWS(M$5:M31)>$G$2,"",INDEX(C$2:C$102,SMALL(IF($B$2:$B$102=$F$2,ROW($B$2:$B$102)-ROW($B$2)+1),ROWS(M$5:M31)))) -> 
A32: 2009-11-25 | B32: Pham | C32: 109.57 | K32: =IF(ROWS(K$5:K32)>$G$2,"",INDEX(A$2:A$102,SMALL(IF($B$2:$B$102=$F$2,ROW($B$2:$B$102)-ROW($B$2)+1),ROWS(K$5:K32)))) ->  | L32: =IF(ROWS(L$5:L32)>$G$2,"",INDEX(B$2:B$102,SMALL(IF($B$2:$B$102=$F$2,ROW($B$2:$B$102)-ROW($B$2)+1),ROWS(L$5:L32)))) ->  | M32: =IF(ROWS(M$5:M32)>$G$2,"",INDEX(C$2:C$102,SMALL(IF($B$2:$B$102=$F$2,ROW($B$2:$B$102)-ROW($B$2)+1),ROWS(M$5:M32)))) -> 
A33: 2010-02-07 | B33: Franks | C33: 125.81 | K33: =IF(ROWS(K$5:K33)>$G$2,"",INDEX(A$2:A$102,SMALL(IF($B$2:$B$102=$F$2,ROW($B$2:$B$102)-ROW($B$2)+1),ROWS(K$5:K33)))) ->  | L33: =IF(ROWS(L$5:L33)>$G$2,"",INDEX(B$2:B$102,SMALL(IF($B$2:$B$102=$F$2,ROW($B$2:$B$102)-ROW($B$2)+1),ROWS(L$5:L33)))) ->  | M33: =IF(ROWS(M$5:M33)>$G$2,"",INDEX(C$2:C$102,SMALL(IF($B$2:$B$102=$F$2,ROW($B$2:$B$102)-ROW($B$2)+1),ROWS(M$5:M33)))) -> 
A34: 2009-12-22 | B34: Pham | C34: 150.09 | K34: =IF(ROWS(K$5:K34)>$G$2,"",INDEX(A$2:A$102,SMALL(IF($B$2:$B$102=$F$2,ROW($B$2:$B$102)-ROW($B$2)+1),ROWS(K$5:K34)))) ->  | L34: =IF(ROWS(L$5:L34)>$G$2,"",INDEX(B$2:B$102,SMALL(IF($B$2:$B$102=$F$2,ROW($B$2:$B$102)-ROW($B$2)+1),ROWS(L$5:L34)))) ->  | M34: =IF(ROWS(M$5:M34)>$G$2,"",INDEX(C$2:C$102,SMALL(IF($B$2:$B$102=$F$2,ROW($B$2:$B$102)-ROW($B$2)+1),ROWS(M$5:M34)))) -> 
A35: 2009-12-07 | B35: Sioux | C35: 147.53 | K35: =IF(ROWS(K$5:K35)>$G$2,"",INDEX(A$2:A$102,SMALL(IF($B$2:$B$102=$F$2,ROW($B$2:$B$102)-ROW($B$2)+1),ROWS(K$5:K35)))) ->  | L35: =IF(ROWS(L$5:L35)>$G$2,"",INDEX(B$2:B$102,SMALL(IF($B$2:$B$102=$F$2,ROW($B$2:$B$102)-ROW($B$2)+1),ROWS(L$5:L35)))) ->  | M35: =IF(ROWS(M$5:M35)>$G$2,"",INDEX(C$2:C$102,SMALL(IF($B$2:$B$102=$F$2,ROW($B$2:$B$102)-ROW($B$2)+1),ROWS(M$5:M35)))) -> 
A36: 2009-12-12 | B36: Chin | C36: 102.17 | K36: =IF(ROWS(K$5:K36)>$G$2,"",INDEX(A$2:A$102,SMALL(IF($B$2:$B$102=$F$2,ROW($B$2:$B$102)-ROW($B$2)+1),ROWS(K$5:K36)))) ->  | L36: =IF(ROWS(L$5:L36)>$G$2,"",INDEX(B$2:B$102,SMALL(IF($B$2:$B$102=$F$2,ROW($B$2:$B$102)-ROW($B$2)+1),ROWS(L$5:L36)))) ->  | M36: =IF(ROWS(M$5:M36)>$G$2,"",INDEX(C$2:C$102,SMALL(IF($B$2:$B$102=$F$2,ROW($B$2:$B$102)-ROW($B$2)+1),ROWS(M$5:M36)))) -> 
A37: 2009-12-30 | B37: Smith | C37: 114.4 | K37: =IF(ROWS(K$5:K37)>$G$2,"",INDEX(A$2:A$102,SMALL(IF($B$2:$B$102=$F$2,ROW($B$2:$B$102)-ROW($B$2)+1),ROWS(K$5:K37)))) ->  | L37: =IF(ROWS(L$5:L37)>$G$2,"",INDEX(B$2:B$102,SMALL(IF($B$2:$B$102=$F$2,ROW($B$2:$B$102)-ROW($B$2)+1),ROWS(L$5:L37)))) ->  | M37: =IF(ROWS(M$5:M37)>$G$2,"",INDEX(C$2:C$102,SMALL(IF($B$2:$B$102=$F$2,ROW($B$2:$B$102)-ROW($B$2)+1),ROWS(M$5:M37)))) -> 
A38: 2009-12-27 | B38: Chin | C38: 129.65 | K38: =IF(ROWS(K$5:K38)>$G$2,"",INDEX(A$2:A$102,SMALL(IF($B$2:$B$102=$F$2,ROW($B$2:$B$102)-ROW($B$2)+1),ROWS(K$5:K38)))) ->  | L38: =IF(ROWS(L$5:L38)>$G$2,"",INDEX(B$2:B$102,SMALL(IF($B$2:$B$102=$F$2,ROW($B$2:$B$102)-ROW($B$2)+1),ROWS(L$5:L38)))) ->  | M38: =IF(ROWS(M$5:M38)>$G$2,"",INDEX(C$2:C$102,SMALL(IF($B$2:$B$102=$F$2,ROW($B$2:$B$102)-ROW($B$2)+1),ROWS(M$5:M38)))) -> 
A39: 2009-12-29 | B39: Chin | C39: 128.95 | K39: =IF(ROWS(K$5:K39)>$G$2,"",INDEX(A$2:A$102,SMALL(IF($B$2:$B$102=$F$2,ROW($B$2:$B$102)-ROW($B$2)+1),ROWS(K$5:K39)))) ->  | L39: =IF(ROWS(L$5:L39)>$G$2,"",INDEX(B$2:B$102,SMALL(IF($B$2:$B$102=$F$2,ROW($B$2:$B$102)-ROW($B$2)+1),ROWS(L$5:L39)))) ->  | M39: =IF(ROWS(M$5:M39)>$G$2,"",INDEX(C$2:C$102,SMALL(IF($B$2:$B$102=$F$2,ROW($B$2:$B$102)-ROW($B$2)+1),ROWS(M$5:M39)))) -> 
A40: 2010-01-05 | B40: Gault | C40: 121.33 | K40: =IF(ROWS(K$5:K40)>$G$2,"",INDEX(A$2:A$102,SMALL(IF($B$2:$B$102=$F$2,ROW($B$2:$B$102)-ROW($B$2)+1),ROWS(K$5:K40)))) ->  | L40: =IF(ROWS(L$5:L40)>$G$2,"",INDEX(B$2:B$102,SMALL(IF($B$2:$B$102=$F$2,ROW($B$2:$B$102)-ROW($B$2)+1),ROWS(L$5:L40)))) ->  | M40: =IF(ROWS(M$5:M40)>$G$2,"",INDEX(C$2:C$102,SMALL(IF($B$2:$B$102=$F$2,ROW($B$2:$B$102)-ROW($B$2)+1),ROWS(M$5:M40)))) -> 
A41: 2009-12-15 | B41: Pham | C41: 102.64 | K41: =IF(ROWS(K$5:K41)>$G$2,"",INDEX(A$2:A$102,SMALL(IF($B$2:$B$102=$F$2,ROW($B$2:$B$102)-ROW($B$2)+1),ROWS(K$5:K41)))) ->  | L41: =IF(ROWS(L$5:L41)>$G$2,"",INDEX(B$2:B$102,SMALL(IF($B$2:$B$102=$F$2,ROW($B$2:$B$102)-ROW($B$2)+1),ROWS(L$5:L41)))) ->  | M41: =IF(ROWS(M$5:M41)>$G$2,"",INDEX(C$2:C$102,SMALL(IF($B$2:$B$102=$F$2,ROW($B$2:$B$102)-ROW($B$2)+1),ROWS(M$5:M41)))) -> 
A42: 2009-12-01 | B42: Pham | C42: 132.12 | K42: =IF(ROWS(K$5:K42)>$G$2,"",INDEX(A$2:A$102,SMALL(IF($B$2:$B$102=$F$2,ROW($B$2:$B$102)-ROW($B$2)+1),ROWS(K$5:K42)))) ->  | L42: =IF(ROWS(L$5:L42)>$G$2,"",INDEX(B$2:B$102,SMALL(IF($B$2:$B$102=$F$2,ROW($B$2:$B$102)-ROW($B$2)+1),ROWS(L$5:L42)))) ->  | M42: =IF(ROWS(M$5:M42)>$G$2,"",INDEX(C$2:C$102,SMALL(IF($B$2:$B$102=$F$2,ROW($B$2:$B$102)-ROW($B$2)+1),ROWS(M$5:M42)))) -> 
A43: 2010-02-07 | B43: Franks | C43: 100.83 | K43: =IF(ROWS(K$5:K43)>$G$2,"",INDEX(A$2:A$102,SMALL(IF($B$2:$B$102=$F$2,ROW($B$2:$B$102)-ROW($B$2)+1),ROWS(K$5:K43)))) ->  | L43: =IF(ROWS(L$5:L43)>$G$2,"",INDEX(B$2:B$102,SMALL(IF($B$2:$B$102=$F$2,ROW($B$2:$B$102)-ROW($B$2)+1),ROWS(L$5:L43)))) ->  | M43: =IF(ROWS(M$5:M43)>$G$2,"",INDEX(C$2:C$102,SMALL(IF($B$2:$B$102=$F$2,ROW($B$2:$B$102)-ROW($B$2)+1),ROWS(M$5:M43)))) -> 
A44: 2009-11-26 | B44: Sioux | C44: 79.42 | K44: =IF(ROWS(K$5:K44)>$G$2,"",INDEX(A$2:A$102,SMALL(IF($B$2:$B$102=$F$2,ROW($B$2:$B$102)-ROW($B$2)+1),ROWS(K$5:K44)))) ->  | L44: =IF(ROWS(L$5:L44)>$G$2,"",INDEX(B$2:B$102,SMALL(IF($B$2:$B$102=$F$2,ROW($B$2:$B$102)-ROW($B$2)+1),ROWS(L$5:L44)))) ->  | M44: =IF(ROWS(M$5:M44)>$G$2,"",INDEX(C$2:C$102,SMALL(IF($B$2:$B$102=$F$2,ROW($B$2:$B$102)-ROW($B$2)+1),ROWS(M$5:M44)))) -> 
A45: 2010-01-04 | B45: Pham | C45: 100.09 | K45: =IF(ROWS(K$5:K45)>$G$2,"",INDEX(A$2:A$102,SMALL(IF($B$2:$B$102=$F$2,ROW($B$2:$B$102)-ROW($B$2)+1),ROWS(K$5:K45)))) ->  | L45: =IF(ROWS(L$5:L45)>$G$2,"",INDEX(B$2:B$102,SMALL(IF($B$2:$B$102=$F$2,ROW($B$2:$B$102)-ROW($B$2)+1),ROWS(L$5:L45)))) ->  | M45: =IF(ROWS(M$5:M45)>$G$2,"",INDEX(C$2:C$102,SMALL(IF($B$2:$B$102=$F$2,ROW($B$2:$B$102)-ROW($B$2)+1),ROWS(M$5:M45)))) -> 
A46: 2010-01-29 | B46: Franks | C46: 83.37 | K46: =IF(ROWS(K$5:K46)>$G$2,"",INDEX(A$2:A$102,SMALL(IF($B$2:$B$102=$F$2,ROW($B$2:$B$102)-ROW($B$2)+1),ROWS(K$5:K46)))) ->  | L46: =IF(ROWS(L$5:L46)>$G$2,"",INDEX(B$2:B$102,SMALL(IF($B$2:$B$102=$F$2,ROW($B$2:$B$102)-ROW($B$2)+1),ROWS(L$5:L46)))) ->  | M46: =IF(ROWS(M$5:M46)>$G$2,"",INDEX(C$2:C$102,SMALL(IF($B$2:$B$102=$F$2,ROW($B$2:$B$102)-ROW($B$2)+1),ROWS(M$5:M46)))) -> 
A47: 2010-01-19 | B47: Franks | C47: 89.11 | K47: =IF(ROWS(K$5:K47)>$G$2,"",INDEX(A$2:A$102,SMALL(IF($B$2:$B$102=$F$2,ROW($B$2:$B$102)-ROW($B$2)+1),ROWS(K$5:K47)))) ->  | L47: =IF(ROWS(L$5:L47)>$G$2,"",INDEX(B$2:B$102,SMALL(IF($B$2:$B$102=$F$2,ROW($B$2:$B$102)-ROW($B$2)+1),ROWS(L$5:L47)))) ->  | M47: =IF(ROWS(M$5:M47)>$G$2,"",INDEX(C$2:C$102,SMALL(IF($B$2:$B$102=$F$2,ROW($B$2:$B$102)-ROW($B$2)+1),ROWS(M$5:M47)))) -> 
A48: 2010-02-14 | B48: Smith | C48: 126.97 | K48: =IF(ROWS(K$5:K48)>$G$2,"",INDEX(A$2:A$102,SMALL(IF($B$2:$B$102=$F$2,ROW($B$2:$B$102)-ROW($B$2)+1),ROWS(K$5:K48)))) ->  | L48: =IF(ROWS(L$5:L48)>$G$2,"",INDEX(B$2:B$102,SMALL(IF($B$2:$B$102=$F$2,ROW($B$2:$B$102)-ROW($B$2)+1),ROWS(L$5:L48)))) ->  | M48: =IF(ROWS(M$5:M48)>$G$2,"",INDEX(C$2:C$102,SMALL(IF($B$2:$B$102=$F$2,ROW($B$2:$B$102)-ROW($B$2)+1),ROWS(M$5:M48)))) -> 
A49: 2009-12-03 | B49: Smith | C49: 154.31 | K49: =IF(ROWS(K$5:K49)>$G$2,"",INDEX(A$2:A$102,SMALL(IF($B$2:$B$102=$F$2,ROW($B$2:$B$102)-ROW($B$2)+1),ROWS(K$5:K49)))) ->  | L49: =IF(ROWS(L$5:L49)>$G$2,"",INDEX(B$2:B$102,SMALL(IF($B$2:$B$102=$F$2,ROW($B$2:$B$102)-ROW($B$2)+1),ROWS(L$5:L49)))) ->  | M49: =IF(ROWS(M$5:M49)>$G$2,"",INDEX(C$2:C$102,SMALL(IF($B$2:$B$102=$F$2,ROW($B$2:$B$102)-ROW($B$2)+1),ROWS(M$5:M49)))) -> 
A50: 2010-01-02 | B50: Sioux | C50: 76.59 | K50: =IF(ROWS(K$5:K50)>$G$2,"",INDEX(A$2:A$102,SMALL(IF($B$2:$B$102=$F$2,ROW($B$2:$B$102)-ROW($B$2)+1),ROWS(K$5:K50)))) ->  | L50: =IF(ROWS(L$5:L50)>$G$2,"",INDEX(B$2:B$102,SMALL(IF($B$2:$B$102=$F$2,ROW($B$2:$B$102)-ROW($B$2)+1),ROWS(L$5:L50)))) ->  | M50: =IF(ROWS(M$5:M50)>$G$2,"",INDEX(C$2:C$102,SMALL(IF($B$2:$B$102=$F$2,ROW($B$2:$B$102)-ROW($B$2)+1),ROWS(M$5:M50)))) -> 
A51: 2009-12-29 | B51: Gault | C51: 106.94 | K51: =IF(ROWS(K$5:K51)>$G$2,"",INDEX(A$2:A$102,SMALL(IF($B$2:$B$102=$F$2,ROW($B$2:$B$102)-ROW($B$2)+1),ROWS(K$5:K51)))) ->  | L51: =IF(ROWS(L$5:L51)>$G$2,"",INDEX(B$2:B$102,SMALL(IF($B$2:$B$102=$F$2,ROW($B$2:$B$102)-ROW($B$2)+1),ROWS(L$5:L51)))) ->  | M51: =IF(ROWS(M$5:M51)>$G$2,"",INDEX(C$2:C$102,SMALL(IF($B$2:$B$102=$F$2,ROW($B$2:$B$102)-ROW($B$2)+1),ROWS(M$5:M51)))) -> 
A52: 2009-11-26 | B52: Chin | C52: 129.86 | K52: =IF(ROWS(K$5:K52)>$G$2,"",INDEX(A$2:A$102,SMALL(IF($B$2:$B$102=$F$2,ROW($B$2:$B$102)-ROW($B$2)+1),ROWS(K$5:K52)))) ->  | L52: =IF(ROWS(L$5:L52)>$G$2,"",INDEX(B$2:B$102,SMALL(IF($B$2:$B$102=$F$2,ROW($B$2:$B$102)-ROW($B$2)+1),ROWS(L$5:L52)))) ->  | M52: =IF(ROWS(M$5:M52)>$G$2,"",INDEX(C$2:C$102,SMALL(IF($B$2:$B$102=$F$2,ROW($B$2:$B$102)-ROW($B$2)+1),ROWS(M$5:M52)))) -> 
A53: 2009-12-24 | B53: Pham | C53: 100.76 | K53: =IF(ROWS(K$5:K53)>$G$2,"",INDEX(A$2:A$102,SMALL(IF($B$2:$B$102=$F$2,ROW($B$2:$B$102)-ROW($B$2)+1),ROWS(K$5:K53)))) ->  | L53: =IF(ROWS(L$5:L53)>$G$2,"",INDEX(B$2:B$102,SMALL(IF($B$2:$B$102=$F$2,ROW($B$2:$B$102)-ROW($B$2)+1),ROWS(L$5:L53)))) ->  | M53: =IF(ROWS(M$5:M53)>$G$2,"",INDEX(C$2:C$102,SMALL(IF($B$2:$B$102=$F$2,ROW($B$2:$B$102)-ROW($B$2)+1),ROWS(M$5:M53)))) -> 
A54: 2009-12-10 | B54: Gault | C54: 124.59 | K54: =IF(ROWS(K$5:K54)>$G$2,"",INDEX(A$2:A$102,SMALL(IF($B$2:$B$102=$F$2,ROW($B$2:$B$102)-ROW($B$2)+1),ROWS(K$5:K54)))) ->  | L54: =IF(ROWS(L$5:L54)>$G$2,"",INDEX(B$2:B$102,SMALL(IF($B$2:$B$102=$F$2,ROW($B$2:$B$102)-ROW($B$2)+1),ROWS(L$5:L54)))) ->  | M54: =IF(ROWS(M$5:M54)>$G$2,"",INDEX(C$2:C$102,SMALL(IF($B$2:$B$102=$F$2,ROW($B$2:$B$102)-ROW($B$2)+1),ROWS(M$5:M54)))) -> 
A55: 2009-12-31 | B55: Smith | C55: 150.31 | K55: =IF(ROWS(K$5:K55)>$G$2,"",INDEX(A$2:A$102,SMALL(IF($B$2:$B$102=$F$2,ROW($B$2:$B$102)-ROW($B$2)+1),ROWS(K$5:K55)))) ->  | L55: =IF(ROWS(L$5:L55)>$G$2,"",INDEX(B$2:B$102,SMALL(IF($B$2:$B$102=$F$2,ROW($B$2:$B$102)-ROW($B$2)+1),ROWS(L$5:L55)))) ->  | M55: =IF(ROWS(M$5:M55)>$G$2,"",INDEX(C$2:C$102,SMALL(IF($B$2:$B$102=$F$2,ROW($B$2:$B$102)-ROW($B$2)+1),ROWS(M$5:M55)))) -> 
A56: 2009-12-16 | B56: Franks | C56: 119.78 | K56: =IF(ROWS(K$5:K56)>$G$2,"",INDEX(A$2:A$102,SMALL(IF($B$2:$B$102=$F$2,ROW($B$2:$B$102)-ROW($B$2)+1),ROWS(K$5:K56)))) ->  | L56: =IF(ROWS(L$5:L56)>$G$2,"",INDEX(B$2:B$102,SMALL(IF($B$2:$B$102=$F$2,ROW($B$2:$B$102)-ROW($B$2)+1),ROWS(L$5:L56)))) ->  | M56: =IF(ROWS(M$5:M56)>$G$2,"",INDEX(C$2:C$102,SMALL(IF($B$2:$B$102=$F$2,ROW($B$2:$B$102)-ROW($B$2)+1),ROWS(M$5:M56)))) -> 
A57: 2010-01-03 | B57: Pham | C57: 93.37 | K57: =IF(ROWS(K$5:K57)>$G$2,"",INDEX(A$2:A$102,SMALL(IF($B$2:$B$102=$F$2,ROW($B$2:$B$102)-ROW($B$2)+1),ROWS(K$5:K57)))) ->  | L57: =IF(ROWS(L$5:L57)>$G$2,"",INDEX(B$2:B$102,SMALL(IF($B$2:$B$102=$F$2,ROW($B$2:$B$102)-ROW($B$2)+1),ROWS(L$5:L57)))) ->  | M57: =IF(ROWS(M$5:M57)>$G$2,"",INDEX(C$2:C$102,SMALL(IF($B$2:$B$102=$F$2,ROW($B$2:$B$102)-ROW($B$2)+1),ROWS(M$5:M57)))) -> 
A58: 2009-12-26 | B58: Chin | C58: 87.06 | K58: =IF(ROWS(K$5:K58)>$G$2,"",INDEX(A$2:A$102,SMALL(IF($B$2:$B$102=$F$2,ROW($B$2:$B$102)-ROW($B$2)+1),ROWS(K$5:K58)))) ->  | L58: =IF(ROWS(L$5:L58)>$G$2,"",INDEX(B$2:B$102,SMALL(IF($B$2:$B$102=$F$2,ROW($B$2:$B$102)-ROW($B$2)+1),ROWS(L$5:L58)))) ->  | M58: =IF(ROWS(M$5:M58)>$G$2,"",INDEX(C$2:C$102,SMALL(IF($B$2:$B$102=$F$2,ROW($B$2:$B$102)-ROW($B$2)+1),ROWS(M$5:M58)))) -> 
A59: 2010-01-05 | B59: Smith | C59: 147.49 | K59: =IF(ROWS(K$5:K59)>$G$2,"",INDEX(A$2:A$102,SMALL(IF($B$2:$B$102=$F$2,ROW($B$2:$B$102)-ROW($B$2)+1),ROWS(K$5:K59)))) ->  | L59: =IF(ROWS(L$5:L59)>$G$2,"",INDEX(B$2:B$102,SMALL(IF($B$2:$B$102=$F$2,ROW($B$2:$B$102)-ROW($B$2)+1),ROWS(L$5:L59)))) ->  | M59: =IF(ROWS(M$5:M59)>$G$2,"",INDEX(C$2:C$102,SMALL(IF($B$2:$B$102=$F$2,ROW($B$2:$B$102)-ROW($B$2)+1),ROWS(M$5:M59)))) -> 
A60: 2009-12-19 | B60: Smith | C60: 136.94 | K60: =IF(ROWS(K$5:K60)>$G$2,"",INDEX(A$2:A$102,SMALL(IF($B$2:$B$102=$F$2,ROW($B$2:$B$102)-ROW($B$2)+1),ROWS(K$5:K60)))) ->  | L60: =IF(ROWS(L$5:L60)>$G$2,"",INDEX(B$2:B$102,SMALL(IF($B$2:$B$102=$F$2,ROW($B$2:$B$102)-ROW($B$2)+1),ROWS(L$5:L60)))) ->  | M60: =IF(ROWS(M$5:M60)>$G$2,"",INDEX(C$2:C$102,SMALL(IF($B$2:$B$102=$F$2,ROW($B$2:$B$102)-ROW($B$2)+1),ROWS(M$5:M60)))) -> 
A61: 2009-11-20 | B61: Gault | C61: 93.33 | K61: =IF(ROWS(K$5:K61)>$G$2,"",INDEX(A$2:A$102,SMALL(IF($B$2:$B$102=$F$2,ROW($B$2:$B$102)-ROW($B$2)+1),ROWS(K$5:K61)))) ->  | L61: =IF(ROWS(L$5:L61)>$G$2,"",INDEX(B$2:B$102,SMALL(IF($B$2:$B$102=$F$2,ROW($B$2:$B$102)-ROW($B$2)+1),ROWS(L$5:L61)))) ->  | M61: =IF(ROWS(M$5:M61)>$G$2,"",INDEX(C$2:C$102,SMALL(IF($B$2:$B$102=$F$2,ROW($B$2:$B$102)-ROW($B$2)+1),ROWS(M$5:M61)))) -> 
A62: 2010-01-03 | B62: Smith | C62: 128.97 | K62: =IF(ROWS(K$5:K62)>$G$2,"",INDEX(A$2:A$102,SMALL(IF($B$2:$B$102=$F$2,ROW($B$2:$B$102)-ROW($B$2)+1),ROWS(K$5:K62)))) ->  | L62: =IF(ROWS(L$5:L62)>$G$2,"",INDEX(B$2:B$102,SMALL(IF($B$2:$B$102=$F$2,ROW($B$2:$B$102)-ROW($B$2)+1),ROWS(L$5:L62)))) ->  | M62: =IF(ROWS(M$5:M62)>$G$2,"",INDEX(C$2:C$102,SMALL(IF($B$2:$B$102=$F$2,ROW($B$2:$B$102)-ROW($B$2)+1),ROWS(M$5:M62)))) -> 
A63: 2009-12-14 | B63: Smith | C63: 114.93 | K63: =IF(ROWS(K$5:K63)>$G$2,"",INDEX(A$2:A$102,SMALL(IF($B$2:$B$102=$F$2,ROW($B$2:$B$102)-ROW($B$2)+1),ROWS(K$5:K63)))) ->  | L63: =IF(ROWS(L$5:L63)>$G$2,"",INDEX(B$2:B$102,SMALL(IF($B$2:$B$102=$F$2,ROW($B$2:$B$102)-ROW($B$2)+1),ROWS(L$5:L63)))) ->  | M63: =IF(ROWS(M$5:M63)>$G$2,"",INDEX(C$2:C$102,SMALL(IF($B$2:$B$102=$F$2,ROW($B$2:$B$102)-ROW($B$2)+1),ROWS(M$5:M63)))) -> 
A64: 2010-01-01 | B64: Sioux | C64: 104.57 | K64: =IF(ROWS(K$5:K64)>$G$2,"",INDEX(A$2:A$102,SMALL(IF($B$2:$B$102=$F$2,ROW($B$2:$B$102)-ROW($B$2)+1),ROWS(K$5:K64)))) ->  | L64: =IF(ROWS(L$5:L64)>$G$2,"",INDEX(B$2:B$102,SMALL(IF($B$2:$B$102=$F$2,ROW($B$2:$B$102)-ROW($B$2)+1),ROWS(L$5:L64)))) ->  | M64: =IF(ROWS(M$5:M64)>$G$2,"",INDEX(C$2:C$102,SMALL(IF($B$2:$B$102=$F$2,ROW($B$2:$B$102)-ROW($B$2)+1),ROWS(M$5:M64)))) -> 
A65: 2009-11-27 | B65: Sioux | C65: 119.53 | K65: =IF(ROWS(K$5:K65)>$G$2,"",INDEX(A$2:A$102,SMALL(IF($B$2:$B$102=$F$2,ROW($B$2:$B$102)-ROW($B$2)+1),ROWS(K$5:K65)))) ->  | L65: =IF(ROWS(L$5:L65)>$G$2,"",INDEX(B$2:B$102,SMALL(IF($B$2:$B$102=$F$2,ROW($B$2:$B$102)-ROW($B$2)+1),ROWS(L$5:L65)))) ->  | M65: =IF(ROWS(M$5:M65)>$G$2,"",INDEX(C$2:C$102,SMALL(IF($B$2:$B$102=$F$2,ROW($B$2:$B$102)-ROW($B$2)+1),ROWS(M$5:M65)))) -> 
A66: 2010-01-01 | B66: Pham | C66: 127.99 | K66: =IF(ROWS(K$5:K66)>$G$2,"",INDEX(A$2:A$102,SMALL(IF($B$2:$B$102=$F$2,ROW($B$2:$B$102)-ROW($B$2)+1),ROWS(K$5:K66)))) ->  | L66: =IF(ROWS(L$5:L66)>$G$2,"",INDEX(B$2:B$102,SMALL(IF($B$2:$B$102=$F$2,ROW($B$2:$B$102)-ROW($B$2)+1),ROWS(L$5:L66)))) ->  | M66: =IF(ROWS(M$5:M66)>$G$2,"",INDEX(C$2:C$102,SMALL(IF($B$2:$B$102=$F$2,ROW($B$2:$B$102)-ROW($B$2)+1),ROWS(M$5:M66)))) -> 
A67: 2009-12-03 | B67: Smith | C67: 88.69
A68: 2009-11-25 | B68: Smith | C68: 115.67
A69: 2010-01-07 | B69: Pham | C69: 114.54
A70: 2010-02-02 | B70: Smith | C70: 128.15
A71: 2010-02-08 | B71: Gault | C71: 126.33
A72: 2010-01-13 | B72: Smith | C72: 112.03
A73: 2009-11-20 | B73: Smith | C73: 145.33
A74: 2009-12-23 | B74: Gault | C74: 109.7
A75: 2009-11-26 | B75: Sioux | C75: 139.13
A76: 2009-12-01 | B76: Sioux | C76: 112.5
A77: 2009-11-29 | B77: Pham | C77: 122.21
A78: 2010-01-13 | B78: Smith | C78: 135.77
A79: 2010-01-09 | B79: Pham | C79: 75.17
A80: 2010-01-30 | B80: Sioux | C80: 104.5
A81: 2010-02-04 | B81: Gault | C81: 86.1
A82: 2010-01-02 | B82: Sioux | C82: 143.85
A83: 2010-01-16 | B83: Gault | C83: 104.36
A84: 2009-12-28 | B84: Smith | C84: 135.02
A85: 2009-12-26 | B85: Pham | C85: 83.26
A86: 2009-11-28 | B86: Sioux | C86: 114.53
A87: 2010-02-02 | B87: Smith | C87: 117.63
A88: 2009-12-27 | B88: Gault | C88: 102.24
A89: 2010-02-01 | B89: Chin | C89: 139.21
A90: 2009-12-25 | B90: Smith | C90: 119.09
A91: 2010-01-17 | B91: Pham | C91: 134.11
A92: 2010-01-15 | B92: Sioux | C92: 96.17
A93: 2010-01-10 | B93: Smith | C93: 108.54
A94: 2010-01-05 | B94: Gault | C94: 78.89
A95: 2010-01-20 | B95: Pham | C95: 130.37
A96: 2009-12-08 | B96: Chin | C96: 130.5
A97: 2010-01-16 | B97: Franks | C97: 123.13
A98: 2009-12-19 | B98: Gault | C98: 131.04
A99: 2009-12-17 | B99: Pham | C99: 76.26
A100: 2010-01-19 | B100: Pham | C100: 78.46
A101: 2009-11-21 | B101: Gault | C101: 79.11
A102: 2010-02-18 | B102: Gault | C102: 75.35

Sheet 670an
A1: Date | B1: SalesRep | C1: Sales | E1: Month | F1: SalesRep | G1: Count | I1: SalesRep
A2: 2009-12-25 | B2: Gault | C2: 94.69 | F2: Sioux | G2: =COUNTIF($A$2:$C$102,F2) -> 14 | I2: Gault
A3: 2009-12-15 | B3: Smith | C3: 130.2 | I3: Smith
A4: 2009-12-11 | B4: Franks | C4: 149.95 | E4: Date | F4: SalesRep | G4: Sales | I4: Franks | K4: Date | L4: SalesRep | M4: Sales
A5: 2009-12-01 | B5: Gault | C5: 94.11 | E5: =IF(ROWS(E$5:E5)>$G$2,"",INDEX(A$2:A$102,_xlfn.AGGREGATE(15,6,(ROW($A$2:$A$102)-ROW($A$2)+1)/($B$2:$B$102=$F$2),ROWS(E$5:E5)))) -> 2010-02-10 | F5: =IF(ROWS(F$5:F5)>$G$2,"",INDEX(B$2:B$102,_xlfn.AGGREGATE(15,6,(ROW($A$2:$A$102)-ROW($A$2)+1)/($B$2:$B$102=$F$2),ROWS(F$5:F5)))) -> Sioux | G5: =IF(ROWS(G$5:G5)>$G$2,"",INDEX(C$2:C$102,_xlfn.AGGREGATE(15,6,(ROW($A$2:$A$102)-ROW($A$2)+1)/($B$2:$B$102=$F$2),ROWS(G$5:G5)))) -> 108.72 | I5: Pham | K5: =IF(ROWS(K$5:K5)>$G$2,"",INDEX(A$2:A$102,SMALL(IF($B$2:$B$102=$F$2,ROW($B$2:$B$102)-ROW($B$2)+1),ROWS(K$5:K5)))) -> 2010-02-10 | L5: =IF(ROWS(L$5:L5)>$G$2,"",INDEX(B$2:B$102,SMALL(IF($B$2:$B$102=$F$2,ROW($B$2:$B$102)-ROW($B$2)+1),ROWS(L$5:L5)))) -> Sioux | M5: =IF(ROWS(M$5:M5)>$G$2,"",INDEX(C$2:C$102,SMALL(IF($B$2:$B$102=$F$2,ROW($B$2:$B$102)-ROW($B$2)+1),ROWS(M$5:M5)))) -> 108.72
A6: 2009-12-11 | B6: Franks | C6: 136.14 | E6: =IF(ROWS(E$5:E6)>$G$2,"",INDEX(A$2:A$102,_xlfn.AGGREGATE(15,6,(ROW($A$2:$A$102)-ROW($A$2)+1)/($B$2:$B$102=$F$2),ROWS(E$5:E6)))) -> 2010-01-07 | F6: =IF(ROWS(F$5:F6)>$G$2,"",INDEX(B$2:B$102,_xlfn.AGGREGATE(15,6,(ROW($A$2:$A$102)-ROW($A$2)+1)/($B$2:$B$102=$F$2),ROWS(F$5:F6)))) -> Sioux | G6: =IF(ROWS(G$5:G6)>$G$2,"",INDEX(C$2:C$102,_xlfn.AGGREGATE(15,6,(ROW($A$2:$A$102)-ROW($A$2)+1)/($B$2:$B$102=$F$2),ROWS(G$5:G6)))) -> 132.51 | I6: Sioux | K6: =IF(ROWS(K$5:K6)>$G$2,"",INDEX(A$2:A$102,SMALL(IF($B$2:$B$102=$F$2,ROW($B$2:$B$102)-ROW($B$2)+1),ROWS(K$5:K6)))) -> 2010-01-07 | L6: =IF(ROWS(L$5:L6)>$G$2,"",INDEX(B$2:B$102,SMALL(IF($B$2:$B$102=$F$2,ROW($B$2:$B$102)-ROW($B$2)+1),ROWS(L$5:L6)))) -> Sioux | M6: =IF(ROWS(M$5:M6)>$G$2,"",INDEX(C$2:C$102,SMALL(IF($B$2:$B$102=$F$2,ROW($B$2:$B$102)-ROW($B$2)+1),ROWS(M$5:M6)))) -> 132.51
A7: 2010-02-12 | B7: Pham | C7: 133.17 | E7: =IF(ROWS(E$5:E7)>$G$2,"",INDEX(A$2:A$102,_xlfn.AGGREGATE(15,6,(ROW($A$2:$A$102)-ROW($A$2)+1)/($B$2:$B$102=$F$2),ROWS(E$5:E7)))) -> 2009-12-13 | F7: =IF(ROWS(F$5:F7)>$G$2,"",INDEX(B$2:B$102,_xlfn.AGGREGATE(15,6,(ROW($A$2:$A$102)-ROW($A$2)+1)/($B$2:$B$102=$F$2),ROWS(F$5:F7)))) -> Sioux | G7: =IF(ROWS(G$5:G7)>$G$2,"",INDEX(C$2:C$102,_xlfn.AGGREGATE(15,6,(ROW($A$2:$A$102)-ROW($A$2)+1)/($B$2:$B$102=$F$2),ROWS(G$5:G7)))) -> 139.92 | I7: Chin | K7: =IF(ROWS(K$5:K7)>$G$2,"",INDEX(A$2:A$102,SMALL(IF($B$2:$B$102=$F$2,ROW($B$2:$B$102)-ROW($B$2)+1),ROWS(K$5:K7)))) -> 2009-12-13 | L7: =IF(ROWS(L$5:L7)>$G$2,"",INDEX(B$2:B$102,SMALL(IF($B$2:$B$102=$F$2,ROW($B$2:$B$102)-ROW($B$2)+1),ROWS(L$5:L7)))) -> Sioux | M7: =IF(ROWS(M$5:M7)>$G$2,"",INDEX(C$2:C$102,SMALL(IF($B$2:$B$102=$F$2,ROW($B$2:$B$102)-ROW($B$2)+1),ROWS(M$5:M7)))) -> 139.92
A8: 2009-12-07 | B8: Smith | C8: 80.81 | E8: =IF(ROWS(E$5:E8)>$G$2,"",INDEX(A$2:A$102,_xlfn.AGGREGATE(15,6,(ROW($A$2:$A$102)-ROW($A$2)+1)/($B$2:$B$102=$F$2),ROWS(E$5:E8)))) -> 2009-12-07 | F8: =IF(ROWS(F$5:F8)>$G$2,"",INDEX(B$2:B$102,_xlfn.AGGREGATE(15,6,(ROW($A$2:$A$102)-ROW($A$2)+1)/($B$2:$B$102=$F$2),ROWS(F$5:F8)))) -> Sioux | G8: =IF(ROWS(G$5:G8)>$G$2,"",INDEX(C$2:C$102,_xlfn.AGGREGATE(15,6,(ROW($A$2:$A$102)-ROW($A$2)+1)/($B$2:$B$102=$F$2),ROWS(G$5:G8)))) -> 147.53 | K8: =IF(ROWS(K$5:K8)>$G$2,"",INDEX(A$2:A$102,SMALL(IF($B$2:$B$102=$F$2,ROW($B$2:$B$102)-ROW($B$2)+1),ROWS(K$5:K8)))) -> 2009-12-07 | L8: =IF(ROWS(L$5:L8)>$G$2,"",INDEX(B$2:B$102,SMALL(IF($B$2:$B$102=$F$2,ROW($B$2:$B$102)-ROW($B$2)+1),ROWS(L$5:L8)))) -> Sioux | M8: =IF(ROWS(M$5:M8)>$G$2,"",INDEX(C$2:C$102,SMALL(IF($B$2:$B$102=$F$2,ROW($B$2:$B$102)-ROW($B$2)+1),ROWS(M$5:M8)))) -> 147.53
A9: 2009-11-23 | B9: Smith | C9: 125.38 | E9: =IF(ROWS(E$5:E9)>$G$2,"",INDEX(A$2:A$102,_xlfn.AGGREGATE(15,6,(ROW($A$2:$A$102)-ROW($A$2)+1)/($B$2:$B$102=$F$2),ROWS(E$5:E9)))) -> 2009-11-26 | F9: =IF(ROWS(F$5:F9)>$G$2,"",INDEX(B$2:B$102,_xlfn.AGGREGATE(15,6,(ROW($A$2:$A$102)-ROW($A$2)+1)/($B$2:$B$102=$F$2),ROWS(F$5:F9)))) -> Sioux | G9: =IF(ROWS(G$5:G9)>$G$2,"",INDEX(C$2:C$102,_xlfn.AGGREGATE(15,6,(ROW($A$2:$A$102)-ROW($A$2)+1)/($B$2:$B$102=$F$2),ROWS(G$5:G9)))) -> 79.42 | K9: =IF(ROWS(K$5:K9)>$G$2,"",INDEX(A$2:A$102,SMALL(IF($B$2:$B$102=$F$2,ROW($B$2:$B$102)-ROW($B$2)+1),ROWS(K$5:K9)))) -> 2009-11-26 | L9: =IF(ROWS(L$5:L9)>$G$2,"",INDEX(B$2:B$102,SMALL(IF($B$2:$B$102=$F$2,ROW($B$2:$B$102)-ROW($B$2)+1),ROWS(L$5:L9)))) -> Sioux | M9: =IF(ROWS(M$5:M9)>$G$2,"",INDEX(C$2:C$102,SMALL(IF($B$2:$B$102=$F$2,ROW($B$2:$B$102)-ROW($B$2)+1),ROWS(M$5:M9)))) -> 79.42
A10: 2009-11-23 | B10: Gault | C10: 78.95 | E10: =IF(ROWS(E$5:E10)>$G$2,"",INDEX(A$2:A$102,_xlfn.AGGREGATE(15,6,(ROW($A$2:$A$102)-ROW($A$2)+1)/($B$2:$B$102=$F$2),ROWS(E$5:E10)))) -> 2010-01-02 | F10: =IF(ROWS(F$5:F10)>$G$2,"",INDEX(B$2:B$102,_xlfn.AGGREGATE(15,6,(ROW($A$2:$A$102)-ROW($A$2)+1)/($B$2:$B$102=$F$2),ROWS(F$5:F10)))) -> Sioux | G10: =IF(ROWS(G$5:G10)>$G$2,"",INDEX(C$2:C$102,_xlfn.AGGREGATE(15,6,(ROW($A$2:$A$102)-ROW($A$2)+1)/($B$2:$B$102=$F$2),ROWS(G$5:G10)))) -> 76.59 | K10: =IF(ROWS(K$5:K10)>$G$2,"",INDEX(A$2:A$102,SMALL(IF($B$2:$B$102=$F$2,ROW($B$2:$B$102)-ROW($B$2)+1),ROWS(K$5:K10)))) -> 2010-01-02 | L10: =IF(ROWS(L$5:L10)>$G$2,"",INDEX(B$2:B$102,SMALL(IF($B$2:$B$102=$F$2,ROW($B$2:$B$102)-ROW($B$2)+1),ROWS(L$5:L10)))) -> Sioux | M10: =IF(ROWS(M$5:M10)>$G$2,"",INDEX(C$2:C$102,SMALL(IF($B$2:$B$102=$F$2,ROW($B$2:$B$102)-ROW($B$2)+1),ROWS(M$5:M10)))) -> 76.59
A11: 2010-01-23 | B11: Smith | C11: 113.86 | E11: =IF(ROWS(E$5:E11)>$G$2,"",INDEX(A$2:A$102,_xlfn.AGGREGATE(15,6,(ROW($A$2:$A$102)-ROW($A$2)+1)/($B$2:$B$102=$F$2),ROWS(E$5:E11)))) -> 2010-01-01 | F11: =IF(ROWS(F$5:F11)>$G$2,"",INDEX(B$2:B$102,_xlfn.AGGREGATE(15,6,(ROW($A$2:$A$102)-ROW($A$2)+1)/($B$2:$B$102=$F$2),ROWS(F$5:F11)))) -> Sioux | G11: =IF(ROWS(G$5:G11)>$G$2,"",INDEX(C$2:C$102,_xlfn.AGGREGATE(15,6,(ROW($A$2:$A$102)-ROW($A$2)+1)/($B$2:$B$102=$F$2),ROWS(G$5:G11)))) -> 104.57 | K11: =IF(ROWS(K$5:K11)>$G$2,"",INDEX(A$2:A$102,SMALL(IF($B$2:$B$102=$F$2,ROW($B$2:$B$102)-ROW($B$2)+1),ROWS(K$5:K11)))) -> 2010-01-01 | L11: =IF(ROWS(L$5:L11)>$G$2,"",INDEX(B$2:B$102,SMALL(IF($B$2:$B$102=$F$2,ROW($B$2:$B$102)-ROW($B$2)+1),ROWS(L$5:L11)))) -> Sioux | M11: =IF(ROWS(M$5:M11)>$G$2,"",INDEX(C$2:C$102,SMALL(IF($B$2:$B$102=$F$2,ROW($B$2:$B$102)-ROW($B$2)+1),ROWS(M$5:M11)))) -> 104.57
A12: 2010-01-21 | B12: Pham | C12: 139.38 | E12: =IF(ROWS(E$5:E12)>$G$2,"",INDEX(A$2:A$102,_xlfn.AGGREGATE(15,6,(ROW($A$2:$A$102)-ROW($A$2)+1)/($B$2:$B$102=$F$2),ROWS(E$5:E12)))) -> 2009-11-27 | F12: =IF(ROWS(F$5:F12)>$G$2,"",INDEX(B$2:B$102,_xlfn.AGGREGATE(15,6,(ROW($A$2:$A$102)-ROW($A$2)+1)/($B$2:$B$102=$F$2),ROWS(F$5:F12)))) -> Sioux | G12: =IF(ROWS(G$5:G12)>$G$2,"",INDEX(C$2:C$102,_xlfn.AGGREGATE(15,6,(ROW($A$2:$A$102)-ROW($A$2)+1)/($B$2:$B$102=$F$2),ROWS(G$5:G12)))) -> 119.53 | K12: =IF(ROWS(K$5:K12)>$G$2,"",INDEX(A$2:A$102,SMALL(IF($B$2:$B$102=$F$2,ROW($B$2:$B$102)-ROW($B$2)+1),ROWS(K$5:K12)))) -> 2009-11-27 | L12: =IF(ROWS(L$5:L12)>$G$2,"",INDEX(B$2:B$102,SMALL(IF($B$2:$B$102=$F$2,ROW($B$2:$B$102)-ROW($B$2)+1),ROWS(L$5:L12)))) -> Sioux | M12: =IF(ROWS(M$5:M12)>$G$2,"",INDEX(C$2:C$102,SMALL(IF($B$2:$B$102=$F$2,ROW($B$2:$B$102)-ROW($B$2)+1),ROWS(M$5:M12)))) -> 119.53
A13: 2009-12-20 | B13: Gault | C13: 98.71 | E13: =IF(ROWS(E$5:E13)>$G$2,"",INDEX(A$2:A$102,_xlfn.AGGREGATE(15,6,(ROW($A$2:$A$102)-ROW($A$2)+1)/($B$2:$B$102=$F$2),ROWS(E$5:E13)))) -> 2009-11-26 | F13: =IF(ROWS(F$5:F13)>$G$2,"",INDEX(B$2:B$102,_xlfn.AGGREGATE(15,6,(ROW($A$2:$A$102)-ROW($A$2)+1)/($B$2:$B$102=$F$2),ROWS(F$5:F13)))) -> Sioux | G13: =IF(ROWS(G$5:G13)>$G$2,"",INDEX(C$2:C$102,_xlfn.AGGREGATE(15,6,(ROW($A$2:$A$102)-ROW($A$2)+1)/($B$2:$B$102=$F$2),ROWS(G$5:G13)))) -> 139.13 | K13: =IF(ROWS(K$5:K13)>$G$2,"",INDEX(A$2:A$102,SMALL(IF($B$2:$B$102=$F$2,ROW($B$2:$B$102)-ROW($B$2)+1),ROWS(K$5:K13)))) -> 2009-11-26 | L13: =IF(ROWS(L$5:L13)>$G$2,"",INDEX(B$2:B$102,SMALL(IF($B$2:$B$102=$F$2,ROW($B$2:$B$102)-ROW($B$2)+1),ROWS(L$5:L13)))) -> Sioux | M13: =IF(ROWS(M$5:M13)>$G$2,"",INDEX(C$2:C$102,SMALL(IF($B$2:$B$102=$F$2,ROW($B$2:$B$102)-ROW($B$2)+1),ROWS(M$5:M13)))) -> 139.13
A14: 2009-12-07 | B14: Pham | C14: 76.65 | E14: =IF(ROWS(E$5:E14)>$G$2,"",INDEX(A$2:A$102,_xlfn.AGGREGATE(15,6,(ROW($A$2:$A$102)-ROW($A$2)+1)/($B$2:$B$102=$F$2),ROWS(E$5:E14)))) -> 2009-12-01 | F14: =IF(ROWS(F$5:F14)>$G$2,"",INDEX(B$2:B$102,_xlfn.AGGREGATE(15,6,(ROW($A$2:$A$102)-ROW($A$2)+1)/($B$2:$B$102=$F$2),ROWS(F$5:F14)))) -> Sioux | G14: =IF(ROWS(G$5:G14)>$G$2,"",INDEX(C$2:C$102,_xlfn.AGGREGATE(15,6,(ROW($A$2:$A$102)-ROW($A$2)+1)/($B$2:$B$102=$F$2),ROWS(G$5:G14)))) -> 112.5 | K14: =IF(ROWS(K$5:K14)>$G$2,"",INDEX(A$2:A$102,SMALL(IF($B$2:$B$102=$F$2,ROW($B$2:$B$102)-ROW($B$2)+1),ROWS(K$5:K14)))) -> 2009-12-01 | L14: =IF(ROWS(L$5:L14)>$G$2,"",INDEX(B$2:B$102,SMALL(IF($B$2:$B$102=$F$2,ROW($B$2:$B$102)-ROW($B$2)+1),ROWS(L$5:L14)))) -> Sioux | M14: =IF(ROWS(M$5:M14)>$G$2,"",INDEX(C$2:C$102,SMALL(IF($B$2:$B$102=$F$2,ROW($B$2:$B$102)-ROW($B$2)+1),ROWS(M$5:M14)))) -> 112.5
A15: 2010-02-11 | B15: Gault | C15: 126.62 | E15: =IF(ROWS(E$5:E15)>$G$2,"",INDEX(A$2:A$102,_xlfn.AGGREGATE(15,6,(ROW($A$2:$A$102)-ROW($A$2)+1)/($B$2:$B$102=$F$2),ROWS(E$5:E15)))) -> 2010-01-30 | F15: =IF(ROWS(F$5:F15)>$G$2,"",INDEX(B$2:B$102,_xlfn.AGGREGATE(15,6,(ROW($A$2:$A$102)-ROW($A$2)+1)/($B$2:$B$102=$F$2),ROWS(F$5:F15)))) -> Sioux | G15: =IF(ROWS(G$5:G15)>$G$2,"",INDEX(C$2:C$102,_xlfn.AGGREGATE(15,6,(ROW($A$2:$A$102)-ROW($A$2)+1)/($B$2:$B$102=$F$2),ROWS(G$5:G15)))) -> 104.5 | K15: =IF(ROWS(K$5:K15)>$G$2,"",INDEX(A$2:A$102,SMALL(IF($B$2:$B$102=$F$2,ROW($B$2:$B$102)-ROW($B$2)+1),ROWS(K$5:K15)))) -> 2010-01-30 | L15: =IF(ROWS(L$5:L15)>$G$2,"",INDEX(B$2:B$102,SMALL(IF($B$2:$B$102=$F$2,ROW($B$2:$B$102)-ROW($B$2)+1),ROWS(L$5:L15)))) -> Sioux | M15: =IF(ROWS(M$5:M15)>$G$2,"",INDEX(C$2:C$102,SMALL(IF($B$2:$B$102=$F$2,ROW($B$2:$B$102)-ROW($B$2)+1),ROWS(M$5:M15)))) -> 104.5
A16: 2010-01-13 | B16: Franks | C16: 107.9 | E16: =IF(ROWS(E$5:E16)>$G$2,"",INDEX(A$2:A$102,_xlfn.AGGREGATE(15,6,(ROW($A$2:$A$102)-ROW($A$2)+1)/($B$2:$B$102=$F$2),ROWS(E$5:E16)))) -> 2010-01-02 | F16: =IF(ROWS(F$5:F16)>$G$2,"",INDEX(B$2:B$102,_xlfn.AGGREGATE(15,6,(ROW($A$2:$A$102)-ROW($A$2)+1)/($B$2:$B$102=$F$2),ROWS(F$5:F16)))) -> Sioux | G16: =IF(ROWS(G$5:G16)>$G$2,"",INDEX(C$2:C$102,_xlfn.AGGREGATE(15,6,(ROW($A$2:$A$102)-ROW($A$2)+1)/($B$2:$B$102=$F$2),ROWS(G$5:G16)))) -> 143.85 | K16: =IF(ROWS(K$5:K16)>$G$2,"",INDEX(A$2:A$102,SMALL(IF($B$2:$B$102=$F$2,ROW($B$2:$B$102)-ROW($B$2)+1),ROWS(K$5:K16)))) -> 2010-01-02 | L16: =IF(ROWS(L$5:L16)>$G$2,"",INDEX(B$2:B$102,SMALL(IF($B$2:$B$102=$F$2,ROW($B$2:$B$102)-ROW($B$2)+1),ROWS(L$5:L16)))) -> Sioux | M16: =IF(ROWS(M$5:M16)>$G$2,"",INDEX(C$2:C$102,SMALL(IF($B$2:$B$102=$F$2,ROW($B$2:$B$102)-ROW($B$2)+1),ROWS(M$5:M16)))) -> 143.85
A17: 2010-01-28 | B17: Gault | C17: 130.54 | E17: =IF(ROWS(E$5:E17)>$G$2,"",INDEX(A$2:A$102,_xlfn.AGGREGATE(15,6,(ROW($A$2:$A$102)-ROW($A$2)+1)/($B$2:$B$102=$F$2),ROWS(E$5:E17)))) -> 2009-11-28 | F17: =IF(ROWS(F$5:F17)>$G$2,"",INDEX(B$2:B$102,_xlfn.AGGREGATE(15,6,(ROW($A$2:$A$102)-ROW($A$2)+1)/($B$2:$B$102=$F$2),ROWS(F$5:F17)))) -> Sioux | G17: =IF(ROWS(G$5:G17)>$G$2,"",INDEX(C$2:C$102,_xlfn.AGGREGATE(15,6,(ROW($A$2:$A$102)-ROW($A$2)+1)/($B$2:$B$102=$F$2),ROWS(G$5:G17)))) -> 114.53 | K17: =IF(ROWS(K$5:K17)>$G$2,"",INDEX(A$2:A$102,SMALL(IF($B$2:$B$102=$F$2,ROW($B$2:$B$102)-ROW($B$2)+1),ROWS(K$5:K17)))) -> 2009-11-28 | L17: =IF(ROWS(L$5:L17)>$G$2,"",INDEX(B$2:B$102,SMALL(IF($B$2:$B$102=$F$2,ROW($B$2:$B$102)-ROW($B$2)+1),ROWS(L$5:L17)))) -> Sioux | M17: =IF(ROWS(M$5:M17)>$G$2,"",INDEX(C$2:C$102,SMALL(IF($B$2:$B$102=$F$2,ROW($B$2:$B$102)-ROW($B$2)+1),ROWS(M$5:M17)))) -> 114.53
A18: 2010-01-25 | B18: Gault | C18: 140.71 | E18: =IF(ROWS(E$5:E18)>$G$2,"",INDEX(A$2:A$102,_xlfn.AGGREGATE(15,6,(ROW($A$2:$A$102)-ROW($A$2)+1)/($B$2:$B$102=$F$2),ROWS(E$5:E18)))) -> 2010-01-15 | F18: =IF(ROWS(F$5:F18)>$G$2,"",INDEX(B$2:B$102,_xlfn.AGGREGATE(15,6,(ROW($A$2:$A$102)-ROW($A$2)+1)/($B$2:$B$102=$F$2),ROWS(F$5:F18)))) -> Sioux | G18: =IF(ROWS(G$5:G18)>$G$2,"",INDEX(C$2:C$102,_xlfn.AGGREGATE(15,6,(ROW($A$2:$A$102)-ROW($A$2)+1)/($B$2:$B$102=$F$2),ROWS(G$5:G18)))) -> 96.17 | K18: =IF(ROWS(K$5:K18)>$G$2,"",INDEX(A$2:A$102,SMALL(IF($B$2:$B$102=$F$2,ROW($B$2:$B$102)-ROW($B$2)+1),ROWS(K$5:K18)))) -> 2010-01-15 | L18: =IF(ROWS(L$5:L18)>$G$2,"",INDEX(B$2:B$102,SMALL(IF($B$2:$B$102=$F$2,ROW($B$2:$B$102)-ROW($B$2)+1),ROWS(L$5:L18)))) -> Sioux | M18: =IF(ROWS(M$5:M18)>$G$2,"",INDEX(C$2:C$102,SMALL(IF($B$2:$B$102=$F$2,ROW($B$2:$B$102)-ROW($B$2)+1),ROWS(M$5:M18)))) -> 96.17
A19: 2010-02-10 | B19: Sioux | C19: 108.72 | E19: =IF(ROWS(E$5:E19)>$G$2,"",INDEX(A$2:A$102,_xlfn.AGGREGATE(15,6,(ROW($A$2:$A$102)-ROW($A$2)+1)/($B$2:$B$102=$F$2),ROWS(E$5:E19)))) ->  | F19: =IF(ROWS(F$5:F19)>$G$2,"",INDEX(B$2:B$102,_xlfn.AGGREGATE(15,6,(ROW($A$2:$A$102)-ROW($A$2)+1)/($B$2:$B$102=$F$2),ROWS(F$5:F19)))) ->  | G19: =IF(ROWS(G$5:G19)>$G$2,"",INDEX(C$2:C$102,_xlfn.AGGREGATE(15,6,(ROW($A$2:$A$102)-ROW($A$2)+1)/($B$2:$B$102=$F$2),ROWS(G$5:G19)))) ->  | K19: =IF(ROWS(K$5:K19)>$G$2,"",INDEX(A$2:A$102,SMALL(IF($B$2:$B$102=$F$2,ROW($B$2:$B$102)-ROW($B$2)+1),ROWS(K$5:K19)))) ->  | L19: =IF(ROWS(L$5:L19)>$G$2,"",INDEX(B$2:B$102,SMALL(IF($B$2:$B$102=$F$2,ROW($B$2:$B$102)-ROW($B$2)+1),ROWS(L$5:L19)))) ->  | M19: =IF(ROWS(M$5:M19)>$G$2,"",INDEX(C$2:C$102,SMALL(IF($B$2:$B$102=$F$2,ROW($B$2:$B$102)-ROW($B$2)+1),ROWS(M$5:M19)))) -> 
A20: 2009-12-26 | B20: Smith | C20: 135.18 | E20: =IF(ROWS(E$5:E20)>$G$2,"",INDEX(A$2:A$102,_xlfn.AGGREGATE(15,6,(ROW($A$2:$A$102)-ROW($A$2)+1)/($B$2:$B$102=$F$2),ROWS(E$5:E20)))) ->  | F20: =IF(ROWS(F$5:F20)>$G$2,"",INDEX(B$2:B$102,_xlfn.AGGREGATE(15,6,(ROW($A$2:$A$102)-ROW($A$2)+1)/($B$2:$B$102=$F$2),ROWS(F$5:F20)))) ->  | G20: =IF(ROWS(G$5:G20)>$G$2,"",INDEX(C$2:C$102,_xlfn.AGGREGATE(15,6,(ROW($A$2:$A$102)-ROW($A$2)+1)/($B$2:$B$102=$F$2),ROWS(G$5:G20)))) ->  | K20: =IF(ROWS(K$5:K20)>$G$2,"",INDEX(A$2:A$102,SMALL(IF($B$2:$B$102=$F$2,ROW($B$2:$B$102)-ROW($B$2)+1),ROWS(K$5:K20)))) ->  | L20: =IF(ROWS(L$5:L20)>$G$2,"",INDEX(B$2:B$102,SMALL(IF($B$2:$B$102=$F$2,ROW($B$2:$B$102)-ROW($B$2)+1),ROWS(L$5:L20)))) ->  | M20: =IF(ROWS(M$5:M20)>$G$2,"",INDEX(C$2:C$102,SMALL(IF($B$2:$B$102=$F$2,ROW($B$2:$B$102)-ROW($B$2)+1),ROWS(M$5:M20)))) -> 
A21: 2009-12-14 | B21: Gault | C21: 142.55 | E21: =IF(ROWS(E$5:E21)>$G$2,"",INDEX(A$2:A$102,_xlfn.AGGREGATE(15,6,(ROW($A$2:$A$102)-ROW($A$2)+1)/($B$2:$B$102=$F$2),ROWS(E$5:E21)))) ->  | F21: =IF(ROWS(F$5:F21)>$G$2,"",INDEX(B$2:B$102,_xlfn.AGGREGATE(15,6,(ROW($A$2:$A$102)-ROW($A$2)+1)/($B$2:$B$102=$F$2),ROWS(F$5:F21)))) ->  | G21: =IF(ROWS(G$5:G21)>$G$2,"",INDEX(C$2:C$102,_xlfn.AGGREGATE(15,6,(ROW($A$2:$A$102)-ROW($A$2)+1)/($B$2:$B$102=$F$2),ROWS(G$5:G21)))) ->  | K21: =IF(ROWS(K$5:K21)>$G$2,"",INDEX(A$2:A$102,SMALL(IF($B$2:$B$102=$F$2,ROW($B$2:$B$102)-ROW($B$2)+1),ROWS(K$5:K21)))) ->  | L21: =IF(ROWS(L$5:L21)>$G$2,"",INDEX(B$2:B$102,SMALL(IF($B$2:$B$102=$F$2,ROW($B$2:$B$102)-ROW($B$2)+1),ROWS(L$5:L21)))) ->  | M21: =IF(ROWS(M$5:M21)>$G$2,"",INDEX(C$2:C$102,SMALL(IF($B$2:$B$102=$F$2,ROW($B$2:$B$102)-ROW($B$2)+1),ROWS(M$5:M21)))) -> 
A22: 2010-02-12 | B22: Smith | C22: 140.54 | E22: =IF(ROWS(E$5:E22)>$G$2,"",INDEX(A$2:A$102,_xlfn.AGGREGATE(15,6,(ROW($A$2:$A$102)-ROW($A$2)+1)/($B$2:$B$102=$F$2),ROWS(E$5:E22)))) ->  | F22: =IF(ROWS(F$5:F22)>$G$2,"",INDEX(B$2:B$102,_xlfn.AGGREGATE(15,6,(ROW($A$2:$A$102)-ROW($A$2)+1)/($B$2:$B$102=$F$2),ROWS(F$5:F22)))) ->  | G22: =IF(ROWS(G$5:G22)>$G$2,"",INDEX(C$2:C$102,_xlfn.AGGREGATE(15,6,(ROW($A$2:$A$102)-ROW($A$2)+1)/($B$2:$B$102=$F$2),ROWS(G$5:G22)))) ->  | K22: =IF(ROWS(K$5:K22)>$G$2,"",INDEX(A$2:A$102,SMALL(IF($B$2:$B$102=$F$2,ROW($B$2:$B$102)-ROW($B$2)+1),ROWS(K$5:K22)))) ->  | L22: =IF(ROWS(L$5:L22)>$G$2,"",INDEX(B$2:B$102,SMALL(IF($B$2:$B$102=$F$2,ROW($B$2:$B$102)-ROW($B$2)+1),ROWS(L$5:L22)))) ->  | M22: =IF(ROWS(M$5:M22)>$G$2,"",INDEX(C$2:C$102,SMALL(IF($B$2:$B$102=$F$2,ROW($B$2:$B$102)-ROW($B$2)+1),ROWS(M$5:M22)))) -> 
A23: 2010-01-19 | B23: Franks | C23: 75.04 | E23: =IF(ROWS(E$5:E23)>$G$2,"",INDEX(A$2:A$102,_xlfn.AGGREGATE(15,6,(ROW($A$2:$A$102)-ROW($A$2)+1)/($B$2:$B$102=$F$2),ROWS(E$5:E23)))) ->  | F23: =IF(ROWS(F$5:F23)>$G$2,"",INDEX(B$2:B$102,_xlfn.AGGREGATE(15,6,(ROW($A$2:$A$102)-ROW($A$2)+1)/($B$2:$B$102=$F$2),ROWS(F$5:F23)))) ->  | G23: =IF(ROWS(G$5:G23)>$G$2,"",INDEX(C$2:C$102,_xlfn.AGGREGATE(15,6,(ROW($A$2:$A$102)-ROW($A$2)+1)/($B$2:$B$102=$F$2),ROWS(G$5:G23)))) ->  | K23: =IF(ROWS(K$5:K23)>$G$2,"",INDEX(A$2:A$102,SMALL(IF($B$2:$B$102=$F$2,ROW($B$2:$B$102)-ROW($B$2)+1),ROWS(K$5:K23)))) ->  | L23: =IF(ROWS(L$5:L23)>$G$2,"",INDEX(B$2:B$102,SMALL(IF($B$2:$B$102=$F$2,ROW($B$2:$B$102)-ROW($B$2)+1),ROWS(L$5:L23)))) ->  | M23: =IF(ROWS(M$5:M23)>$G$2,"",INDEX(C$2:C$102,SMALL(IF($B$2:$B$102=$F$2,ROW($B$2:$B$102)-ROW($B$2)+1),ROWS(M$5:M23)))) -> 
A24: 2010-02-16 | B24: Pham | C24: 93.15 | E24: =IF(ROWS(E$5:E24)>$G$2,"",INDEX(A$2:A$102,_xlfn.AGGREGATE(15,6,(ROW($A$2:$A$102)-ROW($A$2)+1)/($B$2:$B$102=$F$2),ROWS(E$5:E24)))) ->  | F24: =IF(ROWS(F$5:F24)>$G$2,"",INDEX(B$2:B$102,_xlfn.AGGREGATE(15,6,(ROW($A$2:$A$102)-ROW($A$2)+1)/($B$2:$B$102=$F$2),ROWS(F$5:F24)))) ->  | G24: =IF(ROWS(G$5:G24)>$G$2,"",INDEX(C$2:C$102,_xlfn.AGGREGATE(15,6,(ROW($A$2:$A$102)-ROW($A$2)+1)/($B$2:$B$102=$F$2),ROWS(G$5:G24)))) ->  | K24: =IF(ROWS(K$5:K24)>$G$2,"",INDEX(A$2:A$102,SMALL(IF($B$2:$B$102=$F$2,ROW($B$2:$B$102)-ROW($B$2)+1),ROWS(K$5:K24)))) ->  | L24: =IF(ROWS(L$5:L24)>$G$2,"",INDEX(B$2:B$102,SMALL(IF($B$2:$B$102=$F$2,ROW($B$2:$B$102)-ROW($B$2)+1),ROWS(L$5:L24)))) ->  | M24: =IF(ROWS(M$5:M24)>$G$2,"",INDEX(C$2:C$102,SMALL(IF($B$2:$B$102=$F$2,ROW($B$2:$B$102)-ROW($B$2)+1),ROWS(M$5:M24)))) -> 
A25: 2010-01-07 | B25: Sioux | C25: 132.51 | E25: =IF(ROWS(E$5:E25)>$G$2,"",INDEX(A$2:A$102,_xlfn.AGGREGATE(15,6,(ROW($A$2:$A$102)-ROW($A$2)+1)/($B$2:$B$102=$F$2),ROWS(E$5:E25)))) ->  | F25: =IF(ROWS(F$5:F25)>$G$2,"",INDEX(B$2:B$102,_xlfn.AGGREGATE(15,6,(ROW($A$2:$A$102)-ROW($A$2)+1)/($B$2:$B$102=$F$2),ROWS(F$5:F25)))) ->  | G25: =IF(ROWS(G$5:G25)>$G$2,"",INDEX(C$2:C$102,_xlfn.AGGREGATE(15,6,(ROW($A$2:$A$102)-ROW($A$2)+1)/($B$2:$B$102=$F$2),ROWS(G$5:G25)))) ->  | K25: =IF(ROWS(K$5:K25)>$G$2,"",INDEX(A$2:A$102,SMALL(IF($B$2:$B$102=$F$2,ROW($B$2:$B$102)-ROW($B$2)+1),ROWS(K$5:K25)))) ->  | L25: =IF(ROWS(L$5:L25)>$G$2,"",INDEX(B$2:B$102,SMALL(IF($B$2:$B$102=$F$2,ROW($B$2:$B$102)-ROW($B$2)+1),ROWS(L$5:L25)))) ->  | M25: =IF(ROWS(M$5:M25)>$G$2,"",INDEX(C$2:C$102,SMALL(IF($B$2:$B$102=$F$2,ROW($B$2:$B$102)-ROW($B$2)+1),ROWS(M$5:M25)))) -> 
A26: 2010-01-16 | B26: Chin | C26: 85.14 | E26: =IF(ROWS(E$5:E26)>$G$2,"",INDEX(A$2:A$102,_xlfn.AGGREGATE(15,6,(ROW($A$2:$A$102)-ROW($A$2)+1)/($B$2:$B$102=$F$2),ROWS(E$5:E26)))) ->  | F26: =IF(ROWS(F$5:F26)>$G$2,"",INDEX(B$2:B$102,_xlfn.AGGREGATE(15,6,(ROW($A$2:$A$102)-ROW($A$2)+1)/($B$2:$B$102=$F$2),ROWS(F$5:F26)))) ->  | G26: =IF(ROWS(G$5:G26)>$G$2,"",INDEX(C$2:C$102,_xlfn.AGGREGATE(15,6,(ROW($A$2:$A$102)-ROW($A$2)+1)/($B$2:$B$102=$F$2),ROWS(G$5:G26)))) ->  | K26: =IF(ROWS(K$5:K26)>$G$2,"",INDEX(A$2:A$102,SMALL(IF($B$2:$B$102=$F$2,ROW($B$2:$B$102)-ROW($B$2)+1),ROWS(K$5:K26)))) ->  | L26: =IF(ROWS(L$5:L26)>$G$2,"",INDEX(B$2:B$102,SMALL(IF($B$2:$B$102=$F$2,ROW($B$2:$B$102)-ROW($B$2)+1),ROWS(L$5:L26)))) ->  | M26: =IF(ROWS(M$5:M26)>$G$2,"",INDEX(C$2:C$102,SMALL(IF($B$2:$B$102=$F$2,ROW($B$2:$B$102)-ROW($B$2)+1),ROWS(M$5:M26)))) -> 
A27: 2010-02-15 | B27: Franks | C27: 108.85 | E27: =IF(ROWS(E$5:E27)>$G$2,"",INDEX(A$2:A$102,_xlfn.AGGREGATE(15,6,(ROW($A$2:$A$102)-ROW($A$2)+1)/($B$2:$B$102=$F$2),ROWS(E$5:E27)))) ->  | F27: =IF(ROWS(F$5:F27)>$G$2,"",INDEX(B$2:B$102,_xlfn.AGGREGATE(15,6,(ROW($A$2:$A$102)-ROW($A$2)+1)/($B$2:$B$102=$F$2),ROWS(F$5:F27)))) ->  | G27: =IF(ROWS(G$5:G27)>$G$2,"",INDEX(C$2:C$102,_xlfn.AGGREGATE(15,6,(ROW($A$2:$A$102)-ROW($A$2)+1)/($B$2:$B$102=$F$2),ROWS(G$5:G27)))) ->  | K27: =IF(ROWS(K$5:K27)>$G$2,"",INDEX(A$2:A$102,SMALL(IF($B$2:$B$102=$F$2,ROW($B$2:$B$102)-ROW($B$2)+1),ROWS(K$5:K27)))) ->  | L27: =IF(ROWS(L$5:L27)>$G$2,"",INDEX(B$2:B$102,SMALL(IF($B$2:$B$102=$F$2,ROW($B$2:$B$102)-ROW($B$2)+1),ROWS(L$5:L27)))) ->  | M27: =IF(ROWS(M$5:M27)>$G$2,"",INDEX(C$2:C$102,SMALL(IF($B$2:$B$102=$F$2,ROW($B$2:$B$102)-ROW($B$2)+1),ROWS(M$5:M27)))) -> 
A28: 2009-12-13 | B28: Sioux | C28: 139.92 | E28: =IF(ROWS(E$5:E28)>$G$2,"",INDEX(A$2:A$102,_xlfn.AGGREGATE(15,6,(ROW($A$2:$A$102)-ROW($A$2)+1)/($B$2:$B$102=$F$2),ROWS(E$5:E28)))) ->  | F28: =IF(ROWS(F$5:F28)>$G$2,"",INDEX(B$2:B$102,_xlfn.AGGREGATE(15,6,(ROW($A$2:$A$102)-ROW($A$2)+1)/($B$2:$B$102=$F$2),ROWS(F$5:F28)))) ->  | G28: =IF(ROWS(G$5:G28)>$G$2,"",INDEX(C$2:C$102,_xlfn.AGGREGATE(15,6,(ROW($A$2:$A$102)-ROW($A$2)+1)/($B$2:$B$102=$F$2),ROWS(G$5:G28)))) ->  | K28: =IF(ROWS(K$5:K28)>$G$2,"",INDEX(A$2:A$102,SMALL(IF($B$2:$B$102=$F$2,ROW($B$2:$B$102)-ROW($B$2)+1),ROWS(K$5:K28)))) ->  | L28: =IF(ROWS(L$5:L28)>$G$2,"",INDEX(B$2:B$102,SMALL(IF($B$2:$B$102=$F$2,ROW($B$2:$B$102)-ROW($B$2)+1),ROWS(L$5:L28)))) ->  | M28: =IF(ROWS(M$5:M28)>$G$2,"",INDEX(C$2:C$102,SMALL(IF($B$2:$B$102=$F$2,ROW($B$2:$B$102)-ROW($B$2)+1),ROWS(M$5:M28)))) -> 
A29: 2010-01-04 | B29: Franks | C29: 104.35 | E29: =IF(ROWS(E$5:E29)>$G$2,"",INDEX(A$2:A$102,_xlfn.AGGREGATE(15,6,(ROW($A$2:$A$102)-ROW($A$2)+1)/($B$2:$B$102=$F$2),ROWS(E$5:E29)))) ->  | F29: =IF(ROWS(F$5:F29)>$G$2,"",INDEX(B$2:B$102,_xlfn.AGGREGATE(15,6,(ROW($A$2:$A$102)-ROW($A$2)+1)/($B$2:$B$102=$F$2),ROWS(F$5:F29)))) ->  | G29: =IF(ROWS(G$5:G29)>$G$2,"",INDEX(C$2:C$102,_xlfn.AGGREGATE(15,6,(ROW($A$2:$A$102)-ROW($A$2)+1)/($B$2:$B$102=$F$2),ROWS(G$5:G29)))) ->  | K29: =IF(ROWS(K$5:K29)>$G$2,"",INDEX(A$2:A$102,SMALL(IF($B$2:$B$102=$F$2,ROW($B$2:$B$102)-ROW($B$2)+1),ROWS(K$5:K29)))) ->  | L29: =IF(ROWS(L$5:L29)>$G$2,"",INDEX(B$2:B$102,SMALL(IF($B$2:$B$102=$F$2,ROW($B$2:$B$102)-ROW($B$2)+1),ROWS(L$5:L29)))) ->  | M29: =IF(ROWS(M$5:M29)>$G$2,"",INDEX(C$2:C$102,SMALL(IF($B$2:$B$102=$F$2,ROW($B$2:$B$102)-ROW($B$2)+1),ROWS(M$5:M29)))) -> 
A30: 2009-12-14 | B30: Gault | C30: 88.51 | E30: =IF(ROWS(E$5:E30)>$G$2,"",INDEX(A$2:A$102,_xlfn.AGGREGATE(15,6,(ROW($A$2:$A$102)-ROW($A$2)+1)/($B$2:$B$102=$F$2),ROWS(E$5:E30)))) ->  | F30: =IF(ROWS(F$5:F30)>$G$2,"",INDEX(B$2:B$102,_xlfn.AGGREGATE(15,6,(ROW($A$2:$A$102)-ROW($A$2)+1)/($B$2:$B$102=$F$2),ROWS(F$5:F30)))) ->  | G30: =IF(ROWS(G$5:G30)>$G$2,"",INDEX(C$2:C$102,_xlfn.AGGREGATE(15,6,(ROW($A$2:$A$102)-ROW($A$2)+1)/($B$2:$B$102=$F$2),ROWS(G$5:G30)))) ->  | K30: =IF(ROWS(K$5:K30)>$G$2,"",INDEX(A$2:A$102,SMALL(IF($B$2:$B$102=$F$2,ROW($B$2:$B$102)-ROW($B$2)+1),ROWS(K$5:K30)))) ->  | L30: =IF(ROWS(L$5:L30)>$G$2,"",INDEX(B$2:B$102,SMALL(IF($B$2:$B$102=$F$2,ROW($B$2:$B$102)-ROW($B$2)+1),ROWS(L$5:L30)))) ->  | M30: =IF(ROWS(M$5:M30)>$G$2,"",INDEX(C$2:C$102,SMALL(IF($B$2:$B$102=$F$2,ROW($B$2:$B$102)-ROW($B$2)+1),ROWS(M$5:M30)))) -> 
A31: 2010-02-01 | B31: Gault | C31: 136.76 | E31: =IF(ROWS(E$5:E31)>$G$2,"",INDEX(A$2:A$102,_xlfn.AGGREGATE(15,6,(ROW($A$2:$A$102)-ROW($A$2)+1)/($B$2:$B$102=$F$2),ROWS(E$5:E31)))) ->  | F31: =IF(ROWS(F$5:F31)>$G$2,"",INDEX(B$2:B$102,_xlfn.AGGREGATE(15,6,(ROW($A$2:$A$102)-ROW($A$2)+1)/($B$2:$B$102=$F$2),ROWS(F$5:F31)))) ->  | G31: =IF(ROWS(G$5:G31)>$G$2,"",INDEX(C$2:C$102,_xlfn.AGGREGATE(15,6,(ROW($A$2:$A$102)-ROW($A$2)+1)/($B$2:$B$102=$F$2),ROWS(G$5:G31)))) ->  | K31: =IF(ROWS(K$5:K31)>$G$2,"",INDEX(A$2:A$102,SMALL(IF($B$2:$B$102=$F$2,ROW($B$2:$B$102)-ROW($B$2)+1),ROWS(K$5:K31)))) ->  | L31: =IF(ROWS(L$5:L31)>$G$2,"",INDEX(B$2:B$102,SMALL(IF($B$2:$B$102=$F$2,ROW($B$2:$B$102)-ROW($B$2)+1),ROWS(L$5:L31)))) ->  | M31: =IF(ROWS(M$5:M31)>$G$2,"",INDEX(C$2:C$102,SMALL(IF($B$2:$B$102=$F$2,ROW($B$2:$B$102)-ROW($B$2)+1),ROWS(M$5:M31)))) -> 
A32: 2009-11-25 | B32: Pham | C32: 109.57 | E32: =IF(ROWS(E$5:E32)>$G$2,"",INDEX(A$2:A$102,_xlfn.AGGREGATE(15,6,(ROW($A$2:$A$102)-ROW($A$2)+1)/($B$2:$B$102=$F$2),ROWS(E$5:E32)))) ->  | F32: =IF(ROWS(F$5:F32)>$G$2,"",INDEX(B$2:B$102,_xlfn.AGGREGATE(15,6,(ROW($A$2:$A$102)-ROW($A$2)+1)/($B$2:$B$102=$F$2),ROWS(F$5:F32)))) ->  | G32: =IF(ROWS(G$5:G32)>$G$2,"",INDEX(C$2:C$102,_xlfn.AGGREGATE(15,6,(ROW($A$2:$A$102)-ROW($A$2)+1)/($B$2:$B$102=$F$2),ROWS(G$5:G32)))) ->  | K32: =IF(ROWS(K$5:K32)>$G$2,"",INDEX(A$2:A$102,SMALL(IF($B$2:$B$102=$F$2,ROW($B$2:$B$102)-ROW($B$2)+1),ROWS(K$5:K32)))) ->  | L32: =IF(ROWS(L$5:L32)>$G$2,"",INDEX(B$2:B$102,SMALL(IF($B$2:$B$102=$F$2,ROW($B$2:$B$102)-ROW($B$2)+1),ROWS(L$5:L32)))) ->  | M32: =IF(ROWS(M$5:M32)>$G$2,"",INDEX(C$2:C$102,SMALL(IF($B$2:$B$102=$F$2,ROW($B$2:$B$102)-ROW($B$2)+1),ROWS(M$5:M32)))) -> 
A33: 2010-02-07 | B33: Franks | C33: 125.81 | E33: =IF(ROWS(E$5:E33)>$G$2,"",INDEX(A$2:A$102,_xlfn.AGGREGATE(15,6,(ROW($A$2:$A$102)-ROW($A$2)+1)/($B$2:$B$102=$F$2),ROWS(E$5:E33)))) ->  | F33: =IF(ROWS(F$5:F33)>$G$2,"",INDEX(B$2:B$102,_xlfn.AGGREGATE(15,6,(ROW($A$2:$A$102)-ROW($A$2)+1)/($B$2:$B$102=$F$2),ROWS(F$5:F33)))) ->  | G33: =IF(ROWS(G$5:G33)>$G$2,"",INDEX(C$2:C$102,_xlfn.AGGREGATE(15,6,(ROW($A$2:$A$102)-ROW($A$2)+1)/($B$2:$B$102=$F$2),ROWS(G$5:G33)))) ->  | K33: =IF(ROWS(K$5:K33)>$G$2,"",INDEX(A$2:A$102,SMALL(IF($B$2:$B$102=$F$2,ROW($B$2:$B$102)-ROW($B$2)+1),ROWS(K$5:K33)))) ->  | L33: =IF(ROWS(L$5:L33)>$G$2,"",INDEX(B$2:B$102,SMALL(IF($B$2:$B$102=$F$2,ROW($B$2:$B$102)-ROW($B$2)+1),ROWS(L$5:L33)))) ->  | M33: =IF(ROWS(M$5:M33)>$G$2,"",INDEX(C$2:C$102,SMALL(IF($B$2:$B$102=$F$2,ROW($B$2:$B$102)-ROW($B$2)+1),ROWS(M$5:M33)))) -> 
A34: 2009-12-22 | B34: Pham | C34: 150.09 | E34: =IF(ROWS(E$5:E34)>$G$2,"",INDEX(A$2:A$102,_xlfn.AGGREGATE(15,6,(ROW($A$2:$A$102)-ROW($A$2)+1)/($B$2:$B$102=$F$2),ROWS(E$5:E34)))) ->  | F34: =IF(ROWS(F$5:F34)>$G$2,"",INDEX(B$2:B$102,_xlfn.AGGREGATE(15,6,(ROW($A$2:$A$102)-ROW($A$2)+1)/($B$2:$B$102=$F$2),ROWS(F$5:F34)))) ->  | G34: =IF(ROWS(G$5:G34)>$G$2,"",INDEX(C$2:C$102,_xlfn.AGGREGATE(15,6,(ROW($A$2:$A$102)-ROW($A$2)+1)/($B$2:$B$102=$F$2),ROWS(G$5:G34)))) ->  | K34: =IF(ROWS(K$5:K34)>$G$2,"",INDEX(A$2:A$102,SMALL(IF($B$2:$B$102=$F$2,ROW($B$2:$B$102)-ROW($B$2)+1),ROWS(K$5:K34)))) ->  | L34: =IF(ROWS(L$5:L34)>$G$2,"",INDEX(B$2:B$102,SMALL(IF($B$2:$B$102=$F$2,ROW($B$2:$B$102)-ROW($B$2)+1),ROWS(L$5:L34)))) ->  | M34: =IF(ROWS(M$5:M34)>$G$2,"",INDEX(C$2:C$102,SMALL(IF($B$2:$B$102=$F$2,ROW($B$2:$B$102)-ROW($B$2)+1),ROWS(M$5:M34)))) -> 
A35: 2009-12-07 | B35: Sioux | C35: 147.53 | E35: =IF(ROWS(E$5:E35)>$G$2,"",INDEX(A$2:A$102,_xlfn.AGGREGATE(15,6,(ROW($A$2:$A$102)-ROW($A$2)+1)/($B$2:$B$102=$F$2),ROWS(E$5:E35)))) ->  | F35: =IF(ROWS(F$5:F35)>$G$2,"",INDEX(B$2:B$102,_xlfn.AGGREGATE(15,6,(ROW($A$2:$A$102)-ROW($A$2)+1)/($B$2:$B$102=$F$2),ROWS(F$5:F35)))) ->  | G35: =IF(ROWS(G$5:G35)>$G$2,"",INDEX(C$2:C$102,_xlfn.AGGREGATE(15,6,(ROW($A$2:$A$102)-ROW($A$2)+1)/($B$2:$B$102=$F$2),ROWS(G$5:G35)))) ->  | K35: =IF(ROWS(K$5:K35)>$G$2,"",INDEX(A$2:A$102,SMALL(IF($B$2:$B$102=$F$2,ROW($B$2:$B$102)-ROW($B$2)+1),ROWS(K$5:K35)))) ->  | L35: =IF(ROWS(L$5:L35)>$G$2,"",INDEX(B$2:B$102,SMALL(IF($B$2:$B$102=$F$2,ROW($B$2:$B$102)-ROW($B$2)+1),ROWS(L$5:L35)))) ->  | M35: =IF(ROWS(M$5:M35)>$G$2,"",INDEX(C$2:C$102,SMALL(IF($B$2:$B$102=$F$2,ROW($B$2:$B$102)-ROW($B$2)+1),ROWS(M$5:M35)))) -> 
A36: 2009-12-12 | B36: Chin | C36: 102.17 | E36: =IF(ROWS(E$5:E36)>$G$2,"",INDEX(A$2:A$102,_xlfn.AGGREGATE(15,6,(ROW($A$2:$A$102)-ROW($A$2)+1)/($B$2:$B$102=$F$2),ROWS(E$5:E36)))) ->  | F36: =IF(ROWS(F$5:F36)>$G$2,"",INDEX(B$2:B$102,_xlfn.AGGREGATE(15,6,(ROW($A$2:$A$102)-ROW($A$2)+1)/($B$2:$B$102=$F$2),ROWS(F$5:F36)))) ->  | G36: =IF(ROWS(G$5:G36)>$G$2,"",INDEX(C$2:C$102,_xlfn.AGGREGATE(15,6,(ROW($A$2:$A$102)-ROW($A$2)+1)/($B$2:$B$102=$F$2),ROWS(G$5:G36)))) ->  | K36: =IF(ROWS(K$5:K36)>$G$2,"",INDEX(A$2:A$102,SMALL(IF($B$2:$B$102=$F$2,ROW($B$2:$B$102)-ROW($B$2)+1),ROWS(K$5:K36)))) ->  | L36: =IF(ROWS(L$5:L36)>$G$2,"",INDEX(B$2:B$102,SMALL(IF($B$2:$B$102=$F$2,ROW($B$2:$B$102)-ROW($B$2)+1),ROWS(L$5:L36)))) ->  | M36: =IF(ROWS(M$5:M36)>$G$2,"",INDEX(C$2:C$102,SMALL(IF($B$2:$B$102=$F$2,ROW($B$2:$B$102)-ROW($B$2)+1),ROWS(M$5:M36)))) -> 
A37: 2009-12-30 | B37: Smith | C37: 114.4 | E37: =IF(ROWS(E$5:E37)>$G$2,"",INDEX(A$2:A$102,_xlfn.AGGREGATE(15,6,(ROW($A$2:$A$102)-ROW($A$2)+1)/($B$2:$B$102=$F$2),ROWS(E$5:E37)))) ->  | F37: =IF(ROWS(F$5:F37)>$G$2,"",INDEX(B$2:B$102,_xlfn.AGGREGATE(15,6,(ROW($A$2:$A$102)-ROW($A$2)+1)/($B$2:$B$102=$F$2),ROWS(F$5:F37)))) ->  | G37: =IF(ROWS(G$5:G37)>$G$2,"",INDEX(C$2:C$102,_xlfn.AGGREGATE(15,6,(ROW($A$2:$A$102)-ROW($A$2)+1)/($B$2:$B$102=$F$2),ROWS(G$5:G37)))) ->  | K37: =IF(ROWS(K$5:K37)>$G$2,"",INDEX(A$2:A$102,SMALL(IF($B$2:$B$102=$F$2,ROW($B$2:$B$102)-ROW($B$2)+1),ROWS(K$5:K37)))) ->  | L37: =IF(ROWS(L$5:L37)>$G$2,"",INDEX(B$2:B$102,SMALL(IF($B$2:$B$102=$F$2,ROW($B$2:$B$102)-ROW($B$2)+1),ROWS(L$5:L37)))) ->  | M37: =IF(ROWS(M$5:M37)>$G$2,"",INDEX(C$2:C$102,SMALL(IF($B$2:$B$102=$F$2,ROW($B$2:$B$102)-ROW($B$2)+1),ROWS(M$5:M37)))) -> 
A38: 2009-12-27 | B38: Chin | C38: 129.65 | E38: =IF(ROWS(E$5:E38)>$G$2,"",INDEX(A$2:A$102,_xlfn.AGGREGATE(15,6,(ROW($A$2:$A$102)-ROW($A$2)+1)/($B$2:$B$102=$F$2),ROWS(E$5:E38)))) ->  | F38: =IF(ROWS(F$5:F38)>$G$2,"",INDEX(B$2:B$102,_xlfn.AGGREGATE(15,6,(ROW($A$2:$A$102)-ROW($A$2)+1)/($B$2:$B$102=$F$2),ROWS(F$5:F38)))) ->  | G38: =IF(ROWS(G$5:G38)>$G$2,"",INDEX(C$2:C$102,_xlfn.AGGREGATE(15,6,(ROW($A$2:$A$102)-ROW($A$2)+1)/($B$2:$B$102=$F$2),ROWS(G$5:G38)))) ->  | K38: =IF(ROWS(K$5:K38)>$G$2,"",INDEX(A$2:A$102,SMALL(IF($B$2:$B$102=$F$2,ROW($B$2:$B$102)-ROW($B$2)+1),ROWS(K$5:K38)))) ->  | L38: =IF(ROWS(L$5:L38)>$G$2,"",INDEX(B$2:B$102,SMALL(IF($B$2:$B$102=$F$2,ROW($B$2:$B$102)-ROW($B$2)+1),ROWS(L$5:L38)))) ->  | M38: =IF(ROWS(M$5:M38)>$G$2,"",INDEX(C$2:C$102,SMALL(IF($B$2:$B$102=$F$2,ROW($B$2:$B$102)-ROW($B$2)+1),ROWS(M$5:M38)))) -> 
A39: 2009-12-29 | B39: Chin | C39: 128.95 | E39: =IF(ROWS(E$5:E39)>$G$2,"",INDEX(A$2:A$102,_xlfn.AGGREGATE(15,6,(ROW($A$2:$A$102)-ROW($A$2)+1)/($B$2:$B$102=$F$2),ROWS(E$5:E39)))) ->  | F39: =IF(ROWS(F$5:F39)>$G$2,"",INDEX(B$2:B$102,_xlfn.AGGREGATE(15,6,(ROW($A$2:$A$102)-ROW($A$2)+1)/($B$2:$B$102=$F$2),ROWS(F$5:F39)))) ->  | G39: =IF(ROWS(G$5:G39)>$G$2,"",INDEX(C$2:C$102,_xlfn.AGGREGATE(15,6,(ROW($A$2:$A$102)-ROW($A$2)+1)/($B$2:$B$102=$F$2),ROWS(G$5:G39)))) ->  | K39: =IF(ROWS(K$5:K39)>$G$2,"",INDEX(A$2:A$102,SMALL(IF($B$2:$B$102=$F$2,ROW($B$2:$B$102)-ROW($B$2)+1),ROWS(K$5:K39)))) ->  | L39: =IF(ROWS(L$5:L39)>$G$2,"",INDEX(B$2:B$102,SMALL(IF($B$2:$B$102=$F$2,ROW($B$2:$B$102)-ROW($B$2)+1),ROWS(L$5:L39)))) ->  | M39: =IF(ROWS(M$5:M39)>$G$2,"",INDEX(C$2:C$102,SMALL(IF($B$2:$B$102=$F$2,ROW($B$2:$B$102)-ROW($B$2)+1),ROWS(M$5:M39)))) -> 
A40: 2010-01-05 | B40: Gault | C40: 121.33 | E40: =IF(ROWS(E$5:E40)>$G$2,"",INDEX(A$2:A$102,_xlfn.AGGREGATE(15,6,(ROW($A$2:$A$102)-ROW($A$2)+1)/($B$2:$B$102=$F$2),ROWS(E$5:E40)))) ->  | F40: =IF(ROWS(F$5:F40)>$G$2,"",INDEX(B$2:B$102,_xlfn.AGGREGATE(15,6,(ROW($A$2:$A$102)-ROW($A$2)+1)/($B$2:$B$102=$F$2),ROWS(F$5:F40)))) ->  | G40: =IF(ROWS(G$5:G40)>$G$2,"",INDEX(C$2:C$102,_xlfn.AGGREGATE(15,6,(ROW($A$2:$A$102)-ROW($A$2)+1)/($B$2:$B$102=$F$2),ROWS(G$5:G40)))) ->  | K40: =IF(ROWS(K$5:K40)>$G$2,"",INDEX(A$2:A$102,SMALL(IF($B$2:$B$102=$F$2,ROW($B$2:$B$102)-ROW($B$2)+1),ROWS(K$5:K40)))) ->  | L40: =IF(ROWS(L$5:L40)>$G$2,"",INDEX(B$2:B$102,SMALL(IF($B$2:$B$102=$F$2,ROW($B$2:$B$102)-ROW($B$2)+1),ROWS(L$5:L40)))) ->  | M40: =IF(ROWS(M$5:M40)>$G$2,"",INDEX(C$2:C$102,SMALL(IF($B$2:$B$102=$F$2,ROW($B$2:$B$102)-ROW($B$2)+1),ROWS(M$5:M40)))) -> 
A41: 2009-12-15 | B41: Pham | C41: 102.64 | E41: =IF(ROWS(E$5:E41)>$G$2,"",INDEX(A$2:A$102,_xlfn.AGGREGATE(15,6,(ROW($A$2:$A$102)-ROW($A$2)+1)/($B$2:$B$102=$F$2),ROWS(E$5:E41)))) ->  | F41: =IF(ROWS(F$5:F41)>$G$2,"",INDEX(B$2:B$102,_xlfn.AGGREGATE(15,6,(ROW($A$2:$A$102)-ROW($A$2)+1)/($B$2:$B$102=$F$2),ROWS(F$5:F41)))) ->  | G41: =IF(ROWS(G$5:G41)>$G$2,"",INDEX(C$2:C$102,_xlfn.AGGREGATE(15,6,(ROW($A$2:$A$102)-ROW($A$2)+1)/($B$2:$B$102=$F$2),ROWS(G$5:G41)))) ->  | K41: =IF(ROWS(K$5:K41)>$G$2,"",INDEX(A$2:A$102,SMALL(IF($B$2:$B$102=$F$2,ROW($B$2:$B$102)-ROW($B$2)+1),ROWS(K$5:K41)))) ->  | L41: =IF(ROWS(L$5:L41)>$G$2,"",INDEX(B$2:B$102,SMALL(IF($B$2:$B$102=$F$2,ROW($B$2:$B$102)-ROW($B$2)+1),ROWS(L$5:L41)))) ->  | M41: =IF(ROWS(M$5:M41)>$G$2,"",INDEX(C$2:C$102,SMALL(IF($B$2:$B$102=$F$2,ROW($B$2:$B$102)-ROW($B$2)+1),ROWS(M$5:M41)))) -> 
A42: 2009-12-01 | B42: Pham | C42: 132.12 | E42: =IF(ROWS(E$5:E42)>$G$2,"",INDEX(A$2:A$102,_xlfn.AGGREGATE(15,6,(ROW($A$2:$A$102)-ROW($A$2)+1)/($B$2:$B$102=$F$2),ROWS(E$5:E42)))) ->  | F42: =IF(ROWS(F$5:F42)>$G$2,"",INDEX(B$2:B$102,_xlfn.AGGREGATE(15,6,(ROW($A$2:$A$102)-ROW($A$2)+1)/($B$2:$B$102=$F$2),ROWS(F$5:F42)))) ->  | G42: =IF(ROWS(G$5:G42)>$G$2,"",INDEX(C$2:C$102,_xlfn.AGGREGATE(15,6,(ROW($A$2:$A$102)-ROW($A$2)+1)/($B$2:$B$102=$F$2),ROWS(G$5:G42)))) ->  | K42: =IF(ROWS(K$5:K42)>$G$2,"",INDEX(A$2:A$102,SMALL(IF($B$2:$B$102=$F$2,ROW($B$2:$B$102)-ROW($B$2)+1),ROWS(K$5:K42)))) ->  | L42: =IF(ROWS(L$5:L42)>$G$2,"",INDEX(B$2:B$102,SMALL(IF($B$2:$B$102=$F$2,ROW($B$2:$B$102)-ROW($B$2)+1),ROWS(L$5:L42)))) ->  | M42: =IF(ROWS(M$5:M42)>$G$2,"",INDEX(C$2:C$102,SMALL(IF($B$2:$B$102=$F$2,ROW($B$2:$B$102)-ROW($B$2)+1),ROWS(M$5:M42)))) -> 
A43: 2010-02-07 | B43: Franks | C43: 100.83 | E43: =IF(ROWS(E$5:E43)>$G$2,"",INDEX(A$2:A$102,_xlfn.AGGREGATE(15,6,(ROW($A$2:$A$102)-ROW($A$2)+1)/($B$2:$B$102=$F$2),ROWS(E$5:E43)))) ->  | F43: =IF(ROWS(F$5:F43)>$G$2,"",INDEX(B$2:B$102,_xlfn.AGGREGATE(15,6,(ROW($A$2:$A$102)-ROW($A$2)+1)/($B$2:$B$102=$F$2),ROWS(F$5:F43)))) ->  | G43: =IF(ROWS(G$5:G43)>$G$2,"",INDEX(C$2:C$102,_xlfn.AGGREGATE(15,6,(ROW($A$2:$A$102)-ROW($A$2)+1)/($B$2:$B$102=$F$2),ROWS(G$5:G43)))) ->  | K43: =IF(ROWS(K$5:K43)>$G$2,"",INDEX(A$2:A$102,SMALL(IF($B$2:$B$102=$F$2,ROW($B$2:$B$102)-ROW($B$2)+1),ROWS(K$5:K43)))) ->  | L43: =IF(ROWS(L$5:L43)>$G$2,"",INDEX(B$2:B$102,SMALL(IF($B$2:$B$102=$F$2,ROW($B$2:$B$102)-ROW($B$2)+1),ROWS(L$5:L43)))) ->  | M43: =IF(ROWS(M$5:M43)>$G$2,"",INDEX(C$2:C$102,SMALL(IF($B$2:$B$102=$F$2,ROW($B$2:$B$102)-ROW($B$2)+1),ROWS(M$5:M43)))) -> 
A44: 2009-11-26 | B44: Sioux | C44: 79.42 | E44: =IF(ROWS(E$5:E44)>$G$2,"",INDEX(A$2:A$102,_xlfn.AGGREGATE(15,6,(ROW($A$2:$A$102)-ROW($A$2)+1)/($B$2:$B$102=$F$2),ROWS(E$5:E44)))) ->  | F44: =IF(ROWS(F$5:F44)>$G$2,"",INDEX(B$2:B$102,_xlfn.AGGREGATE(15,6,(ROW($A$2:$A$102)-ROW($A$2)+1)/($B$2:$B$102=$F$2),ROWS(F$5:F44)))) ->  | G44: =IF(ROWS(G$5:G44)>$G$2,"",INDEX(C$2:C$102,_xlfn.AGGREGATE(15,6,(ROW($A$2:$A$102)-ROW($A$2)+1)/($B$2:$B$102=$F$2),ROWS(G$5:G44)))) ->  | K44: =IF(ROWS(K$5:K44)>$G$2,"",INDEX(A$2:A$102,SMALL(IF($B$2:$B$102=$F$2,ROW($B$2:$B$102)-ROW($B$2)+1),ROWS(K$5:K44)))) ->  | L44: =IF(ROWS(L$5:L44)>$G$2,"",INDEX(B$2:B$102,SMALL(IF($B$2:$B$102=$F$2,ROW($B$2:$B$102)-ROW($B$2)+1),ROWS(L$5:L44)))) ->  | M44: =IF(ROWS(M$5:M44)>$G$2,"",INDEX(C$2:C$102,SMALL(IF($B$2:$B$102=$F$2,ROW($B$2:$B$102)-ROW($B$2)+1),ROWS(M$5:M44)))) -> 
A45: 2010-01-04 | B45: Pham | C45: 100.09 | E45: =IF(ROWS(E$5:E45)>$G$2,"",INDEX(A$2:A$102,_xlfn.AGGREGATE(15,6,(ROW($A$2:$A$102)-ROW($A$2)+1)/($B$2:$B$102=$F$2),ROWS(E$5:E45)))) ->  | F45: =IF(ROWS(F$5:F45)>$G$2,"",INDEX(B$2:B$102,_xlfn.AGGREGATE(15,6,(ROW($A$2:$A$102)-ROW($A$2)+1)/($B$2:$B$102=$F$2),ROWS(F$5:F45)))) ->  | G45: =IF(ROWS(G$5:G45)>$G$2,"",INDEX(C$2:C$102,_xlfn.AGGREGATE(15,6,(ROW($A$2:$A$102)-ROW($A$2)+1)/($B$2:$B$102=$F$2),ROWS(G$5:G45)))) ->  | K45: =IF(ROWS(K$5:K45)>$G$2,"",INDEX(A$2:A$102,SMALL(IF($B$2:$B$102=$F$2,ROW($B$2:$B$102)-ROW($B$2)+1),ROWS(K$5:K45)))) ->  | L45: =IF(ROWS(L$5:L45)>$G$2,"",INDEX(B$2:B$102,SMALL(IF($B$2:$B$102=$F$2,ROW($B$2:$B$102)-ROW($B$2)+1),ROWS(L$5:L45)))) ->  | M45: =IF(ROWS(M$5:M45)>$G$2,"",INDEX(C$2:C$102,SMALL(IF($B$2:$B$102=$F$2,ROW($B$2:$B$102)-ROW($B$2)+1),ROWS(M$5:M45)))) -> 
A46: 2010-01-29 | B46: Franks | C46: 83.37 | E46: =IF(ROWS(E$5:E46)>$G$2,"",INDEX(A$2:A$102,_xlfn.AGGREGATE(15,6,(ROW($A$2:$A$102)-ROW($A$2)+1)/($B$2:$B$102=$F$2),ROWS(E$5:E46)))) ->  | F46: =IF(ROWS(F$5:F46)>$G$2,"",INDEX(B$2:B$102,_xlfn.AGGREGATE(15,6,(ROW($A$2:$A$102)-ROW($A$2)+1)/($B$2:$B$102=$F$2),ROWS(F$5:F46)))) ->  | G46: =IF(ROWS(G$5:G46)>$G$2,"",INDEX(C$2:C$102,_xlfn.AGGREGATE(15,6,(ROW($A$2:$A$102)-ROW($A$2)+1)/($B$2:$B$102=$F$2),ROWS(G$5:G46)))) ->  | K46: =IF(ROWS(K$5:K46)>$G$2,"",INDEX(A$2:A$102,SMALL(IF($B$2:$B$102=$F$2,ROW($B$2:$B$102)-ROW($B$2)+1),ROWS(K$5:K46)))) ->  | L46: =IF(ROWS(L$5:L46)>$G$2,"",INDEX(B$2:B$102,SMALL(IF($B$2:$B$102=$F$2,ROW($B$2:$B$102)-ROW($B$2)+1),ROWS(L$5:L46)))) ->  | M46: =IF(ROWS(M$5:M46)>$G$2,"",INDEX(C$2:C$102,SMALL(IF($B$2:$B$102=$F$2,ROW($B$2:$B$102)-ROW($B$2)+1),ROWS(M$5:M46)))) -> 
A47: 2010-01-19 | B47: Franks | C47: 89.11 | E47: =IF(ROWS(E$5:E47)>$G$2,"",INDEX(A$2:A$102,_xlfn.AGGREGATE(15,6,(ROW($A$2:$A$102)-ROW($A$2)+1)/($B$2:$B$102=$F$2),ROWS(E$5:E47)))) ->  | F47: =IF(ROWS(F$5:F47)>$G$2,"",INDEX(B$2:B$102,_xlfn.AGGREGATE(15,6,(ROW($A$2:$A$102)-ROW($A$2)+1)/($B$2:$B$102=$F$2),ROWS(F$5:F47)))) ->  | G47: =IF(ROWS(G$5:G47)>$G$2,"",INDEX(C$2:C$102,_xlfn.AGGREGATE(15,6,(ROW($A$2:$A$102)-ROW($A$2)+1)/($B$2:$B$102=$F$2),ROWS(G$5:G47)))) ->  | K47: =IF(ROWS(K$5:K47)>$G$2,"",INDEX(A$2:A$102,SMALL(IF($B$2:$B$102=$F$2,ROW($B$2:$B$102)-ROW($B$2)+1),ROWS(K$5:K47)))) ->  | L47: =IF(ROWS(L$5:L47)>$G$2,"",INDEX(B$2:B$102,SMALL(IF($B$2:$B$102=$F$2,ROW($B$2:$B$102)-ROW($B$2)+1),ROWS(L$5:L47)))) ->  | M47: =IF(ROWS(M$5:M47)>$G$2,"",INDEX(C$2:C$102,SMALL(IF($B$2:$B$102=$F$2,ROW($B$2:$B$102)-ROW($B$2)+1),ROWS(M$5:M47)))) -> 
A48: 2010-02-14 | B48: Smith | C48: 126.97 | E48: =IF(ROWS(E$5:E48)>$G$2,"",INDEX(A$2:A$102,_xlfn.AGGREGATE(15,6,(ROW($A$2:$A$102)-ROW($A$2)+1)/($B$2:$B$102=$F$2),ROWS(E$5:E48)))) ->  | F48: =IF(ROWS(F$5:F48)>$G$2,"",INDEX(B$2:B$102,_xlfn.AGGREGATE(15,6,(ROW($A$2:$A$102)-ROW($A$2)+1)/($B$2:$B$102=$F$2),ROWS(F$5:F48)))) ->  | G48: =IF(ROWS(G$5:G48)>$G$2,"",INDEX(C$2:C$102,_xlfn.AGGREGATE(15,6,(ROW($A$2:$A$102)-ROW($A$2)+1)/($B$2:$B$102=$F$2),ROWS(G$5:G48)))) ->  | K48: =IF(ROWS(K$5:K48)>$G$2,"",INDEX(A$2:A$102,SMALL(IF($B$2:$B$102=$F$2,ROW($B$2:$B$102)-ROW($B$2)+1),ROWS(K$5:K48)))) ->  | L48: =IF(ROWS(L$5:L48)>$G$2,"",INDEX(B$2:B$102,SMALL(IF($B$2:$B$102=$F$2,ROW($B$2:$B$102)-ROW($B$2)+1),ROWS(L$5:L48)))) ->  | M48: =IF(ROWS(M$5:M48)>$G$2,"",INDEX(C$2:C$102,SMALL(IF($B$2:$B$102=$F$2,ROW($B$2:$B$102)-ROW($B$2)+1),ROWS(M$5:M48)))) -> 
A49: 2009-12-03 | B49: Smith | C49: 154.31 | E49: =IF(ROWS(E$5:E49)>$G$2,"",INDEX(A$2:A$102,_xlfn.AGGREGATE(15,6,(ROW($A$2:$A$102)-ROW($A$2)+1)/($B$2:$B$102=$F$2),ROWS(E$5:E49)))) ->  | F49: =IF(ROWS(F$5:F49)>$G$2,"",INDEX(B$2:B$102,_xlfn.AGGREGATE(15,6,(ROW($A$2:$A$102)-ROW($A$2)+1)/($B$2:$B$102=$F$2),ROWS(F$5:F49)))) ->  | G49: =IF(ROWS(G$5:G49)>$G$2,"",INDEX(C$2:C$102,_xlfn.AGGREGATE(15,6,(ROW($A$2:$A$102)-ROW($A$2)+1)/($B$2:$B$102=$F$2),ROWS(G$5:G49)))) ->  | K49: =IF(ROWS(K$5:K49)>$G$2,"",INDEX(A$2:A$102,SMALL(IF($B$2:$B$102=$F$2,ROW($B$2:$B$102)-ROW($B$2)+1),ROWS(K$5:K49)))) ->  | L49: =IF(ROWS(L$5:L49)>$G$2,"",INDEX(B$2:B$102,SMALL(IF($B$2:$B$102=$F$2,ROW($B$2:$B$102)-ROW($B$2)+1),ROWS(L$5:L49)))) ->  | M49: =IF(ROWS(M$5:M49)>$G$2,"",INDEX(C$2:C$102,SMALL(IF($B$2:$B$102=$F$2,ROW($B$2:$B$102)-ROW($B$2)+1),ROWS(M$5:M49)))) -> 
A50: 2010-01-02 | B50: Sioux | C50: 76.59 | E50: =IF(ROWS(E$5:E50)>$G$2,"",INDEX(A$2:A$102,_xlfn.AGGREGATE(15,6,(ROW($A$2:$A$102)-ROW($A$2)+1)/($B$2:$B$102=$F$2),ROWS(E$5:E50)))) ->  | F50: =IF(ROWS(F$5:F50)>$G$2,"",INDEX(B$2:B$102,_xlfn.AGGREGATE(15,6,(ROW($A$2:$A$102)-ROW($A$2)+1)/($B$2:$B$102=$F$2),ROWS(F$5:F50)))) ->  | G50: =IF(ROWS(G$5:G50)>$G$2,"",INDEX(C$2:C$102,_xlfn.AGGREGATE(15,6,(ROW($A$2:$A$102)-ROW($A$2)+1)/($B$2:$B$102=$F$2),ROWS(G$5:G50)))) ->  | K50: =IF(ROWS(K$5:K50)>$G$2,"",INDEX(A$2:A$102,SMALL(IF($B$2:$B$102=$F$2,ROW($B$2:$B$102)-ROW($B$2)+1),ROWS(K$5:K50)))) ->  | L50: =IF(ROWS(L$5:L50)>$G$2,"",INDEX(B$2:B$102,SMALL(IF($B$2:$B$102=$F$2,ROW($B$2:$B$102)-ROW($B$2)+1),ROWS(L$5:L50)))) ->  | M50: =IF(ROWS(M$5:M50)>$G$2,"",INDEX(C$2:C$102,SMALL(IF($B$2:$B$102=$F$2,ROW($B$2:$B$102)-ROW($B$2)+1),ROWS(M$5:M50)))) -> 
A51: 2009-12-29 | B51: Gault | C51: 106.94 | E51: =IF(ROWS(E$5:E51)>$G$2,"",INDEX(A$2:A$102,_xlfn.AGGREGATE(15,6,(ROW($A$2:$A$102)-ROW($A$2)+1)/($B$2:$B$102=$F$2),ROWS(E$5:E51)))) ->  | F51: =IF(ROWS(F$5:F51)>$G$2,"",INDEX(B$2:B$102,_xlfn.AGGREGATE(15,6,(ROW($A$2:$A$102)-ROW($A$2)+1)/($B$2:$B$102=$F$2),ROWS(F$5:F51)))) ->  | G51: =IF(ROWS(G$5:G51)>$G$2,"",INDEX(C$2:C$102,_xlfn.AGGREGATE(15,6,(ROW($A$2:$A$102)-ROW($A$2)+1)/($B$2:$B$102=$F$2),ROWS(G$5:G51)))) ->  | K51: =IF(ROWS(K$5:K51)>$G$2,"",INDEX(A$2:A$102,SMALL(IF($B$2:$B$102=$F$2,ROW($B$2:$B$102)-ROW($B$2)+1),ROWS(K$5:K51)))) ->  | L51: =IF(ROWS(L$5:L51)>$G$2,"",INDEX(B$2:B$102,SMALL(IF($B$2:$B$102=$F$2,ROW($B$2:$B$102)-ROW($B$2)+1),ROWS(L$5:L51)))) ->  | M51: =IF(ROWS(M$5:M51)>$G$2,"",INDEX(C$2:C$102,SMALL(IF($B$2:$B$102=$F$2,ROW($B$2:$B$102)-ROW($B$2)+1),ROWS(M$5:M51)))) -> 
A52: 2009-11-26 | B52: Chin | C52: 129.86 | E52: =IF(ROWS(E$5:E52)>$G$2,"",INDEX(A$2:A$102,_xlfn.AGGREGATE(15,6,(ROW($A$2:$A$102)-ROW($A$2)+1)/($B$2:$B$102=$F$2),ROWS(E$5:E52)))) ->  | F52: =IF(ROWS(F$5:F52)>$G$2,"",INDEX(B$2:B$102,_xlfn.AGGREGATE(15,6,(ROW($A$2:$A$102)-ROW($A$2)+1)/($B$2:$B$102=$F$2),ROWS(F$5:F52)))) ->  | G52: =IF(ROWS(G$5:G52)>$G$2,"",INDEX(C$2:C$102,_xlfn.AGGREGATE(15,6,(ROW($A$2:$A$102)-ROW($A$2)+1)/($B$2:$B$102=$F$2),ROWS(G$5:G52)))) ->  | K52: =IF(ROWS(K$5:K52)>$G$2,"",INDEX(A$2:A$102,SMALL(IF($B$2:$B$102=$F$2,ROW($B$2:$B$102)-ROW($B$2)+1),ROWS(K$5:K52)))) ->  | L52: =IF(ROWS(L$5:L52)>$G$2,"",INDEX(B$2:B$102,SMALL(IF($B$2:$B$102=$F$2,ROW($B$2:$B$102)-ROW($B$2)+1),ROWS(L$5:L52)))) ->  | M52: =IF(ROWS(M$5:M52)>$G$2,"",INDEX(C$2:C$102,SMALL(IF($B$2:$B$102=$F$2,ROW($B$2:$B$102)-ROW($B$2)+1),ROWS(M$5:M52)))) -> 
A53: 2009-12-24 | B53: Pham | C53: 100.76 | E53: =IF(ROWS(E$5:E53)>$G$2,"",INDEX(A$2:A$102,_xlfn.AGGREGATE(15,6,(ROW($A$2:$A$102)-ROW($A$2)+1)/($B$2:$B$102=$F$2),ROWS(E$5:E53)))) ->  | F53: =IF(ROWS(F$5:F53)>$G$2,"",INDEX(B$2:B$102,_xlfn.AGGREGATE(15,6,(ROW($A$2:$A$102)-ROW($A$2)+1)/($B$2:$B$102=$F$2),ROWS(F$5:F53)))) ->  | G53: =IF(ROWS(G$5:G53)>$G$2,"",INDEX(C$2:C$102,_xlfn.AGGREGATE(15,6,(ROW($A$2:$A$102)-ROW($A$2)+1)/($B$2:$B$102=$F$2),ROWS(G$5:G53)))) ->  | K53: =IF(ROWS(K$5:K53)>$G$2,"",INDEX(A$2:A$102,SMALL(IF($B$2:$B$102=$F$2,ROW($B$2:$B$102)-ROW($B$2)+1),ROWS(K$5:K53)))) ->  | L53: =IF(ROWS(L$5:L53)>$G$2,"",INDEX(B$2:B$102,SMALL(IF($B$2:$B$102=$F$2,ROW($B$2:$B$102)-ROW($B$2)+1),ROWS(L$5:L53)))) ->  | M53: =IF(ROWS(M$5:M53)>$G$2,"",INDEX(C$2:C$102,SMALL(IF($B$2:$B$102=$F$2,ROW($B$2:$B$102)-ROW($B$2)+1),ROWS(M$5:M53)))) -> 
A54: 2009-12-10 | B54: Gault | C54: 124.59 | E54: =IF(ROWS(E$5:E54)>$G$2,"",INDEX(A$2:A$102,_xlfn.AGGREGATE(15,6,(ROW($A$2:$A$102)-ROW($A$2)+1)/($B$2:$B$102=$F$2),ROWS(E$5:E54)))) ->  | F54: =IF(ROWS(F$5:F54)>$G$2,"",INDEX(B$2:B$102,_xlfn.AGGREGATE(15,6,(ROW($A$2:$A$102)-ROW($A$2)+1)/($B$2:$B$102=$F$2),ROWS(F$5:F54)))) ->  | G54: =IF(ROWS(G$5:G54)>$G$2,"",INDEX(C$2:C$102,_xlfn.AGGREGATE(15,6,(ROW($A$2:$A$102)-ROW($A$2)+1)/($B$2:$B$102=$F$2),ROWS(G$5:G54)))) ->  | K54: =IF(ROWS(K$5:K54)>$G$2,"",INDEX(A$2:A$102,SMALL(IF($B$2:$B$102=$F$2,ROW($B$2:$B$102)-ROW($B$2)+1),ROWS(K$5:K54)))) ->  | L54: =IF(ROWS(L$5:L54)>$G$2,"",INDEX(B$2:B$102,SMALL(IF($B$2:$B$102=$F$2,ROW($B$2:$B$102)-ROW($B$2)+1),ROWS(L$5:L54)))) ->  | M54: =IF(ROWS(M$5:M54)>$G$2,"",INDEX(C$2:C$102,SMALL(IF($B$2:$B$102=$F$2,ROW($B$2:$B$102)-ROW($B$2)+1),ROWS(M$5:M54)))) -> 
A55: 2009-12-31 | B55: Smith | C55: 150.31 | E55: =IF(ROWS(E$5:E55)>$G$2,"",INDEX(A$2:A$102,_xlfn.AGGREGATE(15,6,(ROW($A$2:$A$102)-ROW($A$2)+1)/($B$2:$B$102=$F$2),ROWS(E$5:E55)))) ->  | F55: =IF(ROWS(F$5:F55)>$G$2,"",INDEX(B$2:B$102,_xlfn.AGGREGATE(15,6,(ROW($A$2:$A$102)-ROW($A$2)+1)/($B$2:$B$102=$F$2),ROWS(F$5:F55)))) ->  | G55: =IF(ROWS(G$5:G55)>$G$2,"",INDEX(C$2:C$102,_xlfn.AGGREGATE(15,6,(ROW($A$2:$A$102)-ROW($A$2)+1)/($B$2:$B$102=$F$2),ROWS(G$5:G55)))) ->  | K55: =IF(ROWS(K$5:K55)>$G$2,"",INDEX(A$2:A$102,SMALL(IF($B$2:$B$102=$F$2,ROW($B$2:$B$102)-ROW($B$2)+1),ROWS(K$5:K55)))) ->  | L55: =IF(ROWS(L$5:L55)>$G$2,"",INDEX(B$2:B$102,SMALL(IF($B$2:$B$102=$F$2,ROW($B$2:$B$102)-ROW($B$2)+1),ROWS(L$5:L55)))) ->  | M55: =IF(ROWS(M$5:M55)>$G$2,"",INDEX(C$2:C$102,SMALL(IF($B$2:$B$102=$F$2,ROW($B$2:$B$102)-ROW($B$2)+1),ROWS(M$5:M55)))) -> 
A56: 2009-12-16 | B56: Franks | C56: 119.78 | E56: =IF(ROWS(E$5:E56)>$G$2,"",INDEX(A$2:A$102,_xlfn.AGGREGATE(15,6,(ROW($A$2:$A$102)-ROW($A$2)+1)/($B$2:$B$102=$F$2),ROWS(E$5:E56)))) ->  | F56: =IF(ROWS(F$5:F56)>$G$2,"",INDEX(B$2:B$102,_xlfn.AGGREGATE(15,6,(ROW($A$2:$A$102)-ROW($A$2)+1)/($B$2:$B$102=$F$2),ROWS(F$5:F56)))) ->  | G56: =IF(ROWS(G$5:G56)>$G$2,"",INDEX(C$2:C$102,_xlfn.AGGREGATE(15,6,(ROW($A$2:$A$102)-ROW($A$2)+1)/($B$2:$B$102=$F$2),ROWS(G$5:G56)))) ->  | K56: =IF(ROWS(K$5:K56)>$G$2,"",INDEX(A$2:A$102,SMALL(IF($B$2:$B$102=$F$2,ROW($B$2:$B$102)-ROW($B$2)+1),ROWS(K$5:K56)))) ->  | L56: =IF(ROWS(L$5:L56)>$G$2,"",INDEX(B$2:B$102,SMALL(IF($B$2:$B$102=$F$2,ROW($B$2:$B$102)-ROW($B$2)+1),ROWS(L$5:L56)))) ->  | M56: =IF(ROWS(M$5:M56)>$G$2,"",INDEX(C$2:C$102,SMALL(IF($B$2:$B$102=$F$2,ROW($B$2:$B$102)-ROW($B$2)+1),ROWS(M$5:M56)))) -> 
A57: 2010-01-03 | B57: Pham | C57: 93.37 | E57: =IF(ROWS(E$5:E57)>$G$2,"",INDEX(A$2:A$102,_xlfn.AGGREGATE(15,6,(ROW($A$2:$A$102)-ROW($A$2)+1)/($B$2:$B$102=$F$2),ROWS(E$5:E57)))) ->  | F57: =IF(ROWS(F$5:F57)>$G$2,"",INDEX(B$2:B$102,_xlfn.AGGREGATE(15,6,(ROW($A$2:$A$102)-ROW($A$2)+1)/($B$2:$B$102=$F$2),ROWS(F$5:F57)))) ->  | G57: =IF(ROWS(G$5:G57)>$G$2,"",INDEX(C$2:C$102,_xlfn.AGGREGATE(15,6,(ROW($A$2:$A$102)-ROW($A$2)+1)/($B$2:$B$102=$F$2),ROWS(G$5:G57)))) ->  | K57: =IF(ROWS(K$5:K57)>$G$2,"",INDEX(A$2:A$102,SMALL(IF($B$2:$B$102=$F$2,ROW($B$2:$B$102)-ROW($B$2)+1),ROWS(K$5:K57)))) ->  | L57: =IF(ROWS(L$5:L57)>$G$2,"",INDEX(B$2:B$102,SMALL(IF($B$2:$B$102=$F$2,ROW($B$2:$B$102)-ROW($B$2)+1),ROWS(L$5:L57)))) ->  | M57: =IF(ROWS(M$5:M57)>$G$2,"",INDEX(C$2:C$102,SMALL(IF($B$2:$B$102=$F$2,ROW($B$2:$B$102)-ROW($B$2)+1),ROWS(M$5:M57)))) -> 
A58: 2009-12-26 | B58: Chin | C58: 87.06 | E58: =IF(ROWS(E$5:E58)>$G$2,"",INDEX(A$2:A$102,_xlfn.AGGREGATE(15,6,(ROW($A$2:$A$102)-ROW($A$2)+1)/($B$2:$B$102=$F$2),ROWS(E$5:E58)))) ->  | F58: =IF(ROWS(F$5:F58)>$G$2,"",INDEX(B$2:B$102,_xlfn.AGGREGATE(15,6,(ROW($A$2:$A$102)-ROW($A$2)+1)/($B$2:$B$102=$F$2),ROWS(F$5:F58)))) ->  | G58: =IF(ROWS(G$5:G58)>$G$2,"",INDEX(C$2:C$102,_xlfn.AGGREGATE(15,6,(ROW($A$2:$A$102)-ROW($A$2)+1)/($B$2:$B$102=$F$2),ROWS(G$5:G58)))) ->  | K58: =IF(ROWS(K$5:K58)>$G$2,"",INDEX(A$2:A$102,SMALL(IF($B$2:$B$102=$F$2,ROW($B$2:$B$102)-ROW($B$2)+1),ROWS(K$5:K58)))) ->  | L58: =IF(ROWS(L$5:L58)>$G$2,"",INDEX(B$2:B$102,SMALL(IF($B$2:$B$102=$F$2,ROW($B$2:$B$102)-ROW($B$2)+1),ROWS(L$5:L58)))) ->  | M58: =IF(ROWS(M$5:M58)>$G$2,"",INDEX(C$2:C$102,SMALL(IF($B$2:$B$102=$F$2,ROW($B$2:$B$102)-ROW($B$2)+1),ROWS(M$5:M58)))) -> 
A59: 2010-01-05 | B59: Smith | C59: 147.49 | E59: =IF(ROWS(E$5:E59)>$G$2,"",INDEX(A$2:A$102,_xlfn.AGGREGATE(15,6,(ROW($A$2:$A$102)-ROW($A$2)+1)/($B$2:$B$102=$F$2),ROWS(E$5:E59)))) ->  | F59: =IF(ROWS(F$5:F59)>$G$2,"",INDEX(B$2:B$102,_xlfn.AGGREGATE(15,6,(ROW($A$2:$A$102)-ROW($A$2)+1)/($B$2:$B$102=$F$2),ROWS(F$5:F59)))) ->  | G59: =IF(ROWS(G$5:G59)>$G$2,"",INDEX(C$2:C$102,_xlfn.AGGREGATE(15,6,(ROW($A$2:$A$102)-ROW($A$2)+1)/($B$2:$B$102=$F$2),ROWS(G$5:G59)))) ->  | K59: =IF(ROWS(K$5:K59)>$G$2,"",INDEX(A$2:A$102,SMALL(IF($B$2:$B$102=$F$2,ROW($B$2:$B$102)-ROW($B$2)+1),ROWS(K$5:K59)))) ->  | L59: =IF(ROWS(L$5:L59)>$G$2,"",INDEX(B$2:B$102,SMALL(IF($B$2:$B$102=$F$2,ROW($B$2:$B$102)-ROW($B$2)+1),ROWS(L$5:L59)))) ->  | M59: =IF(ROWS(M$5:M59)>$G$2,"",INDEX(C$2:C$102,SMALL(IF($B$2:$B$102=$F$2,ROW($B$2:$B$102)-ROW($B$2)+1),ROWS(M$5:M59)))) -> 
A60: 2009-12-19 | B60: Smith | C60: 136.94 | E60: =IF(ROWS(E$5:E60)>$G$2,"",INDEX(A$2:A$102,_xlfn.AGGREGATE(15,6,(ROW($A$2:$A$102)-ROW($A$2)+1)/($B$2:$B$102=$F$2),ROWS(E$5:E60)))) ->  | F60: =IF(ROWS(F$5:F60)>$G$2,"",INDEX(B$2:B$102,_xlfn.AGGREGATE(15,6,(ROW($A$2:$A$102)-ROW($A$2)+1)/($B$2:$B$102=$F$2),ROWS(F$5:F60)))) ->  | G60: =IF(ROWS(G$5:G60)>$G$2,"",INDEX(C$2:C$102,_xlfn.AGGREGATE(15,6,(ROW($A$2:$A$102)-ROW($A$2)+1)/($B$2:$B$102=$F$2),ROWS(G$5:G60)))) ->  | K60: =IF(ROWS(K$5:K60)>$G$2,"",INDEX(A$2:A$102,SMALL(IF($B$2:$B$102=$F$2,ROW($B$2:$B$102)-ROW($B$2)+1),ROWS(K$5:K60)))) ->  | L60: =IF(ROWS(L$5:L60)>$G$2,"",INDEX(B$2:B$102,SMALL(IF($B$2:$B$102=$F$2,ROW($B$2:$B$102)-ROW($B$2)+1),ROWS(L$5:L60)))) ->  | M60: =IF(ROWS(M$5:M60)>$G$2,"",INDEX(C$2:C$102,SMALL(IF($B$2:$B$102=$F$2,ROW($B$2:$B$102)-ROW($B$2)+1),ROWS(M$5:M60)))) -> 
A61: 2009-11-20 | B61: Gault | C61: 93.33 | E61: =IF(ROWS(E$5:E61)>$G$2,"",INDEX(A$2:A$102,_xlfn.AGGREGATE(15,6,(ROW($A$2:$A$102)-ROW($A$2)+1)/($B$2:$B$102=$F$2),ROWS(E$5:E61)))) ->  | F61: =IF(ROWS(F$5:F61)>$G$2,"",INDEX(B$2:B$102,_xlfn.AGGREGATE(15,6,(ROW($A$2:$A$102)-ROW($A$2)+1)/($B$2:$B$102=$F$2),ROWS(F$5:F61)))) ->  | G61: =IF(ROWS(G$5:G61)>$G$2,"",INDEX(C$2:C$102,_xlfn.AGGREGATE(15,6,(ROW($A$2:$A$102)-ROW($A$2)+1)/($B$2:$B$102=$F$2),ROWS(G$5:G61)))) ->  | K61: =IF(ROWS(K$5:K61)>$G$2,"",INDEX(A$2:A$102,SMALL(IF($B$2:$B$102=$F$2,ROW($B$2:$B$102)-ROW($B$2)+1),ROWS(K$5:K61)))) ->  | L61: =IF(ROWS(L$5:L61)>$G$2,"",INDEX(B$2:B$102,SMALL(IF($B$2:$B$102=$F$2,ROW($B$2:$B$102)-ROW($B$2)+1),ROWS(L$5:L61)))) ->  | M61: =IF(ROWS(M$5:M61)>$G$2,"",INDEX(C$2:C$102,SMALL(IF($B$2:$B$102=$F$2,ROW($B$2:$B$102)-ROW($B$2)+1),ROWS(M$5:M61)))) -> 
A62: 2010-01-03 | B62: Smith | C62: 128.97 | E62: =IF(ROWS(E$5:E62)>$G$2,"",INDEX(A$2:A$102,_xlfn.AGGREGATE(15,6,(ROW($A$2:$A$102)-ROW($A$2)+1)/($B$2:$B$102=$F$2),ROWS(E$5:E62)))) ->  | F62: =IF(ROWS(F$5:F62)>$G$2,"",INDEX(B$2:B$102,_xlfn.AGGREGATE(15,6,(ROW($A$2:$A$102)-ROW($A$2)+1)/($B$2:$B$102=$F$2),ROWS(F$5:F62)))) ->  | G62: =IF(ROWS(G$5:G62)>$G$2,"",INDEX(C$2:C$102,_xlfn.AGGREGATE(15,6,(ROW($A$2:$A$102)-ROW($A$2)+1)/($B$2:$B$102=$F$2),ROWS(G$5:G62)))) ->  | K62: =IF(ROWS(K$5:K62)>$G$2,"",INDEX(A$2:A$102,SMALL(IF($B$2:$B$102=$F$2,ROW($B$2:$B$102)-ROW($B$2)+1),ROWS(K$5:K62)))) ->  | L62: =IF(ROWS(L$5:L62)>$G$2,"",INDEX(B$2:B$102,SMALL(IF($B$2:$B$102=$F$2,ROW($B$2:$B$102)-ROW($B$2)+1),ROWS(L$5:L62)))) ->  | M62: =IF(ROWS(M$5:M62)>$G$2,"",INDEX(C$2:C$102,SMALL(IF($B$2:$B$102=$F$2,ROW($B$2:$B$102)-ROW($B$2)+1),ROWS(M$5:M62)))) -> 
A63: 2009-12-14 | B63: Smith | C63: 114.93 | E63: =IF(ROWS(E$5:E63)>$G$2,"",INDEX(A$2:A$102,_xlfn.AGGREGATE(15,6,(ROW($A$2:$A$102)-ROW($A$2)+1)/($B$2:$B$102=$F$2),ROWS(E$5:E63)))) ->  | F63: =IF(ROWS(F$5:F63)>$G$2,"",INDEX(B$2:B$102,_xlfn.AGGREGATE(15,6,(ROW($A$2:$A$102)-ROW($A$2)+1)/($B$2:$B$102=$F$2),ROWS(F$5:F63)))) ->  | G63: =IF(ROWS(G$5:G63)>$G$2,"",INDEX(C$2:C$102,_xlfn.AGGREGATE(15,6,(ROW($A$2:$A$102)-ROW($A$2)+1)/($B$2:$B$102=$F$2),ROWS(G$5:G63)))) ->  | K63: =IF(ROWS(K$5:K63)>$G$2,"",INDEX(A$2:A$102,SMALL(IF($B$2:$B$102=$F$2,ROW($B$2:$B$102)-ROW($B$2)+1),ROWS(K$5:K63)))) ->  | L63: =IF(ROWS(L$5:L63)>$G$2,"",INDEX(B$2:B$102,SMALL(IF($B$2:$B$102=$F$2,ROW($B$2:$B$102)-ROW($B$2)+1),ROWS(L$5:L63)))) ->  | M63: =IF(ROWS(M$5:M63)>$G$2,"",INDEX(C$2:C$102,SMALL(IF($B$2:$B$102=$F$2,ROW($B$2:$B$102)-ROW($B$2)+1),ROWS(M$5:M63)))) -> 
A64: 2010-01-01 | B64: Sioux | C64: 104.57 | E64: =IF(ROWS(E$5:E64)>$G$2,"",INDEX(A$2:A$102,_xlfn.AGGREGATE(15,6,(ROW($A$2:$A$102)-ROW($A$2)+1)/($B$2:$B$102=$F$2),ROWS(E$5:E64)))) ->  | F64: =IF(ROWS(F$5:F64)>$G$2,"",INDEX(B$2:B$102,_xlfn.AGGREGATE(15,6,(ROW($A$2:$A$102)-ROW($A$2)+1)/($B$2:$B$102=$F$2),ROWS(F$5:F64)))) ->  | G64: =IF(ROWS(G$5:G64)>$G$2,"",INDEX(C$2:C$102,_xlfn.AGGREGATE(15,6,(ROW($A$2:$A$102)-ROW($A$2)+1)/($B$2:$B$102=$F$2),ROWS(G$5:G64)))) ->  | K64: =IF(ROWS(K$5:K64)>$G$2,"",INDEX(A$2:A$102,SMALL(IF($B$2:$B$102=$F$2,ROW($B$2:$B$102)-ROW($B$2)+1),ROWS(K$5:K64)))) ->  | L64: =IF(ROWS(L$5:L64)>$G$2,"",INDEX(B$2:B$102,SMALL(IF($B$2:$B$102=$F$2,ROW($B$2:$B$102)-ROW($B$2)+1),ROWS(L$5:L64)))) ->  | M64: =IF(ROWS(M$5:M64)>$G$2,"",INDEX(C$2:C$102,SMALL(IF($B$2:$B$102=$F$2,ROW($B$2:$B$102)-ROW($B$2)+1),ROWS(M$5:M64)))) -> 
A65: 2009-11-27 | B65: Sioux | C65: 119.53 | E65: =IF(ROWS(E$5:E65)>$G$2,"",INDEX(A$2:A$102,_xlfn.AGGREGATE(15,6,(ROW($A$2:$A$102)-ROW($A$2)+1)/($B$2:$B$102=$F$2),ROWS(E$5:E65)))) ->  | F65: =IF(ROWS(F$5:F65)>$G$2,"",INDEX(B$2:B$102,_xlfn.AGGREGATE(15,6,(ROW($A$2:$A$102)-ROW($A$2)+1)/($B$2:$B$102=$F$2),ROWS(F$5:F65)))) ->  | G65: =IF(ROWS(G$5:G65)>$G$2,"",INDEX(C$2:C$102,_xlfn.AGGREGATE(15,6,(ROW($A$2:$A$102)-ROW($A$2)+1)/($B$2:$B$102=$F$2),ROWS(G$5:G65)))) ->  | K65: =IF(ROWS(K$5:K65)>$G$2,"",INDEX(A$2:A$102,SMALL(IF($B$2:$B$102=$F$2,ROW($B$2:$B$102)-ROW($B$2)+1),ROWS(K$5:K65)))) ->  | L65: =IF(ROWS(L$5:L65)>$G$2,"",INDEX(B$2:B$102,SMALL(IF($B$2:$B$102=$F$2,ROW($B$2:$B$102)-ROW($B$2)+1),ROWS(L$5:L65)))) ->  | M65: =IF(ROWS(M$5:M65)>$G$2,"",INDEX(C$2:C$102,SMALL(IF($B$2:$B$102=$F$2,ROW($B$2:$B$102)-ROW($B$2)+1),ROWS(M$5:M65)))) -> 
A66: 2010-01-01 | B66: Pham | C66: 127.99 | E66: =IF(ROWS(E$5:E66)>$G$2,"",INDEX(A$2:A$102,_xlfn.AGGREGATE(15,6,(ROW($A$2:$A$102)-ROW($A$2)+1)/($B$2:$B$102=$F$2),ROWS(E$5:E66)))) ->  | F66: =IF(ROWS(F$5:F66)>$G$2,"",INDEX(B$2:B$102,_xlfn.AGGREGATE(15,6,(ROW($A$2:$A$102)-ROW($A$2)+1)/($B$2:$B$102=$F$2),ROWS(F$5:F66)))) ->  | G66: =IF(ROWS(G$5:G66)>$G$2,"",INDEX(C$2:C$102,_xlfn.AGGREGATE(15,6,(ROW($A$2:$A$102)-ROW($A$2)+1)/($B$2:$B$102=$F$2),ROWS(G$5:G66)))) ->  | K66: =IF(ROWS(K$5:K66)>$G$2,"",INDEX(A$2:A$102,SMALL(IF($B$2:$B$102=$F$2,ROW($B$2:$B$102)-ROW($B$2)+1),ROWS(K$5:K66)))) ->  | L66: =IF(ROWS(L$5:L66)>$G$2,"",INDEX(B$2:B$102,SMALL(IF($B$2:$B$102=$F$2,ROW($B$2:$B$102)-ROW($B$2)+1),ROWS(L$5:L66)))) ->  | M66: =IF(ROWS(M$5:M66)>$G$2,"",INDEX(C$2:C$102,SMALL(IF($B$2:$B$102=$F$2,ROW($B$2:$B$102)-ROW($B$2)+1),ROWS(M$5:M66)))) -> 
A67: 2009-12-03 | B67: Smith | C67: 88.69
A68: 2009-11-25 | B68: Smith | C68: 115.67
A69: 2010-01-07 | B69: Pham | C69: 114.54
A70: 2010-02-02 | B70: Smith | C70: 128.15
A71: 2010-02-08 | B71: Gault | C71: 126.33
A72: 2010-01-13 | B72: Smith | C72: 112.03
A73: 2009-11-20 | B73: Smith | C73: 145.33
A74: 2009-12-23 | B74: Gault | C74: 109.7
A75: 2009-11-26 | B75: Sioux | C75: 139.13
A76: 2009-12-01 | B76: Sioux | C76: 112.5
A77: 2009-11-29 | B77: Pham | C77: 122.21
A78: 2010-01-13 | B78: Smith | C78: 135.77
A79: 2010-01-09 | B79: Pham | C79: 75.17
A80: 2010-01-30 | B80: Sioux | C80: 104.5
A81: 2010-02-04 | B81: Gault | C81: 86.1
A82: 2010-01-02 | B82: Sioux | C82: 143.85
A83: 2010-01-16 | B83: Gault | C83: 104.36
A84: 2009-12-28 | B84: Smith | C84: 135.02
A85: 2009-12-26 | B85: Pham | C85: 83.26
A86: 2009-11-28 | B86: Sioux | C86: 114.53
A87: 2010-02-02 | B87: Smith | C87: 117.63
A88: 2009-12-27 | B88: Gault | C88: 102.24
A89: 2010-02-01 | B89: Chin | C89: 139.21
A90: 2009-12-25 | B90: Smith | C90: 119.09
A91: 2010-01-17 | B91: Pham | C91: 134.11
A92: 2010-01-15 | B92: Sioux | C92: 96.17
A93: 2010-01-10 | B93: Smith | C93: 108.54
A94: 2010-01-05 | B94: Gault | C94: 78.89
A95: 2010-01-20 | B95: Pham | C95: 130.37
A96: 2009-12-08 | B96: Chin | C96: 130.5
A97: 2010-01-16 | B97: Franks | C97: 123.13
A98: 2009-12-19 | B98: Gault | C98: 131.04
A99: 2009-12-17 | B99: Pham | C99: 76.26
A100: 2010-01-19 | B100: Pham | C100: 78.46
A101: 2009-11-21 | B101: Gault | C101: 79.11
A102: 2010-02-18 | B102: Gault | C102: 75.35

Sheet 671
A1: Date | B1: SalesRep | C1: Sales | E1: Year | F1: SalesRep | G1: Count | I1: SalesRep
A2: 2009-12-25 | B2: Gault | C2: 94.69 | E2: 2009 | F2: Gault | G2: =SUMPRODUCT(--(YEAR($A$2:$A$102)=E2),--($B$2:$B$102=F2)) -> 13 | I2: Gault
A3: 2009-12-15 | B3: Smith | C3: 130.2 | I3: Smith
A4: 2009-12-11 | B4: Franks | C4: 149.95 | E4: Date | F4: SalesRep | G4: Sales | I4: Franks | K4: Date | L4: SalesRep | M4: Sales
A5: 2009-12-01 | B5: Gault | C5: 94.11 | I5: Pham | K5: =IF(ROWS(K$5:K5)>$G$2,"",INDEX(A$2:A$102,SMALL(IF($B$2:$B$102=$F$2,IF(YEAR($A$2:$A$102)=$E$2,ROW($B$2:$B$102)-ROW($B$2)+1)),ROWS(K$5:K5)))) -> 2009-12-25 | L5: =IF(ROWS(L$5:L5)>$G$2,"",INDEX(B$2:B$102,SMALL(IF($B$2:$B$102=$F$2,IF(YEAR($A$2:$A$102)=$E$2,ROW($B$2:$B$102)-ROW($B$2)+1)),ROWS(L$5:L5)))) -> Gault | M5: =IF(ROWS(M$5:M5)>$G$2,"",INDEX(C$2:C$102,SMALL(IF($B$2:$B$102=$F$2,IF(YEAR($A$2:$A$102)=$E$2,ROW($B$2:$B$102)-ROW($B$2)+1)),ROWS(M$5:M5)))) -> 94.69
A6: 2009-12-11 | B6: Franks | C6: 136.14 | I6: Sioux | K6: =IF(ROWS(K$5:K6)>$G$2,"",INDEX(A$2:A$102,SMALL(IF($B$2:$B$102=$F$2,IF(YEAR($A$2:$A$102)=$E$2,ROW($B$2:$B$102)-ROW($B$2)+1)),ROWS(K$5:K6)))) -> 2009-12-01 | L6: =IF(ROWS(L$5:L6)>$G$2,"",INDEX(B$2:B$102,SMALL(IF($B$2:$B$102=$F$2,IF(YEAR($A$2:$A$102)=$E$2,ROW($B$2:$B$102)-ROW($B$2)+1)),ROWS(L$5:L6)))) -> Gault | M6: =IF(ROWS(M$5:M6)>$G$2,"",INDEX(C$2:C$102,SMALL(IF($B$2:$B$102=$F$2,IF(YEAR($A$2:$A$102)=$E$2,ROW($B$2:$B$102)-ROW($B$2)+1)),ROWS(M$5:M6)))) -> 94.11
A7: 2010-02-12 | B7: Pham | C7: 133.17 | I7: Chin | K7: =IF(ROWS(K$5:K7)>$G$2,"",INDEX(A$2:A$102,SMALL(IF($B$2:$B$102=$F$2,IF(YEAR($A$2:$A$102)=$E$2,ROW($B$2:$B$102)-ROW($B$2)+1)),ROWS(K$5:K7)))) -> 2009-11-23 | L7: =IF(ROWS(L$5:L7)>$G$2,"",INDEX(B$2:B$102,SMALL(IF($B$2:$B$102=$F$2,IF(YEAR($A$2:$A$102)=$E$2,ROW($B$2:$B$102)-ROW($B$2)+1)),ROWS(L$5:L7)))) -> Gault | M7: =IF(ROWS(M$5:M7)>$G$2,"",INDEX(C$2:C$102,SMALL(IF($B$2:$B$102=$F$2,IF(YEAR($A$2:$A$102)=$E$2,ROW($B$2:$B$102)-ROW($B$2)+1)),ROWS(M$5:M7)))) -> 78.95
A8: 2009-12-07 | B8: Smith | C8: 80.81 | K8: =IF(ROWS(K$5:K8)>$G$2,"",INDEX(A$2:A$102,SMALL(IF($B$2:$B$102=$F$2,IF(YEAR($A$2:$A$102)=$E$2,ROW($B$2:$B$102)-ROW($B$2)+1)),ROWS(K$5:K8)))) -> 2009-12-20 | L8: =IF(ROWS(L$5:L8)>$G$2,"",INDEX(B$2:B$102,SMALL(IF($B$2:$B$102=$F$2,IF(YEAR($A$2:$A$102)=$E$2,ROW($B$2:$B$102)-ROW($B$2)+1)),ROWS(L$5:L8)))) -> Gault | M8: =IF(ROWS(M$5:M8)>$G$2,"",INDEX(C$2:C$102,SMALL(IF($B$2:$B$102=$F$2,IF(YEAR($A$2:$A$102)=$E$2,ROW($B$2:$B$102)-ROW($B$2)+1)),ROWS(M$5:M8)))) -> 98.71
A9: 2009-11-23 | B9: Smith | C9: 125.38 | K9: =IF(ROWS(K$5:K9)>$G$2,"",INDEX(A$2:A$102,SMALL(IF($B$2:$B$102=$F$2,IF(YEAR($A$2:$A$102)=$E$2,ROW($B$2:$B$102)-ROW($B$2)+1)),ROWS(K$5:K9)))) -> 2009-12-14 | L9: =IF(ROWS(L$5:L9)>$G$2,"",INDEX(B$2:B$102,SMALL(IF($B$2:$B$102=$F$2,IF(YEAR($A$2:$A$102)=$E$2,ROW($B$2:$B$102)-ROW($B$2)+1)),ROWS(L$5:L9)))) -> Gault | M9: =IF(ROWS(M$5:M9)>$G$2,"",INDEX(C$2:C$102,SMALL(IF($B$2:$B$102=$F$2,IF(YEAR($A$2:$A$102)=$E$2,ROW($B$2:$B$102)-ROW($B$2)+1)),ROWS(M$5:M9)))) -> 142.55
A10: 2009-11-23 | B10: Gault | C10: 78.95 | K10: =IF(ROWS(K$5:K10)>$G$2,"",INDEX(A$2:A$102,SMALL(IF($B$2:$B$102=$F$2,IF(YEAR($A$2:$A$102)=$E$2,ROW($B$2:$B$102)-ROW($B$2)+1)),ROWS(K$5:K10)))) -> 2009-12-14 | L10: =IF(ROWS(L$5:L10)>$G$2,"",INDEX(B$2:B$102,SMALL(IF($B$2:$B$102=$F$2,IF(YEAR($A$2:$A$102)=$E$2,ROW($B$2:$B$102)-ROW($B$2)+1)),ROWS(L$5:L10)))) -> Gault | M10: =IF(ROWS(M$5:M10)>$G$2,"",INDEX(C$2:C$102,SMALL(IF($B$2:$B$102=$F$2,IF(YEAR($A$2:$A$102)=$E$2,ROW($B$2:$B$102)-ROW($B$2)+1)),ROWS(M$5:M10)))) -> 88.51
A11: 2010-01-23 | B11: Smith | C11: 113.86 | K11: =IF(ROWS(K$5:K11)>$G$2,"",INDEX(A$2:A$102,SMALL(IF($B$2:$B$102=$F$2,IF(YEAR($A$2:$A$102)=$E$2,ROW($B$2:$B$102)-ROW($B$2)+1)),ROWS(K$5:K11)))) -> 2009-12-29 | L11: =IF(ROWS(L$5:L11)>$G$2,"",INDEX(B$2:B$102,SMALL(IF($B$2:$B$102=$F$2,IF(YEAR($A$2:$A$102)=$E$2,ROW($B$2:$B$102)-ROW($B$2)+1)),ROWS(L$5:L11)))) -> Gault | M11: =IF(ROWS(M$5:M11)>$G$2,"",INDEX(C$2:C$102,SMALL(IF($B$2:$B$102=$F$2,IF(YEAR($A$2:$A$102)=$E$2,ROW($B$2:$B$102)-ROW($B$2)+1)),ROWS(M$5:M11)))) -> 106.94
A12: 2010-01-21 | B12: Pham | C12: 139.38 | K12: =IF(ROWS(K$5:K12)>$G$2,"",INDEX(A$2:A$102,SMALL(IF($B$2:$B$102=$F$2,IF(YEAR($A$2:$A$102)=$E$2,ROW($B$2:$B$102)-ROW($B$2)+1)),ROWS(K$5:K12)))) -> 2009-12-10 | L12: =IF(ROWS(L$5:L12)>$G$2,"",INDEX(B$2:B$102,SMALL(IF($B$2:$B$102=$F$2,IF(YEAR($A$2:$A$102)=$E$2,ROW($B$2:$B$102)-ROW($B$2)+1)),ROWS(L$5:L12)))) -> Gault | M12: =IF(ROWS(M$5:M12)>$G$2,"",INDEX(C$2:C$102,SMALL(IF($B$2:$B$102=$F$2,IF(YEAR($A$2:$A$102)=$E$2,ROW($B$2:$B$102)-ROW($B$2)+1)),ROWS(M$5:M12)))) -> 124.59
A13: 2009-12-20 | B13: Gault | C13: 98.71 | K13: =IF(ROWS(K$5:K13)>$G$2,"",INDEX(A$2:A$102,SMALL(IF($B$2:$B$102=$F$2,IF(YEAR($A$2:$A$102)=$E$2,ROW($B$2:$B$102)-ROW($B$2)+1)),ROWS(K$5:K13)))) -> 2009-11-20 | L13: =IF(ROWS(L$5:L13)>$G$2,"",INDEX(B$2:B$102,SMALL(IF($B$2:$B$102=$F$2,IF(YEAR($A$2:$A$102)=$E$2,ROW($B$2:$B$102)-ROW($B$2)+1)),ROWS(L$5:L13)))) -> Gault | M13: =IF(ROWS(M$5:M13)>$G$2,"",INDEX(C$2:C$102,SMALL(IF($B$2:$B$102=$F$2,IF(YEAR($A$2:$A$102)=$E$2,ROW($B$2:$B$102)-ROW($B$2)+1)),ROWS(M$5:M13)))) -> 93.33
A14: 2009-12-07 | B14: Pham | C14: 76.65 | K14: =IF(ROWS(K$5:K14)>$G$2,"",INDEX(A$2:A$102,SMALL(IF($B$2:$B$102=$F$2,IF(YEAR($A$2:$A$102)=$E$2,ROW($B$2:$B$102)-ROW($B$2)+1)),ROWS(K$5:K14)))) -> 2009-12-23 | L14: =IF(ROWS(L$5:L14)>$G$2,"",INDEX(B$2:B$102,SMALL(IF($B$2:$B$102=$F$2,IF(YEAR($A$2:$A$102)=$E$2,ROW($B$2:$B$102)-ROW($B$2)+1)),ROWS(L$5:L14)))) -> Gault | M14: =IF(ROWS(M$5:M14)>$G$2,"",INDEX(C$2:C$102,SMALL(IF($B$2:$B$102=$F$2,IF(YEAR($A$2:$A$102)=$E$2,ROW($B$2:$B$102)-ROW($B$2)+1)),ROWS(M$5:M14)))) -> 109.7
A15: 2010-02-11 | B15: Gault | C15: 126.62 | K15: =IF(ROWS(K$5:K15)>$G$2,"",INDEX(A$2:A$102,SMALL(IF($B$2:$B$102=$F$2,IF(YEAR($A$2:$A$102)=$E$2,ROW($B$2:$B$102)-ROW($B$2)+1)),ROWS(K$5:K15)))) -> 2009-12-27 | L15: =IF(ROWS(L$5:L15)>$G$2,"",INDEX(B$2:B$102,SMALL(IF($B$2:$B$102=$F$2,IF(YEAR($A$2:$A$102)=$E$2,ROW($B$2:$B$102)-ROW($B$2)+1)),ROWS(L$5:L15)))) -> Gault | M15: =IF(ROWS(M$5:M15)>$G$2,"",INDEX(C$2:C$102,SMALL(IF($B$2:$B$102=$F$2,IF(YEAR($A$2:$A$102)=$E$2,ROW($B$2:$B$102)-ROW($B$2)+1)),ROWS(M$5:M15)))) -> 102.24
A16: 2010-01-13 | B16: Franks | C16: 107.9 | K16: =IF(ROWS(K$5:K16)>$G$2,"",INDEX(A$2:A$102,SMALL(IF($B$2:$B$102=$F$2,IF(YEAR($A$2:$A$102)=$E$2,ROW($B$2:$B$102)-ROW($B$2)+1)),ROWS(K$5:K16)))) -> 2009-12-19 | L16: =IF(ROWS(L$5:L16)>$G$2,"",INDEX(B$2:B$102,SMALL(IF($B$2:$B$102=$F$2,IF(YEAR($A$2:$A$102)=$E$2,ROW($B$2:$B$102)-ROW($B$2)+1)),ROWS(L$5:L16)))) -> Gault | M16: =IF(ROWS(M$5:M16)>$G$2,"",INDEX(C$2:C$102,SMALL(IF($B$2:$B$102=$F$2,IF(YEAR($A$2:$A$102)=$E$2,ROW($B$2:$B$102)-ROW($B$2)+1)),ROWS(M$5:M16)))) -> 131.04
A17: 2010-01-28 | B17: Gault | C17: 130.54 | K17: =IF(ROWS(K$5:K17)>$G$2,"",INDEX(A$2:A$102,SMALL(IF($B$2:$B$102=$F$2,IF(YEAR($A$2:$A$102)=$E$2,ROW($B$2:$B$102)-ROW($B$2)+1)),ROWS(K$5:K17)))) -> 2009-11-21 | L17: =IF(ROWS(L$5:L17)>$G$2,"",INDEX(B$2:B$102,SMALL(IF($B$2:$B$102=$F$2,IF(YEAR($A$2:$A$102)=$E$2,ROW($B$2:$B$102)-ROW($B$2)+1)),ROWS(L$5:L17)))) -> Gault | M17: =IF(ROWS(M$5:M17)>$G$2,"",INDEX(C$2:C$102,SMALL(IF($B$2:$B$102=$F$2,IF(YEAR($A$2:$A$102)=$E$2,ROW($B$2:$B$102)-ROW($B$2)+1)),ROWS(M$5:M17)))) -> 79.11
A18: 2010-01-25 | B18: Gault | C18: 140.71 | K18: =IF(ROWS(K$5:K18)>$G$2,"",INDEX(A$2:A$102,SMALL(IF($B$2:$B$102=$F$2,IF(YEAR($A$2:$A$102)=$E$2,ROW($B$2:$B$102)-ROW($B$2)+1)),ROWS(K$5:K18)))) ->  | L18: =IF(ROWS(L$5:L18)>$G$2,"",INDEX(B$2:B$102,SMALL(IF($B$2:$B$102=$F$2,IF(YEAR($A$2:$A$102)=$E$2,ROW($B$2:$B$102)-ROW($B$2)+1)),ROWS(L$5:L18)))) ->  | M18: =IF(ROWS(M$5:M18)>$G$2,"",INDEX(C$2:C$102,SMALL(IF($B$2:$B$102=$F$2,IF(YEAR($A$2:$A$102)=$E$2,ROW($B$2:$B$102)-ROW($B$2)+1)),ROWS(M$5:M18)))) -> 
A19: 2010-02-10 | B19: Sioux | C19: 108.72 | K19: =IF(ROWS(K$5:K19)>$G$2,"",INDEX(A$2:A$102,SMALL(IF($B$2:$B$102=$F$2,IF(YEAR($A$2:$A$102)=$E$2,ROW($B$2:$B$102)-ROW($B$2)+1)),ROWS(K$5:K19)))) ->  | L19: =IF(ROWS(L$5:L19)>$G$2,"",INDEX(B$2:B$102,SMALL(IF($B$2:$B$102=$F$2,IF(YEAR($A$2:$A$102)=$E$2,ROW($B$2:$B$102)-ROW($B$2)+1)),ROWS(L$5:L19)))) ->  | M19: =IF(ROWS(M$5:M19)>$G$2,"",INDEX(C$2:C$102,SMALL(IF($B$2:$B$102=$F$2,IF(YEAR($A$2:$A$102)=$E$2,ROW($B$2:$B$102)-ROW($B$2)+1)),ROWS(M$5:M19)))) -> 
A20: 2009-12-26 | B20: Smith | C20: 135.18 | K20: =IF(ROWS(K$5:K20)>$G$2,"",INDEX(A$2:A$102,SMALL(IF($B$2:$B$102=$F$2,IF(YEAR($A$2:$A$102)=$E$2,ROW($B$2:$B$102)-ROW($B$2)+1)),ROWS(K$5:K20)))) ->  | L20: =IF(ROWS(L$5:L20)>$G$2,"",INDEX(B$2:B$102,SMALL(IF($B$2:$B$102=$F$2,IF(YEAR($A$2:$A$102)=$E$2,ROW($B$2:$B$102)-ROW($B$2)+1)),ROWS(L$5:L20)))) ->  | M20: =IF(ROWS(M$5:M20)>$G$2,"",INDEX(C$2:C$102,SMALL(IF($B$2:$B$102=$F$2,IF(YEAR($A$2:$A$102)=$E$2,ROW($B$2:$B$102)-ROW($B$2)+1)),ROWS(M$5:M20)))) -> 
A21: 2009-12-14 | B21: Gault | C21: 142.55 | K21: =IF(ROWS(K$5:K21)>$G$2,"",INDEX(A$2:A$102,SMALL(IF($B$2:$B$102=$F$2,IF(YEAR($A$2:$A$102)=$E$2,ROW($B$2:$B$102)-ROW($B$2)+1)),ROWS(K$5:K21)))) ->  | L21: =IF(ROWS(L$5:L21)>$G$2,"",INDEX(B$2:B$102,SMALL(IF($B$2:$B$102=$F$2,IF(YEAR($A$2:$A$102)=$E$2,ROW($B$2:$B$102)-ROW($B$2)+1)),ROWS(L$5:L21)))) ->  | M21: =IF(ROWS(M$5:M21)>$G$2,"",INDEX(C$2:C$102,SMALL(IF($B$2:$B$102=$F$2,IF(YEAR($A$2:$A$102)=$E$2,ROW($B$2:$B$102)-ROW($B$2)+1)),ROWS(M$5:M21)))) -> 
A22: 2010-02-12 | B22: Smith | C22: 140.54 | K22: =IF(ROWS(K$5:K22)>$G$2,"",INDEX(A$2:A$102,SMALL(IF($B$2:$B$102=$F$2,IF(YEAR($A$2:$A$102)=$E$2,ROW($B$2:$B$102)-ROW($B$2)+1)),ROWS(K$5:K22)))) ->  | L22: =IF(ROWS(L$5:L22)>$G$2,"",INDEX(B$2:B$102,SMALL(IF($B$2:$B$102=$F$2,IF(YEAR($A$2:$A$102)=$E$2,ROW($B$2:$B$102)-ROW($B$2)+1)),ROWS(L$5:L22)))) ->  | M22: =IF(ROWS(M$5:M22)>$G$2,"",INDEX(C$2:C$102,SMALL(IF($B$2:$B$102=$F$2,IF(YEAR($A$2:$A$102)=$E$2,ROW($B$2:$B$102)-ROW($B$2)+1)),ROWS(M$5:M22)))) -> 
A23: 2010-01-19 | B23: Franks | C23: 75.04 | K23: =IF(ROWS(K$5:K23)>$G$2,"",INDEX(A$2:A$102,SMALL(IF($B$2:$B$102=$F$2,IF(YEAR($A$2:$A$102)=$E$2,ROW($B$2:$B$102)-ROW($B$2)+1)),ROWS(K$5:K23)))) ->  | L23: =IF(ROWS(L$5:L23)>$G$2,"",INDEX(B$2:B$102,SMALL(IF($B$2:$B$102=$F$2,IF(YEAR($A$2:$A$102)=$E$2,ROW($B$2:$B$102)-ROW($B$2)+1)),ROWS(L$5:L23)))) ->  | M23: =IF(ROWS(M$5:M23)>$G$2,"",INDEX(C$2:C$102,SMALL(IF($B$2:$B$102=$F$2,IF(YEAR($A$2:$A$102)=$E$2,ROW($B$2:$B$102)-ROW($B$2)+1)),ROWS(M$5:M23)))) -> 
A24: 2010-02-16 | B24: Pham | C24: 93.15 | K24: =IF(ROWS(K$5:K24)>$G$2,"",INDEX(A$2:A$102,SMALL(IF($B$2:$B$102=$F$2,IF(YEAR($A$2:$A$102)=$E$2,ROW($B$2:$B$102)-ROW($B$2)+1)),ROWS(K$5:K24)))) ->  | L24: =IF(ROWS(L$5:L24)>$G$2,"",INDEX(B$2:B$102,SMALL(IF($B$2:$B$102=$F$2,IF(YEAR($A$2:$A$102)=$E$2,ROW($B$2:$B$102)-ROW($B$2)+1)),ROWS(L$5:L24)))) ->  | M24: =IF(ROWS(M$5:M24)>$G$2,"",INDEX(C$2:C$102,SMALL(IF($B$2:$B$102=$F$2,IF(YEAR($A$2:$A$102)=$E$2,ROW($B$2:$B$102)-ROW($B$2)+1)),ROWS(M$5:M24)))) -> 
A25: 2010-01-07 | B25: Sioux | C25: 132.51 | K25: =IF(ROWS(K$5:K25)>$G$2,"",INDEX(A$2:A$102,SMALL(IF($B$2:$B$102=$F$2,IF(YEAR($A$2:$A$102)=$E$2,ROW($B$2:$B$102)-ROW($B$2)+1)),ROWS(K$5:K25)))) ->  | L25: =IF(ROWS(L$5:L25)>$G$2,"",INDEX(B$2:B$102,SMALL(IF($B$2:$B$102=$F$2,IF(YEAR($A$2:$A$102)=$E$2,ROW($B$2:$B$102)-ROW($B$2)+1)),ROWS(L$5:L25)))) ->  | M25: =IF(ROWS(M$5:M25)>$G$2,"",INDEX(C$2:C$102,SMALL(IF($B$2:$B$102=$F$2,IF(YEAR($A$2:$A$102)=$E$2,ROW($B$2:$B$102)-ROW($B$2)+1)),ROWS(M$5:M25)))) -> 
A26: 2010-01-16 | B26: Chin | C26: 85.14 | K26: =IF(ROWS(K$5:K26)>$G$2,"",INDEX(A$2:A$102,SMALL(IF($B$2:$B$102=$F$2,IF(YEAR($A$2:$A$102)=$E$2,ROW($B$2:$B$102)-ROW($B$2)+1)),ROWS(K$5:K26)))) ->  | L26: =IF(ROWS(L$5:L26)>$G$2,"",INDEX(B$2:B$102,SMALL(IF($B$2:$B$102=$F$2,IF(YEAR($A$2:$A$102)=$E$2,ROW($B$2:$B$102)-ROW($B$2)+1)),ROWS(L$5:L26)))) ->  | M26: =IF(ROWS(M$5:M26)>$G$2,"",INDEX(C$2:C$102,SMALL(IF($B$2:$B$102=$F$2,IF(YEAR($A$2:$A$102)=$E$2,ROW($B$2:$B$102)-ROW($B$2)+1)),ROWS(M$5:M26)))) -> 
A27: 2010-02-15 | B27: Franks | C27: 108.85 | K27: =IF(ROWS(K$5:K27)>$G$2,"",INDEX(A$2:A$102,SMALL(IF($B$2:$B$102=$F$2,IF(YEAR($A$2:$A$102)=$E$2,ROW($B$2:$B$102)-ROW($B$2)+1)),ROWS(K$5:K27)))) ->  | L27: =IF(ROWS(L$5:L27)>$G$2,"",INDEX(B$2:B$102,SMALL(IF($B$2:$B$102=$F$2,IF(YEAR($A$2:$A$102)=$E$2,ROW($B$2:$B$102)-ROW($B$2)+1)),ROWS(L$5:L27)))) ->  | M27: =IF(ROWS(M$5:M27)>$G$2,"",INDEX(C$2:C$102,SMALL(IF($B$2:$B$102=$F$2,IF(YEAR($A$2:$A$102)=$E$2,ROW($B$2:$B$102)-ROW($B$2)+1)),ROWS(M$5:M27)))) -> 
A28: 2009-12-13 | B28: Sioux | C28: 139.92 | K28: =IF(ROWS(K$5:K28)>$G$2,"",INDEX(A$2:A$102,SMALL(IF($B$2:$B$102=$F$2,IF(YEAR($A$2:$A$102)=$E$2,ROW($B$2:$B$102)-ROW($B$2)+1)),ROWS(K$5:K28)))) ->  | L28: =IF(ROWS(L$5:L28)>$G$2,"",INDEX(B$2:B$102,SMALL(IF($B$2:$B$102=$F$2,IF(YEAR($A$2:$A$102)=$E$2,ROW($B$2:$B$102)-ROW($B$2)+1)),ROWS(L$5:L28)))) ->  | M28: =IF(ROWS(M$5:M28)>$G$2,"",INDEX(C$2:C$102,SMALL(IF($B$2:$B$102=$F$2,IF(YEAR($A$2:$A$102)=$E$2,ROW($B$2:$B$102)-ROW($B$2)+1)),ROWS(M$5:M28)))) -> 
A29: 2010-01-04 | B29: Franks | C29: 104.35 | K29: =IF(ROWS(K$5:K29)>$G$2,"",INDEX(A$2:A$102,SMALL(IF($B$2:$B$102=$F$2,IF(YEAR($A$2:$A$102)=$E$2,ROW($B$2:$B$102)-ROW($B$2)+1)),ROWS(K$5:K29)))) ->  | L29: =IF(ROWS(L$5:L29)>$G$2,"",INDEX(B$2:B$102,SMALL(IF($B$2:$B$102=$F$2,IF(YEAR($A$2:$A$102)=$E$2,ROW($B$2:$B$102)-ROW($B$2)+1)),ROWS(L$5:L29)))) ->  | M29: =IF(ROWS(M$5:M29)>$G$2,"",INDEX(C$2:C$102,SMALL(IF($B$2:$B$102=$F$2,IF(YEAR($A$2:$A$102)=$E$2,ROW($B$2:$B$102)-ROW($B$2)+1)),ROWS(M$5:M29)))) -> 
A30: 2009-12-14 | B30: Gault | C30: 88.51 | K30: =IF(ROWS(K$5:K30)>$G$2,"",INDEX(A$2:A$102,SMALL(IF($B$2:$B$102=$F$2,IF(YEAR($A$2:$A$102)=$E$2,ROW($B$2:$B$102)-ROW($B$2)+1)),ROWS(K$5:K30)))) ->  | L30: =IF(ROWS(L$5:L30)>$G$2,"",INDEX(B$2:B$102,SMALL(IF($B$2:$B$102=$F$2,IF(YEAR($A$2:$A$102)=$E$2,ROW($B$2:$B$102)-ROW($B$2)+1)),ROWS(L$5:L30)))) ->  | M30: =IF(ROWS(M$5:M30)>$G$2,"",INDEX(C$2:C$102,SMALL(IF($B$2:$B$102=$F$2,IF(YEAR($A$2:$A$102)=$E$2,ROW($B$2:$B$102)-ROW($B$2)+1)),ROWS(M$5:M30)))) -> 
A31: 2010-02-01 | B31: Gault | C31: 136.76 | K31: =IF(ROWS(K$5:K31)>$G$2,"",INDEX(A$2:A$102,SMALL(IF($B$2:$B$102=$F$2,IF(YEAR($A$2:$A$102)=$E$2,ROW($B$2:$B$102)-ROW($B$2)+1)),ROWS(K$5:K31)))) ->  | L31: =IF(ROWS(L$5:L31)>$G$2,"",INDEX(B$2:B$102,SMALL(IF($B$2:$B$102=$F$2,IF(YEAR($A$2:$A$102)=$E$2,ROW($B$2:$B$102)-ROW($B$2)+1)),ROWS(L$5:L31)))) ->  | M31: =IF(ROWS(M$5:M31)>$G$2,"",INDEX(C$2:C$102,SMALL(IF($B$2:$B$102=$F$2,IF(YEAR($A$2:$A$102)=$E$2,ROW($B$2:$B$102)-ROW($B$2)+1)),ROWS(M$5:M31)))) -> 
A32: 2009-11-25 | B32: Pham | C32: 109.57 | K32: =IF(ROWS(K$5:K32)>$G$2,"",INDEX(A$2:A$102,SMALL(IF($B$2:$B$102=$F$2,IF(YEAR($A$2:$A$102)=$E$2,ROW($B$2:$B$102)-ROW($B$2)+1)),ROWS(K$5:K32)))) ->  | L32: =IF(ROWS(L$5:L32)>$G$2,"",INDEX(B$2:B$102,SMALL(IF($B$2:$B$102=$F$2,IF(YEAR($A$2:$A$102)=$E$2,ROW($B$2:$B$102)-ROW($B$2)+1)),ROWS(L$5:L32)))) ->  | M32: =IF(ROWS(M$5:M32)>$G$2,"",INDEX(C$2:C$102,SMALL(IF($B$2:$B$102=$F$2,IF(YEAR($A$2:$A$102)=$E$2,ROW($B$2:$B$102)-ROW($B$2)+1)),ROWS(M$5:M32)))) -> 
A33: 2010-02-07 | B33: Franks | C33: 125.81 | K33: =IF(ROWS(K$5:K33)>$G$2,"",INDEX(A$2:A$102,SMALL(IF($B$2:$B$102=$F$2,IF(YEAR($A$2:$A$102)=$E$2,ROW($B$2:$B$102)-ROW($B$2)+1)),ROWS(K$5:K33)))) ->  | L33: =IF(ROWS(L$5:L33)>$G$2,"",INDEX(B$2:B$102,SMALL(IF($B$2:$B$102=$F$2,IF(YEAR($A$2:$A$102)=$E$2,ROW($B$2:$B$102)-ROW($B$2)+1)),ROWS(L$5:L33)))) ->  | M33: =IF(ROWS(M$5:M33)>$G$2,"",INDEX(C$2:C$102,SMALL(IF($B$2:$B$102=$F$2,IF(YEAR($A$2:$A$102)=$E$2,ROW($B$2:$B$102)-ROW($B$2)+1)),ROWS(M$5:M33)))) -> 
A34: 2009-12-22 | B34: Pham | C34: 150.09 | K34: =IF(ROWS(K$5:K34)>$G$2,"",INDEX(A$2:A$102,SMALL(IF($B$2:$B$102=$F$2,IF(YEAR($A$2:$A$102)=$E$2,ROW($B$2:$B$102)-ROW($B$2)+1)),ROWS(K$5:K34)))) ->  | L34: =IF(ROWS(L$5:L34)>$G$2,"",INDEX(B$2:B$102,SMALL(IF($B$2:$B$102=$F$2,IF(YEAR($A$2:$A$102)=$E$2,ROW($B$2:$B$102)-ROW($B$2)+1)),ROWS(L$5:L34)))) ->  | M34: =IF(ROWS(M$5:M34)>$G$2,"",INDEX(C$2:C$102,SMALL(IF($B$2:$B$102=$F$2,IF(YEAR($A$2:$A$102)=$E$2,ROW($B$2:$B$102)-ROW($B$2)+1)),ROWS(M$5:M34)))) -> 
A35: 2009-12-07 | B35: Sioux | C35: 147.53 | K35: =IF(ROWS(K$5:K35)>$G$2,"",INDEX(A$2:A$102,SMALL(IF($B$2:$B$102=$F$2,IF(YEAR($A$2:$A$102)=$E$2,ROW($B$2:$B$102)-ROW($B$2)+1)),ROWS(K$5:K35)))) ->  | L35: =IF(ROWS(L$5:L35)>$G$2,"",INDEX(B$2:B$102,SMALL(IF($B$2:$B$102=$F$2,IF(YEAR($A$2:$A$102)=$E$2,ROW($B$2:$B$102)-ROW($B$2)+1)),ROWS(L$5:L35)))) ->  | M35: =IF(ROWS(M$5:M35)>$G$2,"",INDEX(C$2:C$102,SMALL(IF($B$2:$B$102=$F$2,IF(YEAR($A$2:$A$102)=$E$2,ROW($B$2:$B$102)-ROW($B$2)+1)),ROWS(M$5:M35)))) -> 
A36: 2009-12-12 | B36: Chin | C36: 102.17 | K36: =IF(ROWS(K$5:K36)>$G$2,"",INDEX(A$2:A$102,SMALL(IF($B$2:$B$102=$F$2,IF(YEAR($A$2:$A$102)=$E$2,ROW($B$2:$B$102)-ROW($B$2)+1)),ROWS(K$5:K36)))) ->  | L36: =IF(ROWS(L$5:L36)>$G$2,"",INDEX(B$2:B$102,SMALL(IF($B$2:$B$102=$F$2,IF(YEAR($A$2:$A$102)=$E$2,ROW($B$2:$B$102)-ROW($B$2)+1)),ROWS(L$5:L36)))) ->  | M36: =IF(ROWS(M$5:M36)>$G$2,"",INDEX(C$2:C$102,SMALL(IF($B$2:$B$102=$F$2,IF(YEAR($A$2:$A$102)=$E$2,ROW($B$2:$B$102)-ROW($B$2)+1)),ROWS(M$5:M36)))) -> 
A37: 2009-12-30 | B37: Smith | C37: 114.4 | K37: =IF(ROWS(K$5:K37)>$G$2,"",INDEX(A$2:A$102,SMALL(IF($B$2:$B$102=$F$2,IF(YEAR($A$2:$A$102)=$E$2,ROW($B$2:$B$102)-ROW($B$2)+1)),ROWS(K$5:K37)))) ->  | L37: =IF(ROWS(L$5:L37)>$G$2,"",INDEX(B$2:B$102,SMALL(IF($B$2:$B$102=$F$2,IF(YEAR($A$2:$A$102)=$E$2,ROW($B$2:$B$102)-ROW($B$2)+1)),ROWS(L$5:L37)))) ->  | M37: =IF(ROWS(M$5:M37)>$G$2,"",INDEX(C$2:C$102,SMALL(IF($B$2:$B$102=$F$2,IF(YEAR($A$2:$A$102)=$E$2,ROW($B$2:$B$102)-ROW($B$2)+1)),ROWS(M$5:M37)))) -> 
A38: 2009-12-27 | B38: Chin | C38: 129.65 | K38: =IF(ROWS(K$5:K38)>$G$2,"",INDEX(A$2:A$102,SMALL(IF($B$2:$B$102=$F$2,IF(YEAR($A$2:$A$102)=$E$2,ROW($B$2:$B$102)-ROW($B$2)+1)),ROWS(K$5:K38)))) ->  | L38: =IF(ROWS(L$5:L38)>$G$2,"",INDEX(B$2:B$102,SMALL(IF($B$2:$B$102=$F$2,IF(YEAR($A$2:$A$102)=$E$2,ROW($B$2:$B$102)-ROW($B$2)+1)),ROWS(L$5:L38)))) ->  | M38: =IF(ROWS(M$5:M38)>$G$2,"",INDEX(C$2:C$102,SMALL(IF($B$2:$B$102=$F$2,IF(YEAR($A$2:$A$102)=$E$2,ROW($B$2:$B$102)-ROW($B$2)+1)),ROWS(M$5:M38)))) -> 
A39: 2009-12-29 | B39: Chin | C39: 128.95 | K39: =IF(ROWS(K$5:K39)>$G$2,"",INDEX(A$2:A$102,SMALL(IF($B$2:$B$102=$F$2,IF(YEAR($A$2:$A$102)=$E$2,ROW($B$2:$B$102)-ROW($B$2)+1)),ROWS(K$5:K39)))) ->  | L39: =IF(ROWS(L$5:L39)>$G$2,"",INDEX(B$2:B$102,SMALL(IF($B$2:$B$102=$F$2,IF(YEAR($A$2:$A$102)=$E$2,ROW($B$2:$B$102)-ROW($B$2)+1)),ROWS(L$5:L39)))) ->  | M39: =IF(ROWS(M$5:M39)>$G$2,"",INDEX(C$2:C$102,SMALL(IF($B$2:$B$102=$F$2,IF(YEAR($A$2:$A$102)=$E$2,ROW($B$2:$B$102)-ROW($B$2)+1)),ROWS(M$5:M39)))) -> 
A40: 2010-01-05 | B40: Gault | C40: 121.33 | K40: =IF(ROWS(K$5:K40)>$G$2,"",INDEX(A$2:A$102,SMALL(IF($B$2:$B$102=$F$2,IF(YEAR($A$2:$A$102)=$E$2,ROW($B$2:$B$102)-ROW($B$2)+1)),ROWS(K$5:K40)))) ->  | L40: =IF(ROWS(L$5:L40)>$G$2,"",INDEX(B$2:B$102,SMALL(IF($B$2:$B$102=$F$2,IF(YEAR($A$2:$A$102)=$E$2,ROW($B$2:$B$102)-ROW($B$2)+1)),ROWS(L$5:L40)))) ->  | M40: =IF(ROWS(M$5:M40)>$G$2,"",INDEX(C$2:C$102,SMALL(IF($B$2:$B$102=$F$2,IF(YEAR($A$2:$A$102)=$E$2,ROW($B$2:$B$102)-ROW($B$2)+1)),ROWS(M$5:M40)))) -> 
A41: 2009-12-15 | B41: Pham | C41: 102.64 | K41: =IF(ROWS(K$5:K41)>$G$2,"",INDEX(A$2:A$102,SMALL(IF($B$2:$B$102=$F$2,IF(YEAR($A$2:$A$102)=$E$2,ROW($B$2:$B$102)-ROW($B$2)+1)),ROWS(K$5:K41)))) ->  | L41: =IF(ROWS(L$5:L41)>$G$2,"",INDEX(B$2:B$102,SMALL(IF($B$2:$B$102=$F$2,IF(YEAR($A$2:$A$102)=$E$2,ROW($B$2:$B$102)-ROW($B$2)+1)),ROWS(L$5:L41)))) ->  | M41: =IF(ROWS(M$5:M41)>$G$2,"",INDEX(C$2:C$102,SMALL(IF($B$2:$B$102=$F$2,IF(YEAR($A$2:$A$102)=$E$2,ROW($B$2:$B$102)-ROW($B$2)+1)),ROWS(M$5:M41)))) -> 
A42: 2009-12-01 | B42: Pham | C42: 132.12 | K42: =IF(ROWS(K$5:K42)>$G$2,"",INDEX(A$2:A$102,SMALL(IF($B$2:$B$102=$F$2,IF(YEAR($A$2:$A$102)=$E$2,ROW($B$2:$B$102)-ROW($B$2)+1)),ROWS(K$5:K42)))) ->  | L42: =IF(ROWS(L$5:L42)>$G$2,"",INDEX(B$2:B$102,SMALL(IF($B$2:$B$102=$F$2,IF(YEAR($A$2:$A$102)=$E$2,ROW($B$2:$B$102)-ROW($B$2)+1)),ROWS(L$5:L42)))) ->  | M42: =IF(ROWS(M$5:M42)>$G$2,"",INDEX(C$2:C$102,SMALL(IF($B$2:$B$102=$F$2,IF(YEAR($A$2:$A$102)=$E$2,ROW($B$2:$B$102)-ROW($B$2)+1)),ROWS(M$5:M42)))) -> 
A43: 2010-02-07 | B43: Franks | C43: 100.83 | K43: =IF(ROWS(K$5:K43)>$G$2,"",INDEX(A$2:A$102,SMALL(IF($B$2:$B$102=$F$2,IF(YEAR($A$2:$A$102)=$E$2,ROW($B$2:$B$102)-ROW($B$2)+1)),ROWS(K$5:K43)))) ->  | L43: =IF(ROWS(L$5:L43)>$G$2,"",INDEX(B$2:B$102,SMALL(IF($B$2:$B$102=$F$2,IF(YEAR($A$2:$A$102)=$E$2,ROW($B$2:$B$102)-ROW($B$2)+1)),ROWS(L$5:L43)))) ->  | M43: =IF(ROWS(M$5:M43)>$G$2,"",INDEX(C$2:C$102,SMALL(IF($B$2:$B$102=$F$2,IF(YEAR($A$2:$A$102)=$E$2,ROW($B$2:$B$102)-ROW($B$2)+1)),ROWS(M$5:M43)))) -> 
A44: 2009-11-26 | B44: Sioux | C44: 79.42 | K44: =IF(ROWS(K$5:K44)>$G$2,"",INDEX(A$2:A$102,SMALL(IF($B$2:$B$102=$F$2,IF(YEAR($A$2:$A$102)=$E$2,ROW($B$2:$B$102)-ROW($B$2)+1)),ROWS(K$5:K44)))) ->  | L44: =IF(ROWS(L$5:L44)>$G$2,"",INDEX(B$2:B$102,SMALL(IF($B$2:$B$102=$F$2,IF(YEAR($A$2:$A$102)=$E$2,ROW($B$2:$B$102)-ROW($B$2)+1)),ROWS(L$5:L44)))) ->  | M44: =IF(ROWS(M$5:M44)>$G$2,"",INDEX(C$2:C$102,SMALL(IF($B$2:$B$102=$F$2,IF(YEAR($A$2:$A$102)=$E$2,ROW($B$2:$B$102)-ROW($B$2)+1)),ROWS(M$5:M44)))) -> 
A45: 2010-01-04 | B45: Pham | C45: 100.09 | K45: =IF(ROWS(K$5:K45)>$G$2,"",INDEX(A$2:A$102,SMALL(IF($B$2:$B$102=$F$2,IF(YEAR($A$2:$A$102)=$E$2,ROW($B$2:$B$102)-ROW($B$2)+1)),ROWS(K$5:K45)))) ->  | L45: =IF(ROWS(L$5:L45)>$G$2,"",INDEX(B$2:B$102,SMALL(IF($B$2:$B$102=$F$2,IF(YEAR($A$2:$A$102)=$E$2,ROW($B$2:$B$102)-ROW($B$2)+1)),ROWS(L$5:L45)))) ->  | M45: =IF(ROWS(M$5:M45)>$G$2,"",INDEX(C$2:C$102,SMALL(IF($B$2:$B$102=$F$2,IF(YEAR($A$2:$A$102)=$E$2,ROW($B$2:$B$102)-ROW($B$2)+1)),ROWS(M$5:M45)))) -> 
A46: 2010-01-29 | B46: Franks | C46: 83.37 | K46: =IF(ROWS(K$5:K46)>$G$2,"",INDEX(A$2:A$102,SMALL(IF($B$2:$B$102=$F$2,IF(YEAR($A$2:$A$102)=$E$2,ROW($B$2:$B$102)-ROW($B$2)+1)),ROWS(K$5:K46)))) ->  | L46: =IF(ROWS(L$5:L46)>$G$2,"",INDEX(B$2:B$102,SMALL(IF($B$2:$B$102=$F$2,IF(YEAR($A$2:$A$102)=$E$2,ROW($B$2:$B$102)-ROW($B$2)+1)),ROWS(L$5:L46)))) ->  | M46: =IF(ROWS(M$5:M46)>$G$2,"",INDEX(C$2:C$102,SMALL(IF($B$2:$B$102=$F$2,IF(YEAR($A$2:$A$102)=$E$2,ROW($B$2:$B$102)-ROW($B$2)+1)),ROWS(M$5:M46)))) -> 
A47: 2010-01-19 | B47: Franks | C47: 89.11 | K47: =IF(ROWS(K$5:K47)>$G$2,"",INDEX(A$2:A$102,SMALL(IF($B$2:$B$102=$F$2,IF(YEAR($A$2:$A$102)=$E$2,ROW($B$2:$B$102)-ROW($B$2)+1)),ROWS(K$5:K47)))) ->  | L47: =IF(ROWS(L$5:L47)>$G$2,"",INDEX(B$2:B$102,SMALL(IF($B$2:$B$102=$F$2,IF(YEAR($A$2:$A$102)=$E$2,ROW($B$2:$B$102)-ROW($B$2)+1)),ROWS(L$5:L47)))) ->  | M47: =IF(ROWS(M$5:M47)>$G$2,"",INDEX(C$2:C$102,SMALL(IF($B$2:$B$102=$F$2,IF(YEAR($A$2:$A$102)=$E$2,ROW($B$2:$B$102)-ROW($B$2)+1)),ROWS(M$5:M47)))) -> 
A48: 2010-02-14 | B48: Smith | C48: 126.97 | K48: =IF(ROWS(K$5:K48)>$G$2,"",INDEX(A$2:A$102,SMALL(IF($B$2:$B$102=$F$2,IF(YEAR($A$2:$A$102)=$E$2,ROW($B$2:$B$102)-ROW($B$2)+1)),ROWS(K$5:K48)))) ->  | L48: =IF(ROWS(L$5:L48)>$G$2,"",INDEX(B$2:B$102,SMALL(IF($B$2:$B$102=$F$2,IF(YEAR($A$2:$A$102)=$E$2,ROW($B$2:$B$102)-ROW($B$2)+1)),ROWS(L$5:L48)))) ->  | M48: =IF(ROWS(M$5:M48)>$G$2,"",INDEX(C$2:C$102,SMALL(IF($B$2:$B$102=$F$2,IF(YEAR($A$2:$A$102)=$E$2,ROW($B$2:$B$102)-ROW($B$2)+1)),ROWS(M$5:M48)))) -> 
A49: 2009-12-03 | B49: Smith | C49: 154.31 | K49: =IF(ROWS(K$5:K49)>$G$2,"",INDEX(A$2:A$102,SMALL(IF($B$2:$B$102=$F$2,IF(YEAR($A$2:$A$102)=$E$2,ROW($B$2:$B$102)-ROW($B$2)+1)),ROWS(K$5:K49)))) ->  | L49: =IF(ROWS(L$5:L49)>$G$2,"",INDEX(B$2:B$102,SMALL(IF($B$2:$B$102=$F$2,IF(YEAR($A$2:$A$102)=$E$2,ROW($B$2:$B$102)-ROW($B$2)+1)),ROWS(L$5:L49)))) ->  | M49: =IF(ROWS(M$5:M49)>$G$2,"",INDEX(C$2:C$102,SMALL(IF($B$2:$B$102=$F$2,IF(YEAR($A$2:$A$102)=$E$2,ROW($B$2:$B$102)-ROW($B$2)+1)),ROWS(M$5:M49)))) -> 
A50: 2010-01-02 | B50: Sioux | C50: 76.59 | K50: =IF(ROWS(K$5:K50)>$G$2,"",INDEX(A$2:A$102,SMALL(IF($B$2:$B$102=$F$2,IF(YEAR($A$2:$A$102)=$E$2,ROW($B$2:$B$102)-ROW($B$2)+1)),ROWS(K$5:K50)))) ->  | L50: =IF(ROWS(L$5:L50)>$G$2,"",INDEX(B$2:B$102,SMALL(IF($B$2:$B$102=$F$2,IF(YEAR($A$2:$A$102)=$E$2,ROW($B$2:$B$102)-ROW($B$2)+1)),ROWS(L$5:L50)))) ->  | M50: =IF(ROWS(M$5:M50)>$G$2,"",INDEX(C$2:C$102,SMALL(IF($B$2:$B$102=$F$2,IF(YEAR($A$2:$A$102)=$E$2,ROW($B$2:$B$102)-ROW($B$2)+1)),ROWS(M$5:M50)))) -> 
A51: 2009-12-29 | B51: Gault | C51: 106.94 | K51: =IF(ROWS(K$5:K51)>$G$2,"",INDEX(A$2:A$102,SMALL(IF($B$2:$B$102=$F$2,IF(YEAR($A$2:$A$102)=$E$2,ROW($B$2:$B$102)-ROW($B$2)+1)),ROWS(K$5:K51)))) ->  | L51: =IF(ROWS(L$5:L51)>$G$2,"",INDEX(B$2:B$102,SMALL(IF($B$2:$B$102=$F$2,IF(YEAR($A$2:$A$102)=$E$2,ROW($B$2:$B$102)-ROW($B$2)+1)),ROWS(L$5:L51)))) ->  | M51: =IF(ROWS(M$5:M51)>$G$2,"",INDEX(C$2:C$102,SMALL(IF($B$2:$B$102=$F$2,IF(YEAR($A$2:$A$102)=$E$2,ROW($B$2:$B$102)-ROW($B$2)+1)),ROWS(M$5:M51)))) -> 
A52: 2009-11-26 | B52: Chin | C52: 129.86 | K52: =IF(ROWS(K$5:K52)>$G$2,"",INDEX(A$2:A$102,SMALL(IF($B$2:$B$102=$F$2,IF(YEAR($A$2:$A$102)=$E$2,ROW($B$2:$B$102)-ROW($B$2)+1)),ROWS(K$5:K52)))) ->  | L52: =IF(ROWS(L$5:L52)>$G$2,"",INDEX(B$2:B$102,SMALL(IF($B$2:$B$102=$F$2,IF(YEAR($A$2:$A$102)=$E$2,ROW($B$2:$B$102)-ROW($B$2)+1)),ROWS(L$5:L52)))) ->  | M52: =IF(ROWS(M$5:M52)>$G$2,"",INDEX(C$2:C$102,SMALL(IF($B$2:$B$102=$F$2,IF(YEAR($A$2:$A$102)=$E$2,ROW($B$2:$B$102)-ROW($B$2)+1)),ROWS(M$5:M52)))) -> 
A53: 2009-12-24 | B53: Pham | C53: 100.76 | K53: =IF(ROWS(K$5:K53)>$G$2,"",INDEX(A$2:A$102,SMALL(IF($B$2:$B$102=$F$2,IF(YEAR($A$2:$A$102)=$E$2,ROW($B$2:$B$102)-ROW($B$2)+1)),ROWS(K$5:K53)))) ->  | L53: =IF(ROWS(L$5:L53)>$G$2,"",INDEX(B$2:B$102,SMALL(IF($B$2:$B$102=$F$2,IF(YEAR($A$2:$A$102)=$E$2,ROW($B$2:$B$102)-ROW($B$2)+1)),ROWS(L$5:L53)))) ->  | M53: =IF(ROWS(M$5:M53)>$G$2,"",INDEX(C$2:C$102,SMALL(IF($B$2:$B$102=$F$2,IF(YEAR($A$2:$A$102)=$E$2,ROW($B$2:$B$102)-ROW($B$2)+1)),ROWS(M$5:M53)))) -> 
A54: 2009-12-10 | B54: Gault | C54: 124.59 | K54: =IF(ROWS(K$5:K54)>$G$2,"",INDEX(A$2:A$102,SMALL(IF($B$2:$B$102=$F$2,IF(YEAR($A$2:$A$102)=$E$2,ROW($B$2:$B$102)-ROW($B$2)+1)),ROWS(K$5:K54)))) ->  | L54: =IF(ROWS(L$5:L54)>$G$2,"",INDEX(B$2:B$102,SMALL(IF($B$2:$B$102=$F$2,IF(YEAR($A$2:$A$102)=$E$2,ROW($B$2:$B$102)-ROW($B$2)+1)),ROWS(L$5:L54)))) ->  | M54: =IF(ROWS(M$5:M54)>$G$2,"",INDEX(C$2:C$102,SMALL(IF($B$2:$B$102=$F$2,IF(YEAR($A$2:$A$102)=$E$2,ROW($B$2:$B$102)-ROW($B$2)+1)),ROWS(M$5:M54)))) -> 
A55: 2009-12-31 | B55: Smith | C55: 150.31 | K55: =IF(ROWS(K$5:K55)>$G$2,"",INDEX(A$2:A$102,SMALL(IF($B$2:$B$102=$F$2,IF(YEAR($A$2:$A$102)=$E$2,ROW($B$2:$B$102)-ROW($B$2)+1)),ROWS(K$5:K55)))) ->  | L55: =IF(ROWS(L$5:L55)>$G$2,"",INDEX(B$2:B$102,SMALL(IF($B$2:$B$102=$F$2,IF(YEAR($A$2:$A$102)=$E$2,ROW($B$2:$B$102)-ROW($B$2)+1)),ROWS(L$5:L55)))) ->  | M55: =IF(ROWS(M$5:M55)>$G$2,"",INDEX(C$2:C$102,SMALL(IF($B$2:$B$102=$F$2,IF(YEAR($A$2:$A$102)=$E$2,ROW($B$2:$B$102)-ROW($B$2)+1)),ROWS(M$5:M55)))) -> 
A56: 2009-12-16 | B56: Franks | C56: 119.78 | K56: =IF(ROWS(K$5:K56)>$G$2,"",INDEX(A$2:A$102,SMALL(IF($B$2:$B$102=$F$2,IF(YEAR($A$2:$A$102)=$E$2,ROW($B$2:$B$102)-ROW($B$2)+1)),ROWS(K$5:K56)))) ->  | L56: =IF(ROWS(L$5:L56)>$G$2,"",INDEX(B$2:B$102,SMALL(IF($B$2:$B$102=$F$2,IF(YEAR($A$2:$A$102)=$E$2,ROW($B$2:$B$102)-ROW($B$2)+1)),ROWS(L$5:L56)))) ->  | M56: =IF(ROWS(M$5:M56)>$G$2,"",INDEX(C$2:C$102,SMALL(IF($B$2:$B$102=$F$2,IF(YEAR($A$2:$A$102)=$E$2,ROW($B$2:$B$102)-ROW($B$2)+1)),ROWS(M$5:M56)))) -> 
A57: 2010-01-03 | B57: Pham | C57: 93.37 | K57: =IF(ROWS(K$5:K57)>$G$2,"",INDEX(A$2:A$102,SMALL(IF($B$2:$B$102=$F$2,IF(YEAR($A$2:$A$102)=$E$2,ROW($B$2:$B$102)-ROW($B$2)+1)),ROWS(K$5:K57)))) ->  | L57: =IF(ROWS(L$5:L57)>$G$2,"",INDEX(B$2:B$102,SMALL(IF($B$2:$B$102=$F$2,IF(YEAR($A$2:$A$102)=$E$2,ROW($B$2:$B$102)-ROW($B$2)+1)),ROWS(L$5:L57)))) ->  | M57: =IF(ROWS(M$5:M57)>$G$2,"",INDEX(C$2:C$102,SMALL(IF($B$2:$B$102=$F$2,IF(YEAR($A$2:$A$102)=$E$2,ROW($B$2:$B$102)-ROW($B$2)+1)),ROWS(M$5:M57)))) -> 
A58: 2009-12-26 | B58: Chin | C58: 87.06 | K58: =IF(ROWS(K$5:K58)>$G$2,"",INDEX(A$2:A$102,SMALL(IF($B$2:$B$102=$F$2,IF(YEAR($A$2:$A$102)=$E$2,ROW($B$2:$B$102)-ROW($B$2)+1)),ROWS(K$5:K58)))) ->  | L58: =IF(ROWS(L$5:L58)>$G$2,"",INDEX(B$2:B$102,SMALL(IF($B$2:$B$102=$F$2,IF(YEAR($A$2:$A$102)=$E$2,ROW($B$2:$B$102)-ROW($B$2)+1)),ROWS(L$5:L58)))) ->  | M58: =IF(ROWS(M$5:M58)>$G$2,"",INDEX(C$2:C$102,SMALL(IF($B$2:$B$102=$F$2,IF(YEAR($A$2:$A$102)=$E$2,ROW($B$2:$B$102)-ROW($B$2)+1)),ROWS(M$5:M58)))) -> 
A59: 2010-01-05 | B59: Smith | C59: 147.49 | K59: =IF(ROWS(K$5:K59)>$G$2,"",INDEX(A$2:A$102,SMALL(IF($B$2:$B$102=$F$2,IF(YEAR($A$2:$A$102)=$E$2,ROW($B$2:$B$102)-ROW($B$2)+1)),ROWS(K$5:K59)))) ->  | L59: =IF(ROWS(L$5:L59)>$G$2,"",INDEX(B$2:B$102,SMALL(IF($B$2:$B$102=$F$2,IF(YEAR($A$2:$A$102)=$E$2,ROW($B$2:$B$102)-ROW($B$2)+1)),ROWS(L$5:L59)))) ->  | M59: =IF(ROWS(M$5:M59)>$G$2,"",INDEX(C$2:C$102,SMALL(IF($B$2:$B$102=$F$2,IF(YEAR($A$2:$A$102)=$E$2,ROW($B$2:$B$102)-ROW($B$2)+1)),ROWS(M$5:M59)))) -> 
A60: 2009-12-19 | B60: Smith | C60: 136.94 | K60: =IF(ROWS(K$5:K60)>$G$2,"",INDEX(A$2:A$102,SMALL(IF($B$2:$B$102=$F$2,IF(YEAR($A$2:$A$102)=$E$2,ROW($B$2:$B$102)-ROW($B$2)+1)),ROWS(K$5:K60)))) ->  | L60: =IF(ROWS(L$5:L60)>$G$2,"",INDEX(B$2:B$102,SMALL(IF($B$2:$B$102=$F$2,IF(YEAR($A$2:$A$102)=$E$2,ROW($B$2:$B$102)-ROW($B$2)+1)),ROWS(L$5:L60)))) ->  | M60: =IF(ROWS(M$5:M60)>$G$2,"",INDEX(C$2:C$102,SMALL(IF($B$2:$B$102=$F$2,IF(YEAR($A$2:$A$102)=$E$2,ROW($B$2:$B$102)-ROW($B$2)+1)),ROWS(M$5:M60)))) -> 
A61: 2009-11-20 | B61: Gault | C61: 93.33 | K61: =IF(ROWS(K$5:K61)>$G$2,"",INDEX(A$2:A$102,SMALL(IF($B$2:$B$102=$F$2,IF(YEAR($A$2:$A$102)=$E$2,ROW($B$2:$B$102)-ROW($B$2)+1)),ROWS(K$5:K61)))) ->  | L61: =IF(ROWS(L$5:L61)>$G$2,"",INDEX(B$2:B$102,SMALL(IF($B$2:$B$102=$F$2,IF(YEAR($A$2:$A$102)=$E$2,ROW($B$2:$B$102)-ROW($B$2)+1)),ROWS(L$5:L61)))) ->  | M61: =IF(ROWS(M$5:M61)>$G$2,"",INDEX(C$2:C$102,SMALL(IF($B$2:$B$102=$F$2,IF(YEAR($A$2:$A$102)=$E$2,ROW($B$2:$B$102)-ROW($B$2)+1)),ROWS(M$5:M61)))) -> 
A62: 2010-01-03 | B62: Smith | C62: 128.97 | K62: =IF(ROWS(K$5:K62)>$G$2,"",INDEX(A$2:A$102,SMALL(IF($B$2:$B$102=$F$2,IF(YEAR($A$2:$A$102)=$E$2,ROW($B$2:$B$102)-ROW($B$2)+1)),ROWS(K$5:K62)))) ->  | L62: =IF(ROWS(L$5:L62)>$G$2,"",INDEX(B$2:B$102,SMALL(IF($B$2:$B$102=$F$2,IF(YEAR($A$2:$A$102)=$E$2,ROW($B$2:$B$102)-ROW($B$2)+1)),ROWS(L$5:L62)))) ->  | M62: =IF(ROWS(M$5:M62)>$G$2,"",INDEX(C$2:C$102,SMALL(IF($B$2:$B$102=$F$2,IF(YEAR($A$2:$A$102)=$E$2,ROW($B$2:$B$102)-ROW($B$2)+1)),ROWS(M$5:M62)))) -> 
A63: 2009-12-14 | B63: Smith | C63: 114.93 | K63: =IF(ROWS(K$5:K63)>$G$2,"",INDEX(A$2:A$102,SMALL(IF($B$2:$B$102=$F$2,IF(YEAR($A$2:$A$102)=$E$2,ROW($B$2:$B$102)-ROW($B$2)+1)),ROWS(K$5:K63)))) ->  | L63: =IF(ROWS(L$5:L63)>$G$2,"",INDEX(B$2:B$102,SMALL(IF($B$2:$B$102=$F$2,IF(YEAR($A$2:$A$102)=$E$2,ROW($B$2:$B$102)-ROW($B$2)+1)),ROWS(L$5:L63)))) ->  | M63: =IF(ROWS(M$5:M63)>$G$2,"",INDEX(C$2:C$102,SMALL(IF($B$2:$B$102=$F$2,IF(YEAR($A$2:$A$102)=$E$2,ROW($B$2:$B$102)-ROW($B$2)+1)),ROWS(M$5:M63)))) -> 
A64: 2010-01-01 | B64: Sioux | C64: 104.57 | K64: =IF(ROWS(K$5:K64)>$G$2,"",INDEX(A$2:A$102,SMALL(IF($B$2:$B$102=$F$2,IF(YEAR($A$2:$A$102)=$E$2,ROW($B$2:$B$102)-ROW($B$2)+1)),ROWS(K$5:K64)))) ->  | L64: =IF(ROWS(L$5:L64)>$G$2,"",INDEX(B$2:B$102,SMALL(IF($B$2:$B$102=$F$2,IF(YEAR($A$2:$A$102)=$E$2,ROW($B$2:$B$102)-ROW($B$2)+1)),ROWS(L$5:L64)))) ->  | M64: =IF(ROWS(M$5:M64)>$G$2,"",INDEX(C$2:C$102,SMALL(IF($B$2:$B$102=$F$2,IF(YEAR($A$2:$A$102)=$E$2,ROW($B$2:$B$102)-ROW($B$2)+1)),ROWS(M$5:M64)))) -> 
A65: 2009-11-27 | B65: Sioux | C65: 119.53 | K65: =IF(ROWS(K$5:K65)>$G$2,"",INDEX(A$2:A$102,SMALL(IF($B$2:$B$102=$F$2,IF(YEAR($A$2:$A$102)=$E$2,ROW($B$2:$B$102)-ROW($B$2)+1)),ROWS(K$5:K65)))) ->  | L65: =IF(ROWS(L$5:L65)>$G$2,"",INDEX(B$2:B$102,SMALL(IF($B$2:$B$102=$F$2,IF(YEAR($A$2:$A$102)=$E$2,ROW($B$2:$B$102)-ROW($B$2)+1)),ROWS(L$5:L65)))) ->  | M65: =IF(ROWS(M$5:M65)>$G$2,"",INDEX(C$2:C$102,SMALL(IF($B$2:$B$102=$F$2,IF(YEAR($A$2:$A$102)=$E$2,ROW($B$2:$B$102)-ROW($B$2)+1)),ROWS(M$5:M65)))) -> 
A66: 2010-01-01 | B66: Pham | C66: 127.99 | K66: =IF(ROWS(K$5:K66)>$G$2,"",INDEX(A$2:A$102,SMALL(IF($B$2:$B$102=$F$2,IF(YEAR($A$2:$A$102)=$E$2,ROW($B$2:$B$102)-ROW($B$2)+1)),ROWS(K$5:K66)))) ->  | L66: =IF(ROWS(L$5:L66)>$G$2,"",INDEX(B$2:B$102,SMALL(IF($B$2:$B$102=$F$2,IF(YEAR($A$2:$A$102)=$E$2,ROW($B$2:$B$102)-ROW($B$2)+1)),ROWS(L$5:L66)))) ->  | M66: =IF(ROWS(M$5:M66)>$G$2,"",INDEX(C$2:C$102,SMALL(IF($B$2:$B$102=$F$2,IF(YEAR($A$2:$A$102)=$E$2,ROW($B$2:$B$102)-ROW($B$2)+1)),ROWS(M$5:M66)))) -> 
A67: 2009-12-03 | B67: Smith | C67: 88.69
A68: 2009-11-25 | B68: Smith | C68: 115.67
A69: 2010-01-07 | B69: Pham | C69: 114.54
A70: 2010-02-02 | B70: Smith | C70: 128.15
A71: 2010-02-08 | B71: Gault | C71: 126.33
A72: 2010-01-13 | B72: Smith | C72: 112.03
A73: 2009-11-20 | B73: Smith | C73: 145.33
A74: 2009-12-23 | B74: Gault | C74: 109.7
A75: 2009-11-26 | B75: Sioux | C75: 139.13
A76: 2009-12-01 | B76: Sioux | C76: 112.5
A77: 2009-11-29 | B77: Pham | C77: 122.21
A78: 2010-01-13 | B78: Smith | C78: 135.77
A79: 2010-01-09 | B79: Pham | C79: 75.17
A80: 2010-01-30 | B80: Sioux | C80: 104.5
A81: 2010-02-04 | B81: Gault | C81: 86.1
A82: 2010-01-02 | B82: Sioux | C82: 143.85
A83: 2010-01-16 | B83: Gault | C83: 104.36
A84: 2009-12-28 | B84: Smith | C84: 135.02
A85: 2009-12-26 | B85: Pham | C85: 83.26
A86: 2009-11-28 | B86: Sioux | C86: 114.53
A87: 2010-02-02 | B87: Smith | C87: 117.63
A88: 2009-12-27 | B88: Gault | C88: 102.24
A89: 2010-02-01 | B89: Chin | C89: 139.21
A90: 2009-12-25 | B90: Smith | C90: 119.09
A91: 2010-01-17 | B91: Pham | C91: 134.11
A92: 2010-01-15 | B92: Sioux | C92: 96.17
A93: 2010-01-10 | B93: Smith | C93: 108.54
A94: 2010-01-05 | B94: Gault | C94: 78.89
A95: 2010-01-20 | B95: Pham | C95: 130.37
A96: 2009-12-08 | B96: Chin | C96: 130.5
A97: 2010-01-16 | B97: Franks | C97: 123.13
A98: 2009-12-19 | B98: Gault | C98: 131.04
A99: 2009-12-17 | B99: Pham | C99: 76.26
A100: 2010-01-19 | B100: Pham | C100: 78.46
A101: 2009-11-21 | B101: Gault | C101: 79.11
A102: 2010-02-18 | B102: Gault | C102: 75.35

Sheet 671an
A1: Date | B1: SalesRep | C1: Sales | E1: Year | F1: SalesRep | G1: Count | I1: SalesRep
A2: 2009-12-25 | B2: Gault | C2: 94.69 | E2: 2010 | F2: Smith | G2: =SUMPRODUCT(--(YEAR($A$2:$A$102)=E2),--($B$2:$B$102=F2)) -> 10 | I2: Gault
A3: 2009-12-15 | B3: Smith | C3: 130.2 | I3: Smith
A4: 2009-12-11 | B4: Franks | C4: 149.95 | E4: Date | F4: SalesRep | G4: Sales | I4: Franks | K4: Date | L4: SalesRep | M4: Sales
A5: 2009-12-01 | B5: Gault | C5: 94.11 | E5: =IF(ROWS(E$5:E5)>$G$2,"",INDEX(A$2:A$102,_xlfn.AGGREGATE(15,6,(ROW($A$2:$A$102)-ROW($A$2)+1)/(($B$2:$B$102=$F$2)*(YEAR($A$2:$A$102)=$E$2)),ROWS(E$5:E5)))) -> 2010-01-23 | F5: =IF(ROWS(F$5:F5)>$G$2,"",INDEX(B$2:B$102,_xlfn.AGGREGATE(15,6,(ROW($A$2:$A$102)-ROW($A$2)+1)/(($B$2:$B$102=$F$2)*(YEAR($A$2:$A$102)=$E$2)),ROWS(F$5:F5)))) -> Smith | G5: =IF(ROWS(G$5:G5)>$G$2,"",INDEX(C$2:C$102,_xlfn.AGGREGATE(15,6,(ROW($A$2:$A$102)-ROW($A$2)+1)/(($B$2:$B$102=$F$2)*(YEAR($A$2:$A$102)=$E$2)),ROWS(G$5:G5)))) -> 113.86 | I5: Pham | K5: =IF(ROWS(K$5:K5)>$G$2,"",INDEX(A$2:A$102,SMALL(IF($B$2:$B$102=$F$2,IF(YEAR($A$2:$A$102)=$E$2,ROW($B$2:$B$102)-ROW($B$2)+1)),ROWS(K$5:K5)))) -> 2010-01-23 | L5: =IF(ROWS(L$5:L5)>$G$2,"",INDEX(B$2:B$102,SMALL(IF($B$2:$B$102=$F$2,IF(YEAR($A$2:$A$102)=$E$2,ROW($B$2:$B$102)-ROW($B$2)+1)),ROWS(L$5:L5)))) -> Smith | M5: =IF(ROWS(M$5:M5)>$G$2,"",INDEX(C$2:C$102,SMALL(IF($B$2:$B$102=$F$2,IF(YEAR($A$2:$A$102)=$E$2,ROW($B$2:$B$102)-ROW($B$2)+1)),ROWS(M$5:M5)))) -> 113.86
A6: 2009-12-11 | B6: Franks | C6: 136.14 | E6: =IF(ROWS(E$5:E6)>$G$2,"",INDEX(A$2:A$102,_xlfn.AGGREGATE(15,6,(ROW($A$2:$A$102)-ROW($A$2)+1)/(($B$2:$B$102=$F$2)*(YEAR($A$2:$A$102)=$E$2)),ROWS(E$5:E6)))) -> 2010-02-12 | F6: =IF(ROWS(F$5:F6)>$G$2,"",INDEX(B$2:B$102,_xlfn.AGGREGATE(15,6,(ROW($A$2:$A$102)-ROW($A$2)+1)/(($B$2:$B$102=$F$2)*(YEAR($A$2:$A$102)=$E$2)),ROWS(F$5:F6)))) -> Smith | G6: =IF(ROWS(G$5:G6)>$G$2,"",INDEX(C$2:C$102,_xlfn.AGGREGATE(15,6,(ROW($A$2:$A$102)-ROW($A$2)+1)/(($B$2:$B$102=$F$2)*(YEAR($A$2:$A$102)=$E$2)),ROWS(G$5:G6)))) -> 140.54 | I6: Sioux | K6: =IF(ROWS(K$5:K6)>$G$2,"",INDEX(A$2:A$102,SMALL(IF($B$2:$B$102=$F$2,IF(YEAR($A$2:$A$102)=$E$2,ROW($B$2:$B$102)-ROW($B$2)+1)),ROWS(K$5:K6)))) -> 2010-02-12 | L6: =IF(ROWS(L$5:L6)>$G$2,"",INDEX(B$2:B$102,SMALL(IF($B$2:$B$102=$F$2,IF(YEAR($A$2:$A$102)=$E$2,ROW($B$2:$B$102)-ROW($B$2)+1)),ROWS(L$5:L6)))) -> Smith | M6: =IF(ROWS(M$5:M6)>$G$2,"",INDEX(C$2:C$102,SMALL(IF($B$2:$B$102=$F$2,IF(YEAR($A$2:$A$102)=$E$2,ROW($B$2:$B$102)-ROW($B$2)+1)),ROWS(M$5:M6)))) -> 140.54
A7: 2010-02-12 | B7: Pham | C7: 133.17 | E7: =IF(ROWS(E$5:E7)>$G$2,"",INDEX(A$2:A$102,_xlfn.AGGREGATE(15,6,(ROW($A$2:$A$102)-ROW($A$2)+1)/(($B$2:$B$102=$F$2)*(YEAR($A$2:$A$102)=$E$2)),ROWS(E$5:E7)))) -> 2010-02-14 | F7: =IF(ROWS(F$5:F7)>$G$2,"",INDEX(B$2:B$102,_xlfn.AGGREGATE(15,6,(ROW($A$2:$A$102)-ROW($A$2)+1)/(($B$2:$B$102=$F$2)*(YEAR($A$2:$A$102)=$E$2)),ROWS(F$5:F7)))) -> Smith | G7: =IF(ROWS(G$5:G7)>$G$2,"",INDEX(C$2:C$102,_xlfn.AGGREGATE(15,6,(ROW($A$2:$A$102)-ROW($A$2)+1)/(($B$2:$B$102=$F$2)*(YEAR($A$2:$A$102)=$E$2)),ROWS(G$5:G7)))) -> 126.97 | I7: Chin | K7: =IF(ROWS(K$5:K7)>$G$2,"",INDEX(A$2:A$102,SMALL(IF($B$2:$B$102=$F$2,IF(YEAR($A$2:$A$102)=$E$2,ROW($B$2:$B$102)-ROW($B$2)+1)),ROWS(K$5:K7)))) -> 2010-02-14 | L7: =IF(ROWS(L$5:L7)>$G$2,"",INDEX(B$2:B$102,SMALL(IF($B$2:$B$102=$F$2,IF(YEAR($A$2:$A$102)=$E$2,ROW($B$2:$B$102)-ROW($B$2)+1)),ROWS(L$5:L7)))) -> Smith | M7: =IF(ROWS(M$5:M7)>$G$2,"",INDEX(C$2:C$102,SMALL(IF($B$2:$B$102=$F$2,IF(YEAR($A$2:$A$102)=$E$2,ROW($B$2:$B$102)-ROW($B$2)+1)),ROWS(M$5:M7)))) -> 126.97
A8: 2009-12-07 | B8: Smith | C8: 80.81 | E8: =IF(ROWS(E$5:E8)>$G$2,"",INDEX(A$2:A$102,_xlfn.AGGREGATE(15,6,(ROW($A$2:$A$102)-ROW($A$2)+1)/(($B$2:$B$102=$F$2)*(YEAR($A$2:$A$102)=$E$2)),ROWS(E$5:E8)))) -> 2010-01-05 | F8: =IF(ROWS(F$5:F8)>$G$2,"",INDEX(B$2:B$102,_xlfn.AGGREGATE(15,6,(ROW($A$2:$A$102)-ROW($A$2)+1)/(($B$2:$B$102=$F$2)*(YEAR($A$2:$A$102)=$E$2)),ROWS(F$5:F8)))) -> Smith | G8: =IF(ROWS(G$5:G8)>$G$2,"",INDEX(C$2:C$102,_xlfn.AGGREGATE(15,6,(ROW($A$2:$A$102)-ROW($A$2)+1)/(($B$2:$B$102=$F$2)*(YEAR($A$2:$A$102)=$E$2)),ROWS(G$5:G8)))) -> 147.49 | K8: =IF(ROWS(K$5:K8)>$G$2,"",INDEX(A$2:A$102,SMALL(IF($B$2:$B$102=$F$2,IF(YEAR($A$2:$A$102)=$E$2,ROW($B$2:$B$102)-ROW($B$2)+1)),ROWS(K$5:K8)))) -> 2010-01-05 | L8: =IF(ROWS(L$5:L8)>$G$2,"",INDEX(B$2:B$102,SMALL(IF($B$2:$B$102=$F$2,IF(YEAR($A$2:$A$102)=$E$2,ROW($B$2:$B$102)-ROW($B$2)+1)),ROWS(L$5:L8)))) -> Smith | M8: =IF(ROWS(M$5:M8)>$G$2,"",INDEX(C$2:C$102,SMALL(IF($B$2:$B$102=$F$2,IF(YEAR($A$2:$A$102)=$E$2,ROW($B$2:$B$102)-ROW($B$2)+1)),ROWS(M$5:M8)))) -> 147.49
A9: 2009-11-23 | B9: Smith | C9: 125.38 | E9: =IF(ROWS(E$5:E9)>$G$2,"",INDEX(A$2:A$102,_xlfn.AGGREGATE(15,6,(ROW($A$2:$A$102)-ROW($A$2)+1)/(($B$2:$B$102=$F$2)*(YEAR($A$2:$A$102)=$E$2)),ROWS(E$5:E9)))) -> 2010-01-03 | F9: =IF(ROWS(F$5:F9)>$G$2,"",INDEX(B$2:B$102,_xlfn.AGGREGATE(15,6,(ROW($A$2:$A$102)-ROW($A$2)+1)/(($B$2:$B$102=$F$2)*(YEAR($A$2:$A$102)=$E$2)),ROWS(F$5:F9)))) -> Smith | G9: =IF(ROWS(G$5:G9)>$G$2,"",INDEX(C$2:C$102,_xlfn.AGGREGATE(15,6,(ROW($A$2:$A$102)-ROW($A$2)+1)/(($B$2:$B$102=$F$2)*(YEAR($A$2:$A$102)=$E$2)),ROWS(G$5:G9)))) -> 128.97 | K9: =IF(ROWS(K$5:K9)>$G$2,"",INDEX(A$2:A$102,SMALL(IF($B$2:$B$102=$F$2,IF(YEAR($A$2:$A$102)=$E$2,ROW($B$2:$B$102)-ROW($B$2)+1)),ROWS(K$5:K9)))) -> 2010-01-03 | L9: =IF(ROWS(L$5:L9)>$G$2,"",INDEX(B$2:B$102,SMALL(IF($B$2:$B$102=$F$2,IF(YEAR($A$2:$A$102)=$E$2,ROW($B$2:$B$102)-ROW($B$2)+1)),ROWS(L$5:L9)))) -> Smith | M9: =IF(ROWS(M$5:M9)>$G$2,"",INDEX(C$2:C$102,SMALL(IF($B$2:$B$102=$F$2,IF(YEAR($A$2:$A$102)=$E$2,ROW($B$2:$B$102)-ROW($B$2)+1)),ROWS(M$5:M9)))) -> 128.97
A10: 2009-11-23 | B10: Gault | C10: 78.95 | E10: =IF(ROWS(E$5:E10)>$G$2,"",INDEX(A$2:A$102,_xlfn.AGGREGATE(15,6,(ROW($A$2:$A$102)-ROW($A$2)+1)/(($B$2:$B$102=$F$2)*(YEAR($A$2:$A$102)=$E$2)),ROWS(E$5:E10)))) -> 2010-02-02 | F10: =IF(ROWS(F$5:F10)>$G$2,"",INDEX(B$2:B$102,_xlfn.AGGREGATE(15,6,(ROW($A$2:$A$102)-ROW($A$2)+1)/(($B$2:$B$102=$F$2)*(YEAR($A$2:$A$102)=$E$2)),ROWS(F$5:F10)))) -> Smith | G10: =IF(ROWS(G$5:G10)>$G$2,"",INDEX(C$2:C$102,_xlfn.AGGREGATE(15,6,(ROW($A$2:$A$102)-ROW($A$2)+1)/(($B$2:$B$102=$F$2)*(YEAR($A$2:$A$102)=$E$2)),ROWS(G$5:G10)))) -> 128.15 | K10: =IF(ROWS(K$5:K10)>$G$2,"",INDEX(A$2:A$102,SMALL(IF($B$2:$B$102=$F$2,IF(YEAR($A$2:$A$102)=$E$2,ROW($B$2:$B$102)-ROW($B$2)+1)),ROWS(K$5:K10)))) -> 2010-02-02 | L10: =IF(ROWS(L$5:L10)>$G$2,"",INDEX(B$2:B$102,SMALL(IF($B$2:$B$102=$F$2,IF(YEAR($A$2:$A$102)=$E$2,ROW($B$2:$B$102)-ROW($B$2)+1)),ROWS(L$5:L10)))) -> Smith | M10: =IF(ROWS(M$5:M10)>$G$2,"",INDEX(C$2:C$102,SMALL(IF($B$2:$B$102=$F$2,IF(YEAR($A$2:$A$102)=$E$2,ROW($B$2:$B$102)-ROW($B$2)+1)),ROWS(M$5:M10)))) -> 128.15
A11: 2010-01-23 | B11: Smith | C11: 113.86 | E11: =IF(ROWS(E$5:E11)>$G$2,"",INDEX(A$2:A$102,_xlfn.AGGREGATE(15,6,(ROW($A$2:$A$102)-ROW($A$2)+1)/(($B$2:$B$102=$F$2)*(YEAR($A$2:$A$102)=$E$2)),ROWS(E$5:E11)))) -> 2010-01-13 | F11: =IF(ROWS(F$5:F11)>$G$2,"",INDEX(B$2:B$102,_xlfn.AGGREGATE(15,6,(ROW($A$2:$A$102)-ROW($A$2)+1)/(($B$2:$B$102=$F$2)*(YEAR($A$2:$A$102)=$E$2)),ROWS(F$5:F11)))) -> Smith | G11: =IF(ROWS(G$5:G11)>$G$2,"",INDEX(C$2:C$102,_xlfn.AGGREGATE(15,6,(ROW($A$2:$A$102)-ROW($A$2)+1)/(($B$2:$B$102=$F$2)*(YEAR($A$2:$A$102)=$E$2)),ROWS(G$5:G11)))) -> 112.03 | K11: =IF(ROWS(K$5:K11)>$G$2,"",INDEX(A$2:A$102,SMALL(IF($B$2:$B$102=$F$2,IF(YEAR($A$2:$A$102)=$E$2,ROW($B$2:$B$102)-ROW($B$2)+1)),ROWS(K$5:K11)))) -> 2010-01-13 | L11: =IF(ROWS(L$5:L11)>$G$2,"",INDEX(B$2:B$102,SMALL(IF($B$2:$B$102=$F$2,IF(YEAR($A$2:$A$102)=$E$2,ROW($B$2:$B$102)-ROW($B$2)+1)),ROWS(L$5:L11)))) -> Smith | M11: =IF(ROWS(M$5:M11)>$G$2,"",INDEX(C$2:C$102,SMALL(IF($B$2:$B$102=$F$2,IF(YEAR($A$2:$A$102)=$E$2,ROW($B$2:$B$102)-ROW($B$2)+1)),ROWS(M$5:M11)))) -> 112.03
A12: 2010-01-21 | B12: Pham | C12: 139.38 | E12: =IF(ROWS(E$5:E12)>$G$2,"",INDEX(A$2:A$102,_xlfn.AGGREGATE(15,6,(ROW($A$2:$A$102)-ROW($A$2)+1)/(($B$2:$B$102=$F$2)*(YEAR($A$2:$A$102)=$E$2)),ROWS(E$5:E12)))) -> 2010-01-13 | F12: =IF(ROWS(F$5:F12)>$G$2,"",INDEX(B$2:B$102,_xlfn.AGGREGATE(15,6,(ROW($A$2:$A$102)-ROW($A$2)+1)/(($B$2:$B$102=$F$2)*(YEAR($A$2:$A$102)=$E$2)),ROWS(F$5:F12)))) -> Smith | G12: =IF(ROWS(G$5:G12)>$G$2,"",INDEX(C$2:C$102,_xlfn.AGGREGATE(15,6,(ROW($A$2:$A$102)-ROW($A$2)+1)/(($B$2:$B$102=$F$2)*(YEAR($A$2:$A$102)=$E$2)),ROWS(G$5:G12)))) -> 135.77 | K12: =IF(ROWS(K$5:K12)>$G$2,"",INDEX(A$2:A$102,SMALL(IF($B$2:$B$102=$F$2,IF(YEAR($A$2:$A$102)=$E$2,ROW($B$2:$B$102)-ROW($B$2)+1)),ROWS(K$5:K12)))) -> 2010-01-13 | L12: =IF(ROWS(L$5:L12)>$G$2,"",INDEX(B$2:B$102,SMALL(IF($B$2:$B$102=$F$2,IF(YEAR($A$2:$A$102)=$E$2,ROW($B$2:$B$102)-ROW($B$2)+1)),ROWS(L$5:L12)))) -> Smith | M12: =IF(ROWS(M$5:M12)>$G$2,"",INDEX(C$2:C$102,SMALL(IF($B$2:$B$102=$F$2,IF(YEAR($A$2:$A$102)=$E$2,ROW($B$2:$B$102)-ROW($B$2)+1)),ROWS(M$5:M12)))) -> 135.77
A13: 2009-12-20 | B13: Gault | C13: 98.71 | E13: =IF(ROWS(E$5:E13)>$G$2,"",INDEX(A$2:A$102,_xlfn.AGGREGATE(15,6,(ROW($A$2:$A$102)-ROW($A$2)+1)/(($B$2:$B$102=$F$2)*(YEAR($A$2:$A$102)=$E$2)),ROWS(E$5:E13)))) -> 2010-02-02 | F13: =IF(ROWS(F$5:F13)>$G$2,"",INDEX(B$2:B$102,_xlfn.AGGREGATE(15,6,(ROW($A$2:$A$102)-ROW($A$2)+1)/(($B$2:$B$102=$F$2)*(YEAR($A$2:$A$102)=$E$2)),ROWS(F$5:F13)))) -> Smith | G13: =IF(ROWS(G$5:G13)>$G$2,"",INDEX(C$2:C$102,_xlfn.AGGREGATE(15,6,(ROW($A$2:$A$102)-ROW($A$2)+1)/(($B$2:$B$102=$F$2)*(YEAR($A$2:$A$102)=$E$2)),ROWS(G$5:G13)))) -> 117.63 | K13: =IF(ROWS(K$5:K13)>$G$2,"",INDEX(A$2:A$102,SMALL(IF($B$2:$B$102=$F$2,IF(YEAR($A$2:$A$102)=$E$2,ROW($B$2:$B$102)-ROW($B$2)+1)),ROWS(K$5:K13)))) -> 2010-02-02 | L13: =IF(ROWS(L$5:L13)>$G$2,"",INDEX(B$2:B$102,SMALL(IF($B$2:$B$102=$F$2,IF(YEAR($A$2:$A$102)=$E$2,ROW($B$2:$B$102)-ROW($B$2)+1)),ROWS(L$5:L13)))) -> Smith | M13: =IF(ROWS(M$5:M13)>$G$2,"",INDEX(C$2:C$102,SMALL(IF($B$2:$B$102=$F$2,IF(YEAR($A$2:$A$102)=$E$2,ROW($B$2:$B$102)-ROW($B$2)+1)),ROWS(M$5:M13)))) -> 117.63
A14: 2009-12-07 | B14: Pham | C14: 76.65 | E14: =IF(ROWS(E$5:E14)>$G$2,"",INDEX(A$2:A$102,_xlfn.AGGREGATE(15,6,(ROW($A$2:$A$102)-ROW($A$2)+1)/(($B$2:$B$102=$F$2)*(YEAR($A$2:$A$102)=$E$2)),ROWS(E$5:E14)))) -> 2010-01-10 | F14: =IF(ROWS(F$5:F14)>$G$2,"",INDEX(B$2:B$102,_xlfn.AGGREGATE(15,6,(ROW($A$2:$A$102)-ROW($A$2)+1)/(($B$2:$B$102=$F$2)*(YEAR($A$2:$A$102)=$E$2)),ROWS(F$5:F14)))) -> Smith | G14: =IF(ROWS(G$5:G14)>$G$2,"",INDEX(C$2:C$102,_xlfn.AGGREGATE(15,6,(ROW($A$2:$A$102)-ROW($A$2)+1)/(($B$2:$B$102=$F$2)*(YEAR($A$2:$A$102)=$E$2)),ROWS(G$5:G14)))) -> 108.54 | K14: =IF(ROWS(K$5:K14)>$G$2,"",INDEX(A$2:A$102,SMALL(IF($B$2:$B$102=$F$2,IF(YEAR($A$2:$A$102)=$E$2,ROW($B$2:$B$102)-ROW($B$2)+1)),ROWS(K$5:K14)))) -> 2010-01-10 | L14: =IF(ROWS(L$5:L14)>$G$2,"",INDEX(B$2:B$102,SMALL(IF($B$2:$B$102=$F$2,IF(YEAR($A$2:$A$102)=$E$2,ROW($B$2:$B$102)-ROW($B$2)+1)),ROWS(L$5:L14)))) -> Smith | M14: =IF(ROWS(M$5:M14)>$G$2,"",INDEX(C$2:C$102,SMALL(IF($B$2:$B$102=$F$2,IF(YEAR($A$2:$A$102)=$E$2,ROW($B$2:$B$102)-ROW($B$2)+1)),ROWS(M$5:M14)))) -> 108.54
A15: 2010-02-11 | B15: Gault | C15: 126.62 | E15: =IF(ROWS(E$5:E15)>$G$2,"",INDEX(A$2:A$102,_xlfn.AGGREGATE(15,6,(ROW($A$2:$A$102)-ROW($A$2)+1)/(($B$2:$B$102=$F$2)*(YEAR($A$2:$A$102)=$E$2)),ROWS(E$5:E15)))) ->  | F15: =IF(ROWS(F$5:F15)>$G$2,"",INDEX(B$2:B$102,_xlfn.AGGREGATE(15,6,(ROW($A$2:$A$102)-ROW($A$2)+1)/(($B$2:$B$102=$F$2)*(YEAR($A$2:$A$102)=$E$2)),ROWS(F$5:F15)))) ->  | G15: =IF(ROWS(G$5:G15)>$G$2,"",INDEX(C$2:C$102,_xlfn.AGGREGATE(15,6,(ROW($A$2:$A$102)-ROW($A$2)+1)/(($B$2:$B$102=$F$2)*(YEAR($A$2:$A$102)=$E$2)),ROWS(G$5:G15)))) ->  | K15: =IF(ROWS(K$5:K15)>$G$2,"",INDEX(A$2:A$102,SMALL(IF($B$2:$B$102=$F$2,IF(YEAR($A$2:$A$102)=$E$2,ROW($B$2:$B$102)-ROW($B$2)+1)),ROWS(K$5:K15)))) ->  | L15: =IF(ROWS(L$5:L15)>$G$2,"",INDEX(B$2:B$102,SMALL(IF($B$2:$B$102=$F$2,IF(YEAR($A$2:$A$102)=$E$2,ROW($B$2:$B$102)-ROW($B$2)+1)),ROWS(L$5:L15)))) ->  | M15: =IF(ROWS(M$5:M15)>$G$2,"",INDEX(C$2:C$102,SMALL(IF($B$2:$B$102=$F$2,IF(YEAR($A$2:$A$102)=$E$2,ROW($B$2:$B$102)-ROW($B$2)+1)),ROWS(M$5:M15)))) -> 
A16: 2010-01-13 | B16: Franks | C16: 107.9 | E16: =IF(ROWS(E$5:E16)>$G$2,"",INDEX(A$2:A$102,_xlfn.AGGREGATE(15,6,(ROW($A$2:$A$102)-ROW($A$2)+1)/(($B$2:$B$102=$F$2)*(YEAR($A$2:$A$102)=$E$2)),ROWS(E$5:E16)))) ->  | F16: =IF(ROWS(F$5:F16)>$G$2,"",INDEX(B$2:B$102,_xlfn.AGGREGATE(15,6,(ROW($A$2:$A$102)-ROW($A$2)+1)/(($B$2:$B$102=$F$2)*(YEAR($A$2:$A$102)=$E$2)),ROWS(F$5:F16)))) ->  | G16: =IF(ROWS(G$5:G16)>$G$2,"",INDEX(C$2:C$102,_xlfn.AGGREGATE(15,6,(ROW($A$2:$A$102)-ROW($A$2)+1)/(($B$2:$B$102=$F$2)*(YEAR($A$2:$A$102)=$E$2)),ROWS(G$5:G16)))) ->  | K16: =IF(ROWS(K$5:K16)>$G$2,"",INDEX(A$2:A$102,SMALL(IF($B$2:$B$102=$F$2,IF(YEAR($A$2:$A$102)=$E$2,ROW($B$2:$B$102)-ROW($B$2)+1)),ROWS(K$5:K16)))) ->  | L16: =IF(ROWS(L$5:L16)>$G$2,"",INDEX(B$2:B$102,SMALL(IF($B$2:$B$102=$F$2,IF(YEAR($A$2:$A$102)=$E$2,ROW($B$2:$B$102)-ROW($B$2)+1)),ROWS(L$5:L16)))) ->  | M16: =IF(ROWS(M$5:M16)>$G$2,"",INDEX(C$2:C$102,SMALL(IF($B$2:$B$102=$F$2,IF(YEAR($A$2:$A$102)=$E$2,ROW($B$2:$B$102)-ROW($B$2)+1)),ROWS(M$5:M16)))) -> 
A17: 2010-01-28 | B17: Gault | C17: 130.54 | E17: =IF(ROWS(E$5:E17)>$G$2,"",INDEX(A$2:A$102,_xlfn.AGGREGATE(15,6,(ROW($A$2:$A$102)-ROW($A$2)+1)/(($B$2:$B$102=$F$2)*(YEAR($A$2:$A$102)=$E$2)),ROWS(E$5:E17)))) ->  | F17: =IF(ROWS(F$5:F17)>$G$2,"",INDEX(B$2:B$102,_xlfn.AGGREGATE(15,6,(ROW($A$2:$A$102)-ROW($A$2)+1)/(($B$2:$B$102=$F$2)*(YEAR($A$2:$A$102)=$E$2)),ROWS(F$5:F17)))) ->  | G17: =IF(ROWS(G$5:G17)>$G$2,"",INDEX(C$2:C$102,_xlfn.AGGREGATE(15,6,(ROW($A$2:$A$102)-ROW($A$2)+1)/(($B$2:$B$102=$F$2)*(YEAR($A$2:$A$102)=$E$2)),ROWS(G$5:G17)))) ->  | K17: =IF(ROWS(K$5:K17)>$G$2,"",INDEX(A$2:A$102,SMALL(IF($B$2:$B$102=$F$2,IF(YEAR($A$2:$A$102)=$E$2,ROW($B$2:$B$102)-ROW($B$2)+1)),ROWS(K$5:K17)))) ->  | L17: =IF(ROWS(L$5:L17)>$G$2,"",INDEX(B$2:B$102,SMALL(IF($B$2:$B$102=$F$2,IF(YEAR($A$2:$A$102)=$E$2,ROW($B$2:$B$102)-ROW($B$2)+1)),ROWS(L$5:L17)))) ->  | M17: =IF(ROWS(M$5:M17)>$G$2,"",INDEX(C$2:C$102,SMALL(IF($B$2:$B$102=$F$2,IF(YEAR($A$2:$A$102)=$E$2,ROW($B$2:$B$102)-ROW($B$2)+1)),ROWS(M$5:M17)))) -> 
A18: 2010-01-25 | B18: Gault | C18: 140.71 | E18: =IF(ROWS(E$5:E18)>$G$2,"",INDEX(A$2:A$102,_xlfn.AGGREGATE(15,6,(ROW($A$2:$A$102)-ROW($A$2)+1)/(($B$2:$B$102=$F$2)*(YEAR($A$2:$A$102)=$E$2)),ROWS(E$5:E18)))) ->  | F18: =IF(ROWS(F$5:F18)>$G$2,"",INDEX(B$2:B$102,_xlfn.AGGREGATE(15,6,(ROW($A$2:$A$102)-ROW($A$2)+1)/(($B$2:$B$102=$F$2)*(YEAR($A$2:$A$102)=$E$2)),ROWS(F$5:F18)))) ->  | G18: =IF(ROWS(G$5:G18)>$G$2,"",INDEX(C$2:C$102,_xlfn.AGGREGATE(15,6,(ROW($A$2:$A$102)-ROW($A$2)+1)/(($B$2:$B$102=$F$2)*(YEAR($A$2:$A$102)=$E$2)),ROWS(G$5:G18)))) ->  | K18: =IF(ROWS(K$5:K18)>$G$2,"",INDEX(A$2:A$102,SMALL(IF($B$2:$B$102=$F$2,IF(YEAR($A$2:$A$102)=$E$2,ROW($B$2:$B$102)-ROW($B$2)+1)),ROWS(K$5:K18)))) ->  | L18: =IF(ROWS(L$5:L18)>$G$2,"",INDEX(B$2:B$102,SMALL(IF($B$2:$B$102=$F$2,IF(YEAR($A$2:$A$102)=$E$2,ROW($B$2:$B$102)-ROW($B$2)+1)),ROWS(L$5:L18)))) ->  | M18: =IF(ROWS(M$5:M18)>$G$2,"",INDEX(C$2:C$102,SMALL(IF($B$2:$B$102=$F$2,IF(YEAR($A$2:$A$102)=$E$2,ROW($B$2:$B$102)-ROW($B$2)+1)),ROWS(M$5:M18)))) -> 
A19: 2010-02-10 | B19: Sioux | C19: 108.72 | E19: =IF(ROWS(E$5:E19)>$G$2,"",INDEX(A$2:A$102,_xlfn.AGGREGATE(15,6,(ROW($A$2:$A$102)-ROW($A$2)+1)/(($B$2:$B$102=$F$2)*(YEAR($A$2:$A$102)=$E$2)),ROWS(E$5:E19)))) ->  | F19: =IF(ROWS(F$5:F19)>$G$2,"",INDEX(B$2:B$102,_xlfn.AGGREGATE(15,6,(ROW($A$2:$A$102)-ROW($A$2)+1)/(($B$2:$B$102=$F$2)*(YEAR($A$2:$A$102)=$E$2)),ROWS(F$5:F19)))) ->  | G19: =IF(ROWS(G$5:G19)>$G$2,"",INDEX(C$2:C$102,_xlfn.AGGREGATE(15,6,(ROW($A$2:$A$102)-ROW($A$2)+1)/(($B$2:$B$102=$F$2)*(YEAR($A$2:$A$102)=$E$2)),ROWS(G$5:G19)))) ->  | K19: =IF(ROWS(K$5:K19)>$G$2,"",INDEX(A$2:A$102,SMALL(IF($B$2:$B$102=$F$2,IF(YEAR($A$2:$A$102)=$E$2,ROW($B$2:$B$102)-ROW($B$2)+1)),ROWS(K$5:K19)))) ->  | L19: =IF(ROWS(L$5:L19)>$G$2,"",INDEX(B$2:B$102,SMALL(IF($B$2:$B$102=$F$2,IF(YEAR($A$2:$A$102)=$E$2,ROW($B$2:$B$102)-ROW($B$2)+1)),ROWS(L$5:L19)))) ->  | M19: =IF(ROWS(M$5:M19)>$G$2,"",INDEX(C$2:C$102,SMALL(IF($B$2:$B$102=$F$2,IF(YEAR($A$2:$A$102)=$E$2,ROW($B$2:$B$102)-ROW($B$2)+1)),ROWS(M$5:M19)))) -> 
A20: 2009-12-26 | B20: Smith | C20: 135.18 | E20: =IF(ROWS(E$5:E20)>$G$2,"",INDEX(A$2:A$102,_xlfn.AGGREGATE(15,6,(ROW($A$2:$A$102)-ROW($A$2)+1)/(($B$2:$B$102=$F$2)*(YEAR($A$2:$A$102)=$E$2)),ROWS(E$5:E20)))) ->  | F20: =IF(ROWS(F$5:F20)>$G$2,"",INDEX(B$2:B$102,_xlfn.AGGREGATE(15,6,(ROW($A$2:$A$102)-ROW($A$2)+1)/(($B$2:$B$102=$F$2)*(YEAR($A$2:$A$102)=$E$2)),ROWS(F$5:F20)))) ->  | G20: =IF(ROWS(G$5:G20)>$G$2,"",INDEX(C$2:C$102,_xlfn.AGGREGATE(15,6,(ROW($A$2:$A$102)-ROW($A$2)+1)/(($B$2:$B$102=$F$2)*(YEAR($A$2:$A$102)=$E$2)),ROWS(G$5:G20)))) ->  | K20: =IF(ROWS(K$5:K20)>$G$2,"",INDEX(A$2:A$102,SMALL(IF($B$2:$B$102=$F$2,IF(YEAR($A$2:$A$102)=$E$2,ROW($B$2:$B$102)-ROW($B$2)+1)),ROWS(K$5:K20)))) ->  | L20: =IF(ROWS(L$5:L20)>$G$2,"",INDEX(B$2:B$102,SMALL(IF($B$2:$B$102=$F$2,IF(YEAR($A$2:$A$102)=$E$2,ROW($B$2:$B$102)-ROW($B$2)+1)),ROWS(L$5:L20)))) ->  | M20: =IF(ROWS(M$5:M20)>$G$2,"",INDEX(C$2:C$102,SMALL(IF($B$2:$B$102=$F$2,IF(YEAR($A$2:$A$102)=$E$2,ROW($B$2:$B$102)-ROW($B$2)+1)),ROWS(M$5:M20)))) -> 
A21: 2009-12-14 | B21: Gault | C21: 142.55 | E21: =IF(ROWS(E$5:E21)>$G$2,"",INDEX(A$2:A$102,_xlfn.AGGREGATE(15,6,(ROW($A$2:$A$102)-ROW($A$2)+1)/(($B$2:$B$102=$F$2)*(YEAR($A$2:$A$102)=$E$2)),ROWS(E$5:E21)))) ->  | F21: =IF(ROWS(F$5:F21)>$G$2,"",INDEX(B$2:B$102,_xlfn.AGGREGATE(15,6,(ROW($A$2:$A$102)-ROW($A$2)+1)/(($B$2:$B$102=$F$2)*(YEAR($A$2:$A$102)=$E$2)),ROWS(F$5:F21)))) ->  | G21: =IF(ROWS(G$5:G21)>$G$2,"",INDEX(C$2:C$102,_xlfn.AGGREGATE(15,6,(ROW($A$2:$A$102)-ROW($A$2)+1)/(($B$2:$B$102=$F$2)*(YEAR($A$2:$A$102)=$E$2)),ROWS(G$5:G21)))) ->  | K21: =IF(ROWS(K$5:K21)>$G$2,"",INDEX(A$2:A$102,SMALL(IF($B$2:$B$102=$F$2,IF(YEAR($A$2:$A$102)=$E$2,ROW($B$2:$B$102)-ROW($B$2)+1)),ROWS(K$5:K21)))) ->  | L21: =IF(ROWS(L$5:L21)>$G$2,"",INDEX(B$2:B$102,SMALL(IF($B$2:$B$102=$F$2,IF(YEAR($A$2:$A$102)=$E$2,ROW($B$2:$B$102)-ROW($B$2)+1)),ROWS(L$5:L21)))) ->  | M21: =IF(ROWS(M$5:M21)>$G$2,"",INDEX(C$2:C$102,SMALL(IF($B$2:$B$102=$F$2,IF(YEAR($A$2:$A$102)=$E$2,ROW($B$2:$B$102)-ROW($B$2)+1)),ROWS(M$5:M21)))) -> 
A22: 2010-02-12 | B22: Smith | C22: 140.54 | E22: =IF(ROWS(E$5:E22)>$G$2,"",INDEX(A$2:A$102,_xlfn.AGGREGATE(15,6,(ROW($A$2:$A$102)-ROW($A$2)+1)/(($B$2:$B$102=$F$2)*(YEAR($A$2:$A$102)=$E$2)),ROWS(E$5:E22)))) ->  | F22: =IF(ROWS(F$5:F22)>$G$2,"",INDEX(B$2:B$102,_xlfn.AGGREGATE(15,6,(ROW($A$2:$A$102)-ROW($A$2)+1)/(($B$2:$B$102=$F$2)*(YEAR($A$2:$A$102)=$E$2)),ROWS(F$5:F22)))) ->  | G22: =IF(ROWS(G$5:G22)>$G$2,"",INDEX(C$2:C$102,_xlfn.AGGREGATE(15,6,(ROW($A$2:$A$102)-ROW($A$2)+1)/(($B$2:$B$102=$F$2)*(YEAR($A$2:$A$102)=$E$2)),ROWS(G$5:G22)))) ->  | K22: =IF(ROWS(K$5:K22)>$G$2,"",INDEX(A$2:A$102,SMALL(IF($B$2:$B$102=$F$2,IF(YEAR($A$2:$A$102)=$E$2,ROW($B$2:$B$102)-ROW($B$2)+1)),ROWS(K$5:K22)))) ->  | L22: =IF(ROWS(L$5:L22)>$G$2,"",INDEX(B$2:B$102,SMALL(IF($B$2:$B$102=$F$2,IF(YEAR($A$2:$A$102)=$E$2,ROW($B$2:$B$102)-ROW($B$2)+1)),ROWS(L$5:L22)))) ->  | M22: =IF(ROWS(M$5:M22)>$G$2,"",INDEX(C$2:C$102,SMALL(IF($B$2:$B$102=$F$2,IF(YEAR($A$2:$A$102)=$E$2,ROW($B$2:$B$102)-ROW($B$2)+1)),ROWS(M$5:M22)))) -> 
A23: 2010-01-19 | B23: Franks | C23: 75.04 | E23: =IF(ROWS(E$5:E23)>$G$2,"",INDEX(A$2:A$102,_xlfn.AGGREGATE(15,6,(ROW($A$2:$A$102)-ROW($A$2)+1)/(($B$2:$B$102=$F$2)*(YEAR($A$2:$A$102)=$E$2)),ROWS(E$5:E23)))) ->  | F23: =IF(ROWS(F$5:F23)>$G$2,"",INDEX(B$2:B$102,_xlfn.AGGREGATE(15,6,(ROW($A$2:$A$102)-ROW($A$2)+1)/(($B$2:$B$102=$F$2)*(YEAR($A$2:$A$102)=$E$2)),ROWS(F$5:F23)))) ->  | G23: =IF(ROWS(G$5:G23)>$G$2,"",INDEX(C$2:C$102,_xlfn.AGGREGATE(15,6,(ROW($A$2:$A$102)-ROW($A$2)+1)/(($B$2:$B$102=$F$2)*(YEAR($A$2:$A$102)=$E$2)),ROWS(G$5:G23)))) ->  | K23: =IF(ROWS(K$5:K23)>$G$2,"",INDEX(A$2:A$102,SMALL(IF($B$2:$B$102=$F$2,IF(YEAR($A$2:$A$102)=$E$2,ROW($B$2:$B$102)-ROW($B$2)+1)),ROWS(K$5:K23)))) ->  | L23: =IF(ROWS(L$5:L23)>$G$2,"",INDEX(B$2:B$102,SMALL(IF($B$2:$B$102=$F$2,IF(YEAR($A$2:$A$102)=$E$2,ROW($B$2:$B$102)-ROW($B$2)+1)),ROWS(L$5:L23)))) ->  | M23: =IF(ROWS(M$5:M23)>$G$2,"",INDEX(C$2:C$102,SMALL(IF($B$2:$B$102=$F$2,IF(YEAR($A$2:$A$102)=$E$2,ROW($B$2:$B$102)-ROW($B$2)+1)),ROWS(M$5:M23)))) -> 
A24: 2010-02-16 | B24: Pham | C24: 93.15 | E24: =IF(ROWS(E$5:E24)>$G$2,"",INDEX(A$2:A$102,_xlfn.AGGREGATE(15,6,(ROW($A$2:$A$102)-ROW($A$2)+1)/(($B$2:$B$102=$F$2)*(YEAR($A$2:$A$102)=$E$2)),ROWS(E$5:E24)))) ->  | F24: =IF(ROWS(F$5:F24)>$G$2,"",INDEX(B$2:B$102,_xlfn.AGGREGATE(15,6,(ROW($A$2:$A$102)-ROW($A$2)+1)/(($B$2:$B$102=$F$2)*(YEAR($A$2:$A$102)=$E$2)),ROWS(F$5:F24)))) ->  | G24: =IF(ROWS(G$5:G24)>$G$2,"",INDEX(C$2:C$102,_xlfn.AGGREGATE(15,6,(ROW($A$2:$A$102)-ROW($A$2)+1)/(($B$2:$B$102=$F$2)*(YEAR($A$2:$A$102)=$E$2)),ROWS(G$5:G24)))) ->  | K24: =IF(ROWS(K$5:K24)>$G$2,"",INDEX(A$2:A$102,SMALL(IF($B$2:$B$102=$F$2,IF(YEAR($A$2:$A$102)=$E$2,ROW($B$2:$B$102)-ROW($B$2)+1)),ROWS(K$5:K24)))) ->  | L24: =IF(ROWS(L$5:L24)>$G$2,"",INDEX(B$2:B$102,SMALL(IF($B$2:$B$102=$F$2,IF(YEAR($A$2:$A$102)=$E$2,ROW($B$2:$B$102)-ROW($B$2)+1)),ROWS(L$5:L24)))) ->  | M24: =IF(ROWS(M$5:M24)>$G$2,"",INDEX(C$2:C$102,SMALL(IF($B$2:$B$102=$F$2,IF(YEAR($A$2:$A$102)=$E$2,ROW($B$2:$B$102)-ROW($B$2)+1)),ROWS(M$5:M24)))) -> 
A25: 2010-01-07 | B25: Sioux | C25: 132.51 | E25: =IF(ROWS(E$5:E25)>$G$2,"",INDEX(A$2:A$102,_xlfn.AGGREGATE(15,6,(ROW($A$2:$A$102)-ROW($A$2)+1)/(($B$2:$B$102=$F$2)*(YEAR($A$2:$A$102)=$E$2)),ROWS(E$5:E25)))) ->  | F25: =IF(ROWS(F$5:F25)>$G$2,"",INDEX(B$2:B$102,_xlfn.AGGREGATE(15,6,(ROW($A$2:$A$102)-ROW($A$2)+1)/(($B$2:$B$102=$F$2)*(YEAR($A$2:$A$102)=$E$2)),ROWS(F$5:F25)))) ->  | G25: =IF(ROWS(G$5:G25)>$G$2,"",INDEX(C$2:C$102,_xlfn.AGGREGATE(15,6,(ROW($A$2:$A$102)-ROW($A$2)+1)/(($B$2:$B$102=$F$2)*(YEAR($A$2:$A$102)=$E$2)),ROWS(G$5:G25)))) ->  | K25: =IF(ROWS(K$5:K25)>$G$2,"",INDEX(A$2:A$102,SMALL(IF($B$2:$B$102=$F$2,IF(YEAR($A$2:$A$102)=$E$2,ROW($B$2:$B$102)-ROW($B$2)+1)),ROWS(K$5:K25)))) ->  | L25: =IF(ROWS(L$5:L25)>$G$2,"",INDEX(B$2:B$102,SMALL(IF($B$2:$B$102=$F$2,IF(YEAR($A$2:$A$102)=$E$2,ROW($B$2:$B$102)-ROW($B$2)+1)),ROWS(L$5:L25)))) ->  | M25: =IF(ROWS(M$5:M25)>$G$2,"",INDEX(C$2:C$102,SMALL(IF($B$2:$B$102=$F$2,IF(YEAR($A$2:$A$102)=$E$2,ROW($B$2:$B$102)-ROW($B$2)+1)),ROWS(M$5:M25)))) -> 
A26: 2010-01-16 | B26: Chin | C26: 85.14 | E26: =IF(ROWS(E$5:E26)>$G$2,"",INDEX(A$2:A$102,_xlfn.AGGREGATE(15,6,(ROW($A$2:$A$102)-ROW($A$2)+1)/(($B$2:$B$102=$F$2)*(YEAR($A$2:$A$102)=$E$2)),ROWS(E$5:E26)))) ->  | F26: =IF(ROWS(F$5:F26)>$G$2,"",INDEX(B$2:B$102,_xlfn.AGGREGATE(15,6,(ROW($A$2:$A$102)-ROW($A$2)+1)/(($B$2:$B$102=$F$2)*(YEAR($A$2:$A$102)=$E$2)),ROWS(F$5:F26)))) ->  | G26: =IF(ROWS(G$5:G26)>$G$2,"",INDEX(C$2:C$102,_xlfn.AGGREGATE(15,6,(ROW($A$2:$A$102)-ROW($A$2)+1)/(($B$2:$B$102=$F$2)*(YEAR($A$2:$A$102)=$E$2)),ROWS(G$5:G26)))) ->  | K26: =IF(ROWS(K$5:K26)>$G$2,"",INDEX(A$2:A$102,SMALL(IF($B$2:$B$102=$F$2,IF(YEAR($A$2:$A$102)=$E$2,ROW($B$2:$B$102)-ROW($B$2)+1)),ROWS(K$5:K26)))) ->  | L26: =IF(ROWS(L$5:L26)>$G$2,"",INDEX(B$2:B$102,SMALL(IF($B$2:$B$102=$F$2,IF(YEAR($A$2:$A$102)=$E$2,ROW($B$2:$B$102)-ROW($B$2)+1)),ROWS(L$5:L26)))) ->  | M26: =IF(ROWS(M$5:M26)>$G$2,"",INDEX(C$2:C$102,SMALL(IF($B$2:$B$102=$F$2,IF(YEAR($A$2:$A$102)=$E$2,ROW($B$2:$B$102)-ROW($B$2)+1)),ROWS(M$5:M26)))) -> 
A27: 2010-02-15 | B27: Franks | C27: 108.85 | E27: =IF(ROWS(E$5:E27)>$G$2,"",INDEX(A$2:A$102,_xlfn.AGGREGATE(15,6,(ROW($A$2:$A$102)-ROW($A$2)+1)/(($B$2:$B$102=$F$2)*(YEAR($A$2:$A$102)=$E$2)),ROWS(E$5:E27)))) ->  | F27: =IF(ROWS(F$5:F27)>$G$2,"",INDEX(B$2:B$102,_xlfn.AGGREGATE(15,6,(ROW($A$2:$A$102)-ROW($A$2)+1)/(($B$2:$B$102=$F$2)*(YEAR($A$2:$A$102)=$E$2)),ROWS(F$5:F27)))) ->  | G27: =IF(ROWS(G$5:G27)>$G$2,"",INDEX(C$2:C$102,_xlfn.AGGREGATE(15,6,(ROW($A$2:$A$102)-ROW($A$2)+1)/(($B$2:$B$102=$F$2)*(YEAR($A$2:$A$102)=$E$2)),ROWS(G$5:G27)))) ->  | K27: =IF(ROWS(K$5:K27)>$G$2,"",INDEX(A$2:A$102,SMALL(IF($B$2:$B$102=$F$2,IF(YEAR($A$2:$A$102)=$E$2,ROW($B$2:$B$102)-ROW($B$2)+1)),ROWS(K$5:K27)))) ->  | L27: =IF(ROWS(L$5:L27)>$G$2,"",INDEX(B$2:B$102,SMALL(IF($B$2:$B$102=$F$2,IF(YEAR($A$2:$A$102)=$E$2,ROW($B$2:$B$102)-ROW($B$2)+1)),ROWS(L$5:L27)))) ->  | M27: =IF(ROWS(M$5:M27)>$G$2,"",INDEX(C$2:C$102,SMALL(IF($B$2:$B$102=$F$2,IF(YEAR($A$2:$A$102)=$E$2,ROW($B$2:$B$102)-ROW($B$2)+1)),ROWS(M$5:M27)))) -> 
A28: 2009-12-13 | B28: Sioux | C28: 139.92 | E28: =IF(ROWS(E$5:E28)>$G$2,"",INDEX(A$2:A$102,_xlfn.AGGREGATE(15,6,(ROW($A$2:$A$102)-ROW($A$2)+1)/(($B$2:$B$102=$F$2)*(YEAR($A$2:$A$102)=$E$2)),ROWS(E$5:E28)))) ->  | F28: =IF(ROWS(F$5:F28)>$G$2,"",INDEX(B$2:B$102,_xlfn.AGGREGATE(15,6,(ROW($A$2:$A$102)-ROW($A$2)+1)/(($B$2:$B$102=$F$2)*(YEAR($A$2:$A$102)=$E$2)),ROWS(F$5:F28)))) ->  | G28: =IF(ROWS(G$5:G28)>$G$2,"",INDEX(C$2:C$102,_xlfn.AGGREGATE(15,6,(ROW($A$2:$A$102)-ROW($A$2)+1)/(($B$2:$B$102=$F$2)*(YEAR($A$2:$A$102)=$E$2)),ROWS(G$5:G28)))) ->  | K28: =IF(ROWS(K$5:K28)>$G$2,"",INDEX(A$2:A$102,SMALL(IF($B$2:$B$102=$F$2,IF(YEAR($A$2:$A$102)=$E$2,ROW($B$2:$B$102)-ROW($B$2)+1)),ROWS(K$5:K28)))) ->  | L28: =IF(ROWS(L$5:L28)>$G$2,"",INDEX(B$2:B$102,SMALL(IF($B$2:$B$102=$F$2,IF(YEAR($A$2:$A$102)=$E$2,ROW($B$2:$B$102)-ROW($B$2)+1)),ROWS(L$5:L28)))) ->  | M28: =IF(ROWS(M$5:M28)>$G$2,"",INDEX(C$2:C$102,SMALL(IF($B$2:$B$102=$F$2,IF(YEAR($A$2:$A$102)=$E$2,ROW($B$2:$B$102)-ROW($B$2)+1)),ROWS(M$5:M28)))) -> 
A29: 2010-01-04 | B29: Franks | C29: 104.35 | E29: =IF(ROWS(E$5:E29)>$G$2,"",INDEX(A$2:A$102,_xlfn.AGGREGATE(15,6,(ROW($A$2:$A$102)-ROW($A$2)+1)/(($B$2:$B$102=$F$2)*(YEAR($A$2:$A$102)=$E$2)),ROWS(E$5:E29)))) ->  | F29: =IF(ROWS(F$5:F29)>$G$2,"",INDEX(B$2:B$102,_xlfn.AGGREGATE(15,6,(ROW($A$2:$A$102)-ROW($A$2)+1)/(($B$2:$B$102=$F$2)*(YEAR($A$2:$A$102)=$E$2)),ROWS(F$5:F29)))) ->  | G29: =IF(ROWS(G$5:G29)>$G$2,"",INDEX(C$2:C$102,_xlfn.AGGREGATE(15,6,(ROW($A$2:$A$102)-ROW($A$2)+1)/(($B$2:$B$102=$F$2)*(YEAR($A$2:$A$102)=$E$2)),ROWS(G$5:G29)))) ->  | K29: =IF(ROWS(K$5:K29)>$G$2,"",INDEX(A$2:A$102,SMALL(IF($B$2:$B$102=$F$2,IF(YEAR($A$2:$A$102)=$E$2,ROW($B$2:$B$102)-ROW($B$2)+1)),ROWS(K$5:K29)))) ->  | L29: =IF(ROWS(L$5:L29)>$G$2,"",INDEX(B$2:B$102,SMALL(IF($B$2:$B$102=$F$2,IF(YEAR($A$2:$A$102)=$E$2,ROW($B$2:$B$102)-ROW($B$2)+1)),ROWS(L$5:L29)))) ->  | M29: =IF(ROWS(M$5:M29)>$G$2,"",INDEX(C$2:C$102,SMALL(IF($B$2:$B$102=$F$2,IF(YEAR($A$2:$A$102)=$E$2,ROW($B$2:$B$102)-ROW($B$2)+1)),ROWS(M$5:M29)))) -> 
A30: 2009-12-14 | B30: Gault | C30: 88.51 | E30: =IF(ROWS(E$5:E30)>$G$2,"",INDEX(A$2:A$102,_xlfn.AGGREGATE(15,6,(ROW($A$2:$A$102)-ROW($A$2)+1)/(($B$2:$B$102=$F$2)*(YEAR($A$2:$A$102)=$E$2)),ROWS(E$5:E30)))) ->  | F30: =IF(ROWS(F$5:F30)>$G$2,"",INDEX(B$2:B$102,_xlfn.AGGREGATE(15,6,(ROW($A$2:$A$102)-ROW($A$2)+1)/(($B$2:$B$102=$F$2)*(YEAR($A$2:$A$102)=$E$2)),ROWS(F$5:F30)))) ->  | G30: =IF(ROWS(G$5:G30)>$G$2,"",INDEX(C$2:C$102,_xlfn.AGGREGATE(15,6,(ROW($A$2:$A$102)-ROW($A$2)+1)/(($B$2:$B$102=$F$2)*(YEAR($A$2:$A$102)=$E$2)),ROWS(G$5:G30)))) ->  | K30: =IF(ROWS(K$5:K30)>$G$2,"",INDEX(A$2:A$102,SMALL(IF($B$2:$B$102=$F$2,IF(YEAR($A$2:$A$102)=$E$2,ROW($B$2:$B$102)-ROW($B$2)+1)),ROWS(K$5:K30)))) ->  | L30: =IF(ROWS(L$5:L30)>$G$2,"",INDEX(B$2:B$102,SMALL(IF($B$2:$B$102=$F$2,IF(YEAR($A$2:$A$102)=$E$2,ROW($B$2:$B$102)-ROW($B$2)+1)),ROWS(L$5:L30)))) ->  | M30: =IF(ROWS(M$5:M30)>$G$2,"",INDEX(C$2:C$102,SMALL(IF($B$2:$B$102=$F$2,IF(YEAR($A$2:$A$102)=$E$2,ROW($B$2:$B$102)-ROW($B$2)+1)),ROWS(M$5:M30)))) -> 
A31: 2010-02-01 | B31: Gault | C31: 136.76 | E31: =IF(ROWS(E$5:E31)>$G$2,"",INDEX(A$2:A$102,_xlfn.AGGREGATE(15,6,(ROW($A$2:$A$102)-ROW($A$2)+1)/(($B$2:$B$102=$F$2)*(YEAR($A$2:$A$102)=$E$2)),ROWS(E$5:E31)))) ->  | F31: =IF(ROWS(F$5:F31)>$G$2,"",INDEX(B$2:B$102,_xlfn.AGGREGATE(15,6,(ROW($A$2:$A$102)-ROW($A$2)+1)/(($B$2:$B$102=$F$2)*(YEAR($A$2:$A$102)=$E$2)),ROWS(F$5:F31)))) ->  | G31: =IF(ROWS(G$5:G31)>$G$2,"",INDEX(C$2:C$102,_xlfn.AGGREGATE(15,6,(ROW($A$2:$A$102)-ROW($A$2)+1)/(($B$2:$B$102=$F$2)*(YEAR($A$2:$A$102)=$E$2)),ROWS(G$5:G31)))) ->  | K31: =IF(ROWS(K$5:K31)>$G$2,"",INDEX(A$2:A$102,SMALL(IF($B$2:$B$102=$F$2,IF(YEAR($A$2:$A$102)=$E$2,ROW($B$2:$B$102)-ROW($B$2)+1)),ROWS(K$5:K31)))) ->  | L31: =IF(ROWS(L$5:L31)>$G$2,"",INDEX(B$2:B$102,SMALL(IF($B$2:$B$102=$F$2,IF(YEAR($A$2:$A$102)=$E$2,ROW($B$2:$B$102)-ROW($B$2)+1)),ROWS(L$5:L31)))) ->  | M31: =IF(ROWS(M$5:M31)>$G$2,"",INDEX(C$2:C$102,SMALL(IF($B$2:$B$102=$F$2,IF(YEAR($A$2:$A$102)=$E$2,ROW($B$2:$B$102)-ROW($B$2)+1)),ROWS(M$5:M31)))) -> 
A32: 2009-11-25 | B32: Pham | C32: 109.57 | E32: =IF(ROWS(E$5:E32)>$G$2,"",INDEX(A$2:A$102,_xlfn.AGGREGATE(15,6,(ROW($A$2:$A$102)-ROW($A$2)+1)/(($B$2:$B$102=$F$2)*(YEAR($A$2:$A$102)=$E$2)),ROWS(E$5:E32)))) ->  | F32: =IF(ROWS(F$5:F32)>$G$2,"",INDEX(B$2:B$102,_xlfn.AGGREGATE(15,6,(ROW($A$2:$A$102)-ROW($A$2)+1)/(($B$2:$B$102=$F$2)*(YEAR($A$2:$A$102)=$E$2)),ROWS(F$5:F32)))) ->  | G32: =IF(ROWS(G$5:G32)>$G$2,"",INDEX(C$2:C$102,_xlfn.AGGREGATE(15,6,(ROW($A$2:$A$102)-ROW($A$2)+1)/(($B$2:$B$102=$F$2)*(YEAR($A$2:$A$102)=$E$2)),ROWS(G$5:G32)))) ->  | K32: =IF(ROWS(K$5:K32)>$G$2,"",INDEX(A$2:A$102,SMALL(IF($B$2:$B$102=$F$2,IF(YEAR($A$2:$A$102)=$E$2,ROW($B$2:$B$102)-ROW($B$2)+1)),ROWS(K$5:K32)))) ->  | L32: =IF(ROWS(L$5:L32)>$G$2,"",INDEX(B$2:B$102,SMALL(IF($B$2:$B$102=$F$2,IF(YEAR($A$2:$A$102)=$E$2,ROW($B$2:$B$102)-ROW($B$2)+1)),ROWS(L$5:L32)))) ->  | M32: =IF(ROWS(M$5:M32)>$G$2,"",INDEX(C$2:C$102,SMALL(IF($B$2:$B$102=$F$2,IF(YEAR($A$2:$A$102)=$E$2,ROW($B$2:$B$102)-ROW($B$2)+1)),ROWS(M$5:M32)))) -> 
A33: 2010-02-07 | B33: Franks | C33: 125.81 | E33: =IF(ROWS(E$5:E33)>$G$2,"",INDEX(A$2:A$102,_xlfn.AGGREGATE(15,6,(ROW($A$2:$A$102)-ROW($A$2)+1)/(($B$2:$B$102=$F$2)*(YEAR($A$2:$A$102)=$E$2)),ROWS(E$5:E33)))) ->  | F33: =IF(ROWS(F$5:F33)>$G$2,"",INDEX(B$2:B$102,_xlfn.AGGREGATE(15,6,(ROW($A$2:$A$102)-ROW($A$2)+1)/(($B$2:$B$102=$F$2)*(YEAR($A$2:$A$102)=$E$2)),ROWS(F$5:F33)))) ->  | G33: =IF(ROWS(G$5:G33)>$G$2,"",INDEX(C$2:C$102,_xlfn.AGGREGATE(15,6,(ROW($A$2:$A$102)-ROW($A$2)+1)/(($B$2:$B$102=$F$2)*(YEAR($A$2:$A$102)=$E$2)),ROWS(G$5:G33)))) ->  | K33: =IF(ROWS(K$5:K33)>$G$2,"",INDEX(A$2:A$102,SMALL(IF($B$2:$B$102=$F$2,IF(YEAR($A$2:$A$102)=$E$2,ROW($B$2:$B$102)-ROW($B$2)+1)),ROWS(K$5:K33)))) ->  | L33: =IF(ROWS(L$5:L33)>$G$2,"",INDEX(B$2:B$102,SMALL(IF($B$2:$B$102=$F$2,IF(YEAR($A$2:$A$102)=$E$2,ROW($B$2:$B$102)-ROW($B$2)+1)),ROWS(L$5:L33)))) ->  | M33: =IF(ROWS(M$5:M33)>$G$2,"",INDEX(C$2:C$102,SMALL(IF($B$2:$B$102=$F$2,IF(YEAR($A$2:$A$102)=$E$2,ROW($B$2:$B$102)-ROW($B$2)+1)),ROWS(M$5:M33)))) -> 
A34: 2009-12-22 | B34: Pham | C34: 150.09 | E34: =IF(ROWS(E$5:E34)>$G$2,"",INDEX(A$2:A$102,_xlfn.AGGREGATE(15,6,(ROW($A$2:$A$102)-ROW($A$2)+1)/(($B$2:$B$102=$F$2)*(YEAR($A$2:$A$102)=$E$2)),ROWS(E$5:E34)))) ->  | F34: =IF(ROWS(F$5:F34)>$G$2,"",INDEX(B$2:B$102,_xlfn.AGGREGATE(15,6,(ROW($A$2:$A$102)-ROW($A$2)+1)/(($B$2:$B$102=$F$2)*(YEAR($A$2:$A$102)=$E$2)),ROWS(F$5:F34)))) ->  | G34: =IF(ROWS(G$5:G34)>$G$2,"",INDEX(C$2:C$102,_xlfn.AGGREGATE(15,6,(ROW($A$2:$A$102)-ROW($A$2)+1)/(($B$2:$B$102=$F$2)*(YEAR($A$2:$A$102)=$E$2)),ROWS(G$5:G34)))) ->  | K34: =IF(ROWS(K$5:K34)>$G$2,"",INDEX(A$2:A$102,SMALL(IF($B$2:$B$102=$F$2,IF(YEAR($A$2:$A$102)=$E$2,ROW($B$2:$B$102)-ROW($B$2)+1)),ROWS(K$5:K34)))) ->  | L34: =IF(ROWS(L$5:L34)>$G$2,"",INDEX(B$2:B$102,SMALL(IF($B$2:$B$102=$F$2,IF(YEAR($A$2:$A$102)=$E$2,ROW($B$2:$B$102)-ROW($B$2)+1)),ROWS(L$5:L34)))) ->  | M34: =IF(ROWS(M$5:M34)>$G$2,"",INDEX(C$2:C$102,SMALL(IF($B$2:$B$102=$F$2,IF(YEAR($A$2:$A$102)=$E$2,ROW($B$2:$B$102)-ROW($B$2)+1)),ROWS(M$5:M34)))) -> 
A35: 2009-12-07 | B35: Sioux | C35: 147.53 | E35: =IF(ROWS(E$5:E35)>$G$2,"",INDEX(A$2:A$102,_xlfn.AGGREGATE(15,6,(ROW($A$2:$A$102)-ROW($A$2)+1)/(($B$2:$B$102=$F$2)*(YEAR($A$2:$A$102)=$E$2)),ROWS(E$5:E35)))) ->  | F35: =IF(ROWS(F$5:F35)>$G$2,"",INDEX(B$2:B$102,_xlfn.AGGREGATE(15,6,(ROW($A$2:$A$102)-ROW($A$2)+1)/(($B$2:$B$102=$F$2)*(YEAR($A$2:$A$102)=$E$2)),ROWS(F$5:F35)))) ->  | G35: =IF(ROWS(G$5:G35)>$G$2,"",INDEX(C$2:C$102,_xlfn.AGGREGATE(15,6,(ROW($A$2:$A$102)-ROW($A$2)+1)/(($B$2:$B$102=$F$2)*(YEAR($A$2:$A$102)=$E$2)),ROWS(G$5:G35)))) ->  | K35: =IF(ROWS(K$5:K35)>$G$2,"",INDEX(A$2:A$102,SMALL(IF($B$2:$B$102=$F$2,IF(YEAR($A$2:$A$102)=$E$2,ROW($B$2:$B$102)-ROW($B$2)+1)),ROWS(K$5:K35)))) ->  | L35: =IF(ROWS(L$5:L35)>$G$2,"",INDEX(B$2:B$102,SMALL(IF($B$2:$B$102=$F$2,IF(YEAR($A$2:$A$102)=$E$2,ROW($B$2:$B$102)-ROW($B$2)+1)),ROWS(L$5:L35)))) ->  | M35: =IF(ROWS(M$5:M35)>$G$2,"",INDEX(C$2:C$102,SMALL(IF($B$2:$B$102=$F$2,IF(YEAR($A$2:$A$102)=$E$2,ROW($B$2:$B$102)-ROW($B$2)+1)),ROWS(M$5:M35)))) -> 
A36: 2009-12-12 | B36: Chin | C36: 102.17 | E36: =IF(ROWS(E$5:E36)>$G$2,"",INDEX(A$2:A$102,_xlfn.AGGREGATE(15,6,(ROW($A$2:$A$102)-ROW($A$2)+1)/(($B$2:$B$102=$F$2)*(YEAR($A$2:$A$102)=$E$2)),ROWS(E$5:E36)))) ->  | F36: =IF(ROWS(F$5:F36)>$G$2,"",INDEX(B$2:B$102,_xlfn.AGGREGATE(15,6,(ROW($A$2:$A$102)-ROW($A$2)+1)/(($B$2:$B$102=$F$2)*(YEAR($A$2:$A$102)=$E$2)),ROWS(F$5:F36)))) ->  | G36: =IF(ROWS(G$5:G36)>$G$2,"",INDEX(C$2:C$102,_xlfn.AGGREGATE(15,6,(ROW($A$2:$A$102)-ROW($A$2)+1)/(($B$2:$B$102=$F$2)*(YEAR($A$2:$A$102)=$E$2)),ROWS(G$5:G36)))) ->  | K36: =IF(ROWS(K$5:K36)>$G$2,"",INDEX(A$2:A$102,SMALL(IF($B$2:$B$102=$F$2,IF(YEAR($A$2:$A$102)=$E$2,ROW($B$2:$B$102)-ROW($B$2)+1)),ROWS(K$5:K36)))) ->  | L36: =IF(ROWS(L$5:L36)>$G$2,"",INDEX(B$2:B$102,SMALL(IF($B$2:$B$102=$F$2,IF(YEAR($A$2:$A$102)=$E$2,ROW($B$2:$B$102)-ROW($B$2)+1)),ROWS(L$5:L36)))) ->  | M36: =IF(ROWS(M$5:M36)>$G$2,"",INDEX(C$2:C$102,SMALL(IF($B$2:$B$102=$F$2,IF(YEAR($A$2:$A$102)=$E$2,ROW($B$2:$B$102)-ROW($B$2)+1)),ROWS(M$5:M36)))) -> 
A37: 2009-12-30 | B37: Smith | C37: 114.4 | E37: =IF(ROWS(E$5:E37)>$G$2,"",INDEX(A$2:A$102,_xlfn.AGGREGATE(15,6,(ROW($A$2:$A$102)-ROW($A$2)+1)/(($B$2:$B$102=$F$2)*(YEAR($A$2:$A$102)=$E$2)),ROWS(E$5:E37)))) ->  | F37: =IF(ROWS(F$5:F37)>$G$2,"",INDEX(B$2:B$102,_xlfn.AGGREGATE(15,6,(ROW($A$2:$A$102)-ROW($A$2)+1)/(($B$2:$B$102=$F$2)*(YEAR($A$2:$A$102)=$E$2)),ROWS(F$5:F37)))) ->  | G37: =IF(ROWS(G$5:G37)>$G$2,"",INDEX(C$2:C$102,_xlfn.AGGREGATE(15,6,(ROW($A$2:$A$102)-ROW($A$2)+1)/(($B$2:$B$102=$F$2)*(YEAR($A$2:$A$102)=$E$2)),ROWS(G$5:G37)))) ->  | K37: =IF(ROWS(K$5:K37)>$G$2,"",INDEX(A$2:A$102,SMALL(IF($B$2:$B$102=$F$2,IF(YEAR($A$2:$A$102)=$E$2,ROW($B$2:$B$102)-ROW($B$2)+1)),ROWS(K$5:K37)))) ->  | L37: =IF(ROWS(L$5:L37)>$G$2,"",INDEX(B$2:B$102,SMALL(IF($B$2:$B$102=$F$2,IF(YEAR($A$2:$A$102)=$E$2,ROW($B$2:$B$102)-ROW($B$2)+1)),ROWS(L$5:L37)))) ->  | M37: =IF(ROWS(M$5:M37)>$G$2,"",INDEX(C$2:C$102,SMALL(IF($B$2:$B$102=$F$2,IF(YEAR($A$2:$A$102)=$E$2,ROW($B$2:$B$102)-ROW($B$2)+1)),ROWS(M$5:M37)))) -> 
A38: 2009-12-27 | B38: Chin | C38: 129.65 | E38: =IF(ROWS(E$5:E38)>$G$2,"",INDEX(A$2:A$102,_xlfn.AGGREGATE(15,6,(ROW($A$2:$A$102)-ROW($A$2)+1)/(($B$2:$B$102=$F$2)*(YEAR($A$2:$A$102)=$E$2)),ROWS(E$5:E38)))) ->  | F38: =IF(ROWS(F$5:F38)>$G$2,"",INDEX(B$2:B$102,_xlfn.AGGREGATE(15,6,(ROW($A$2:$A$102)-ROW($A$2)+1)/(($B$2:$B$102=$F$2)*(YEAR($A$2:$A$102)=$E$2)),ROWS(F$5:F38)))) ->  | G38: =IF(ROWS(G$5:G38)>$G$2,"",INDEX(C$2:C$102,_xlfn.AGGREGATE(15,6,(ROW($A$2:$A$102)-ROW($A$2)+1)/(($B$2:$B$102=$F$2)*(YEAR($A$2:$A$102)=$E$2)),ROWS(G$5:G38)))) ->  | K38: =IF(ROWS(K$5:K38)>$G$2,"",INDEX(A$2:A$102,SMALL(IF($B$2:$B$102=$F$2,IF(YEAR($A$2:$A$102)=$E$2,ROW($B$2:$B$102)-ROW($B$2)+1)),ROWS(K$5:K38)))) ->  | L38: =IF(ROWS(L$5:L38)>$G$2,"",INDEX(B$2:B$102,SMALL(IF($B$2:$B$102=$F$2,IF(YEAR($A$2:$A$102)=$E$2,ROW($B$2:$B$102)-ROW($B$2)+1)),ROWS(L$5:L38)))) ->  | M38: =IF(ROWS(M$5:M38)>$G$2,"",INDEX(C$2:C$102,SMALL(IF($B$2:$B$102=$F$2,IF(YEAR($A$2:$A$102)=$E$2,ROW($B$2:$B$102)-ROW($B$2)+1)),ROWS(M$5:M38)))) -> 
A39: 2009-12-29 | B39: Chin | C39: 128.95 | E39: =IF(ROWS(E$5:E39)>$G$2,"",INDEX(A$2:A$102,_xlfn.AGGREGATE(15,6,(ROW($A$2:$A$102)-ROW($A$2)+1)/(($B$2:$B$102=$F$2)*(YEAR($A$2:$A$102)=$E$2)),ROWS(E$5:E39)))) ->  | F39: =IF(ROWS(F$5:F39)>$G$2,"",INDEX(B$2:B$102,_xlfn.AGGREGATE(15,6,(ROW($A$2:$A$102)-ROW($A$2)+1)/(($B$2:$B$102=$F$2)*(YEAR($A$2:$A$102)=$E$2)),ROWS(F$5:F39)))) ->  | G39: =IF(ROWS(G$5:G39)>$G$2,"",INDEX(C$2:C$102,_xlfn.AGGREGATE(15,6,(ROW($A$2:$A$102)-ROW($A$2)+1)/(($B$2:$B$102=$F$2)*(YEAR($A$2:$A$102)=$E$2)),ROWS(G$5:G39)))) ->  | K39: =IF(ROWS(K$5:K39)>$G$2,"",INDEX(A$2:A$102,SMALL(IF($B$2:$B$102=$F$2,IF(YEAR($A$2:$A$102)=$E$2,ROW($B$2:$B$102)-ROW($B$2)+1)),ROWS(K$5:K39)))) ->  | L39: =IF(ROWS(L$5:L39)>$G$2,"",INDEX(B$2:B$102,SMALL(IF($B$2:$B$102=$F$2,IF(YEAR($A$2:$A$102)=$E$2,ROW($B$2:$B$102)-ROW($B$2)+1)),ROWS(L$5:L39)))) ->  | M39: =IF(ROWS(M$5:M39)>$G$2,"",INDEX(C$2:C$102,SMALL(IF($B$2:$B$102=$F$2,IF(YEAR($A$2:$A$102)=$E$2,ROW($B$2:$B$102)-ROW($B$2)+1)),ROWS(M$5:M39)))) -> 
A40: 2010-01-05 | B40: Gault | C40: 121.33 | E40: =IF(ROWS(E$5:E40)>$G$2,"",INDEX(A$2:A$102,_xlfn.AGGREGATE(15,6,(ROW($A$2:$A$102)-ROW($A$2)+1)/(($B$2:$B$102=$F$2)*(YEAR($A$2:$A$102)=$E$2)),ROWS(E$5:E40)))) ->  | F40: =IF(ROWS(F$5:F40)>$G$2,"",INDEX(B$2:B$102,_xlfn.AGGREGATE(15,6,(ROW($A$2:$A$102)-ROW($A$2)+1)/(($B$2:$B$102=$F$2)*(YEAR($A$2:$A$102)=$E$2)),ROWS(F$5:F40)))) ->  | G40: =IF(ROWS(G$5:G40)>$G$2,"",INDEX(C$2:C$102,_xlfn.AGGREGATE(15,6,(ROW($A$2:$A$102)-ROW($A$2)+1)/(($B$2:$B$102=$F$2)*(YEAR($A$2:$A$102)=$E$2)),ROWS(G$5:G40)))) ->  | K40: =IF(ROWS(K$5:K40)>$G$2,"",INDEX(A$2:A$102,SMALL(IF($B$2:$B$102=$F$2,IF(YEAR($A$2:$A$102)=$E$2,ROW($B$2:$B$102)-ROW($B$2)+1)),ROWS(K$5:K40)))) ->  | L40: =IF(ROWS(L$5:L40)>$G$2,"",INDEX(B$2:B$102,SMALL(IF($B$2:$B$102=$F$2,IF(YEAR($A$2:$A$102)=$E$2,ROW($B$2:$B$102)-ROW($B$2)+1)),ROWS(L$5:L40)))) ->  | M40: =IF(ROWS(M$5:M40)>$G$2,"",INDEX(C$2:C$102,SMALL(IF($B$2:$B$102=$F$2,IF(YEAR($A$2:$A$102)=$E$2,ROW($B$2:$B$102)-ROW($B$2)+1)),ROWS(M$5:M40)))) -> 
A41: 2009-12-15 | B41: Pham | C41: 102.64 | E41: =IF(ROWS(E$5:E41)>$G$2,"",INDEX(A$2:A$102,_xlfn.AGGREGATE(15,6,(ROW($A$2:$A$102)-ROW($A$2)+1)/(($B$2:$B$102=$F$2)*(YEAR($A$2:$A$102)=$E$2)),ROWS(E$5:E41)))) ->  | F41: =IF(ROWS(F$5:F41)>$G$2,"",INDEX(B$2:B$102,_xlfn.AGGREGATE(15,6,(ROW($A$2:$A$102)-ROW($A$2)+1)/(($B$2:$B$102=$F$2)*(YEAR($A$2:$A$102)=$E$2)),ROWS(F$5:F41)))) ->  | G41: =IF(ROWS(G$5:G41)>$G$2,"",INDEX(C$2:C$102,_xlfn.AGGREGATE(15,6,(ROW($A$2:$A$102)-ROW($A$2)+1)/(($B$2:$B$102=$F$2)*(YEAR($A$2:$A$102)=$E$2)),ROWS(G$5:G41)))) ->  | K41: =IF(ROWS(K$5:K41)>$G$2,"",INDEX(A$2:A$102,SMALL(IF($B$2:$B$102=$F$2,IF(YEAR($A$2:$A$102)=$E$2,ROW($B$2:$B$102)-ROW($B$2)+1)),ROWS(K$5:K41)))) ->  | L41: =IF(ROWS(L$5:L41)>$G$2,"",INDEX(B$2:B$102,SMALL(IF($B$2:$B$102=$F$2,IF(YEAR($A$2:$A$102)=$E$2,ROW($B$2:$B$102)-ROW($B$2)+1)),ROWS(L$5:L41)))) ->  | M41: =IF(ROWS(M$5:M41)>$G$2,"",INDEX(C$2:C$102,SMALL(IF($B$2:$B$102=$F$2,IF(YEAR($A$2:$A$102)=$E$2,ROW($B$2:$B$102)-ROW($B$2)+1)),ROWS(M$5:M41)))) -> 
A42: 2009-12-01 | B42: Pham | C42: 132.12 | E42: =IF(ROWS(E$5:E42)>$G$2,"",INDEX(A$2:A$102,_xlfn.AGGREGATE(15,6,(ROW($A$2:$A$102)-ROW($A$2)+1)/(($B$2:$B$102=$F$2)*(YEAR($A$2:$A$102)=$E$2)),ROWS(E$5:E42)))) ->  | F42: =IF(ROWS(F$5:F42)>$G$2,"",INDEX(B$2:B$102,_xlfn.AGGREGATE(15,6,(ROW($A$2:$A$102)-ROW($A$2)+1)/(($B$2:$B$102=$F$2)*(YEAR($A$2:$A$102)=$E$2)),ROWS(F$5:F42)))) ->  | G42: =IF(ROWS(G$5:G42)>$G$2,"",INDEX(C$2:C$102,_xlfn.AGGREGATE(15,6,(ROW($A$2:$A$102)-ROW($A$2)+1)/(($B$2:$B$102=$F$2)*(YEAR($A$2:$A$102)=$E$2)),ROWS(G$5:G42)))) ->  | K42: =IF(ROWS(K$5:K42)>$G$2,"",INDEX(A$2:A$102,SMALL(IF($B$2:$B$102=$F$2,IF(YEAR($A$2:$A$102)=$E$2,ROW($B$2:$B$102)-ROW($B$2)+1)),ROWS(K$5:K42)))) ->  | L42: =IF(ROWS(L$5:L42)>$G$2,"",INDEX(B$2:B$102,SMALL(IF($B$2:$B$102=$F$2,IF(YEAR($A$2:$A$102)=$E$2,ROW($B$2:$B$102)-ROW($B$2)+1)),ROWS(L$5:L42)))) ->  | M42: =IF(ROWS(M$5:M42)>$G$2,"",INDEX(C$2:C$102,SMALL(IF($B$2:$B$102=$F$2,IF(YEAR($A$2:$A$102)=$E$2,ROW($B$2:$B$102)-ROW($B$2)+1)),ROWS(M$5:M42)))) -> 
A43: 2010-02-07 | B43: Franks | C43: 100.83 | E43: =IF(ROWS(E$5:E43)>$G$2,"",INDEX(A$2:A$102,_xlfn.AGGREGATE(15,6,(ROW($A$2:$A$102)-ROW($A$2)+1)/(($B$2:$B$102=$F$2)*(YEAR($A$2:$A$102)=$E$2)),ROWS(E$5:E43)))) ->  | F43: =IF(ROWS(F$5:F43)>$G$2,"",INDEX(B$2:B$102,_xlfn.AGGREGATE(15,6,(ROW($A$2:$A$102)-ROW($A$2)+1)/(($B$2:$B$102=$F$2)*(YEAR($A$2:$A$102)=$E$2)),ROWS(F$5:F43)))) ->  | G43: =IF(ROWS(G$5:G43)>$G$2,"",INDEX(C$2:C$102,_xlfn.AGGREGATE(15,6,(ROW($A$2:$A$102)-ROW($A$2)+1)/(($B$2:$B$102=$F$2)*(YEAR($A$2:$A$102)=$E$2)),ROWS(G$5:G43)))) ->  | K43: =IF(ROWS(K$5:K43)>$G$2,"",INDEX(A$2:A$102,SMALL(IF($B$2:$B$102=$F$2,IF(YEAR($A$2:$A$102)=$E$2,ROW($B$2:$B$102)-ROW($B$2)+1)),ROWS(K$5:K43)))) ->  | L43: =IF(ROWS(L$5:L43)>$G$2,"",INDEX(B$2:B$102,SMALL(IF($B$2:$B$102=$F$2,IF(YEAR($A$2:$A$102)=$E$2,ROW($B$2:$B$102)-ROW($B$2)+1)),ROWS(L$5:L43)))) ->  | M43: =IF(ROWS(M$5:M43)>$G$2,"",INDEX(C$2:C$102,SMALL(IF($B$2:$B$102=$F$2,IF(YEAR($A$2:$A$102)=$E$2,ROW($B$2:$B$102)-ROW($B$2)+1)),ROWS(M$5:M43)))) -> 
A44: 2009-11-26 | B44: Sioux | C44: 79.42 | E44: =IF(ROWS(E$5:E44)>$G$2,"",INDEX(A$2:A$102,_xlfn.AGGREGATE(15,6,(ROW($A$2:$A$102)-ROW($A$2)+1)/(($B$2:$B$102=$F$2)*(YEAR($A$2:$A$102)=$E$2)),ROWS(E$5:E44)))) ->  | F44: =IF(ROWS(F$5:F44)>$G$2,"",INDEX(B$2:B$102,_xlfn.AGGREGATE(15,6,(ROW($A$2:$A$102)-ROW($A$2)+1)/(($B$2:$B$102=$F$2)*(YEAR($A$2:$A$102)=$E$2)),ROWS(F$5:F44)))) ->  | G44: =IF(ROWS(G$5:G44)>$G$2,"",INDEX(C$2:C$102,_xlfn.AGGREGATE(15,6,(ROW($A$2:$A$102)-ROW($A$2)+1)/(($B$2:$B$102=$F$2)*(YEAR($A$2:$A$102)=$E$2)),ROWS(G$5:G44)))) ->  | K44: =IF(ROWS(K$5:K44)>$G$2,"",INDEX(A$2:A$102,SMALL(IF($B$2:$B$102=$F$2,IF(YEAR($A$2:$A$102)=$E$2,ROW($B$2:$B$102)-ROW($B$2)+1)),ROWS(K$5:K44)))) ->  | L44: =IF(ROWS(L$5:L44)>$G$2,"",INDEX(B$2:B$102,SMALL(IF($B$2:$B$102=$F$2,IF(YEAR($A$2:$A$102)=$E$2,ROW($B$2:$B$102)-ROW($B$2)+1)),ROWS(L$5:L44)))) ->  | M44: =IF(ROWS(M$5:M44)>$G$2,"",INDEX(C$2:C$102,SMALL(IF($B$2:$B$102=$F$2,IF(YEAR($A$2:$A$102)=$E$2,ROW($B$2:$B$102)-ROW($B$2)+1)),ROWS(M$5:M44)))) -> 
A45: 2010-01-04 | B45: Pham | C45: 100.09 | E45: =IF(ROWS(E$5:E45)>$G$2,"",INDEX(A$2:A$102,_xlfn.AGGREGATE(15,6,(ROW($A$2:$A$102)-ROW($A$2)+1)/(($B$2:$B$102=$F$2)*(YEAR($A$2:$A$102)=$E$2)),ROWS(E$5:E45)))) ->  | F45: =IF(ROWS(F$5:F45)>$G$2,"",INDEX(B$2:B$102,_xlfn.AGGREGATE(15,6,(ROW($A$2:$A$102)-ROW($A$2)+1)/(($B$2:$B$102=$F$2)*(YEAR($A$2:$A$102)=$E$2)),ROWS(F$5:F45)))) ->  | G45: =IF(ROWS(G$5:G45)>$G$2,"",INDEX(C$2:C$102,_xlfn.AGGREGATE(15,6,(ROW($A$2:$A$102)-ROW($A$2)+1)/(($B$2:$B$102=$F$2)*(YEAR($A$2:$A$102)=$E$2)),ROWS(G$5:G45)))) ->  | K45: =IF(ROWS(K$5:K45)>$G$2,"",INDEX(A$2:A$102,SMALL(IF($B$2:$B$102=$F$2,IF(YEAR($A$2:$A$102)=$E$2,ROW($B$2:$B$102)-ROW($B$2)+1)),ROWS(K$5:K45)))) ->  | L45: =IF(ROWS(L$5:L45)>$G$2,"",INDEX(B$2:B$102,SMALL(IF($B$2:$B$102=$F$2,IF(YEAR($A$2:$A$102)=$E$2,ROW($B$2:$B$102)-ROW($B$2)+1)),ROWS(L$5:L45)))) ->  | M45: =IF(ROWS(M$5:M45)>$G$2,"",INDEX(C$2:C$102,SMALL(IF($B$2:$B$102=$F$2,IF(YEAR($A$2:$A$102)=$E$2,ROW($B$2:$B$102)-ROW($B$2)+1)),ROWS(M$5:M45)))) -> 
A46: 2010-01-29 | B46: Franks | C46: 83.37 | E46: =IF(ROWS(E$5:E46)>$G$2,"",INDEX(A$2:A$102,_xlfn.AGGREGATE(15,6,(ROW($A$2:$A$102)-ROW($A$2)+1)/(($B$2:$B$102=$F$2)*(YEAR($A$2:$A$102)=$E$2)),ROWS(E$5:E46)))) ->  | F46: =IF(ROWS(F$5:F46)>$G$2,"",INDEX(B$2:B$102,_xlfn.AGGREGATE(15,6,(ROW($A$2:$A$102)-ROW($A$2)+1)/(($B$2:$B$102=$F$2)*(YEAR($A$2:$A$102)=$E$2)),ROWS(F$5:F46)))) ->  | G46: =IF(ROWS(G$5:G46)>$G$2,"",INDEX(C$2:C$102,_xlfn.AGGREGATE(15,6,(ROW($A$2:$A$102)-ROW($A$2)+1)/(($B$2:$B$102=$F$2)*(YEAR($A$2:$A$102)=$E$2)),ROWS(G$5:G46)))) ->  | K46: =IF(ROWS(K$5:K46)>$G$2,"",INDEX(A$2:A$102,SMALL(IF($B$2:$B$102=$F$2,IF(YEAR($A$2:$A$102)=$E$2,ROW($B$2:$B$102)-ROW($B$2)+1)),ROWS(K$5:K46)))) ->  | L46: =IF(ROWS(L$5:L46)>$G$2,"",INDEX(B$2:B$102,SMALL(IF($B$2:$B$102=$F$2,IF(YEAR($A$2:$A$102)=$E$2,ROW($B$2:$B$102)-ROW($B$2)+1)),ROWS(L$5:L46)))) ->  | M46: =IF(ROWS(M$5:M46)>$G$2,"",INDEX(C$2:C$102,SMALL(IF($B$2:$B$102=$F$2,IF(YEAR($A$2:$A$102)=$E$2,ROW($B$2:$B$102)-ROW($B$2)+1)),ROWS(M$5:M46)))) -> 
A47: 2010-01-19 | B47: Franks | C47: 89.11 | E47: =IF(ROWS(E$5:E47)>$G$2,"",INDEX(A$2:A$102,_xlfn.AGGREGATE(15,6,(ROW($A$2:$A$102)-ROW($A$2)+1)/(($B$2:$B$102=$F$2)*(YEAR($A$2:$A$102)=$E$2)),ROWS(E$5:E47)))) ->  | F47: =IF(ROWS(F$5:F47)>$G$2,"",INDEX(B$2:B$102,_xlfn.AGGREGATE(15,6,(ROW($A$2:$A$102)-ROW($A$2)+1)/(($B$2:$B$102=$F$2)*(YEAR($A$2:$A$102)=$E$2)),ROWS(F$5:F47)))) ->  | G47: =IF(ROWS(G$5:G47)>$G$2,"",INDEX(C$2:C$102,_xlfn.AGGREGATE(15,6,(ROW($A$2:$A$102)-ROW($A$2)+1)/(($B$2:$B$102=$F$2)*(YEAR($A$2:$A$102)=$E$2)),ROWS(G$5:G47)))) ->  | K47: =IF(ROWS(K$5:K47)>$G$2,"",INDEX(A$2:A$102,SMALL(IF($B$2:$B$102=$F$2,IF(YEAR($A$2:$A$102)=$E$2,ROW($B$2:$B$102)-ROW($B$2)+1)),ROWS(K$5:K47)))) ->  | L47: =IF(ROWS(L$5:L47)>$G$2,"",INDEX(B$2:B$102,SMALL(IF($B$2:$B$102=$F$2,IF(YEAR($A$2:$A$102)=$E$2,ROW($B$2:$B$102)-ROW($B$2)+1)),ROWS(L$5:L47)))) ->  | M47: =IF(ROWS(M$5:M47)>$G$2,"",INDEX(C$2:C$102,SMALL(IF($B$2:$B$102=$F$2,IF(YEAR($A$2:$A$102)=$E$2,ROW($B$2:$B$102)-ROW($B$2)+1)),ROWS(M$5:M47)))) -> 
A48: 2010-02-14 | B48: Smith | C48: 126.97 | E48: =IF(ROWS(E$5:E48)>$G$2,"",INDEX(A$2:A$102,_xlfn.AGGREGATE(15,6,(ROW($A$2:$A$102)-ROW($A$2)+1)/(($B$2:$B$102=$F$2)*(YEAR($A$2:$A$102)=$E$2)),ROWS(E$5:E48)))) ->  | F48: =IF(ROWS(F$5:F48)>$G$2,"",INDEX(B$2:B$102,_xlfn.AGGREGATE(15,6,(ROW($A$2:$A$102)-ROW($A$2)+1)/(($B$2:$B$102=$F$2)*(YEAR($A$2:$A$102)=$E$2)),ROWS(F$5:F48)))) ->  | G48: =IF(ROWS(G$5:G48)>$G$2,"",INDEX(C$2:C$102,_xlfn.AGGREGATE(15,6,(ROW($A$2:$A$102)-ROW($A$2)+1)/(($B$2:$B$102=$F$2)*(YEAR($A$2:$A$102)=$E$2)),ROWS(G$5:G48)))) ->  | K48: =IF(ROWS(K$5:K48)>$G$2,"",INDEX(A$2:A$102,SMALL(IF($B$2:$B$102=$F$2,IF(YEAR($A$2:$A$102)=$E$2,ROW($B$2:$B$102)-ROW($B$2)+1)),ROWS(K$5:K48)))) ->  | L48: =IF(ROWS(L$5:L48)>$G$2,"",INDEX(B$2:B$102,SMALL(IF($B$2:$B$102=$F$2,IF(YEAR($A$2:$A$102)=$E$2,ROW($B$2:$B$102)-ROW($B$2)+1)),ROWS(L$5:L48)))) ->  | M48: =IF(ROWS(M$5:M48)>$G$2,"",INDEX(C$2:C$102,SMALL(IF($B$2:$B$102=$F$2,IF(YEAR($A$2:$A$102)=$E$2,ROW($B$2:$B$102)-ROW($B$2)+1)),ROWS(M$5:M48)))) -> 
A49: 2009-12-03 | B49: Smith | C49: 154.31 | E49: =IF(ROWS(E$5:E49)>$G$2,"",INDEX(A$2:A$102,_xlfn.AGGREGATE(15,6,(ROW($A$2:$A$102)-ROW($A$2)+1)/(($B$2:$B$102=$F$2)*(YEAR($A$2:$A$102)=$E$2)),ROWS(E$5:E49)))) ->  | F49: =IF(ROWS(F$5:F49)>$G$2,"",INDEX(B$2:B$102,_xlfn.AGGREGATE(15,6,(ROW($A$2:$A$102)-ROW($A$2)+1)/(($B$2:$B$102=$F$2)*(YEAR($A$2:$A$102)=$E$2)),ROWS(F$5:F49)))) ->  | G49: =IF(ROWS(G$5:G49)>$G$2,"",INDEX(C$2:C$102,_xlfn.AGGREGATE(15,6,(ROW($A$2:$A$102)-ROW($A$2)+1)/(($B$2:$B$102=$F$2)*(YEAR($A$2:$A$102)=$E$2)),ROWS(G$5:G49)))) ->  | K49: =IF(ROWS(K$5:K49)>$G$2,"",INDEX(A$2:A$102,SMALL(IF($B$2:$B$102=$F$2,IF(YEAR($A$2:$A$102)=$E$2,ROW($B$2:$B$102)-ROW($B$2)+1)),ROWS(K$5:K49)))) ->  | L49: =IF(ROWS(L$5:L49)>$G$2,"",INDEX(B$2:B$102,SMALL(IF($B$2:$B$102=$F$2,IF(YEAR($A$2:$A$102)=$E$2,ROW($B$2:$B$102)-ROW($B$2)+1)),ROWS(L$5:L49)))) ->  | M49: =IF(ROWS(M$5:M49)>$G$2,"",INDEX(C$2:C$102,SMALL(IF($B$2:$B$102=$F$2,IF(YEAR($A$2:$A$102)=$E$2,ROW($B$2:$B$102)-ROW($B$2)+1)),ROWS(M$5:M49)))) -> 
A50: 2010-01-02 | B50: Sioux | C50: 76.59 | E50: =IF(ROWS(E$5:E50)>$G$2,"",INDEX(A$2:A$102,_xlfn.AGGREGATE(15,6,(ROW($A$2:$A$102)-ROW($A$2)+1)/(($B$2:$B$102=$F$2)*(YEAR($A$2:$A$102)=$E$2)),ROWS(E$5:E50)))) ->  | F50: =IF(ROWS(F$5:F50)>$G$2,"",INDEX(B$2:B$102,_xlfn.AGGREGATE(15,6,(ROW($A$2:$A$102)-ROW($A$2)+1)/(($B$2:$B$102=$F$2)*(YEAR($A$2:$A$102)=$E$2)),ROWS(F$5:F50)))) ->  | G50: =IF(ROWS(G$5:G50)>$G$2,"",INDEX(C$2:C$102,_xlfn.AGGREGATE(15,6,(ROW($A$2:$A$102)-ROW($A$2)+1)/(($B$2:$B$102=$F$2)*(YEAR($A$2:$A$102)=$E$2)),ROWS(G$5:G50)))) ->  | K50: =IF(ROWS(K$5:K50)>$G$2,"",INDEX(A$2:A$102,SMALL(IF($B$2:$B$102=$F$2,IF(YEAR($A$2:$A$102)=$E$2,ROW($B$2:$B$102)-ROW($B$2)+1)),ROWS(K$5:K50)))) ->  | L50: =IF(ROWS(L$5:L50)>$G$2,"",INDEX(B$2:B$102,SMALL(IF($B$2:$B$102=$F$2,IF(YEAR($A$2:$A$102)=$E$2,ROW($B$2:$B$102)-ROW($B$2)+1)),ROWS(L$5:L50)))) ->  | M50: =IF(ROWS(M$5:M50)>$G$2,"",INDEX(C$2:C$102,SMALL(IF($B$2:$B$102=$F$2,IF(YEAR($A$2:$A$102)=$E$2,ROW($B$2:$B$102)-ROW($B$2)+1)),ROWS(M$5:M50)))) -> 
A51: 2009-12-29 | B51: Gault | C51: 106.94 | E51: =IF(ROWS(E$5:E51)>$G$2,"",INDEX(A$2:A$102,_xlfn.AGGREGATE(15,6,(ROW($A$2:$A$102)-ROW($A$2)+1)/(($B$2:$B$102=$F$2)*(YEAR($A$2:$A$102)=$E$2)),ROWS(E$5:E51)))) ->  | F51: =IF(ROWS(F$5:F51)>$G$2,"",INDEX(B$2:B$102,_xlfn.AGGREGATE(15,6,(ROW($A$2:$A$102)-ROW($A$2)+1)/(($B$2:$B$102=$F$2)*(YEAR($A$2:$A$102)=$E$2)),ROWS(F$5:F51)))) ->  | G51: =IF(ROWS(G$5:G51)>$G$2,"",INDEX(C$2:C$102,_xlfn.AGGREGATE(15,6,(ROW($A$2:$A$102)-ROW($A$2)+1)/(($B$2:$B$102=$F$2)*(YEAR($A$2:$A$102)=$E$2)),ROWS(G$5:G51)))) ->  | K51: =IF(ROWS(K$5:K51)>$G$2,"",INDEX(A$2:A$102,SMALL(IF($B$2:$B$102=$F$2,IF(YEAR($A$2:$A$102)=$E$2,ROW($B$2:$B$102)-ROW($B$2)+1)),ROWS(K$5:K51)))) ->  | L51: =IF(ROWS(L$5:L51)>$G$2,"",INDEX(B$2:B$102,SMALL(IF($B$2:$B$102=$F$2,IF(YEAR($A$2:$A$102)=$E$2,ROW($B$2:$B$102)-ROW($B$2)+1)),ROWS(L$5:L51)))) ->  | M51: =IF(ROWS(M$5:M51)>$G$2,"",INDEX(C$2:C$102,SMALL(IF($B$2:$B$102=$F$2,IF(YEAR($A$2:$A$102)=$E$2,ROW($B$2:$B$102)-ROW($B$2)+1)),ROWS(M$5:M51)))) -> 
A52: 2009-11-26 | B52: Chin | C52: 129.86 | E52: =IF(ROWS(E$5:E52)>$G$2,"",INDEX(A$2:A$102,_xlfn.AGGREGATE(15,6,(ROW($A$2:$A$102)-ROW($A$2)+1)/(($B$2:$B$102=$F$2)*(YEAR($A$2:$A$102)=$E$2)),ROWS(E$5:E52)))) ->  | F52: =IF(ROWS(F$5:F52)>$G$2,"",INDEX(B$2:B$102,_xlfn.AGGREGATE(15,6,(ROW($A$2:$A$102)-ROW($A$2)+1)/(($B$2:$B$102=$F$2)*(YEAR($A$2:$A$102)=$E$2)),ROWS(F$5:F52)))) ->  | G52: =IF(ROWS(G$5:G52)>$G$2,"",INDEX(C$2:C$102,_xlfn.AGGREGATE(15,6,(ROW($A$2:$A$102)-ROW($A$2)+1)/(($B$2:$B$102=$F$2)*(YEAR($A$2:$A$102)=$E$2)),ROWS(G$5:G52)))) ->  | K52: =IF(ROWS(K$5:K52)>$G$2,"",INDEX(A$2:A$102,SMALL(IF($B$2:$B$102=$F$2,IF(YEAR($A$2:$A$102)=$E$2,ROW($B$2:$B$102)-ROW($B$2)+1)),ROWS(K$5:K52)))) ->  | L52: =IF(ROWS(L$5:L52)>$G$2,"",INDEX(B$2:B$102,SMALL(IF($B$2:$B$102=$F$2,IF(YEAR($A$2:$A$102)=$E$2,ROW($B$2:$B$102)-ROW($B$2)+1)),ROWS(L$5:L52)))) ->  | M52: =IF(ROWS(M$5:M52)>$G$2,"",INDEX(C$2:C$102,SMALL(IF($B$2:$B$102=$F$2,IF(YEAR($A$2:$A$102)=$E$2,ROW($B$2:$B$102)-ROW($B$2)+1)),ROWS(M$5:M52)))) -> 
A53: 2009-12-24 | B53: Pham | C53: 100.76 | E53: =IF(ROWS(E$5:E53)>$G$2,"",INDEX(A$2:A$102,_xlfn.AGGREGATE(15,6,(ROW($A$2:$A$102)-ROW($A$2)+1)/(($B$2:$B$102=$F$2)*(YEAR($A$2:$A$102)=$E$2)),ROWS(E$5:E53)))) ->  | F53: =IF(ROWS(F$5:F53)>$G$2,"",INDEX(B$2:B$102,_xlfn.AGGREGATE(15,6,(ROW($A$2:$A$102)-ROW($A$2)+1)/(($B$2:$B$102=$F$2)*(YEAR($A$2:$A$102)=$E$2)),ROWS(F$5:F53)))) ->  | G53: =IF(ROWS(G$5:G53)>$G$2,"",INDEX(C$2:C$102,_xlfn.AGGREGATE(15,6,(ROW($A$2:$A$102)-ROW($A$2)+1)/(($B$2:$B$102=$F$2)*(YEAR($A$2:$A$102)=$E$2)),ROWS(G$5:G53)))) ->  | K53: =IF(ROWS(K$5:K53)>$G$2,"",INDEX(A$2:A$102,SMALL(IF($B$2:$B$102=$F$2,IF(YEAR($A$2:$A$102)=$E$2,ROW($B$2:$B$102)-ROW($B$2)+1)),ROWS(K$5:K53)))) ->  | L53: =IF(ROWS(L$5:L53)>$G$2,"",INDEX(B$2:B$102,SMALL(IF($B$2:$B$102=$F$2,IF(YEAR($A$2:$A$102)=$E$2,ROW($B$2:$B$102)-ROW($B$2)+1)),ROWS(L$5:L53)))) ->  | M53: =IF(ROWS(M$5:M53)>$G$2,"",INDEX(C$2:C$102,SMALL(IF($B$2:$B$102=$F$2,IF(YEAR($A$2:$A$102)=$E$2,ROW($B$2:$B$102)-ROW($B$2)+1)),ROWS(M$5:M53)))) -> 
A54: 2009-12-10 | B54: Gault | C54: 124.59 | E54: =IF(ROWS(E$5:E54)>$G$2,"",INDEX(A$2:A$102,_xlfn.AGGREGATE(15,6,(ROW($A$2:$A$102)-ROW($A$2)+1)/(($B$2:$B$102=$F$2)*(YEAR($A$2:$A$102)=$E$2)),ROWS(E$5:E54)))) ->  | F54: =IF(ROWS(F$5:F54)>$G$2,"",INDEX(B$2:B$102,_xlfn.AGGREGATE(15,6,(ROW($A$2:$A$102)-ROW($A$2)+1)/(($B$2:$B$102=$F$2)*(YEAR($A$2:$A$102)=$E$2)),ROWS(F$5:F54)))) ->  | G54: =IF(ROWS(G$5:G54)>$G$2,"",INDEX(C$2:C$102,_xlfn.AGGREGATE(15,6,(ROW($A$2:$A$102)-ROW($A$2)+1)/(($B$2:$B$102=$F$2)*(YEAR($A$2:$A$102)=$E$2)),ROWS(G$5:G54)))) ->  | K54: =IF(ROWS(K$5:K54)>$G$2,"",INDEX(A$2:A$102,SMALL(IF($B$2:$B$102=$F$2,IF(YEAR($A$2:$A$102)=$E$2,ROW($B$2:$B$102)-ROW($B$2)+1)),ROWS(K$5:K54)))) ->  | L54: =IF(ROWS(L$5:L54)>$G$2,"",INDEX(B$2:B$102,SMALL(IF($B$2:$B$102=$F$2,IF(YEAR($A$2:$A$102)=$E$2,ROW($B$2:$B$102)-ROW($B$2)+1)),ROWS(L$5:L54)))) ->  | M54: =IF(ROWS(M$5:M54)>$G$2,"",INDEX(C$2:C$102,SMALL(IF($B$2:$B$102=$F$2,IF(YEAR($A$2:$A$102)=$E$2,ROW($B$2:$B$102)-ROW($B$2)+1)),ROWS(M$5:M54)))) -> 
A55: 2009-12-31 | B55: Smith | C55: 150.31 | E55: =IF(ROWS(E$5:E55)>$G$2,"",INDEX(A$2:A$102,_xlfn.AGGREGATE(15,6,(ROW($A$2:$A$102)-ROW($A$2)+1)/(($B$2:$B$102=$F$2)*(YEAR($A$2:$A$102)=$E$2)),ROWS(E$5:E55)))) ->  | F55: =IF(ROWS(F$5:F55)>$G$2,"",INDEX(B$2:B$102,_xlfn.AGGREGATE(15,6,(ROW($A$2:$A$102)-ROW($A$2)+1)/(($B$2:$B$102=$F$2)*(YEAR($A$2:$A$102)=$E$2)),ROWS(F$5:F55)))) ->  | G55: =IF(ROWS(G$5:G55)>$G$2,"",INDEX(C$2:C$102,_xlfn.AGGREGATE(15,6,(ROW($A$2:$A$102)-ROW($A$2)+1)/(($B$2:$B$102=$F$2)*(YEAR($A$2:$A$102)=$E$2)),ROWS(G$5:G55)))) ->  | K55: =IF(ROWS(K$5:K55)>$G$2,"",INDEX(A$2:A$102,SMALL(IF($B$2:$B$102=$F$2,IF(YEAR($A$2:$A$102)=$E$2,ROW($B$2:$B$102)-ROW($B$2)+1)),ROWS(K$5:K55)))) ->  | L55: =IF(ROWS(L$5:L55)>$G$2,"",INDEX(B$2:B$102,SMALL(IF($B$2:$B$102=$F$2,IF(YEAR($A$2:$A$102)=$E$2,ROW($B$2:$B$102)-ROW($B$2)+1)),ROWS(L$5:L55)))) ->  | M55: =IF(ROWS(M$5:M55)>$G$2,"",INDEX(C$2:C$102,SMALL(IF($B$2:$B$102=$F$2,IF(YEAR($A$2:$A$102)=$E$2,ROW($B$2:$B$102)-ROW($B$2)+1)),ROWS(M$5:M55)))) -> 
A56: 2009-12-16 | B56: Franks | C56: 119.78 | E56: =IF(ROWS(E$5:E56)>$G$2,"",INDEX(A$2:A$102,_xlfn.AGGREGATE(15,6,(ROW($A$2:$A$102)-ROW($A$2)+1)/(($B$2:$B$102=$F$2)*(YEAR($A$2:$A$102)=$E$2)),ROWS(E$5:E56)))) ->  | F56: =IF(ROWS(F$5:F56)>$G$2,"",INDEX(B$2:B$102,_xlfn.AGGREGATE(15,6,(ROW($A$2:$A$102)-ROW($A$2)+1)/(($B$2:$B$102=$F$2)*(YEAR($A$2:$A$102)=$E$2)),ROWS(F$5:F56)))) ->  | G56: =IF(ROWS(G$5:G56)>$G$2,"",INDEX(C$2:C$102,_xlfn.AGGREGATE(15,6,(ROW($A$2:$A$102)-ROW($A$2)+1)/(($B$2:$B$102=$F$2)*(YEAR($A$2:$A$102)=$E$2)),ROWS(G$5:G56)))) ->  | K56: =IF(ROWS(K$5:K56)>$G$2,"",INDEX(A$2:A$102,SMALL(IF($B$2:$B$102=$F$2,IF(YEAR($A$2:$A$102)=$E$2,ROW($B$2:$B$102)-ROW($B$2)+1)),ROWS(K$5:K56)))) ->  | L56: =IF(ROWS(L$5:L56)>$G$2,"",INDEX(B$2:B$102,SMALL(IF($B$2:$B$102=$F$2,IF(YEAR($A$2:$A$102)=$E$2,ROW($B$2:$B$102)-ROW($B$2)+1)),ROWS(L$5:L56)))) ->  | M56: =IF(ROWS(M$5:M56)>$G$2,"",INDEX(C$2:C$102,SMALL(IF($B$2:$B$102=$F$2,IF(YEAR($A$2:$A$102)=$E$2,ROW($B$2:$B$102)-ROW($B$2)+1)),ROWS(M$5:M56)))) -> 
A57: 2010-01-03 | B57: Pham | C57: 93.37 | E57: =IF(ROWS(E$5:E57)>$G$2,"",INDEX(A$2:A$102,_xlfn.AGGREGATE(15,6,(ROW($A$2:$A$102)-ROW($A$2)+1)/(($B$2:$B$102=$F$2)*(YEAR($A$2:$A$102)=$E$2)),ROWS(E$5:E57)))) ->  | F57: =IF(ROWS(F$5:F57)>$G$2,"",INDEX(B$2:B$102,_xlfn.AGGREGATE(15,6,(ROW($A$2:$A$102)-ROW($A$2)+1)/(($B$2:$B$102=$F$2)*(YEAR($A$2:$A$102)=$E$2)),ROWS(F$5:F57)))) ->  | G57: =IF(ROWS(G$5:G57)>$G$2,"",INDEX(C$2:C$102,_xlfn.AGGREGATE(15,6,(ROW($A$2:$A$102)-ROW($A$2)+1)/(($B$2:$B$102=$F$2)*(YEAR($A$2:$A$102)=$E$2)),ROWS(G$5:G57)))) ->  | K57: =IF(ROWS(K$5:K57)>$G$2,"",INDEX(A$2:A$102,SMALL(IF($B$2:$B$102=$F$2,IF(YEAR($A$2:$A$102)=$E$2,ROW($B$2:$B$102)-ROW($B$2)+1)),ROWS(K$5:K57)))) ->  | L57: =IF(ROWS(L$5:L57)>$G$2,"",INDEX(B$2:B$102,SMALL(IF($B$2:$B$102=$F$2,IF(YEAR($A$2:$A$102)=$E$2,ROW($B$2:$B$102)-ROW($B$2)+1)),ROWS(L$5:L57)))) ->  | M57: =IF(ROWS(M$5:M57)>$G$2,"",INDEX(C$2:C$102,SMALL(IF($B$2:$B$102=$F$2,IF(YEAR($A$2:$A$102)=$E$2,ROW($B$2:$B$102)-ROW($B$2)+1)),ROWS(M$5:M57)))) -> 
A58: 2009-12-26 | B58: Chin | C58: 87.06 | E58: =IF(ROWS(E$5:E58)>$G$2,"",INDEX(A$2:A$102,_xlfn.AGGREGATE(15,6,(ROW($A$2:$A$102)-ROW($A$2)+1)/(($B$2:$B$102=$F$2)*(YEAR($A$2:$A$102)=$E$2)),ROWS(E$5:E58)))) ->  | F58: =IF(ROWS(F$5:F58)>$G$2,"",INDEX(B$2:B$102,_xlfn.AGGREGATE(15,6,(ROW($A$2:$A$102)-ROW($A$2)+1)/(($B$2:$B$102=$F$2)*(YEAR($A$2:$A$102)=$E$2)),ROWS(F$5:F58)))) ->  | G58: =IF(ROWS(G$5:G58)>$G$2,"",INDEX(C$2:C$102,_xlfn.AGGREGATE(15,6,(ROW($A$2:$A$102)-ROW($A$2)+1)/(($B$2:$B$102=$F$2)*(YEAR($A$2:$A$102)=$E$2)),ROWS(G$5:G58)))) ->  | K58: =IF(ROWS(K$5:K58)>$G$2,"",INDEX(A$2:A$102,SMALL(IF($B$2:$B$102=$F$2,IF(YEAR($A$2:$A$102)=$E$2,ROW($B$2:$B$102)-ROW($B$2)+1)),ROWS(K$5:K58)))) ->  | L58: =IF(ROWS(L$5:L58)>$G$2,"",INDEX(B$2:B$102,SMALL(IF($B$2:$B$102=$F$2,IF(YEAR($A$2:$A$102)=$E$2,ROW($B$2:$B$102)-ROW($B$2)+1)),ROWS(L$5:L58)))) ->  | M58: =IF(ROWS(M$5:M58)>$G$2,"",INDEX(C$2:C$102,SMALL(IF($B$2:$B$102=$F$2,IF(YEAR($A$2:$A$102)=$E$2,ROW($B$2:$B$102)-ROW($B$2)+1)),ROWS(M$5:M58)))) -> 
A59: 2010-01-05 | B59: Smith | C59: 147.49 | E59: =IF(ROWS(E$5:E59)>$G$2,"",INDEX(A$2:A$102,_xlfn.AGGREGATE(15,6,(ROW($A$2:$A$102)-ROW($A$2)+1)/(($B$2:$B$102=$F$2)*(YEAR($A$2:$A$102)=$E$2)),ROWS(E$5:E59)))) ->  | F59: =IF(ROWS(F$5:F59)>$G$2,"",INDEX(B$2:B$102,_xlfn.AGGREGATE(15,6,(ROW($A$2:$A$102)-ROW($A$2)+1)/(($B$2:$B$102=$F$2)*(YEAR($A$2:$A$102)=$E$2)),ROWS(F$5:F59)))) ->  | G59: =IF(ROWS(G$5:G59)>$G$2,"",INDEX(C$2:C$102,_xlfn.AGGREGATE(15,6,(ROW($A$2:$A$102)-ROW($A$2)+1)/(($B$2:$B$102=$F$2)*(YEAR($A$2:$A$102)=$E$2)),ROWS(G$5:G59)))) ->  | K59: =IF(ROWS(K$5:K59)>$G$2,"",INDEX(A$2:A$102,SMALL(IF($B$2:$B$102=$F$2,IF(YEAR($A$2:$A$102)=$E$2,ROW($B$2:$B$102)-ROW($B$2)+1)),ROWS(K$5:K59)))) ->  | L59: =IF(ROWS(L$5:L59)>$G$2,"",INDEX(B$2:B$102,SMALL(IF($B$2:$B$102=$F$2,IF(YEAR($A$2:$A$102)=$E$2,ROW($B$2:$B$102)-ROW($B$2)+1)),ROWS(L$5:L59)))) ->  | M59: =IF(ROWS(M$5:M59)>$G$2,"",INDEX(C$2:C$102,SMALL(IF($B$2:$B$102=$F$2,IF(YEAR($A$2:$A$102)=$E$2,ROW($B$2:$B$102)-ROW($B$2)+1)),ROWS(M$5:M59)))) -> 
A60: 2009-12-19 | B60: Smith | C60: 136.94 | E60: =IF(ROWS(E$5:E60)>$G$2,"",INDEX(A$2:A$102,_xlfn.AGGREGATE(15,6,(ROW($A$2:$A$102)-ROW($A$2)+1)/(($B$2:$B$102=$F$2)*(YEAR($A$2:$A$102)=$E$2)),ROWS(E$5:E60)))) ->  | F60: =IF(ROWS(F$5:F60)>$G$2,"",INDEX(B$2:B$102,_xlfn.AGGREGATE(15,6,(ROW($A$2:$A$102)-ROW($A$2)+1)/(($B$2:$B$102=$F$2)*(YEAR($A$2:$A$102)=$E$2)),ROWS(F$5:F60)))) ->  | G60: =IF(ROWS(G$5:G60)>$G$2,"",INDEX(C$2:C$102,_xlfn.AGGREGATE(15,6,(ROW($A$2:$A$102)-ROW($A$2)+1)/(($B$2:$B$102=$F$2)*(YEAR($A$2:$A$102)=$E$2)),ROWS(G$5:G60)))) ->  | K60: =IF(ROWS(K$5:K60)>$G$2,"",INDEX(A$2:A$102,SMALL(IF($B$2:$B$102=$F$2,IF(YEAR($A$2:$A$102)=$E$2,ROW($B$2:$B$102)-ROW($B$2)+1)),ROWS(K$5:K60)))) ->  | L60: =IF(ROWS(L$5:L60)>$G$2,"",INDEX(B$2:B$102,SMALL(IF($B$2:$B$102=$F$2,IF(YEAR($A$2:$A$102)=$E$2,ROW($B$2:$B$102)-ROW($B$2)+1)),ROWS(L$5:L60)))) ->  | M60: =IF(ROWS(M$5:M60)>$G$2,"",INDEX(C$2:C$102,SMALL(IF($B$2:$B$102=$F$2,IF(YEAR($A$2:$A$102)=$E$2,ROW($B$2:$B$102)-ROW($B$2)+1)),ROWS(M$5:M60)))) -> 
A61: 2009-11-20 | B61: Gault | C61: 93.33 | E61: =IF(ROWS(E$5:E61)>$G$2,"",INDEX(A$2:A$102,_xlfn.AGGREGATE(15,6,(ROW($A$2:$A$102)-ROW($A$2)+1)/(($B$2:$B$102=$F$2)*(YEAR($A$2:$A$102)=$E$2)),ROWS(E$5:E61)))) ->  | F61: =IF(ROWS(F$5:F61)>$G$2,"",INDEX(B$2:B$102,_xlfn.AGGREGATE(15,6,(ROW($A$2:$A$102)-ROW($A$2)+1)/(($B$2:$B$102=$F$2)*(YEAR($A$2:$A$102)=$E$2)),ROWS(F$5:F61)))) ->  | G61: =IF(ROWS(G$5:G61)>$G$2,"",INDEX(C$2:C$102,_xlfn.AGGREGATE(15,6,(ROW($A$2:$A$102)-ROW($A$2)+1)/(($B$2:$B$102=$F$2)*(YEAR($A$2:$A$102)=$E$2)),ROWS(G$5:G61)))) ->  | K61: =IF(ROWS(K$5:K61)>$G$2,"",INDEX(A$2:A$102,SMALL(IF($B$2:$B$102=$F$2,IF(YEAR($A$2:$A$102)=$E$2,ROW($B$2:$B$102)-ROW($B$2)+1)),ROWS(K$5:K61)))) ->  | L61: =IF(ROWS(L$5:L61)>$G$2,"",INDEX(B$2:B$102,SMALL(IF($B$2:$B$102=$F$2,IF(YEAR($A$2:$A$102)=$E$2,ROW($B$2:$B$102)-ROW($B$2)+1)),ROWS(L$5:L61)))) ->  | M61: =IF(ROWS(M$5:M61)>$G$2,"",INDEX(C$2:C$102,SMALL(IF($B$2:$B$102=$F$2,IF(YEAR($A$2:$A$102)=$E$2,ROW($B$2:$B$102)-ROW($B$2)+1)),ROWS(M$5:M61)))) -> 
A62: 2010-01-03 | B62: Smith | C62: 128.97 | E62: =IF(ROWS(E$5:E62)>$G$2,"",INDEX(A$2:A$102,_xlfn.AGGREGATE(15,6,(ROW($A$2:$A$102)-ROW($A$2)+1)/(($B$2:$B$102=$F$2)*(YEAR($A$2:$A$102)=$E$2)),ROWS(E$5:E62)))) ->  | F62: =IF(ROWS(F$5:F62)>$G$2,"",INDEX(B$2:B$102,_xlfn.AGGREGATE(15,6,(ROW($A$2:$A$102)-ROW($A$2)+1)/(($B$2:$B$102=$F$2)*(YEAR($A$2:$A$102)=$E$2)),ROWS(F$5:F62)))) ->  | G62: =IF(ROWS(G$5:G62)>$G$2,"",INDEX(C$2:C$102,_xlfn.AGGREGATE(15,6,(ROW($A$2:$A$102)-ROW($A$2)+1)/(($B$2:$B$102=$F$2)*(YEAR($A$2:$A$102)=$E$2)),ROWS(G$5:G62)))) ->  | K62: =IF(ROWS(K$5:K62)>$G$2,"",INDEX(A$2:A$102,SMALL(IF($B$2:$B$102=$F$2,IF(YEAR($A$2:$A$102)=$E$2,ROW($B$2:$B$102)-ROW($B$2)+1)),ROWS(K$5:K62)))) ->  | L62: =IF(ROWS(L$5:L62)>$G$2,"",INDEX(B$2:B$102,SMALL(IF($B$2:$B$102=$F$2,IF(YEAR($A$2:$A$102)=$E$2,ROW($B$2:$B$102)-ROW($B$2)+1)),ROWS(L$5:L62)))) ->  | M62: =IF(ROWS(M$5:M62)>$G$2,"",INDEX(C$2:C$102,SMALL(IF($B$2:$B$102=$F$2,IF(YEAR($A$2:$A$102)=$E$2,ROW($B$2:$B$102)-ROW($B$2)+1)),ROWS(M$5:M62)))) -> 
A63: 2009-12-14 | B63: Smith | C63: 114.93 | E63: =IF(ROWS(E$5:E63)>$G$2,"",INDEX(A$2:A$102,_xlfn.AGGREGATE(15,6,(ROW($A$2:$A$102)-ROW($A$2)+1)/(($B$2:$B$102=$F$2)*(YEAR($A$2:$A$102)=$E$2)),ROWS(E$5:E63)))) ->  | F63: =IF(ROWS(F$5:F63)>$G$2,"",INDEX(B$2:B$102,_xlfn.AGGREGATE(15,6,(ROW($A$2:$A$102)-ROW($A$2)+1)/(($B$2:$B$102=$F$2)*(YEAR($A$2:$A$102)=$E$2)),ROWS(F$5:F63)))) ->  | G63: =IF(ROWS(G$5:G63)>$G$2,"",INDEX(C$2:C$102,_xlfn.AGGREGATE(15,6,(ROW($A$2:$A$102)-ROW($A$2)+1)/(($B$2:$B$102=$F$2)*(YEAR($A$2:$A$102)=$E$2)),ROWS(G$5:G63)))) ->  | K63: =IF(ROWS(K$5:K63)>$G$2,"",INDEX(A$2:A$102,SMALL(IF($B$2:$B$102=$F$2,IF(YEAR($A$2:$A$102)=$E$2,ROW($B$2:$B$102)-ROW($B$2)+1)),ROWS(K$5:K63)))) ->  | L63: =IF(ROWS(L$5:L63)>$G$2,"",INDEX(B$2:B$102,SMALL(IF($B$2:$B$102=$F$2,IF(YEAR($A$2:$A$102)=$E$2,ROW($B$2:$B$102)-ROW($B$2)+1)),ROWS(L$5:L63)))) ->  | M63: =IF(ROWS(M$5:M63)>$G$2,"",INDEX(C$2:C$102,SMALL(IF($B$2:$B$102=$F$2,IF(YEAR($A$2:$A$102)=$E$2,ROW($B$2:$B$102)-ROW($B$2)+1)),ROWS(M$5:M63)))) -> 
A64: 2010-01-01 | B64: Sioux | C64: 104.57 | E64: =IF(ROWS(E$5:E64)>$G$2,"",INDEX(A$2:A$102,_xlfn.AGGREGATE(15,6,(ROW($A$2:$A$102)-ROW($A$2)+1)/(($B$2:$B$102=$F$2)*(YEAR($A$2:$A$102)=$E$2)),ROWS(E$5:E64)))) ->  | F64: =IF(ROWS(F$5:F64)>$G$2,"",INDEX(B$2:B$102,_xlfn.AGGREGATE(15,6,(ROW($A$2:$A$102)-ROW($A$2)+1)/(($B$2:$B$102=$F$2)*(YEAR($A$2:$A$102)=$E$2)),ROWS(F$5:F64)))) ->  | G64: =IF(ROWS(G$5:G64)>$G$2,"",INDEX(C$2:C$102,_xlfn.AGGREGATE(15,6,(ROW($A$2:$A$102)-ROW($A$2)+1)/(($B$2:$B$102=$F$2)*(YEAR($A$2:$A$102)=$E$2)),ROWS(G$5:G64)))) ->  | K64: =IF(ROWS(K$5:K64)>$G$2,"",INDEX(A$2:A$102,SMALL(IF($B$2:$B$102=$F$2,IF(YEAR($A$2:$A$102)=$E$2,ROW($B$2:$B$102)-ROW($B$2)+1)),ROWS(K$5:K64)))) ->  | L64: =IF(ROWS(L$5:L64)>$G$2,"",INDEX(B$2:B$102,SMALL(IF($B$2:$B$102=$F$2,IF(YEAR($A$2:$A$102)=$E$2,ROW($B$2:$B$102)-ROW($B$2)+1)),ROWS(L$5:L64)))) ->  | M64: =IF(ROWS(M$5:M64)>$G$2,"",INDEX(C$2:C$102,SMALL(IF($B$2:$B$102=$F$2,IF(YEAR($A$2:$A$102)=$E$2,ROW($B$2:$B$102)-ROW($B$2)+1)),ROWS(M$5:M64)))) -> 
A65: 2009-11-27 | B65: Sioux | C65: 119.53 | E65: =IF(ROWS(E$5:E65)>$G$2,"",INDEX(A$2:A$102,_xlfn.AGGREGATE(15,6,(ROW($A$2:$A$102)-ROW($A$2)+1)/(($B$2:$B$102=$F$2)*(YEAR($A$2:$A$102)=$E$2)),ROWS(E$5:E65)))) ->  | F65: =IF(ROWS(F$5:F65)>$G$2,"",INDEX(B$2:B$102,_xlfn.AGGREGATE(15,6,(ROW($A$2:$A$102)-ROW($A$2)+1)/(($B$2:$B$102=$F$2)*(YEAR($A$2:$A$102)=$E$2)),ROWS(F$5:F65)))) ->  | G65: =IF(ROWS(G$5:G65)>$G$2,"",INDEX(C$2:C$102,_xlfn.AGGREGATE(15,6,(ROW($A$2:$A$102)-ROW($A$2)+1)/(($B$2:$B$102=$F$2)*(YEAR($A$2:$A$102)=$E$2)),ROWS(G$5:G65)))) ->  | K65: =IF(ROWS(K$5:K65)>$G$2,"",INDEX(A$2:A$102,SMALL(IF($B$2:$B$102=$F$2,IF(YEAR($A$2:$A$102)=$E$2,ROW($B$2:$B$102)-ROW($B$2)+1)),ROWS(K$5:K65)))) ->  | L65: =IF(ROWS(L$5:L65)>$G$2,"",INDEX(B$2:B$102,SMALL(IF($B$2:$B$102=$F$2,IF(YEAR($A$2:$A$102)=$E$2,ROW($B$2:$B$102)-ROW($B$2)+1)),ROWS(L$5:L65)))) ->  | M65: =IF(ROWS(M$5:M65)>$G$2,"",INDEX(C$2:C$102,SMALL(IF($B$2:$B$102=$F$2,IF(YEAR($A$2:$A$102)=$E$2,ROW($B$2:$B$102)-ROW($B$2)+1)),ROWS(M$5:M65)))) -> 
A66: 2010-01-01 | B66: Pham | C66: 127.99 | E66: =IF(ROWS(E$5:E66)>$G$2,"",INDEX(A$2:A$102,_xlfn.AGGREGATE(15,6,(ROW($A$2:$A$102)-ROW($A$2)+1)/(($B$2:$B$102=$F$2)*(YEAR($A$2:$A$102)=$E$2)),ROWS(E$5:E66)))) ->  | F66: =IF(ROWS(F$5:F66)>$G$2,"",INDEX(B$2:B$102,_xlfn.AGGREGATE(15,6,(ROW($A$2:$A$102)-ROW($A$2)+1)/(($B$2:$B$102=$F$2)*(YEAR($A$2:$A$102)=$E$2)),ROWS(F$5:F66)))) ->  | G66: =IF(ROWS(G$5:G66)>$G$2,"",INDEX(C$2:C$102,_xlfn.AGGREGATE(15,6,(ROW($A$2:$A$102)-ROW($A$2)+1)/(($B$2:$B$102=$F$2)*(YEAR($A$2:$A$102)=$E$2)),ROWS(G$5:G66)))) ->  | K66: =IF(ROWS(K$5:K66)>$G$2,"",INDEX(A$2:A$102,SMALL(IF($B$2:$B$102=$F$2,IF(YEAR($A$2:$A$102)=$E$2,ROW($B$2:$B$102)-ROW($B$2)+1)),ROWS(K$5:K66)))) ->  | L66: =IF(ROWS(L$5:L66)>$G$2,"",INDEX(B$2:B$102,SMALL(IF($B$2:$B$102=$F$2,IF(YEAR($A$2:$A$102)=$E$2,ROW($B$2:$B$102)-ROW($B$2)+1)),ROWS(L$5:L66)))) ->  | M66: =IF(ROWS(M$5:M66)>$G$2,"",INDEX(C$2:C$102,SMALL(IF($B$2:$B$102=$F$2,IF(YEAR($A$2:$A$102)=$E$2,ROW($B$2:$B$102)-ROW($B$2)+1)),ROWS(M$5:M66)))) -> 
A67: 2009-12-03 | B67: Smith | C67: 88.69
A68: 2009-11-25 | B68: Smith | C68: 115.67
A69: 2010-01-07 | B69: Pham | C69: 114.54
A70: 2010-02-02 | B70: Smith | C70: 128.15
A71: 2010-02-08 | B71: Gault | C71: 126.33
A72: 2010-01-13 | B72: Smith | C72: 112.03
A73: 2009-11-20 | B73: Smith | C73: 145.33
A74: 2009-12-23 | B74: Gault | C74: 109.7
A75: 2009-11-26 | B75: Sioux | C75: 139.13
A76: 2009-12-01 | B76: Sioux | C76: 112.5
A77: 2009-11-29 | B77: Pham | C77: 122.21
A78: 2010-01-13 | B78: Smith | C78: 135.77
A79: 2010-01-09 | B79: Pham | C79: 75.17
A80: 2010-01-30 | B80: Sioux | C80: 104.5
A81: 2010-02-04 | B81: Gault | C81: 86.1
A82: 2010-01-02 | B82: Sioux | C82: 143.85
A83: 2010-01-16 | B83: Gault | C83: 104.36
A84: 2009-12-28 | B84: Smith | C84: 135.02
A85: 2009-12-26 | B85: Pham | C85: 83.26
A86: 2009-11-28 | B86: Sioux | C86: 114.53
A87: 2010-02-02 | B87: Smith | C87: 117.63
A88: 2009-12-27 | B88: Gault | C88: 102.24
A89: 2010-02-01 | B89: Chin | C89: 139.21
A90: 2009-12-25 | B90: Smith | C90: 119.09
A91: 2010-01-17 | B91: Pham | C91: 134.11
A92: 2010-01-15 | B92: Sioux | C92: 96.17
A93: 2010-01-10 | B93: Smith | C93: 108.54
A94: 2010-01-05 | B94: Gault | C94: 78.89
A95: 2010-01-20 | B95: Pham | C95: 130.37
A96: 2009-12-08 | B96: Chin | C96: 130.5
A97: 2010-01-16 | B97: Franks | C97: 123.13
A98: 2009-12-19 | B98: Gault | C98: 131.04
A99: 2009-12-17 | B99: Pham | C99: 76.26
A100: 2010-01-19 | B100: Pham | C100: 78.46
A101: 2009-11-21 | B101: Gault | C101: 79.11
A102: 2010-02-18 | B102: Gault | C102: 75.35
